Workbook

Sheet Introduction
A1: Scottish Public Sector Data Hosting and Data Centre Efficiency Assessment Tool
A3: Step 1: | B3: Enter information about your organisation:
B5: Organisation name | K5: Utility costs | M5: Tariff | O5: Real Escalation
B6: User name | K6: Electricity | N6: p/kWh | O6: 0.04
B7: User email | K7: Natural Gas | N7: p/kWh | O7: 0.04
B8: No of ICT users | K8: Generator Fuel | N8: p/kWh | O8: 0.04
B9: No of data centres | E9: 1 | K9: Water | N9: £/m3 | O9: 0.02
B11: Scenario Description
B12: Review Date
A14: Step 2: | B14: Enter information about your existing data centres
A16: Step 3: | B16: Enter information about your ICT requirements
A18: Step 4: | B18: Review Results
A23: Step 5: | B23: Save the Results
B25: The results of the analysis can be saved for future reference. Up to six scenarios can be saved
B27: Current Saved Scenarios | J27: Select position to save scenario in:
B29: Position | C29: Description | L29: 1
B30: 1 | C30: ='Look Up Tables'!A121 -> 0 | J30: Note that any existing data in this position will be overwritten
B31: 2 | C31: ='Look Up Tables'!A122 -> 0
B32: 3 | C32: ='Look Up Tables'!A123 -> 0
B33: 4 | C33: ='Look Up Tables'!A124 -> 0
B34: 5 | C34: ='Look Up Tables'!A125 -> 0
B35: 6 | C35: ='Look Up Tables'!A126 -> 0
A37: Optional:
B39: Clear data from Data Centre Input sheet and ICT Requirements input sheet.
A44: IMPORTANT NOTICE IN RELATION TO THE LIABILITY OF ZWS IN RESPECT OF THIS TOOL This Tool has been prepared by or on behalf of Zero Waste Scotland Limited (“Zero Waste Scotland”) and is provided for general information purposes only by users (“Recipients”). Whilst reasonable steps have been taken by Zero Waste Scotland to procure that the content and information contained in this Tool is correct in all material respects, such content and information may be incomplete, inaccurate and/or out of date. Accordingly, reliance should not be placed on this Tool by the Recipient (or any other person) and the Recipient is recommended to seek its own advice in connection with the purposes for which it intends to use the Tool. The entire liability of Zero Waste Scotland to the Recipient in respect of any loss or damage arising from or in connection with this Tool (including any negligence and any delictual act or omission in respect of it) shall in no event exceed the greater of (a) the amount paid (if any) by the Recipient to Zero Waste Scotland specifically for the preparation of this Tool and (b) £500. ZWS shall not be liable in respect of (a) any loss of profits, damage to goodwill, loss of business, loss of revenue, loss of contracts, loss of anticipated savings or increased costs or expenses or (b) any type of special, indirect or consequential loss or damage howsowever caused. No warranties, representations, guarantees or undertakings are given in respect of this Tool and all warranties, conditions or other terms implied by statute or common law are excluded to the fullest extent permitted by law. Nothing presented within this Tool is intended to be or should be interpreted as an endorsement or recommendation of any supplier, service or product. Notwithstanding any of the above, the liability of Zero Waste Scotland to the Recipient for any death or personal injury caused by negligence, for fraudulent misrepresentation or for any other matter for which liability cannot be limited or excluded by law shall not be limited or excluded in any way.

Sheet Data Centre Detail
B1: Data Centre/Server Room Information
B3: Number of Data Centres/Server Rooms | D3: =Introduction!E9 -> 1
B5: Data Centre | D5: 1 | G5: 2 | J5: 3 | M5: 4
B6: Name
B7: Location (Select closest town/city)
B8: Detail
B9: Standalone or integrated
B10: Ownership
B11: Data room floor area (must be entered unless leased rackspace only) | C11: m2
B12: Office floor area | C12: m2
B13: Ancilliary floor area | C13: m2
B14: Total floor area | C14: m3 | D14: =SUM(D11:D13) -> 0 | G14: =SUM(G11:G13) -> 0 | J14: =SUM(J11:J13) -> 0 | M14: =SUM(M11:M13) -> 0
B16: Rating and Recovery
B17: Tier Rating
B18: Actual Availability
B19: Stated PUE (Not required for owned data centres)
B20: Data Centre Disaster Recovery
B21: Type
B22: Time to bring back service | C22: Mins
B23: Full or partial recovery
B25: Racks and Servers | D25: Current | E25: 3 Yr Forecast | F25: 5 Yr Forecast | G25: Current | H25: 3 Yr Forecast | I25: 5 Yr Forecast | J25: Current | K25: 3 Yr Forecast | L25: 5 Yr Forecast | M25: Current | N25: 3 Yr Forecast | O25: 5 Yr Forecast
B26: No of racks (42u equivalent)
B27: Rack utilisation
B28: No of devices
B29: Servers | D29: =SUM(D30:D33) -> 0 | E29: =SUM(E30:E33) -> 0 | F29: 0 | G29: =SUM(G30:G33) -> 0 | H29: 0 | I29: 0 | J29: =SUM(J30:J33) -> 0 | K29: 0 | L29: 0 | M29: =SUM(M30:M33) -> 0 | N29: 0 | O29: 0
B30: Small
B31: Medium
B32: Large
B33: Extra Large
B34: Storage
B35: Network devices
B36: Ancilliary devices
B37: Other
B38: Total storage capacity | C38: TB
B40: Power Consumption
B41: ICT Power
B42: Is the total ICT power seperately metered?
B44: Metering Point(s)
D46: Current | E46: 3 Yr Forecast | F46: 5 Yr Forecast | G46: Current | H46: 3 Yr Forecast | I46: 5 Yr Forecast | J46: Current | K46: 3 Yr Forecast | L46: 5 Yr Forecast | M46: Current | N46: 3 Yr Forecast | O46: 5 Yr Forecast
B47: Total kWh/year measured | C47: kWh
B48: Estimated PDU Losses | C48: %
B50: Estimation of ICT Load
B51: Average small server consumption | C51: W
B52: Average medium server consumption | C52: W
B53: Average large server consumption | C53: W
B54: Average extra large server consumption | C54: W
B55: Average storage device consumption | C55: W
B56: Average network device consumption | C56: W
B57: Average ancilliary device consumption | C57: W
B58: Other | C58: W
B59: Total | C59: kWh | D59: =(D30*D51+D31*D52+D32*D53+D33*D54+D34*D55+D35*D56+D36*D57+D37*D58)*8760/1000 -> 0 | E59: =(E30*E51+E31*E52+E32*E53+E33*E54+E34*E55+E35*E56+E36*E57+E37*E58)*8760/1000 -> 0 | F59: 0 | G59: 0 | H59: 0 | I59: 0 | J59: 0 | K59: 0 | L59: 0 | M59: 0 | N59: 0 | O59: 0
B61: Total ICT Load | C61: kWh | D61: =IF($D$42="Yes",D47*(1-D48),D59) -> 0 | E61: =IF($D$42="Yes",E47*(1-E48),E59) -> 0 | F61: =IF($D$42="Yes",F47*(1-F48),F59) -> 0 | G61: =IF($G$42="Yes",G47*(1-G48),G59) -> 0 | H61: =IF($G$42="Yes",H47*(1-H48),H59) -> 0 | I61: =IF($G$42="Yes",I47*(1-I48),I59) -> 0 | J61: =IF($J$42="Yes",J47*(1-J48),J59) -> 0 | K61: =IF($J$42="Yes",K47*(1-K48),K59) -> 0 | L61: =IF($J$42="Yes",L47*(1-L48),L59) -> 0 | M61: =IF($M$42="Yes",M47*(1-M48),M59) -> 0 | N61: =IF($M$42="Yes",N47*(1-N48),N59) -> 0 | O61: =IF($M$42="Yes",O47*(1-O48),O59) -> 0
B63: Total Utilities to Data Centre/Server Room
B64: Is all non ICT power use or total power seperately metered?
B65: is generator electricity included in this metered power?
D67: Current | E67: 3 Yr Forecast | F67: 5 Yr Forecast | G67: Current | H67: 3 Yr Forecast | I67: 5 Yr Forecast | J67: Current | K67: 3 Yr Forecast | L67: 5 Yr Forecast | M67: Current | N67: 3 Yr Forecast | O67: 5 Yr Forecast
B68: Total kWh/year measured excluding ICT Load | C68: kWh
B70: Is some of the power seperately measured?
B71: Measured Consumption (leave blank if unknown)
B72: Lighting | C72: kWh | E72: Note that if you enter any measured energy here, you will still need to enter estimates in the appropriate sections below for the 3yr and 5yr scenarios. | H72: Note that if you enter any measured energy here, you will still need to enter estimates in the appropriate sections below for the 3yr and 5yr scenarios. | K72: Note that if you enter any measured energy here, you will still need to enter estimates in the appropriate sections below for the 3yr and 5yr scenarios. | N72: Note that if you enter any measured energy here, you will still need to enter estimates in the appropriate sections below for the 3yr and 5yr scenarios.
B73: UPS Losses | C73: kWh
B74: HVAC | C74: kWh
B75: PDU Losses | C75: kWh
B76: Other | C76: kWh
B78: Other Utilty Usage
B79: Natural Gas | C79: kWh
B80: Water | C80: m3
B82: Equipment Types for Estimation of Power
B83: Lighting
B84: Lighting Type
B85: Lighting Controls
B86: Estimated kWh Electricity based on defaults | C86: kWh | D86: =IFERROR(D$14*VLOOKUP(D84,'Look Up Tables'!$A$7:$B$12,2,0)*8760*VLOOKUP(D85,'Look Up Tables'!$A$17:$B$20,2,0)/1000,0) -> 0 | E86: =IFERROR(D$14*VLOOKUP(E84,'Look Up Tables'!$A$7:$B$12,2,0)*8760*VLOOKUP(E85,'Look Up Tables'!$A$17:$B$20,2,0)/1000,0) -> 0 | F86: =IFERROR(D$14*VLOOKUP(F84,'Look Up Tables'!$A$7:$B$12,2,0)*8760*VLOOKUP(F85,'Look Up Tables'!$A$17:$B$20,2,0)/1000,0) -> 0 | G86: =IFERROR(G$14*VLOOKUP(G84,'Look Up Tables'!$A$7:$B$12,2,0)*8760*VLOOKUP(G85,'Look Up Tables'!$A$17:$B$20,2,0)/1000,0) -> 0 | H86: =IFERROR(G$14*VLOOKUP(H84,'Look Up Tables'!$A$7:$B$12,2,0)*8760*VLOOKUP(H85,'Look Up Tables'!$A$17:$B$20,2,0)/1000,0) -> 0 | I86: =IFERROR(G$14*VLOOKUP(I84,'Look Up Tables'!$A$7:$B$12,2,0)*8760*VLOOKUP(I85,'Look Up Tables'!$A$17:$B$20,2,0)/1000,0) -> 0 | J86: =IFERROR(J$14*VLOOKUP(J84,'Look Up Tables'!$A$7:$B$12,2,0)*8760*VLOOKUP(J85,'Look Up Tables'!$A$17:$B$20,2,0)/1000,0) -> 0 | K86: =IFERROR(J$14*VLOOKUP(K84,'Look Up Tables'!$A$7:$B$12,2,0)*8760*VLOOKUP(K85,'Look Up Tables'!$A$17:$B$20,2,0)/1000,0) -> 0 | L86: =IFERROR(J$14*VLOOKUP(L84,'Look Up Tables'!$A$7:$B$12,2,0)*8760*VLOOKUP(L85,'Look Up Tables'!$A$17:$B$20,2,0)/1000,0) -> 0 | M86: =IFERROR(M$14*VLOOKUP(M84,'Look Up Tables'!$A$7:$B$12,2,0)*8760*VLOOKUP(M85,'Look Up Tables'!$A$17:$B$20,2,0)/1000,0) -> 0 | N86: =IFERROR(M$14*VLOOKUP(N84,'Look Up Tables'!$A$7:$B$12,2,0)*8760*VLOOKUP(N85,'Look Up Tables'!$A$17:$B$20,2,0)/1000,0) -> 0 | O86: =IFERROR(M$14*VLOOKUP(O84,'Look Up Tables'!$A$7:$B$12,2,0)*8760*VLOOKUP(O85,'Look Up Tables'!$A$17:$B$20,2,0)/1000,0) -> 0
B87: Measured Consumption | C87: kWh | D87: =IF(D72="","",D72) ->  | G87: =IF(G72="","",G72) ->  | J87: =IF(J72="","",J72) ->  | M87: =IF(M72="","",M72) -> 
B88: Or enter your own estimate | C88: kWh
B89: Used | C89: kWh | D89: =IF(D88<>"",D88,IF(D87<>"",D87,D86)) -> 0 | E89: =IF(E88<>"",E88,E86) -> 0 | F89: =IF(F88<>"",F88,F86) -> 0 | G89: =IF(G88<>"",G88,IF(G87<>"",G87,G86)) -> 0 | H89: =IF(H88<>"",H88,H86) -> 0 | I89: =IF(I88<>"",I88,I86) -> 0 | J89: =IF(J88<>"",J88,IF(J87<>"",J87,J86)) -> 0 | K89: =IF(K88<>"",K88,K86) -> 0 | L89: =IF(L88<>"",L88,L86) -> 0 | M89: =IF(M88<>"",M88,IF(M87<>"",M87,M86)) -> 0 | N89: =IF(N88<>"",N88,N86) -> 0 | O89: =IF(O88<>"",O88,O86) -> 0
B90: UPS
B91: UPS Type
B92: Estimated kWh Electricity based on defaults | C92: kWh | D92: =IFERROR((D61*(1+IF(D107<>"",D107,D106)))*(1-VLOOKUP(D91,'Look Up Tables'!$A$25:$B$28,2,0)),0) -> 0 | E92: =IFERROR((E61*(1+IF(E107<>"",E107,E106)))*(1-VLOOKUP(E91,'Look Up Tables'!$A$25:$B$28,2,0)),0) -> 0 | F92: =IFERROR((F61*(1+IF(F107<>"",F107,F106)))*(1-VLOOKUP(F91,'Look Up Tables'!$A$25:$B$28,2,0)),0) -> 0 | G92: =IFERROR((G61*(1+IF(G107<>"",G107,G106)))*(1-VLOOKUP(G91,'Look Up Tables'!$A$25:$B$28,2,0)),0) -> 0 | H92: =IFERROR((H61*(1+IF(H107<>"",H107,H106)))*(1-VLOOKUP(H91,'Look Up Tables'!$A$25:$B$28,2,0)),0) -> 0 | I92: =IFERROR((I61*(1+IF(I107<>"",I107,I106)))*(1-VLOOKUP(I91,'Look Up Tables'!$A$25:$B$28,2,0)),0) -> 0 | J92: =IFERROR((J61*(1+IF(J107<>"",J107,J106)))*(1-VLOOKUP(J91,'Look Up Tables'!$A$25:$B$28,2,0)),0) -> 0 | K92: =IFERROR((K61*(1+IF(K107<>"",K107,K106)))*(1-VLOOKUP(K91,'Look Up Tables'!$A$25:$B$28,2,0)),0) -> 0 | L92: =IFERROR((L61*(1+IF(L107<>"",L107,L106)))*(1-VLOOKUP(L91,'Look Up Tables'!$A$25:$B$28,2,0)),0) -> 0 | M92: =IFERROR((M61*(1+IF(M107<>"",M107,M106)))*(1-VLOOKUP(M91,'Look Up Tables'!$A$25:$B$28,2,0)),0) -> 0 | N92: =IFERROR((N61*(1+IF(N107<>"",N107,N106)))*(1-VLOOKUP(N91,'Look Up Tables'!$A$25:$B$28,2,0)),0) -> 0 | O92: =IFERROR((O61*(1+IF(O107<>"",O107,O106)))*(1-VLOOKUP(O91,'Look Up Tables'!$A$25:$B$28,2,0)),0) -> 0
B93: Measured Consumption | C93: kWh | D93: =IF(D73="","",D73) ->  | G93: =IF(G73="","",G73) ->  | J93: =IF(J73="","",J73) ->  | M93: =IF(M73="","",M73) -> 
B94: Or enter your own estimate | C94: kWh
B95: Used | C95: kWh | D95: =IF(D94<>"",D94,IF(D93<>"",D93,D92)) -> 0 | E95: =IF(E94<>"",E94,E92) -> 0 | F95: =IF(F94<>"",F94,F92) -> 0 | G95: =IF(G94<>"",G94,IF(G93<>"",G93,G92)) -> 0 | H95: =IF(H94<>"",H94,H92) -> 0 | I95: =IF(I94<>"",I94,I92) -> 0 | J95: =IF(J94<>"",J94,IF(J93<>"",J93,J92)) -> 0 | K95: =IF(K94<>"",K94,K92) -> 0 | L95: =IF(L94<>"",L94,L92) -> 0 | M95: =IF(M94<>"",M94,IF(M93<>"",M93,M92)) -> 0 | N95: =IF(N94<>"",N94,N92) -> 0 | O95: =IF(O94<>"",O94,O92) -> 0
B96: HVAC
B97: HVAC Type
B98: Capacity Utilisation
B99: Perimeter or Close Coupled
B100: Airside Economiser
B101: Estimated kWh Electricity based on defaults | C101: kWh | D101: =IF(D97<>"",(VLOOKUP(D97,'Look Up Tables'!$A$35:$M$41,IF(D98=0.5,1,IF(D98=0.75,5,9))+IF(D100<>"Yes",IF(D99="Perimeter",0,1),IF(D99="Perimeter",2,3))+1,0)-1)*D61,0) -> 0 | E101: =IF(E97<>"",(VLOOKUP(E97,'Look Up Tables'!$A$35:$M$41,IF(E98=0.5,1,IF(E98=0.75,5,9))+IF(E100="No",IF(E99="Perimeter",0,1),IF(E99="Perimeter",2,3))+1,0)-1)*E61,0) -> 0 | F101: =IF(F97<>"",(VLOOKUP(F97,'Look Up Tables'!$A$35:$M$41,IF(F98=0.5,1,IF(F98=0.75,5,9))+IF(F100="No",IF(F99="Perimeter",0,1),IF(F99="Perimeter",2,3))+1,0)-1)*F61,0) -> 0 | G101: =IF(G97<>"",(VLOOKUP(G97,'Look Up Tables'!$A$35:$M$41,IF(G98=0.5,1,IF(G98=0.75,5,9))+IF(G100="No",IF(G99="Perimeter",0,1),IF(G99="Perimeter",2,3))+1,0)-1)*G61,0) -> 0 | H101: =IF(H97<>"",(VLOOKUP(H97,'Look Up Tables'!$A$35:$M$41,IF(H98=0.5,1,IF(H98=0.75,5,9))+IF(H100="No",IF(H99="Perimeter",0,1),IF(H99="Perimeter",2,3))+1,0)-1)*H61,0) -> 0 | I101: =IF(I97<>"",(VLOOKUP(I97,'Look Up Tables'!$A$35:$M$41,IF(I98=0.5,1,IF(I98=0.75,5,9))+IF(I100="No",IF(I99="Perimeter",0,1),IF(I99="Perimeter",2,3))+1,0)-1)*I61,0) -> 0 | J101: =IF(J97<>"",(VLOOKUP(J97,'Look Up Tables'!$A$35:$M$41,IF(J98=0.5,1,IF(J98=0.75,5,9))+IF(J100="No",IF(J99="Perimeter",0,1),IF(J99="Perimeter",2,3))+1,0)-1)*J61,0) -> 0 | K101: =IF(K97<>"",(VLOOKUP(K97,'Look Up Tables'!$A$35:$M$41,IF(K98=0.5,1,IF(K98=0.75,5,9))+IF(K100="No",IF(K99="Perimeter",0,1),IF(K99="Perimeter",2,3))+1,0)-1)*K61,0) -> 0 | L101: =IF(L97<>"",(VLOOKUP(L97,'Look Up Tables'!$A$35:$M$41,IF(L98=0.5,1,IF(L98=0.75,5,9))+IF(L100="No",IF(L99="Perimeter",0,1),IF(L99="Perimeter",2,3))+1,0)-1)*L61,0) -> 0 | M101: =IF(M97<>"",(VLOOKUP(M97,'Look Up Tables'!$A$35:$M$41,IF(M98=0.5,1,IF(M98=0.75,5,9))+IF(M100="No",IF(M99="Perimeter",0,1),IF(M99="Perimeter",2,3))+1,0)-1)*M61,0) -> 0 | N101: =IF(N97<>"",(VLOOKUP(N97,'Look Up Tables'!$A$35:$M$41,IF(N98=0.5,1,IF(N98=0.75,5,9))+IF(N100="No",IF(N99="Perimeter",0,1),IF(N99="Perimeter",2,3))+1,0)-1)*N61,0) -> 0 | O101: =IF(O97<>"",(VLOOKUP(O97,'Look Up Tables'!$A$35:$M$41,IF(O98=0.5,1,IF(O98=0.75,5,9))+IF(O100="No",IF(O99="Perimeter",0,1),IF(O99="Perimeter",2,3))+1,0)-1)*O61,0) -> 0
B102: Measured Consumption | C102: kWh | D102: =IF(D74="","",D74) ->  | G102: =IF(G74="","",G74) ->  | J102: =IF(J74="","",J74) ->  | M102: =IF(M74="","",M74) -> 
B103: Or enter your own estimate | C103: kWh
B104: Used | C104: kWh | D104: =IFERROR(IF(D103<>"",D103,IF(D102<>"",D102,D101)),0) -> 0 | E104: =IFERROR(IF(E103<>"",E103,IF(E102<>"",E102,E101)),0) -> 0 | F104: 0 | G104: =IF(G103<>"",G103,IF(G102<>"",G102,G101)) -> 0 | H104: =IF(H103<>"",H103,H101) -> 0 | I104: =IF(I103<>"",I103,I101) -> 0 | J104: =IF(J103<>"",J103,IF(J102<>"",J102,J101)) -> 0 | K104: =IF(K103<>"",K103,K101) -> 0 | L104: =IF(L103<>"",L103,L101) -> 0 | M104: =IF(M103<>"",M103,IF(M102<>"",M102,M101)) -> 0 | N104: =IF(N103<>"",N103,N101) -> 0 | O104: =IF(O103<>"",O103,O101) -> 0
B105: PDU
B106: PDU estimated losses | C106: % | D106: =IF($D$64="Yes",0,IF(D48>0,D48,0.1)) -> 0.1 | E106: =IF($D$64="Yes",0,IF(E48>0,E48,0.1)) -> 0.1 | F106: =IF($D$64="Yes",0,IF(F48>0,F48,0.1)) -> 0.1 | G106: =IF($G$64="Yes",0,IF(G48>0,G48,0.1)) -> 0.1 | H106: =IF($G$64="Yes",0,IF(H48>0,H48,0.1)) -> 0.1 | I106: =IF($G$64="Yes",0,IF(I48>0,I48,0.1)) -> 0.1 | J106: =IF($J$64="Yes",0,IF(J48>0,J48,0.1)) -> 0.1 | K106: =IF($J$64="Yes",0,IF(K48>0,K48,0.1)) -> 0.1 | L106: =IF($J$64="Yes",0,IF(L48>0,L48,0.1)) -> 0.1 | M106: =IF($M$64="Yes",0,IF(M48>0,M48,0.1)) -> 0.1 | N106: =IF($M$64="Yes",0,IF(N48>0,N48,0.1)) -> 0.1 | O106: =IF($M$64="Yes",0,IF(O48>0,O48,0.1)) -> 0.1
B107: Or enter your own estimate | C107: %
B108: Measured Consumption | C108: kWh | D108: =IF(D75="","",D75) ->  | G108: =IF(G75="","",G75) ->  | J108: =IF(J75="","",J75) ->  | M108: =IF(M75="","",M75) -> 
B109: Used | C109: kWh | D109: =IF(D68>0,0,IF(D108<>"",D108,D61*IF(D107<>"",D107,D106))) -> 0 | E109: =IF(E68>0,0,IF(E108<>0,E108,E61*IF(E107<>"",E107,E106))) -> 0 | F109: 0 | G109: =IF(G68>0,0,IF(G108<>"",G108,G61*IF(G107<>"",G107,G106))) -> 0 | H109: 0 | I109: 0 | J109: =IF(J68>0,0,IF(J108<>"",J108,J61*IF(J107<>"",J107,J106))) -> 0 | K109: 0 | L109: 0 | M109: =IF(M68>0,0,IF(M108<>"",M108,M61*IF(M107<>"",M107,M106))) -> 0 | N109: 0 | O109: 0
B110: Generator
B111: Generator capacity | C111: kW
B112: Generator annual hours at full load | C112: Hours
B113: Generator Efficiency | C113: %
B114: Electricity Generated | C114: kWh | D114: =D118*D113 -> 0 | E114: =E118*E113 -> 0 | G114: 0 | H114: 0 | I114: 0 | J114: 0 | K114: 0 | L114: 0 | M114: 0 | N114: 0 | O114: 0
B115: Estimated kWh Generator Fuel | C115: kWh | D115: =IF(D113>0,D111*D112/D113,0) -> 0 | E115: =IF(E113>0,E111*E112/E113,0) -> 0 | F115: 0 | G115: =IF(G113>0,G111*G112/G113,0) -> 0 | H115: =IF(H113>0,H111*H112/H113,0) -> 0 | I115: =IF(I113>0,I111*I112/I113,0) -> 0 | J115: =IF(J113>0,J111*J112/J113,0) -> 0 | K115: =IF(K113>0,K111*K112/K113,0) -> 0 | L115: =IF(L113>0,L111*L112/L113,0) -> 0 | M115: =IF(M113>0,M111*M112/M113,0) -> 0 | N115: =IF(N113>0,N111*N112/N113,0) -> 0 | O115: =IF(O113>0,O111*O112/O113,0) -> 0
B116: Measured Consumption | C116: kWh
B117: Or enter your own estimate | C117: kWh
B118: Used | C118: kWh | D118: =IF(D117<>"",D117,IF(D116<>"",D116,D115)) -> 0 | E118: =IF(E117<>"",E117,E115) -> 0 | F118: =IF(F117<>"",F117,F115) -> 0 | G118: =IF(G117<>"",G117,IF(G116<>"",G116,G115)) -> 0 | H118: =IF(H117<>"",H117,H115) -> 0 | I118: =IF(I117<>"",I117,I115) -> 0 | J118: =IF(J117<>"",J117,IF(J116<>"",J116,J115)) -> 0 | K118: =IF(K117<>"",K117,K115) -> 0 | L118: =IF(L117<>"",L117,L115) -> 0 | M118: =IF(M117<>"",M117,IF(M116<>"",M116,M115)) -> 0 | N118: =IF(N117<>"",N117,N115) -> 0 | O118: =IF(O117<>"",O117,O115) -> 0
B119: Other
B120: Estimated kWh Electricity (2.5% of non ICT energy) | C120: kWh | D120: =(D89+D95+D104+D109)*0.025 -> 0 | E120: =(E89+E95+E104+E109)*0.025 -> 0 | F120: 0 | G120: 0 | H120: 0 | I120: 0 | J120: 0 | K120: 0 | L120: 0 | M120: 0 | N120: 0 | O120: 0
B121: Measured Consumption | C121: kWh | D121: =IF(D76="","",D76) ->  | G121: =IF(G76="","",G76) ->  | J121: =IF(J76="","",J76) ->  | M121: =IF(M76="","",M76) -> 
B122: Or enter your own estimate | C122: kWh
B123: Used | C123: kWh | D123: =IF(D122<>"",D122,IF(D121<>"",D121,D120)) -> 0 | E123: =IF(E122<>"",E122,E120) -> 0 | F123: =IF(F122<>"",F122,F120) -> 0 | G123: =IF(G122<>"",G122,IF(G121<>"",G121,G120)) -> 0 | H123: =IF(H122<>"",H122,H120) -> 0 | I123: =IF(I122<>"",I122,I120) -> 0 | J123: =IF(J122<>"",J122,IF(J121<>"",J121,J120)) -> 0 | K123: =IF(K122<>"",K122,K120) -> 0 | L123: =IF(L122<>"",L122,L120) -> 0 | M123: =IF(M122<>"",M122,IF(M121<>"",M121,M120)) -> 0 | N123: =IF(N122<>"",N122,N120) -> 0 | O123: =IF(O122<>"",O122,O120) -> 0
B125: Total Non ICT Energy (ex Generator) | C125: kWh | D125: =IF($D$64<>"",IF(D$64="Yes",D68,D89+D95+D104+D109+D123+D79-D118),0) -> 0 | E125: =IF($D$64<>"",IF(E$64="Yes",E68,E89+E95+E104+E109+E123+E79-E118),0) -> 0 | F125: 0 | G125: =IF($G$64<>"",IF($G$64="Yes",G68,G89+G95+G104+G109+G123+G79-G118),0) -> 0 | H125: =IF($G$64<>"",IF($G$64="Yes",H68,H89+H95+H104+H109+H123+H79-H118),0) -> 0 | I125: 0 | J125: =IF($J$64<>"",IF(J$64="Yes",J68,J89+J95+J104+J109+J123+J79-J118),0) -> 0 | K125: =IF($J$64<>"",IF(K$64="Yes",K68,K89+K95+K104+K109+K123+K79-K118),0) -> 0 | L125: 0 | M125: =IF($M$64<>"",IF($M$64="Yes",M68,M89+M95+M104+M109+M123+M79-M118),0) -> 0 | N125: =IF($M$64<>"",IF($M$64="Yes",N68,N89+N95+N104+N109+N123+N79-N118),0) -> 0 | O125: 0
B127: Utility Use Breakdown
B128: Electricity | D128: =D125 -> 0 | E128: =E125 -> 0 | F128: 0 | G128: 0 | H128: 0 | I128: 0 | J128: 0 | K128: 0 | L128: 0 | M128: 0 | N128: 0 | O128: 0
B129: Natural Gas | D129: =D79 -> 0 | E129: =E79 -> 0 | F129: 0 | G129: 0 | H129: 0 | I129: 0 | J129: 0 | K129: 0 | L129: 0 | M129: 0 | N129: 0 | O129: 0
B130: Generator Fuel | D130: =D118 -> 0 | E130: =E118 -> 0 | F130: 0 | G130: 0 | H130: 0 | I130: 0 | J130: 0 | K130: 0 | L130: 0 | M130: 0 | N130: 0 | O130: 0
B132: Total Facility Energy | C132: kWh | D132: =IF(D125>0,D128+D129+D130+D61,0) -> 0 | E132: =IF(E125>0,E128+E129+E130+E61,0) -> 0 | F132: 0 | G132: 0 | H132: 0 | I132: 0 | J132: 0 | K132: 0 | L132: 0 | M132: 0 | N132: 0 | O132: 0
B133: PUE | D133: =IF(D132>0,D132/D61,D19) -> 0 | E133: =IF(E132>0,E132/E61,D19) -> 0 | F133: =IF(F132>0,F132/F61,D19) -> 0 | G133: =IF(G132>0,G132/G61,G19) -> 0 | H133: =IF(H132>0,H132/H61,G19) -> 0 | I133: =IF(I132>0,I132/I61,G19) -> 0 | J133: =IF(J132>0,J132/J61,J19) -> 0 | K133: =IF(K132>0,K132/K61,J19) -> 0 | L133: =IF(L132>0,L132/L61,J19) -> 0 | M133: =IF(M132>0,M132/M61,M19) -> 0 | N133: =IF(N132>0,N132/N61,M19) -> 0 | O133: =IF(O132>0,O132/O61,M19) -> 0
B135: Data Centre Costs
B137: Utilities | D137: Current | E137: 3 Yr Forecast | F137: 5 Yr Forecast | G137: Current | H137: 3 Yr Forecast | I137: 5 Yr Forecast | J137: Current | K137: 3 Yr Forecast | L137: 5 Yr Forecast | M137: Current | N137: 3 Yr Forecast | O137: 5 Yr Forecast
B138: Electricity | D138: =D128*Introduction!$M$6/100 -> 0 | E138: =E128*Introduction!$M6/100*(1+Introduction!$O6)^3 -> 0 | F138: =F128*Introduction!$M6/100*(1+Introduction!$O6)^5 -> 0 | G138: =G128*Introduction!$M$6/100 -> 0 | H138: =H128*Introduction!$M6/100*(1+Introduction!$O6)^3 -> 0 | I138: =I128*Introduction!$M6/100*(1+Introduction!$O6)^5 -> 0 | J138: =J128*Introduction!$M$6/100 -> 0 | K138: =K128*Introduction!$M6/100*(1+Introduction!$O6)^3 -> 0 | L138: =L128*Introduction!$M6/100*(1+Introduction!$O6)^5 -> 0 | M138: =M128*Introduction!$M$6/100 -> 0 | N138: =N128*Introduction!$M6/100*(1+Introduction!$O6)^3 -> 0 | O138: =O128*Introduction!$M6/100*(1+Introduction!$O6)^5 -> 0
B139: Natural Gas | D139: =D129*Introduction!$M$7/100 -> 0 | E139: =E129*Introduction!$M7/100*(1+Introduction!$O7)^3 -> 0 | F139: =F129*Introduction!$M7/100*(1+Introduction!$O7)^5 -> 0 | G139: =G129*Introduction!$M$7/100 -> 0 | H139: =H129*Introduction!$M7/100*(1+Introduction!$O7)^3 -> 0 | I139: =I129*Introduction!$M7/100*(1+Introduction!$O7)^5 -> 0 | J139: =J129*Introduction!$M$7/100 -> 0 | K139: =K129*Introduction!$M7/100*(1+Introduction!$O7)^3 -> 0 | L139: =L129*Introduction!$M7/100*(1+Introduction!$O7)^5 -> 0 | M139: =M129*Introduction!$M$7/100 -> 0 | N139: =N129*Introduction!$M7/100*(1+Introduction!$O7)^3 -> 0 | O139: =O129*Introduction!$M7/100*(1+Introduction!$O7)^5 -> 0
B140: Generator Fuel | D140: =D130*Introduction!$M$8/100 -> 0 | E140: =E130*Introduction!$M8/100*(1+Introduction!$O8)^3 -> 0 | F140: =F130*Introduction!$M8/100*(1+Introduction!$O8)^5 -> 0 | G140: =G130*Introduction!$M$8/100 -> 0 | H140: =H130*Introduction!$M8/100*(1+Introduction!$O8)^3 -> 0 | I140: =I130*Introduction!$M8/100*(1+Introduction!$O8)^5 -> 0 | J140: =J130*Introduction!$M$8/100 -> 0 | K140: =K130*Introduction!$M8/100*(1+Introduction!$O8)^3 -> 0 | L140: =L130*Introduction!$M8/100*(1+Introduction!$O8)^5 -> 0 | M140: =M130*Introduction!$M$8/100 -> 0 | N140: =N130*Introduction!$M8/100*(1+Introduction!$O8)^3 -> 0 | O140: =O130*Introduction!$M8/100*(1+Introduction!$O8)^5 -> 0
B141: Water | D141: =D80*Introduction!$M$9 -> 0 | E141: =E80*Introduction!$M$9*(1+Introduction!$O$9)^3 -> 0 | F141: =F80*Introduction!$M$9*(1+Introduction!$O$9)^3 -> 0 | G141: =G80*Introduction!$M$9 -> 0 | H141: =H80*Introduction!$M$9*(1+Introduction!$O$9)^3 -> 0 | I141: =I80*Introduction!$M$9*(1+Introduction!$O$9)^3 -> 0 | J141: =J80*Introduction!$M$9 -> 0 | K141: =K80*Introduction!$M$9*(1+Introduction!$O$9)^3 -> 0 | L141: =L80*Introduction!$M$9*(1+Introduction!$O$9)^3 -> 0 | M141: =M80*Introduction!$M$9 -> 0 | N141: =N80*Introduction!$M$9*(1+Introduction!$O$9)^3 -> 0 | O141: =O80*Introduction!$M$9*(1+Introduction!$O$9)^3 -> 0
B142: Total | D142: =SUM(D138:D141) -> 0 | E142: =SUM(E138:E141) -> 0 | F142: 0 | G142: =SUM(G138:G141) -> 0 | H142: =SUM(H138:H141) -> 0 | I142: 0 | J142: =SUM(J138:J141) -> 0 | K142: =SUM(K138:K141) -> 0 | L142: 0 | M142: =SUM(M138:M141) -> 0 | N142: =SUM(N138:N141) -> 0 | O142: 0
B144: Data Centre Infrastructure Staff Costs
B145: If known, enter annual staff costs
B146: Or
B147: Enter number of staff
B148: Use the default annual cost | D148: =Defaults!B15 -> 35000 | E148: =D148*(1.01^2) -> 35703.5 | F148: =E148*(1.01^2) -> 36421.14035 | G148: =D148 -> 35000 | H148: =G148*(1.01^2) -> 35703.5 | I148: =H148*(1.01^2) -> 36421.14035 | J148: =G148 -> 35000 | K148: =J148*(1.01^2) -> 35703.5 | L148: =K148*(1.01^2) -> 36421.14035 | M148: =J148 -> 35000 | N148: =M148*(1.01^2) -> 35703.5 | O148: =N148*(1.01^2) -> 36421.14035
B149: Or enter your own average cost
B150: Used | D150: =IF(D145<>0,D145,IF(D149<>"",D149,D148)*D147) -> 0 | E150: =IF(E145<>0,E145,IF(E149<>"",E149,E148)*E147) -> 0 | F150: 0 | G150: 0 | H150: 0 | I150: 0 | J150: 0 | K150: 0 | L150: 0 | M150: 0 | N150: 0 | O150: 0
B152: Communication Link Costs
B153: Enter actual if available
B154: or Enter estimated costs
B155: Used | D155: =IF(D153<>"",D153,D154) -> 0 | E155: =IF(E153<>"",E153,E154) -> 0 | F155: 0 | G155: 0 | H155: 0 | I155: 0 | J155: 0 | K155: 0 | L155: 0 | M155: 0 | N155: 0 | O155: 0
B157: Building Costs
B158: Rates
B159: Estimated costs based on defaults | D159: =(Defaults!$B$11*D$12+Defaults!$B$10*D$11+Defaults!$B$12*D$13)*0.48 -> 0 | E159: =(Defaults!$B$11*D$12+Defaults!$B$10*D$11+Defaults!$B$12*D$13)*0.48 -> 0 | F159: =(Defaults!$B$11*D$12+Defaults!$B$10*D$11+Defaults!$B$12*D$13)*0.48 -> 0 | G159: =(Defaults!$B$11*G$12+Defaults!$B$10*G$11+Defaults!$B$12*G$13)*0.48 -> 0 | H159: =(Defaults!$B$11*G$12+Defaults!$B$10*G$11+Defaults!$B$12*G$13)*0.48 -> 0 | I159: =(Defaults!$B$11*G$12+Defaults!$B$10*G$11+Defaults!$B$12*G$13)*0.48 -> 0 | J159: =(Defaults!$B$11*J$12+Defaults!$B$10*J$11+Defaults!$B$12*J$13)*0.48 -> 0 | K159: =(Defaults!$B$11*J$12+Defaults!$B$10*J$11+Defaults!$B$12*J$13)*0.48 -> 0 | L159: =(Defaults!$B$11*J$12+Defaults!$B$10*J$11+Defaults!$B$12*J$13)*0.48 -> 0 | M159: =(Defaults!$B$11*M$12+Defaults!$B$10*M$11+Defaults!$B$12*M$13)*0.48 -> 0 | N159: =(Defaults!$B$11*M$12+Defaults!$B$10*M$11+Defaults!$B$12*M$13)*0.48 -> 0 | O159: =(Defaults!$B$11*M$12+Defaults!$B$10*M$11+Defaults!$B$12*M$13)*0.48 -> 0
B160: Enter actual if available
B161: Used | D161: =IF(D160<>"",D160,D159) -> 0 | E161: =IF(E160<>"",E160,E159) -> 0 | F161: 0 | G161: =IF(G160<>"",G160,G159) -> 0 | H161: =IF(H160<>"",H160,H159) -> 0 | I161: 0 | J161: =IF(J160<>"",J160,J159) -> 0 | K161: =IF(K160<>"",K160,K159) -> 0 | L161: 0 | M161: =IF(M160<>"",M160,M159) -> 0 | N161: =IF(N160<>"",N160,N159) -> 0 | O161: 0
B163: Insurance
B164: Enter actual if available
B165: or Enter estimated costs
B166: Used | D166: =IF(D164<>"",D164,D165) -> 0 | E166: =IF(E164<>"",E164,E165) -> 0 | F166: 0 | G166: 0 | H166: 0 | I166: 0 | J166: 0 | K166: 0 | L166: 0 | M166: 0 | N166: 0 | O166: 0
B168: Maintenance
B169: Estimated costs based on defaults | D169: =D14*Defaults!$B$9 -> 0 | E169: =D14*Defaults!$B$9 -> 0 | F169: =D14*Defaults!$B$9 -> 0 | G169: =G14*Defaults!$B$9 -> 0 | H169: =G14*Defaults!$B$9 -> 0 | I169: =G14*Defaults!$B$9 -> 0 | J169: =J14*Defaults!$B$9 -> 0 | K169: =J14*Defaults!$B$9 -> 0 | L169: =J14*Defaults!$B$9 -> 0 | M169: =M14*Defaults!$B$9 -> 0 | N169: =M14*Defaults!$B$9 -> 0 | O169: =M14*Defaults!$B$9 -> 0
B170: Enter actual if available
B171: Used | D171: =IF(D170<>"",D170,D169) -> 0 | E171: =IF(E170<>"",E170,E169) -> 0 | F171: =IF(F170<>"",F170,F169) -> 0 | G171: =IF(G170<>"",G170,G169) -> 0 | H171: =IF(H170<>"",H170,H169) -> 0 | I171: 0 | J171: =IF(J170<>"",J170,J169) -> 0 | K171: =IF(K170<>"",K170,K169) -> 0 | L171: 0 | M171: =IF(M170<>"",M170,M169) -> 0 | N171: =IF(N170<>"",N170,N169) -> 0 | O171: 0
B173: Rent
B174: Enter actual rent if applicable
B176: Other
B177: Enter any other costs related to the building
B179: Total | D179: =D161+D166+D171+D174+D177 -> 0 | E179: =E161+E166+E171+E174+E177 -> 0 | F179: 0 | G179: =G161+G166+G171+G174+G177 -> 0 | H179: 0 | I179: 0 | J179: =J161+J166+J171+J174+J177 -> 0 | K179: =K161+K166+K171+K174+K177 -> 0 | L179: 0 | M179: =M161+M166+M171+M174+M177 -> 0 | N179: =N161+N166+N171+N174+N177 -> 0 | O179: 0
B181: License and Maintenance
B182: Hardware/Cabling Maintenance
B183: Estimated costs based on defaults | D183: =(D29*Defaults!$E$29+D38*Defaults!$E$34+'Data Centre Detail'!D35*Defaults!$E$35+'Data Centre Detail'!D36*Defaults!$E$36) -> 0 | E183: =(E29*Defaults!$E$29+E38*Defaults!$E$34+'Data Centre Detail'!E35*Defaults!$E$35+'Data Centre Detail'!E36*Defaults!$E$36) -> 0 | F183: =(F29*Defaults!$E$29+F38*Defaults!$E$34+'Data Centre Detail'!F35*Defaults!$E$35+'Data Centre Detail'!F36*Defaults!$E$36) -> 0 | G183: =(G29*Defaults!$E$29+G38*Defaults!$E$34+'Data Centre Detail'!G35*Defaults!$E$35+'Data Centre Detail'!G36*Defaults!$E$36) -> 0 | H183: =(H29*Defaults!$E$29+H38*Defaults!$E$34+'Data Centre Detail'!H35*Defaults!$E$35+'Data Centre Detail'!H36*Defaults!$E$36) -> 0 | I183: =(I29*Defaults!$E$29+I38*Defaults!$E$34+'Data Centre Detail'!I35*Defaults!$E$35+'Data Centre Detail'!I36*Defaults!$E$36) -> 0 | J183: =(J29*Defaults!$E$29+J38*Defaults!$E$34+'Data Centre Detail'!J35*Defaults!$E$35+'Data Centre Detail'!J36*Defaults!$E$36) -> 0 | K183: =(K29*Defaults!$E$29+K38*Defaults!$E$34+'Data Centre Detail'!K35*Defaults!$E$35+'Data Centre Detail'!K36*Defaults!$E$36) -> 0 | L183: =(L29*Defaults!$E$29+L38*Defaults!$E$34+'Data Centre Detail'!L35*Defaults!$E$35+'Data Centre Detail'!L36*Defaults!$E$36) -> 0 | M183: =(M29*Defaults!$E$29+M38*Defaults!$E$34+'Data Centre Detail'!M35*Defaults!$E$35+'Data Centre Detail'!M36*Defaults!$E$36) -> 0 | N183: =(N29*Defaults!$E$29+N38*Defaults!$E$34+'Data Centre Detail'!N35*Defaults!$E$35+'Data Centre Detail'!N36*Defaults!$E$36) -> 0 | O183: =(O29*Defaults!$E$29+O38*Defaults!$E$34+'Data Centre Detail'!O35*Defaults!$E$35+'Data Centre Detail'!O36*Defaults!$E$36) -> 0
B184: Enter actual if available
B185: Used | D185: =IF(D184<>"",D184,D183) -> 0 | E185: =IF(E184<>"",E184,E183) -> 0 | F185: 0 | G185: =IF(G184<>"",G184,G183) -> 0 | H185: =IF(H184<>"",H184,H183) -> 0 | I185: 0 | J185: =IF(J184<>"",J184,J183) -> 0 | K185: =IF(K184<>"",K184,K183) -> 0 | L185: 0 | M185: =IF(M184<>"",M184,M183) -> 0 | N185: =IF(N184<>"",N184,N183) -> 0 | O185: 0
B187: Licenses
B188: Estimated costs based on defaults | D188: =D29*Defaults!$B$40 -> 0 | E188: =E29*Defaults!$B$40 -> 0 | F188: =F29*Defaults!$B$40 -> 0 | G188: =G29*Defaults!$B$40 -> 0 | H188: =H29*Defaults!$B$40 -> 0 | I188: =I29*Defaults!$B$40 -> 0 | J188: =J29*Defaults!$B$40 -> 0 | K188: =K29*Defaults!$B$40 -> 0 | L188: =L29*Defaults!$B$40 -> 0 | M188: =M29*Defaults!$B$40 -> 0 | N188: =N29*Defaults!$B$40 -> 0 | O188: =O29*Defaults!$B$40 -> 0
B189: Enter actual if available
B190: Used | D190: =IF(D189<>"",D189,D188) -> 0 | E190: =IF(E189<>"",E189,E188) -> 0 | F190: 0 | G190: =IF(G189<>"",G189,G188) -> 0 | H190: =IF(H189<>"",H189,H188) -> 0 | I190: 0 | J190: =IF(J189<>"",J189,J188) -> 0 | K190: =IF(K189<>"",K189,K188) -> 0 | L190: 0 | M190: =IF(M189<>"",M189,M188) -> 0 | N190: =IF(N189<>"",N189,N188) -> 0 | O190: 0
B192: Total | D192: =D185+D190 -> 0 | E192: =E185+E190 -> 0 | F192: 0 | G192: =G185+G190 -> 0 | H192: =H185+H190 -> 0 | I192: 0 | J192: =J185+J190 -> 0 | K192: =K185+K190 -> 0 | L192: 0 | M192: =M185+M190 -> 0 | N192: =N185+N190 -> 0 | O192: 0
B194: Hardware and Hosting
B195: Hardware Replacement
B196: Estimated costs based on defaults | D196: =(D29*Defaults!$B$29+D38*Defaults!$B$34+'Data Centre Detail'!D35*Defaults!$B$35+'Data Centre Detail'!D36*Defaults!$B$36)/5 -> 0 | E196: =(E29*Defaults!$B$29+E38*Defaults!$B$34+'Data Centre Detail'!E35*Defaults!$B$35+'Data Centre Detail'!E36*Defaults!$B$36)/5 -> 0 | F196: =(F29*Defaults!$B$29+F38*Defaults!$B$34+'Data Centre Detail'!F35*Defaults!$B$35+'Data Centre Detail'!F36*Defaults!$B$36)/5 -> 0 | G196: =(G29*Defaults!$B$29+G38*Defaults!$B$34+'Data Centre Detail'!G35*Defaults!$B$35+'Data Centre Detail'!G36*Defaults!$B$36)/5 -> 0 | H196: =(H29*Defaults!$B$29+H38*Defaults!$B$34+'Data Centre Detail'!H35*Defaults!$B$35+'Data Centre Detail'!H36*Defaults!$B$36)/5 -> 0 | I196: =(I29*Defaults!$B$29+I38*Defaults!$B$34+'Data Centre Detail'!I35*Defaults!$B$35+'Data Centre Detail'!I36*Defaults!$B$36)/5 -> 0 | J196: =(J29*Defaults!$B$29+J38*Defaults!$B$34+'Data Centre Detail'!J35*Defaults!$B$35+'Data Centre Detail'!J36*Defaults!$B$36)/5 -> 0 | K196: =(K29*Defaults!$B$29+K38*Defaults!$B$34+'Data Centre Detail'!K35*Defaults!$B$35+'Data Centre Detail'!K36*Defaults!$B$36)/5 -> 0 | L196: =(L29*Defaults!$B$29+L38*Defaults!$B$34+'Data Centre Detail'!L35*Defaults!$B$35+'Data Centre Detail'!L36*Defaults!$B$36)/5 -> 0 | M196: =(M29*Defaults!$B$29+M38*Defaults!$B$34+'Data Centre Detail'!M35*Defaults!$B$35+'Data Centre Detail'!M36*Defaults!$B$36)/5 -> 0 | N196: =(N29*Defaults!$B$29+N38*Defaults!$B$34+'Data Centre Detail'!N35*Defaults!$B$35+'Data Centre Detail'!N36*Defaults!$B$36)/5 -> 0 | O196: =(O29*Defaults!$B$29+O38*Defaults!$B$34+'Data Centre Detail'!O35*Defaults!$B$35+'Data Centre Detail'!O36*Defaults!$B$36)/5 -> 0
B197: Enter actual if available
B198: Used | D198: =IF(D197<>"",D197,D196) -> 0 | E198: =IF(E197<>"",E197,E196) -> 0 | F198: 0 | G198: =IF(G197<>"",G197,G196) -> 0 | H198: =IF(H197<>"",H197,H196) -> 0 | I198: 0 | J198: =IF(J197<>"",J197,J196) -> 0 | K198: =IF(K197<>"",K197,K196) -> 0 | L198: 0 | M198: =IF(M197<>"",M197,M196) -> 0 | N198: =IF(N197<>"",N197,N196) -> 0 | O198: 0
B200: Hosting Costs
B201: Enter actual if available
B203: Total | D203: =D198+D201 -> 0 | E203: =E198+E201 -> 0 | F203: 0 | G203: 0 | H203: 0 | I203: 0 | J203: 0 | K203: 0 | L203: 0 | M203: 0 | N203: 0 | O203: 0
B205: Other Costs
B206: Enter any other costs associated with ICT Provision
B208: Income from Hosting
B209: Total Income
B211: Cost Summary | D211: Current | E211: 3 Yr Forecast | F211: 5 Yr Forecast | G211: Current | H211: 3 Yr Forecast | I211: 5 Yr Forecast | J211: Current | K211: 3 Yr Forecast | L211: 5 Yr Forecast | M211: Current | N211: 3 Yr Forecast | O211: 5 Yr Forecast
B212: Utility Costs | D212: =D142 -> 0 | E212: 0 | F212: 0 | G212: 0 | H212: 0 | I212: 0 | J212: 0 | K212: 0 | L212: 0 | M212: 0 | N212: 0 | O212: 0
B213: Staff | D213: =D150 -> 0 | E213: 0 | F213: 0 | G213: 0 | H213: 0 | I213: 0 | J213: 0 | K213: 0 | L213: 0 | M213: 0 | N213: 0 | O213: 0
B214: Network | D214: =D155 -> 0 | E214: =E155 -> 0 | F214: =F155 -> 0 | G214: 0 | H214: 0 | I214: 0 | J214: 0 | K214: 0 | L214: 0 | M214: 0 | N214: 0 | O214: 0
B215: Building | D215: =D179 -> 0 | E215: 0 | F215: 0 | G215: 0 | H215: 0 | I215: 0 | J215: 0 | K215: 0 | L215: 0 | M215: 0 | N215: 0 | O215: 0
B216: License and Maintenance | D216: =D192 -> 0 | E216: 0 | F216: 0 | G216: 0 | H216: 0 | I216: 0 | J216: 0 | K216: 0 | L216: 0 | M216: 0 | N216: 0 | O216: 0
B217: Hardware and Hosting | D217: =D203 -> 0 | E217: =E203 -> 0 | F217: 0 | G217: =G203 -> 0 | H217: 0 | I217: 0 | J217: 0 | K217: 0 | L217: 0 | M217: 0 | N217: 0 | O217: 0
B218: Other Costs | D218: =D206 -> 0 | E218: =E206 -> 0 | F218: 0 | G218: 0 | H218: 0 | I218: 0 | J218: 0 | K218: 0 | L218: 0 | M218: 0 | N218: 0 | O218: 0
B219: Less Income | D219: =-D209 -> 0 | E219: =-E209 -> 0 | F219: 0 | G219: 0 | H219: 0 | I219: 0 | J219: 0 | K219: 0 | L219: 0 | M219: 0 | N219: 0 | O219: 0
B220: Total | D220: =SUM(D212:D219) -> 0 | E220: =SUM(E212:E219) -> 0 | F220: 0 | G220: 0 | H220: 0 | I220: 0 | J220: 0 | K220: 0 | L220: 0 | M220: 0 | N220: 0 | O220: 0

Sheet ICT Requirements
B1: ICT Provision and Requirements
B3: Staff Costs
B4: Data Centre staff costs | C4: ='Data Centre Detail'!E150 -> 0
B5: Other ICT staff costs
B6: If known, enter annual staff costs
B7: Or
B8: Enter number of staff
B9: Use the default average annual salary | C9: =Defaults!B15 -> 35000
B10: Or enter your own average annual salary
B11: Used | C11: =IF(C6>0,C6,C8*IF(C10>0,C10,C9)) -> 0
B12: Total | C12: =C4+C11 -> 0
B13: Communication Costs not associated with data centres
B14: Used
C17: 1 | D17: 2 | E17: 3 | F17: 4 | G17: 5 | H17: 6 | I17: 7 | J17: 8 | K17: 9 | L17: 10 | M17: Total
B18: Service Description
B19: How provided e.g. 3rd party data centre, private cloud etc
B21: Server Requirements
B22: Current Data Centre Name
B23: Racks used
B24: No of servers used | C24: =SUM(C26:C29) -> 0 | D24: =SUM(D26:D29) -> 0 | E24: 0 | F24: 0 | G24: 0 | H24: 0 | I24: 0 | J24: 0 | K24: 0 | L24: 0 | M24: =SUM(C24:L24) -> 0
B25: Server Details
B26: Small
B27: Medium
B28: Large
B29: Extra Large
B30: Storage Requirements
B31: Performance Storage GB
B32: Standard Storage GB
B33: Archive Storage GB
B34: Comms Requirements
B35: Bandwidth requirement Mbps | M35: =SUM(C35:L35) -> 0
B36: Security
B37: Digital Certificate Type
B38: No of Certificates
B39: Total Certificate Costs (if known)
B40: No of Firewalls
B41: Backup
B42: Current Backup Type
B43: No of Tapes Required per annum
B44: Non tape backup requirement GB (colocation)
B45: Non tape backup requirement GB (cloud)
B46: Current Cloud Backup Costs (ex data centre costs)
B47: Other information
B48: Legacy application requiring dedicated server?
B49: Annual software license costs
B50: Annual colocation costs | M50: =SUM(C50:L50) -> 0
B51: Annual service costs
B52: Location Restrictions
B53: Location constraints for data
B54: Location constraints for applications
B55: Regular physical access to server required
B56: Other restrictions to relocating servers
B57: Security Type
B58: Security constraints on cloud based system?
B59: Transition cost for transfer to colocation (if known)
B60: Transition cost for transfer to cloud (if known)
B61: Annual Staff cost changes for colocation
B62: Annual Staff cost changes for cloud provision
B63: Cost of any custom solution

Sheet Data Centre Report
A1: =Introduction!E5 -> 0
A2: Data Centre Status Report
A3: =Introduction!E11 -> 0
A5: Number of Data Centres Owned/Used | D5: =Introduction!E9 -> 1
A7: Location | C7: ='Data Centre Detail'!D7 -> 0 | H7: ='Data Centre Detail'!G7 -> 0 | M7: ='Data Centre Detail'!J7 -> 0 | R7: ='Data Centre Detail'!M7 -> 0
A8: Type | C8: ='Data Centre Detail'!D9 -> 0 | H8: ='Data Centre Detail'!G9 -> 0 | M8: ='Data Centre Detail'!J9 -> 0 | R8: ='Data Centre Detail'!M9 -> 0
A9: Ownership | C9: ='Data Centre Detail'!D10 -> 0 | H9: ='Data Centre Detail'!G10 -> 0 | M9: ='Data Centre Detail'!J10 -> 0 | R9: ='Data Centre Detail'!M10 -> 0
A15: Total
A16: Cost of
A17: Ownership
A18: (TCO)
A26: Power
A27: Utilisation
A28: Efficiency
A29: (PUE)
A32: PUE Measurement Quality | D32: =Graphs!B46 ->  | I32: =Graphs!C46 ->  | N32: =Graphs!D46 ->  | S32: =Graphs!E46 -> 
A38: Usage

Sheet Options Report
F1: =Introduction!E5 -> 0
A2: ICT Provision Options Appraisal
A3: =Introduction!E11 -> 0
E6: Existing Total ICT Costs | G6: =L26+'ICT Requirements'!C11+'ICT Requirements'!C14 -> 0
E8: Potential Annual Savings | G8: =L21 -> 0
A12: Service | B12: =Decision!B18 -> 0 | C12: =Decision!C18 -> 0 | D12: =Decision!D18 -> 0 | E12: =Decision!E18 -> 0 | F12: =Decision!F18 -> 0 | G12: =Decision!G18 -> 0 | H12: =Decision!H18 -> 0 | I12: =Decision!I18 -> 0 | J12: =Decision!J18 -> 0 | K12: =Decision!K18 -> 0 | L12: Total Service Cost
A13: =A26 -> Current Delivery Cost | B13: =IF(B26<>0,B26,"") ->  | C13: =IF(C26<>0,C26,"") ->  | D13: =IF(D26<>0,D26,"") ->  | E13: =IF(E26<>0,E26,"") ->  | L13: =SUM(B13:K13) -> 0
A14: =A28 -> OPTION A: Colocation | B14: =IF(B29<>0,B29,"") ->  | C14: =IF(C29<>0,C29,"") ->  | D14: =IF(D29<>0,D29,"") ->  | E14: =IF(E29<>0,E29,"") ->  | L14: =SUM(B14:K14) -> 0
A15: =A36 -> OPTION B: Public Cloud | B15: =IF(B37<>0,B37,"") ->  | C15: =IF(C37<>0,C37,"") ->  | D15: =IF(D37<>0,D37,"") ->  | E15: =IF(E37<>0,E37,"") ->  | L15: 0
A16: =A44 -> OPTION C: Private Cloud | B16: =IF(B45<>0,B45,"") ->  | C16: =IF(C45<>0,C45,"") ->  | D16: =IF(D45<>0,D45,"") ->  | E16: =IF(E45<>0,E45,"") ->  | L16: 0
A17: OPTION D: Custom | B17: =IF('ICT Requirements'!C63>0,'ICT Requirements'!C63,"") ->  | C17: =IF('ICT Requirements'!D63>0,'ICT Requirements'!D63,"") ->  | D17: =IF('ICT Requirements'!E63>0,'ICT Requirements'!E63,"") ->  | E17: =IF('ICT Requirements'!F63>0,'ICT Requirements'!F63,"") ->  | F17: =IF('ICT Requirements'!G63>0,'ICT Requirements'!G63,"") ->  | G17: =IF('ICT Requirements'!H63>0,'ICT Requirements'!H63,"") ->  | H17: =IF('ICT Requirements'!I63>0,'ICT Requirements'!I63,"") ->  | I17: =IF('ICT Requirements'!J63>0,'ICT Requirements'!J63,"") ->  | J17: =IF('ICT Requirements'!K63>0,'ICT Requirements'!K63,"") ->  | K17: =IF('ICT Requirements'!L63>0,'ICT Requirements'!L63,"") ->  | L17: 0
A19: Optimum Solution | B19: =Decision!B94 ->  | C19: =Decision!C94 ->  | D19: =Decision!D94 ->  | E19: =Decision!E94 ->  | F19: =Decision!F94 ->  | G19: =Decision!G94 ->  | H19: =Decision!H94 ->  | I19: =Decision!I94 ->  | J19: =Decision!J94 ->  | K19: =Decision!K94 -> 
A20: Delivery Cost | B20: =IF(B13="","",IF(B19="Existing Arrangement",B13,IF(B19="Colocation",B14,IF(B19="Public Cloud",B15,IF(B19="Custom Solution",B17,B16))))) ->  | D20: =IF(D13="","",IF(D19="Existing Arrangement",D13,IF(D19="Colocation",D14,IF(D19="Public Cloud",D15,IF(D19="Custom Solution",D17,D16))))) ->  | E20: =IF(E13="","",IF(E19="Existing Arrangement",E13,IF(E19="Colocation",E14,IF(E19="Public Cloud",E15,IF(E19="Custom Solution",E17,E16))))) ->  | L20: =SUM(B20:K20) -> 0
A21: Potential Annual Saving | B21: =IFERROR(IF(B13>0,B13-B20,""),"") ->  | C21: =IFERROR(IF(C13>0,C13-C20,""),"") ->  | L21: =SUM(B21:K21) -> 0
A24: Detailed Breakdown
A26: Current Delivery Cost | B26: =Decision!B29 -> 0 | C26: =Decision!C29 -> 0 | D26: =Decision!D29 -> 0 | E26: =Decision!E29 -> 0 | F26: =Decision!F29 -> 0 | G26: =Decision!G29 -> 0 | H26: =Decision!H29 -> 0 | I26: =Decision!I29 -> 0 | J26: =Decision!J29 -> 0 | K26: =Decision!K29 -> 0 | L26: =SUM(B26:K26) -> 0
A28: OPTION A: Colocation
A29: Estimated annual cost | B29: =IF(Decision!B20=0,Decision!B43,B26) -> 0 | C29: =IF(Decision!C20=0,Decision!C43,C26) -> 0 | D29: =IF(Decision!D20=0,Decision!D43,D26) -> 0 | E29: =IF(Decision!E20=0,Decision!E43,E26) -> 0 | F29: =IF(Decision!F20=0,Decision!F43,F26) -> 0 | G29: =IF(Decision!G20=0,Decision!G43,G26) -> 0 | H29: =IF(Decision!H20=0,Decision!H43,H26) -> 0 | I29: =IF(Decision!I20=0,Decision!I43,I26) -> 0 | J29: =IF(Decision!J20=0,Decision!J43,J26) -> 0 | K29: =IF(Decision!K20=0,Decision!K43,K26) -> 0 | L29: =SUM(B29:K29) -> 0
A30: Saving | B30: =B26-B29 -> 0 | C30: 0 | D30: 0 | E30: 0 | F30: 0 | G30: 0 | H30: =H26-H29 -> 0 | I30: =I26-I29 -> 0 | J30: =J26-J29 -> 0 | K30: =K26-K29 -> 0 | L30: =SUM(B30:K30) -> 0
A31: Suitability
A32: Location | B32: =IF(Decision!B77=3,"No Issue",IF(Decision!B77=2,"Review",IF(Decision!B77=4,"","Not Available"))) ->  | C32: =IF(Decision!C77=3,"No Issue",IF(Decision!C77=2,"Review",IF(Decision!C77=4,"","Not Available"))) ->  | D32: =IF(Decision!D77=3,"No Issue",IF(Decision!D77=2,"Review",IF(Decision!D77=4,"","Not Available"))) ->  | E32: =IF(Decision!E77=3,"No Issue",IF(Decision!E77=2,"Review",IF(Decision!E77=4,"","Not Available"))) ->  | F32: =IF(Decision!F77=3,"No Issue",IF(Decision!F77=2,"Review",IF(Decision!F77=4,"","Not Available"))) ->  | G32: =IF(Decision!G77=3,"No Issue",IF(Decision!G77=2,"Review",IF(Decision!G77=4,"","Not Available"))) ->  | H32: =IF(Decision!H77=3,"No Issue",IF(Decision!H77=2,"Review",IF(Decision!H77=4,"","Not Available"))) ->  | I32: =IF(Decision!I77=3,"No Issue",IF(Decision!I77=2,"Review",IF(Decision!I77=4,"","Not Available"))) ->  | J32: =IF(Decision!J77=3,"No Issue",IF(Decision!J77=2,"Review",IF(Decision!J77=4,"","Not Available"))) ->  | K32: =IF(Decision!K77=3,"No Issue",IF(Decision!K77=2,"Review",IF(Decision!K77=4,"","Not Available"))) -> 
A33: Security | B33: =IF(Decision!B83=3,"No Issue",IF(Decision!B83=2,"Review",IF(Decision!B83=1,"Not Suitable",""))) -> No Issue | C33: =IF(Decision!C83=3,"No Issue",IF(Decision!C83=2,"Review",IF(Decision!C83=1,"Not Suitable",""))) -> No Issue | D33: =IF(Decision!D83=3,"No Issue",IF(Decision!D83=2,"Review",IF(Decision!D83=1,"Not Suitable",""))) -> No Issue | E33: =IF(Decision!E83=3,"No Issue",IF(Decision!E83=2,"Review",IF(Decision!E83=1,"Not Suitable",""))) -> No Issue | F33: =IF(Decision!F83=3,"No Issue",IF(Decision!F83=2,"Review",IF(Decision!F83=1,"Not Suitable",""))) -> No Issue | G33: =IF(Decision!G83=3,"No Issue",IF(Decision!G83=2,"Review",IF(Decision!G83=1,"Not Suitable",""))) -> No Issue | H33: =IF(Decision!H83=3,"No Issue",IF(Decision!H83=2,"Review",IF(Decision!H83=1,"Not Suitable",""))) -> No Issue | I33: =IF(Decision!I83=3,"No Issue",IF(Decision!I83=2,"Review",IF(Decision!I83=1,"Not Suitable",""))) -> No Issue | J33: =IF(Decision!J83=3,"No Issue",IF(Decision!J83=2,"Review",IF(Decision!J83=1,"Not Suitable",""))) -> No Issue | K33: =IF(Decision!K83=3,"No Issue",IF(Decision!K83=2,"Review",IF(Decision!K83=1,"Not Suitable",""))) -> No Issue
A36: OPTION B: Public Cloud
A37: Estimated annual cost | B37: =Decision!B57 -> 0 | C37: =Decision!C57 -> 0 | D37: =Decision!D57 -> 0 | E37: =Decision!E57 -> 0 | F37: =Decision!F57 -> 0 | G37: =Decision!G57 -> 0 | H37: =Decision!H57 -> 0 | I37: =Decision!I57 -> 0 | J37: =Decision!J57 -> 0 | K37: =Decision!K57 -> 0 | L37: =SUM(B37:G37) -> 0
A38: Annual saving | B38: =B26-B37 -> 0 | C38: 0 | D38: 0 | E38: 0 | F38: 0 | G38: 0 | H38: =H26-H37 -> 0 | I38: =I26-I37 -> 0 | J38: =J26-J37 -> 0 | K38: =K26-K37 -> 0 | L38: =SUM(B38:G38) -> 0
A39: Suitability
A40: Location | B40: =IF(Decision!B78=3,"No Issue",IF(Decision!B78=2,"Review",IF(Decision!B78=4,"","Not Available"))) ->  | C40: =IF(Decision!C78=3,"No Issue",IF(Decision!C78=2,"Review",IF(Decision!C78=4,"","Not Available"))) ->  | D40: =IF(Decision!D78=3,"No Issue",IF(Decision!D78=2,"Review",IF(Decision!D78=4,"","Not Available"))) ->  | E40: =IF(Decision!E78=3,"No Issue",IF(Decision!E78=2,"Review",IF(Decision!E78=4,"","Not Available"))) ->  | F40: =IF(Decision!F78=3,"No Issue",IF(Decision!F78=2,"Review",IF(Decision!F78=4,"","Not Available"))) ->  | G40: =IF(Decision!G78=3,"No Issue",IF(Decision!G78=2,"Review",IF(Decision!G78=4,"","Not Available"))) ->  | H40: =IF(Decision!H78=3,"No Issue",IF(Decision!H78=2,"Review",IF(Decision!H78=4,"","Not Available"))) ->  | I40: =IF(Decision!I78=3,"No Issue",IF(Decision!I78=2,"Review",IF(Decision!I78=4,"","Not Available"))) ->  | J40: =IF(Decision!J78=3,"No Issue",IF(Decision!J78=2,"Review",IF(Decision!J78=4,"","Not Available"))) ->  | K40: =IF(Decision!K78=3,"No Issue",IF(Decision!K78=2,"Review",IF(Decision!K78=4,"","Not Available"))) -> 
A41: Security | B41: =IF(Decision!B84=3,"No Issue",IF(Decision!B84=2,"Review",IF(Decision!B84=1,"Not Suitable",""))) -> No Issue | C41: =IF(Decision!C84=3,"No Issue",IF(Decision!C84=2,"Review",IF(Decision!C84=1,"Not Suitable",""))) -> No Issue | D41: =IF(Decision!D84=3,"No Issue",IF(Decision!D84=2,"Review",IF(Decision!D84=1,"Not Suitable",""))) -> No Issue | E41: =IF(Decision!E84=3,"No Issue",IF(Decision!E84=2,"Review",IF(Decision!E84=1,"Not Suitable",""))) -> No Issue | F41: =IF(Decision!F84=3,"No Issue",IF(Decision!F84=2,"Review",IF(Decision!F84=1,"Not Suitable",""))) -> No Issue | G41: =IF(Decision!G84=3,"No Issue",IF(Decision!G84=2,"Review",IF(Decision!G84=1,"Not Suitable",""))) -> No Issue | H41: =IF(Decision!H84=3,"No Issue",IF(Decision!H84=2,"Review",IF(Decision!H84=1,"Not Suitable",""))) -> No Issue | I41: =IF(Decision!I84=3,"No Issue",IF(Decision!I84=2,"Review",IF(Decision!I84=1,"Not Suitable",""))) -> No Issue | J41: =IF(Decision!J84=3,"No Issue",IF(Decision!J84=2,"Review",IF(Decision!J84=1,"Not Suitable",""))) -> No Issue | K41: =IF(Decision!K84=3,"No Issue",IF(Decision!K84=2,"Review",IF(Decision!K84=1,"Not Suitable",""))) -> No Issue
A44: OPTION C: Private Cloud
A45: Estimated annual cost | B45: =Decision!B71 -> 0 | C45: =Decision!C71 -> 0 | D45: =Decision!D71 -> 0 | E45: =Decision!E71 -> 0 | F45: =Decision!F71 -> 0 | G45: =Decision!G71 -> 0 | H45: =Decision!H71 -> 0 | I45: =Decision!I71 -> 0 | J45: =Decision!J71 -> 0 | K45: =Decision!K71 -> 0 | L45: =SUM(B45:G45) -> 0
A46: Annual saving | B46: =B26-B45 -> 0 | C46: 0 | D46: 0 | E46: 0 | F46: 0 | G46: 0 | H46: =H26-H45 -> 0 | I46: =I26-I45 -> 0 | J46: =J26-J45 -> 0 | K46: =K26-K45 -> 0 | L46: =SUM(B46:G46) -> 0
A47: Suitability
A48: Location | B48: =IF(Decision!B79=3,"No Issue",IF(Decision!B79=2,"Review",IF(Decision!B79=4,"","Not Available"))) ->  | C48: =IF(Decision!C79=3,"No Issue",IF(Decision!C79=2,"Review",IF(Decision!C79=4,"","Not Available"))) ->  | D48: =IF(Decision!D79=3,"No Issue",IF(Decision!D79=2,"Review",IF(Decision!D79=4,"","Not Available"))) ->  | E48: =IF(Decision!E79=3,"No Issue",IF(Decision!E79=2,"Review",IF(Decision!E79=4,"","Not Available"))) ->  | F48: =IF(Decision!F79=3,"No Issue",IF(Decision!F79=2,"Review",IF(Decision!F79=4,"","Not Available"))) ->  | G48: =IF(Decision!G79=3,"No Issue",IF(Decision!G79=2,"Review",IF(Decision!G79=4,"","Not Available"))) ->  | H48: =IF(Decision!H79=3,"No Issue",IF(Decision!H79=2,"Review",IF(Decision!H79=4,"","Not Available"))) ->  | I48: =IF(Decision!I79=3,"No Issue",IF(Decision!I79=2,"Review",IF(Decision!I79=4,"","Not Available"))) ->  | J48: =IF(Decision!J79=3,"No Issue",IF(Decision!J79=2,"Review",IF(Decision!J79=4,"","Not Available"))) ->  | K48: =IF(Decision!K79=3,"No Issue",IF(Decision!K79=2,"Review",IF(Decision!K79=4,"","Not Available"))) -> 
A49: Security | B49: =IF(Decision!B85=3,"No Issue",IF(Decision!B85=2,"Review",IF(Decision!B85=1,"Not Suitable",""))) -> No Issue | C49: =IF(Decision!C85=3,"No Issue",IF(Decision!C85=2,"Review",IF(Decision!C85=1,"Not Suitable",""))) -> No Issue | D49: =IF(Decision!D85=3,"No Issue",IF(Decision!D85=2,"Review",IF(Decision!D85=1,"Not Suitable",""))) -> No Issue | E49: =IF(Decision!E85=3,"No Issue",IF(Decision!E85=2,"Review",IF(Decision!E85=1,"Not Suitable",""))) -> No Issue | F49: =IF(Decision!F85=3,"No Issue",IF(Decision!F85=2,"Review",IF(Decision!F85=1,"Not Suitable",""))) -> No Issue | G49: =IF(Decision!G85=3,"No Issue",IF(Decision!G85=2,"Review",IF(Decision!G85=1,"Not Suitable",""))) -> No Issue | H49: =IF(Decision!H85=3,"No Issue",IF(Decision!H85=2,"Review",IF(Decision!H85=1,"Not Suitable",""))) -> No Issue | I49: =IF(Decision!I85=3,"No Issue",IF(Decision!I85=2,"Review",IF(Decision!I85=1,"Not Suitable",""))) -> No Issue | J49: =IF(Decision!J85=3,"No Issue",IF(Decision!J85=2,"Review",IF(Decision!J85=1,"Not Suitable",""))) -> No Issue | K49: =IF(Decision!K85=3,"No Issue",IF(Decision!K85=2,"Review",IF(Decision!K85=1,"Not Suitable",""))) -> No Issue

Sheet Summary Report
A1: =Introduction!E5 -> 0
A2: ICT Provision Options Appraisal
A3: =Introduction!E11 -> 0
E6: Existing Data Centre TCO | G6: =SUM(Graphs!C51:C54) -> 0
E8: Existing ICT Cost of Provision | G8: ='Options Report'!G6 -> 0
E10: Potential Annual Savings | G10: ='Options Report'!G8 -> 0
A14: Current Data Centres
A33: Options Appraisal

Sheet Assumptions Report
A1: =Introduction!E5 -> 0
B2: Assumptions Report
B4: Select Scenario to View:
B5: Option 3 | C5: =VLOOKUP(B5,'Look Up Tables'!A120:B126,2,0)*12 -> 
B7: User name | C7: =IFERROR(OFFSET('Scenario History'!C5,0,$C$5),"") -> 
B8: User email | C8: =IFERROR(OFFSET('Scenario History'!C6,0,$C$5),"") -> 
B9: No of ICT users | C9: =IFERROR(OFFSET('Scenario History'!C7,0,$C$5),"") -> 
B10: No of data centres | C10: =IFERROR(OFFSET('Scenario History'!C8,0,$C$5),"") -> 
B12: Utility costs | C12: Tariff | E12: Real Escalation
B13: Electricity | C13: =IFERROR(OFFSET('Scenario History'!E6,0,$C$5),"") ->  | D13: p/kWh | E13: =IFERROR(OFFSET('Scenario History'!G6,0,$C$5),"") -> 
B14: Natural Gas | C14: =IFERROR(OFFSET('Scenario History'!E7,0,$C$5),"") ->  | D14: p/kWh | E14: =IFERROR(OFFSET('Scenario History'!G7,0,$C$5),"") -> 
B15: Generator Fuel | C15: =IFERROR(OFFSET('Scenario History'!E8,0,$C$5),"") ->  | D15: p/kWh | E15: =IFERROR(OFFSET('Scenario History'!G8,0,$C$5),"") -> 
B16: Water | C16: =IFERROR(OFFSET('Scenario History'!E9,0,$C$5),"") ->  | D16: £/m3 | E16: =IFERROR(OFFSET('Scenario History'!G9,0,$C$5),"") -> 
C17: 0 | D17: 1 | E17: 2 | F17: 3 | G17: 4 | H17: 5 | I17: 6 | J17: 7 | K17: 8 | L17: 9 | M17: 10 | N17: 11
B18: Data Centre Assumptions | C18: 1 | F18: 2 | I18: 3 | L18: 4
A19: 0 | B19: Data Centre | C19: =IFERROR(OFFSET('Scenario History'!$C$14,$A19,$C$5+C$17),"") ->  | F19: =IFERROR(OFFSET('Scenario History'!$C$14,$A19,$C$5+F$17),"") ->  | I19: =IFERROR(OFFSET('Scenario History'!$C$14,$A19,$C$5+I$17),"") ->  | L19: =IFERROR(OFFSET('Scenario History'!$C$14,$A19,$C$5+L$17),"") -> 
A20: 1 | B20: Name | C20: =IFERROR(OFFSET('Scenario History'!$C$14,$A20,$C$5+C$17),"") ->  | F20: =IFERROR(OFFSET('Scenario History'!$C$14,$A20,$C$5+F$17),"") ->  | I20: =IFERROR(OFFSET('Scenario History'!$C$14,$A20,$C$5+I$17),"") ->  | L20: =IFERROR(OFFSET('Scenario History'!$C$14,$A20,$C$5+L$17),"") -> 
A21: 2 | B21: Location | C21: =IFERROR(OFFSET('Scenario History'!$C$14,$A21,$C$5+C$17),"") ->  | F21: =IFERROR(OFFSET('Scenario History'!$C$14,$A21,$C$5+F$17),"") ->  | I21: =IFERROR(OFFSET('Scenario History'!$C$14,$A21,$C$5+I$17),"") ->  | L21: =IFERROR(OFFSET('Scenario History'!$C$14,$A21,$C$5+L$17),"") -> 
A22: 3 | B22: Standalone or integrated | C22: =IFERROR(OFFSET('Scenario History'!$C$14,$A22,$C$5+C$17),"") ->  | F22: =IFERROR(OFFSET('Scenario History'!$C$14,$A22,$C$5+F$17),"") ->  | I22: =IFERROR(OFFSET('Scenario History'!$C$14,$A22,$C$5+I$17),"") ->  | L22: =IFERROR(OFFSET('Scenario History'!$C$14,$A22,$C$5+L$17),"") -> 
A23: 4 | B23: Ownership | C23: =IFERROR(OFFSET('Scenario History'!$C$14,$A23,$C$5+C$17),"") ->  | F23: =IFERROR(OFFSET('Scenario History'!$C$14,$A23,$C$5+F$17),"") ->  | I23: =IFERROR(OFFSET('Scenario History'!$C$14,$A23,$C$5+I$17),"") ->  | L23: =IFERROR(OFFSET('Scenario History'!$C$14,$A23,$C$5+L$17),"") -> 
A24: 5 | B24: Data room floor area | C24: =IFERROR(OFFSET('Scenario History'!$C$14,$A24,$C$5+C$17),"") ->  | F24: =IFERROR(OFFSET('Scenario History'!$C$14,$A24,$C$5+F$17),"") ->  | I24: =IFERROR(OFFSET('Scenario History'!$C$14,$A24,$C$5+I$17),"") ->  | L24: =IFERROR(OFFSET('Scenario History'!$C$14,$A24,$C$5+L$17),"") -> 
A25: 6 | B25: Office floor area | C25: =IFERROR(OFFSET('Scenario History'!$C$14,$A25,$C$5+C$17),"") ->  | F25: =IFERROR(OFFSET('Scenario History'!$C$14,$A25,$C$5+F$17),"") ->  | I25: =IFERROR(OFFSET('Scenario History'!$C$14,$A25,$C$5+I$17),"") ->  | L25: =IFERROR(OFFSET('Scenario History'!$C$14,$A25,$C$5+L$17),"") -> 
A27: 10 | B27: Rating and Recovery
A28: 11 | B28: Tier Rating | C28: =IFERROR(OFFSET('Scenario History'!$C$14,$A27,$C$5+C$17),"") ->  | F28: =IFERROR(OFFSET('Scenario History'!$C$14,$A27,$C$5+F$17),"") ->  | I28: =IFERROR(OFFSET('Scenario History'!$C$14,$A27,$C$5+I$17),"") ->  | L28: =IFERROR(OFFSET('Scenario History'!$C$14,$A27,$C$5+L$17),"") -> 
A29: 12 | B29: Actual Availability | C29: =IFERROR(OFFSET('Scenario History'!$C$14,$A28,$C$5+C$17),"") ->  | F29: =IFERROR(OFFSET('Scenario History'!$C$14,$A28,$C$5+F$17),"") ->  | I29: =IFERROR(OFFSET('Scenario History'!$C$14,$A28,$C$5+I$17),"") ->  | L29: =IFERROR(OFFSET('Scenario History'!$C$14,$A28,$C$5+L$17),"") -> 
A30: 13 | B30: Stated PUE | C30: =IFERROR(OFFSET('Scenario History'!$C$14,$A29,$C$5+C$17),"") ->  | F30: =IFERROR(OFFSET('Scenario History'!$C$14,$A29,$C$5+F$17),"") ->  | I30: =IFERROR(OFFSET('Scenario History'!$C$14,$A29,$C$5+I$17),"") ->  | L30: =IFERROR(OFFSET('Scenario History'!$C$14,$A29,$C$5+L$17),"") -> 
A31: 14 | B31: Data Centre Disaster Recovery
A32: 15 | B32: Type | C32: =IFERROR(OFFSET('Scenario History'!$C$14,$A31,$C$5+C$17),"") ->  | F32: =IFERROR(OFFSET('Scenario History'!$C$14,$A31,$C$5+F$17),"") ->  | I32: =IFERROR(OFFSET('Scenario History'!$C$14,$A31,$C$5+I$17),"") ->  | L32: =IFERROR(OFFSET('Scenario History'!$C$14,$A31,$C$5+L$17),"") -> 
A33: 16 | B33: Time to bring back service | C33: =IFERROR(OFFSET('Scenario History'!$C$14,$A32,$C$5+C$17),"") ->  | F33: =IFERROR(OFFSET('Scenario History'!$C$14,$A32,$C$5+F$17),"") ->  | I33: =IFERROR(OFFSET('Scenario History'!$C$14,$A32,$C$5+I$17),"") ->  | L33: =IFERROR(OFFSET('Scenario History'!$C$14,$A32,$C$5+L$17),"") -> 
A34: 17 | B34: Full or partial recovery | C34: =IFERROR(OFFSET('Scenario History'!$C$14,$A33,$C$5+C$17),"") ->  | F34: =IFERROR(OFFSET('Scenario History'!$C$14,$A33,$C$5+F$17),"") ->  | I34: =IFERROR(OFFSET('Scenario History'!$C$14,$A33,$C$5+I$17),"") ->  | L34: =IFERROR(OFFSET('Scenario History'!$C$14,$A33,$C$5+L$17),"") -> 
A35: 18
A36: 19 | B36: Racks and Servers | C36: =IFERROR(OFFSET('Scenario History'!$C$14,$A35,$C$5+C$17),"") ->  | D36: =IFERROR(OFFSET('Scenario History'!$C$14,$A35,$C$5+D$17),"") ->  | E36: =IFERROR(OFFSET('Scenario History'!$C$14,$A35,$C$5+E$17),"") ->  | F36: =IFERROR(OFFSET('Scenario History'!$C$14,$A35,$C$5+F$17),"") ->  | G36: =IFERROR(OFFSET('Scenario History'!$C$14,$A35,$C$5+G$17),"") ->  | H36: =IFERROR(OFFSET('Scenario History'!$C$14,$A35,$C$5+H$17),"") ->  | I36: =IFERROR(OFFSET('Scenario History'!$C$14,$A35,$C$5+I$17),"") ->  | J36: =IFERROR(OFFSET('Scenario History'!$C$14,$A35,$C$5+J$17),"") ->  | K36: =IFERROR(OFFSET('Scenario History'!$C$14,$A35,$C$5+K$17),"") ->  | L36: =IFERROR(OFFSET('Scenario History'!$C$14,$A35,$C$5+L$17),"") ->  | M36: =IFERROR(OFFSET('Scenario History'!$C$14,$A35,$C$5+M$17),"") ->  | N36: 5 Yr Forecast
A37: 20 | B37: No of racks (42u equivalent) | C37: =IFERROR(OFFSET('Scenario History'!$C$14,$A36,$C$5+C$17),"") ->  | D37: =IFERROR(OFFSET('Scenario History'!$C$14,$A36,$C$5+D$17),"") ->  | E37: =IFERROR(OFFSET('Scenario History'!$C$14,$A36,$C$5+E$17),"") ->  | F37: =IFERROR(OFFSET('Scenario History'!$C$14,$A36,$C$5+F$17),"") ->  | G37: =IFERROR(OFFSET('Scenario History'!$C$14,$A36,$C$5+G$17),"") ->  | H37: =IFERROR(OFFSET('Scenario History'!$C$14,$A36,$C$5+H$17),"") ->  | I37: =IFERROR(OFFSET('Scenario History'!$C$14,$A36,$C$5+I$17),"") ->  | J37: =IFERROR(OFFSET('Scenario History'!$C$14,$A36,$C$5+J$17),"") ->  | K37: =IFERROR(OFFSET('Scenario History'!$C$14,$A36,$C$5+K$17),"") ->  | L37: =IFERROR(OFFSET('Scenario History'!$C$14,$A36,$C$5+L$17),"") ->  | M37: =IFERROR(OFFSET('Scenario History'!$C$14,$A36,$C$5+M$17),"") ->  | N37: =IFERROR(OFFSET('Scenario History'!$C$14,$A36,$C$5+N$17),"") -> 
A38: 21 | B38: Rack utilisation | C38: =IFERROR(OFFSET('Scenario History'!$C$14,$A37,$C$5+C$17),"") ->  | D38: =IFERROR(OFFSET('Scenario History'!$C$14,$A37,$C$5+D$17),"") ->  | E38: =IFERROR(OFFSET('Scenario History'!$C$14,$A37,$C$5+E$17),"") ->  | F38: =IFERROR(OFFSET('Scenario History'!$C$14,$A37,$C$5+F$17),"") ->  | G38: =IFERROR(OFFSET('Scenario History'!$C$14,$A37,$C$5+G$17),"") ->  | H38: =IFERROR(OFFSET('Scenario History'!$C$14,$A37,$C$5+H$17),"") ->  | I38: =IFERROR(OFFSET('Scenario History'!$C$14,$A37,$C$5+I$17),"") ->  | J38: =IFERROR(OFFSET('Scenario History'!$C$14,$A37,$C$5+J$17),"") ->  | K38: =IFERROR(OFFSET('Scenario History'!$C$14,$A37,$C$5+K$17),"") ->  | L38: =IFERROR(OFFSET('Scenario History'!$C$14,$A37,$C$5+L$17),"") ->  | M38: =IFERROR(OFFSET('Scenario History'!$C$14,$A37,$C$5+M$17),"") ->  | N38: =IFERROR(OFFSET('Scenario History'!$C$14,$A37,$C$5+N$17),"") -> 
A39: 22 | B39: No of devices
A40: 23 | B40: Servers | C40: =IFERROR(OFFSET('Scenario History'!$C$14,$A39,$C$5+C$17),"") ->  | D40: =IFERROR(OFFSET('Scenario History'!$C$14,$A39,$C$5+D$17),"") ->  | E40: =IFERROR(OFFSET('Scenario History'!$C$14,$A39,$C$5+E$17),"") ->  | F40: =IFERROR(OFFSET('Scenario History'!$C$14,$A39,$C$5+F$17),"") ->  | G40: =IFERROR(OFFSET('Scenario History'!$C$14,$A39,$C$5+G$17),"") ->  | H40: =IFERROR(OFFSET('Scenario History'!$C$14,$A39,$C$5+H$17),"") ->  | I40: =IFERROR(OFFSET('Scenario History'!$C$14,$A39,$C$5+I$17),"") ->  | J40: =IFERROR(OFFSET('Scenario History'!$C$14,$A39,$C$5+J$17),"") ->  | K40: =IFERROR(OFFSET('Scenario History'!$C$14,$A39,$C$5+K$17),"") ->  | L40: =IFERROR(OFFSET('Scenario History'!$C$14,$A39,$C$5+L$17),"") ->  | M40: =IFERROR(OFFSET('Scenario History'!$C$14,$A39,$C$5+M$17),"") ->  | N40: =IFERROR(OFFSET('Scenario History'!$C$14,$A39,$C$5+N$17),"") -> 
A41: 24 | B41: Small | C41: =IFERROR(OFFSET('Scenario History'!$C$14,$A40,$C$5+C$17),"") ->  | D41: =IFERROR(OFFSET('Scenario History'!$C$14,$A40,$C$5+D$17),"") ->  | E41: =IFERROR(OFFSET('Scenario History'!$C$14,$A40,$C$5+E$17),"") ->  | F41: =IFERROR(OFFSET('Scenario History'!$C$14,$A40,$C$5+F$17),"") ->  | G41: =IFERROR(OFFSET('Scenario History'!$C$14,$A40,$C$5+G$17),"") ->  | H41: =IFERROR(OFFSET('Scenario History'!$C$14,$A40,$C$5+H$17),"") ->  | I41: =IFERROR(OFFSET('Scenario History'!$C$14,$A40,$C$5+I$17),"") ->  | J41: =IFERROR(OFFSET('Scenario History'!$C$14,$A40,$C$5+J$17),"") ->  | K41: =IFERROR(OFFSET('Scenario History'!$C$14,$A40,$C$5+K$17),"") ->  | L41: =IFERROR(OFFSET('Scenario History'!$C$14,$A40,$C$5+L$17),"") ->  | M41: =IFERROR(OFFSET('Scenario History'!$C$14,$A40,$C$5+M$17),"") ->  | N41: =IFERROR(OFFSET('Scenario History'!$C$14,$A40,$C$5+N$17),"") -> 
A42: 25 | B42: Medium | C42: =IFERROR(OFFSET('Scenario History'!$C$14,$A41,$C$5+C$17),"") ->  | D42: =IFERROR(OFFSET('Scenario History'!$C$14,$A41,$C$5+D$17),"") ->  | E42: =IFERROR(OFFSET('Scenario History'!$C$14,$A41,$C$5+E$17),"") ->  | F42: =IFERROR(OFFSET('Scenario History'!$C$14,$A41,$C$5+F$17),"") ->  | G42: =IFERROR(OFFSET('Scenario History'!$C$14,$A41,$C$5+G$17),"") ->  | H42: =IFERROR(OFFSET('Scenario History'!$C$14,$A41,$C$5+H$17),"") ->  | I42: =IFERROR(OFFSET('Scenario History'!$C$14,$A41,$C$5+I$17),"") ->  | J42: =IFERROR(OFFSET('Scenario History'!$C$14,$A41,$C$5+J$17),"") ->  | K42: =IFERROR(OFFSET('Scenario History'!$C$14,$A41,$C$5+K$17),"") ->  | L42: =IFERROR(OFFSET('Scenario History'!$C$14,$A41,$C$5+L$17),"") ->  | M42: =IFERROR(OFFSET('Scenario History'!$C$14,$A41,$C$5+M$17),"") ->  | N42: =IFERROR(OFFSET('Scenario History'!$C$14,$A41,$C$5+N$17),"") -> 
A43: 26 | B43: Large | C43: =IFERROR(OFFSET('Scenario History'!$C$14,$A42,$C$5+C$17),"") ->  | D43: =IFERROR(OFFSET('Scenario History'!$C$14,$A42,$C$5+D$17),"") ->  | E43: =IFERROR(OFFSET('Scenario History'!$C$14,$A42,$C$5+E$17),"") ->  | F43: =IFERROR(OFFSET('Scenario History'!$C$14,$A42,$C$5+F$17),"") ->  | G43: =IFERROR(OFFSET('Scenario History'!$C$14,$A42,$C$5+G$17),"") ->  | H43: =IFERROR(OFFSET('Scenario History'!$C$14,$A42,$C$5+H$17),"") ->  | I43: =IFERROR(OFFSET('Scenario History'!$C$14,$A42,$C$5+I$17),"") ->  | J43: =IFERROR(OFFSET('Scenario History'!$C$14,$A42,$C$5+J$17),"") ->  | K43: =IFERROR(OFFSET('Scenario History'!$C$14,$A42,$C$5+K$17),"") ->  | L43: =IFERROR(OFFSET('Scenario History'!$C$14,$A42,$C$5+L$17),"") ->  | M43: =IFERROR(OFFSET('Scenario History'!$C$14,$A42,$C$5+M$17),"") ->  | N43: =IFERROR(OFFSET('Scenario History'!$C$14,$A42,$C$5+N$17),"") -> 
A44: 27 | B44: V Large | C44: =IFERROR(OFFSET('Scenario History'!$C$14,$A43,$C$5+C$17),"") ->  | D44: =IFERROR(OFFSET('Scenario History'!$C$14,$A43,$C$5+D$17),"") ->  | E44: =IFERROR(OFFSET('Scenario History'!$C$14,$A43,$C$5+E$17),"") ->  | F44: =IFERROR(OFFSET('Scenario History'!$C$14,$A43,$C$5+F$17),"") ->  | G44: =IFERROR(OFFSET('Scenario History'!$C$14,$A43,$C$5+G$17),"") ->  | H44: =IFERROR(OFFSET('Scenario History'!$C$14,$A43,$C$5+H$17),"") ->  | I44: =IFERROR(OFFSET('Scenario History'!$C$14,$A43,$C$5+I$17),"") ->  | J44: =IFERROR(OFFSET('Scenario History'!$C$14,$A43,$C$5+J$17),"") ->  | K44: =IFERROR(OFFSET('Scenario History'!$C$14,$A43,$C$5+K$17),"") ->  | L44: =IFERROR(OFFSET('Scenario History'!$C$14,$A43,$C$5+L$17),"") ->  | M44: =IFERROR(OFFSET('Scenario History'!$C$14,$A43,$C$5+M$17),"") ->  | N44: =IFERROR(OFFSET('Scenario History'!$C$14,$A43,$C$5+N$17),"") -> 
A45: 28 | B45: Storage | C45: =IFERROR(OFFSET('Scenario History'!$C$14,$A40,$C$5+C$17),"") ->  | D45: =IFERROR(OFFSET('Scenario History'!$C$14,$A40,$C$5+D$17),"") ->  | E45: =IFERROR(OFFSET('Scenario History'!$C$14,$A40,$C$5+E$17),"") ->  | F45: =IFERROR(OFFSET('Scenario History'!$C$14,$A40,$C$5+F$17),"") ->  | G45: =IFERROR(OFFSET('Scenario History'!$C$14,$A40,$C$5+G$17),"") ->  | H45: =IFERROR(OFFSET('Scenario History'!$C$14,$A40,$C$5+H$17),"") ->  | I45: =IFERROR(OFFSET('Scenario History'!$C$14,$A40,$C$5+I$17),"") ->  | J45: =IFERROR(OFFSET('Scenario History'!$C$14,$A40,$C$5+J$17),"") ->  | K45: =IFERROR(OFFSET('Scenario History'!$C$14,$A40,$C$5+K$17),"") ->  | L45: =IFERROR(OFFSET('Scenario History'!$C$14,$A40,$C$5+L$17),"") ->  | M45: =IFERROR(OFFSET('Scenario History'!$C$14,$A40,$C$5+M$17),"") ->  | N45: =IFERROR(OFFSET('Scenario History'!$C$14,$A40,$C$5+N$17),"") -> 
A46: 29 | B46: Network devices | C46: =IFERROR(OFFSET('Scenario History'!$C$14,$A45,$C$5+C$17),"") ->  | D46: =IFERROR(OFFSET('Scenario History'!$C$14,$A45,$C$5+D$17),"") ->  | E46: =IFERROR(OFFSET('Scenario History'!$C$14,$A45,$C$5+E$17),"") ->  | F46: =IFERROR(OFFSET('Scenario History'!$C$14,$A45,$C$5+F$17),"") ->  | G46: =IFERROR(OFFSET('Scenario History'!$C$14,$A45,$C$5+G$17),"") ->  | H46: =IFERROR(OFFSET('Scenario History'!$C$14,$A45,$C$5+H$17),"") ->  | I46: =IFERROR(OFFSET('Scenario History'!$C$14,$A45,$C$5+I$17),"") ->  | J46: =IFERROR(OFFSET('Scenario History'!$C$14,$A45,$C$5+J$17),"") ->  | K46: =IFERROR(OFFSET('Scenario History'!$C$14,$A45,$C$5+K$17),"") ->  | L46: =IFERROR(OFFSET('Scenario History'!$C$14,$A45,$C$5+L$17),"") ->  | M46: =IFERROR(OFFSET('Scenario History'!$C$14,$A45,$C$5+M$17),"") ->  | N46: =IFERROR(OFFSET('Scenario History'!$C$14,$A45,$C$5+N$17),"") -> 
A47: 30 | B47: Ancilliary devices | C47: =IFERROR(OFFSET('Scenario History'!$C$14,$A46,$C$5+C$17),"") ->  | D47: =IFERROR(OFFSET('Scenario History'!$C$14,$A46,$C$5+D$17),"") ->  | E47: =IFERROR(OFFSET('Scenario History'!$C$14,$A46,$C$5+E$17),"") ->  | F47: =IFERROR(OFFSET('Scenario History'!$C$14,$A46,$C$5+F$17),"") ->  | G47: =IFERROR(OFFSET('Scenario History'!$C$14,$A46,$C$5+G$17),"") ->  | H47: =IFERROR(OFFSET('Scenario History'!$C$14,$A46,$C$5+H$17),"") ->  | I47: =IFERROR(OFFSET('Scenario History'!$C$14,$A46,$C$5+I$17),"") ->  | J47: =IFERROR(OFFSET('Scenario History'!$C$14,$A46,$C$5+J$17),"") ->  | K47: =IFERROR(OFFSET('Scenario History'!$C$14,$A46,$C$5+K$17),"") ->  | L47: =IFERROR(OFFSET('Scenario History'!$C$14,$A46,$C$5+L$17),"") ->  | M47: =IFERROR(OFFSET('Scenario History'!$C$14,$A46,$C$5+M$17),"") ->  | N47: =IFERROR(OFFSET('Scenario History'!$C$14,$A46,$C$5+N$17),"") -> 
A48: 31 | B48: Other | C48: =IFERROR(OFFSET('Scenario History'!$C$14,$A47,$C$5+C$17),"") ->  | D48: =IFERROR(OFFSET('Scenario History'!$C$14,$A47,$C$5+D$17),"") ->  | E48: =IFERROR(OFFSET('Scenario History'!$C$14,$A47,$C$5+E$17),"") ->  | F48: =IFERROR(OFFSET('Scenario History'!$C$14,$A47,$C$5+F$17),"") ->  | G48: =IFERROR(OFFSET('Scenario History'!$C$14,$A47,$C$5+G$17),"") ->  | H48: =IFERROR(OFFSET('Scenario History'!$C$14,$A47,$C$5+H$17),"") ->  | I48: =IFERROR(OFFSET('Scenario History'!$C$14,$A47,$C$5+I$17),"") ->  | J48: =IFERROR(OFFSET('Scenario History'!$C$14,$A47,$C$5+J$17),"") ->  | K48: =IFERROR(OFFSET('Scenario History'!$C$14,$A47,$C$5+K$17),"") ->  | L48: =IFERROR(OFFSET('Scenario History'!$C$14,$A47,$C$5+L$17),"") ->  | M48: =IFERROR(OFFSET('Scenario History'!$C$14,$A47,$C$5+M$17),"") ->  | N48: =IFERROR(OFFSET('Scenario History'!$C$14,$A47,$C$5+N$17),"") -> 
A49: 32 | B49: Total storage capacity | C49: =IFERROR(OFFSET('Scenario History'!$C$14,$A48,$C$5+C$17),"") ->  | D49: =IFERROR(OFFSET('Scenario History'!$C$14,$A48,$C$5+D$17),"") ->  | E49: =IFERROR(OFFSET('Scenario History'!$C$14,$A48,$C$5+E$17),"") ->  | F49: =IFERROR(OFFSET('Scenario History'!$C$14,$A48,$C$5+F$17),"") ->  | G49: =IFERROR(OFFSET('Scenario History'!$C$14,$A48,$C$5+G$17),"") ->  | H49: =IFERROR(OFFSET('Scenario History'!$C$14,$A48,$C$5+H$17),"") ->  | I49: =IFERROR(OFFSET('Scenario History'!$C$14,$A48,$C$5+I$17),"") ->  | J49: =IFERROR(OFFSET('Scenario History'!$C$14,$A48,$C$5+J$17),"") ->  | K49: =IFERROR(OFFSET('Scenario History'!$C$14,$A48,$C$5+K$17),"") ->  | L49: =IFERROR(OFFSET('Scenario History'!$C$14,$A48,$C$5+L$17),"") ->  | M49: =IFERROR(OFFSET('Scenario History'!$C$14,$A48,$C$5+M$17),"") ->  | N49: =IFERROR(OFFSET('Scenario History'!$C$14,$A48,$C$5+N$17),"") -> 
A50: 33
A51: 34 | B51: Power Consumption
A52: 35 | B52: ICT Power
A53: 36 | B53: Is the total ICT power seperately metered? | C53: =IFERROR(OFFSET('Scenario History'!$C$14,$A52,$C$5+C$17),"") ->  | F53: =IFERROR(OFFSET('Scenario History'!$C$14,$A52,$C$5+F$17),"") ->  | I53: =IFERROR(OFFSET('Scenario History'!$C$14,$A52,$C$5+I$17),"") ->  | L53: =IFERROR(OFFSET('Scenario History'!$C$14,$A52,$C$5+L$17),"") -> 
A54: 37
A55: 38 | B55: Metering Point(s) | C55: =IFERROR(OFFSET('Scenario History'!$C$14,$A54,$C$5+C$17),"") ->  | F55: =IFERROR(OFFSET('Scenario History'!$C$14,$A54,$C$5+F$17),"") ->  | I55: =IFERROR(OFFSET('Scenario History'!$C$14,$A54,$C$5+I$17),"") ->  | L55: =IFERROR(OFFSET('Scenario History'!$C$14,$A54,$C$5+L$17),"") -> 
A56: 39
A57: 40 | C57: =IFERROR(OFFSET('Scenario History'!$C$14,$A56,$C$5+C$17),"") ->  | D57: =IFERROR(OFFSET('Scenario History'!$C$14,$A56,$C$5+D$17),"") ->  | E57: =IFERROR(OFFSET('Scenario History'!$C$14,$A56,$C$5+E$17),"") ->  | F57: =IFERROR(OFFSET('Scenario History'!$C$14,$A56,$C$5+F$17),"") ->  | G57: =IFERROR(OFFSET('Scenario History'!$C$14,$A56,$C$5+G$17),"") ->  | H57: =IFERROR(OFFSET('Scenario History'!$C$14,$A56,$C$5+H$17),"") ->  | I57: =IFERROR(OFFSET('Scenario History'!$C$14,$A56,$C$5+I$17),"") ->  | J57: =IFERROR(OFFSET('Scenario History'!$C$14,$A56,$C$5+J$17),"") ->  | K57: =IFERROR(OFFSET('Scenario History'!$C$14,$A56,$C$5+K$17),"") ->  | L57: =IFERROR(OFFSET('Scenario History'!$C$14,$A56,$C$5+L$17),"") ->  | M57: =IFERROR(OFFSET('Scenario History'!$C$14,$A56,$C$5+M$17),"") ->  | N57: 5 Yr Forecast
A58: 41 | B58: Total kWh/year measured | C58: =IFERROR(OFFSET('Scenario History'!$C$14,$A57,$C$5+C$17),"") ->  | D58: =IFERROR(OFFSET('Scenario History'!$C$14,$A57,$C$5+D$17),"") ->  | E58: =IFERROR(OFFSET('Scenario History'!$C$14,$A57,$C$5+E$17),"") ->  | F58: =IFERROR(OFFSET('Scenario History'!$C$14,$A57,$C$5+F$17),"") ->  | G58: =IFERROR(OFFSET('Scenario History'!$C$14,$A57,$C$5+G$17),"") ->  | H58: =IFERROR(OFFSET('Scenario History'!$C$14,$A57,$C$5+H$17),"") ->  | I58: =IFERROR(OFFSET('Scenario History'!$C$14,$A57,$C$5+I$17),"") ->  | J58: =IFERROR(OFFSET('Scenario History'!$C$14,$A57,$C$5+J$17),"") ->  | K58: =IFERROR(OFFSET('Scenario History'!$C$14,$A57,$C$5+K$17),"") ->  | L58: =IFERROR(OFFSET('Scenario History'!$C$14,$A57,$C$5+L$17),"") ->  | M58: =IFERROR(OFFSET('Scenario History'!$C$14,$A57,$C$5+M$17),"") ->  | N58: =IFERROR(OFFSET('Scenario History'!$C$14,$A57,$C$5+N$17),"") -> 
A59: 42 | B59: Estimated PDU Losses | C59: =IFERROR(OFFSET('Scenario History'!$C$14,$A58,$C$5+C$17),"") ->  | D59: =IFERROR(OFFSET('Scenario History'!$C$14,$A58,$C$5+D$17),"") ->  | E59: =IFERROR(OFFSET('Scenario History'!$C$14,$A58,$C$5+E$17),"") ->  | F59: =IFERROR(OFFSET('Scenario History'!$C$14,$A58,$C$5+F$17),"") ->  | G59: =IFERROR(OFFSET('Scenario History'!$C$14,$A58,$C$5+G$17),"") ->  | H59: =IFERROR(OFFSET('Scenario History'!$C$14,$A58,$C$5+H$17),"") ->  | I59: =IFERROR(OFFSET('Scenario History'!$C$14,$A58,$C$5+I$17),"") ->  | J59: =IFERROR(OFFSET('Scenario History'!$C$14,$A58,$C$5+J$17),"") ->  | K59: =IFERROR(OFFSET('Scenario History'!$C$14,$A58,$C$5+K$17),"") ->  | L59: =IFERROR(OFFSET('Scenario History'!$C$14,$A58,$C$5+L$17),"") ->  | M59: =IFERROR(OFFSET('Scenario History'!$C$14,$A58,$C$5+M$17),"") ->  | N59: =IFERROR(OFFSET('Scenario History'!$C$14,$A58,$C$5+N$17),"") -> 
A60: 43
A61: 44 | B61: Estimation of ICT Load
A62: 45 | B62: Average server consumption | C62: =IFERROR(OFFSET('Scenario History'!$C$14,$A61,$C$5+C$17),"") ->  | D62: =IFERROR(OFFSET('Scenario History'!$C$14,$A61,$C$5+D$17),"") ->  | E62: =IFERROR(OFFSET('Scenario History'!$C$14,$A61,$C$5+E$17),"") ->  | F62: =IFERROR(OFFSET('Scenario History'!$C$14,$A61,$C$5+F$17),"") ->  | G62: =IFERROR(OFFSET('Scenario History'!$C$14,$A61,$C$5+G$17),"") ->  | H62: =IFERROR(OFFSET('Scenario History'!$C$14,$A61,$C$5+H$17),"") ->  | I62: =IFERROR(OFFSET('Scenario History'!$C$14,$A61,$C$5+I$17),"") ->  | J62: =IFERROR(OFFSET('Scenario History'!$C$14,$A61,$C$5+J$17),"") ->  | K62: =IFERROR(OFFSET('Scenario History'!$C$14,$A61,$C$5+K$17),"") ->  | L62: =IFERROR(OFFSET('Scenario History'!$C$14,$A61,$C$5+L$17),"") ->  | M62: =IFERROR(OFFSET('Scenario History'!$C$14,$A61,$C$5+M$17),"") ->  | N62: 400
A63: 46 | B63: Small | C63: =IFERROR(OFFSET('Scenario History'!$C$14,$A62,$C$5+C$17),"") ->  | D63: =IFERROR(OFFSET('Scenario History'!$C$14,$A62,$C$5+D$17),"") ->  | E63: =IFERROR(OFFSET('Scenario History'!$C$14,$A62,$C$5+E$17),"") ->  | F63: =IFERROR(OFFSET('Scenario History'!$C$14,$A62,$C$5+F$17),"") ->  | G63: =IFERROR(OFFSET('Scenario History'!$C$14,$A62,$C$5+G$17),"") ->  | H63: =IFERROR(OFFSET('Scenario History'!$C$14,$A62,$C$5+H$17),"") ->  | I63: =IFERROR(OFFSET('Scenario History'!$C$14,$A62,$C$5+I$17),"") ->  | J63: =IFERROR(OFFSET('Scenario History'!$C$14,$A62,$C$5+J$17),"") ->  | K63: =IFERROR(OFFSET('Scenario History'!$C$14,$A62,$C$5+K$17),"") ->  | L63: =IFERROR(OFFSET('Scenario History'!$C$14,$A62,$C$5+L$17),"") ->  | M63: =IFERROR(OFFSET('Scenario History'!$C$14,$A62,$C$5+M$17),"") ->  | N63: 400
A64: 47 | B64: Medium | C64: =IFERROR(OFFSET('Scenario History'!$C$14,$A63,$C$5+C$17),"") ->  | D64: =IFERROR(OFFSET('Scenario History'!$C$14,$A63,$C$5+D$17),"") ->  | E64: =IFERROR(OFFSET('Scenario History'!$C$14,$A63,$C$5+E$17),"") ->  | F64: =IFERROR(OFFSET('Scenario History'!$C$14,$A63,$C$5+F$17),"") ->  | G64: =IFERROR(OFFSET('Scenario History'!$C$14,$A63,$C$5+G$17),"") ->  | H64: =IFERROR(OFFSET('Scenario History'!$C$14,$A63,$C$5+H$17),"") ->  | I64: =IFERROR(OFFSET('Scenario History'!$C$14,$A63,$C$5+I$17),"") ->  | J64: =IFERROR(OFFSET('Scenario History'!$C$14,$A63,$C$5+J$17),"") ->  | K64: =IFERROR(OFFSET('Scenario History'!$C$14,$A63,$C$5+K$17),"") ->  | L64: =IFERROR(OFFSET('Scenario History'!$C$14,$A63,$C$5+L$17),"") ->  | M64: =IFERROR(OFFSET('Scenario History'!$C$14,$A63,$C$5+M$17),"") ->  | N64: 400
A65: 48 | B65: Large | C65: =IFERROR(OFFSET('Scenario History'!$C$14,$A64,$C$5+C$17),"") ->  | D65: =IFERROR(OFFSET('Scenario History'!$C$14,$A64,$C$5+D$17),"") ->  | E65: =IFERROR(OFFSET('Scenario History'!$C$14,$A64,$C$5+E$17),"") ->  | F65: =IFERROR(OFFSET('Scenario History'!$C$14,$A64,$C$5+F$17),"") ->  | G65: =IFERROR(OFFSET('Scenario History'!$C$14,$A64,$C$5+G$17),"") ->  | H65: =IFERROR(OFFSET('Scenario History'!$C$14,$A64,$C$5+H$17),"") ->  | I65: =IFERROR(OFFSET('Scenario History'!$C$14,$A64,$C$5+I$17),"") ->  | J65: =IFERROR(OFFSET('Scenario History'!$C$14,$A64,$C$5+J$17),"") ->  | K65: =IFERROR(OFFSET('Scenario History'!$C$14,$A64,$C$5+K$17),"") ->  | L65: =IFERROR(OFFSET('Scenario History'!$C$14,$A64,$C$5+L$17),"") ->  | M65: =IFERROR(OFFSET('Scenario History'!$C$14,$A64,$C$5+M$17),"") ->  | N65: 400
A66: 49 | B66: V Large | C66: =IFERROR(OFFSET('Scenario History'!$C$14,$A65,$C$5+C$17),"") ->  | D66: =IFERROR(OFFSET('Scenario History'!$C$14,$A65,$C$5+D$17),"") ->  | E66: =IFERROR(OFFSET('Scenario History'!$C$14,$A65,$C$5+E$17),"") ->  | F66: =IFERROR(OFFSET('Scenario History'!$C$14,$A65,$C$5+F$17),"") ->  | G66: =IFERROR(OFFSET('Scenario History'!$C$14,$A65,$C$5+G$17),"") ->  | H66: =IFERROR(OFFSET('Scenario History'!$C$14,$A65,$C$5+H$17),"") ->  | I66: =IFERROR(OFFSET('Scenario History'!$C$14,$A65,$C$5+I$17),"") ->  | J66: =IFERROR(OFFSET('Scenario History'!$C$14,$A65,$C$5+J$17),"") ->  | K66: =IFERROR(OFFSET('Scenario History'!$C$14,$A65,$C$5+K$17),"") ->  | L66: =IFERROR(OFFSET('Scenario History'!$C$14,$A65,$C$5+L$17),"") ->  | M66: =IFERROR(OFFSET('Scenario History'!$C$14,$A65,$C$5+M$17),"") ->  | N66: 400
A67: 50 | B67: Average storage device consumption | C67: =IFERROR(OFFSET('Scenario History'!$C$14,$A62,$C$5+C$17),"") ->  | D67: =IFERROR(OFFSET('Scenario History'!$C$14,$A62,$C$5+D$17),"") ->  | E67: =IFERROR(OFFSET('Scenario History'!$C$14,$A62,$C$5+E$17),"") ->  | F67: =IFERROR(OFFSET('Scenario History'!$C$14,$A62,$C$5+F$17),"") ->  | G67: =IFERROR(OFFSET('Scenario History'!$C$14,$A62,$C$5+G$17),"") ->  | H67: =IFERROR(OFFSET('Scenario History'!$C$14,$A62,$C$5+H$17),"") ->  | I67: =IFERROR(OFFSET('Scenario History'!$C$14,$A62,$C$5+I$17),"") ->  | J67: =IFERROR(OFFSET('Scenario History'!$C$14,$A62,$C$5+J$17),"") ->  | K67: =IFERROR(OFFSET('Scenario History'!$C$14,$A62,$C$5+K$17),"") ->  | L67: =IFERROR(OFFSET('Scenario History'!$C$14,$A62,$C$5+L$17),"") ->  | M67: =IFERROR(OFFSET('Scenario History'!$C$14,$A62,$C$5+M$17),"") ->  | N67: 300
A68: 51 | B68: Average network device consumption | C68: =IFERROR(OFFSET('Scenario History'!$C$14,$A67,$C$5+C$17),"") ->  | D68: =IFERROR(OFFSET('Scenario History'!$C$14,$A67,$C$5+D$17),"") ->  | E68: =IFERROR(OFFSET('Scenario History'!$C$14,$A67,$C$5+E$17),"") ->  | F68: =IFERROR(OFFSET('Scenario History'!$C$14,$A67,$C$5+F$17),"") ->  | G68: =IFERROR(OFFSET('Scenario History'!$C$14,$A67,$C$5+G$17),"") ->  | H68: =IFERROR(OFFSET('Scenario History'!$C$14,$A67,$C$5+H$17),"") ->  | I68: =IFERROR(OFFSET('Scenario History'!$C$14,$A67,$C$5+I$17),"") ->  | J68: =IFERROR(OFFSET('Scenario History'!$C$14,$A67,$C$5+J$17),"") ->  | K68: =IFERROR(OFFSET('Scenario History'!$C$14,$A67,$C$5+K$17),"") ->  | L68: =IFERROR(OFFSET('Scenario History'!$C$14,$A67,$C$5+L$17),"") ->  | M68: =IFERROR(OFFSET('Scenario History'!$C$14,$A67,$C$5+M$17),"") ->  | N68: 250
A69: 52 | B69: Average ancilliary device consumption | C69: =IFERROR(OFFSET('Scenario History'!$C$14,$A68,$C$5+C$17),"") ->  | D69: =IFERROR(OFFSET('Scenario History'!$C$14,$A68,$C$5+D$17),"") ->  | E69: =IFERROR(OFFSET('Scenario History'!$C$14,$A68,$C$5+E$17),"") ->  | F69: =IFERROR(OFFSET('Scenario History'!$C$14,$A68,$C$5+F$17),"") ->  | G69: =IFERROR(OFFSET('Scenario History'!$C$14,$A68,$C$5+G$17),"") ->  | H69: =IFERROR(OFFSET('Scenario History'!$C$14,$A68,$C$5+H$17),"") ->  | I69: =IFERROR(OFFSET('Scenario History'!$C$14,$A68,$C$5+I$17),"") ->  | J69: =IFERROR(OFFSET('Scenario History'!$C$14,$A68,$C$5+J$17),"") ->  | K69: =IFERROR(OFFSET('Scenario History'!$C$14,$A68,$C$5+K$17),"") ->  | L69: =IFERROR(OFFSET('Scenario History'!$C$14,$A68,$C$5+L$17),"") ->  | M69: =IFERROR(OFFSET('Scenario History'!$C$14,$A68,$C$5+M$17),"") -> 
A70: 53 | B70: Other | C70: =IFERROR(OFFSET('Scenario History'!$C$14,$A69,$C$5+C$17),"") ->  | D70: =IFERROR(OFFSET('Scenario History'!$C$14,$A69,$C$5+D$17),"") ->  | E70: =IFERROR(OFFSET('Scenario History'!$C$14,$A69,$C$5+E$17),"") ->  | F70: =IFERROR(OFFSET('Scenario History'!$C$14,$A69,$C$5+F$17),"") ->  | G70: =IFERROR(OFFSET('Scenario History'!$C$14,$A69,$C$5+G$17),"") ->  | H70: =IFERROR(OFFSET('Scenario History'!$C$14,$A69,$C$5+H$17),"") ->  | I70: =IFERROR(OFFSET('Scenario History'!$C$14,$A69,$C$5+I$17),"") ->  | J70: =IFERROR(OFFSET('Scenario History'!$C$14,$A69,$C$5+J$17),"") ->  | K70: =IFERROR(OFFSET('Scenario History'!$C$14,$A69,$C$5+K$17),"") ->  | L70: =IFERROR(OFFSET('Scenario History'!$C$14,$A69,$C$5+L$17),"") ->  | M70: =IFERROR(OFFSET('Scenario History'!$C$14,$A69,$C$5+M$17),"") -> 
A71: 54 | B71: Total | C71: =IFERROR(OFFSET('Scenario History'!$C$14,$A70,$C$5+C$17),"") ->  | D71: =IFERROR(OFFSET('Scenario History'!$C$14,$A70,$C$5+D$17),"") ->  | E71: =IFERROR(OFFSET('Scenario History'!$C$14,$A70,$C$5+E$17),"") ->  | F71: =IFERROR(OFFSET('Scenario History'!$C$14,$A70,$C$5+F$17),"") ->  | G71: =IFERROR(OFFSET('Scenario History'!$C$14,$A70,$C$5+G$17),"") ->  | H71: =IFERROR(OFFSET('Scenario History'!$C$14,$A70,$C$5+H$17),"") ->  | I71: =IFERROR(OFFSET('Scenario History'!$C$14,$A70,$C$5+I$17),"") ->  | J71: =IFERROR(OFFSET('Scenario History'!$C$14,$A70,$C$5+J$17),"") ->  | K71: =IFERROR(OFFSET('Scenario History'!$C$14,$A70,$C$5+K$17),"") ->  | L71: =IFERROR(OFFSET('Scenario History'!$C$14,$A70,$C$5+L$17),"") ->  | M71: =IFERROR(OFFSET('Scenario History'!$C$14,$A70,$C$5+M$17),"") ->  | N71: =(N40*N62+N45*N67+N46*N68+N47*N69+N48*N70)*8760/1000 -> 
A72: 55
A73: 56 | B73: Total ICT Load | C73: =IFERROR(OFFSET('Scenario History'!$C$14,$A72,$C$5+C$17),"") ->  | D73: =IFERROR(OFFSET('Scenario History'!$C$14,$A72,$C$5+D$17),"") ->  | E73: =IFERROR(OFFSET('Scenario History'!$C$14,$A72,$C$5+E$17),"") ->  | F73: =IFERROR(OFFSET('Scenario History'!$C$14,$A72,$C$5+F$17),"") ->  | G73: =IFERROR(OFFSET('Scenario History'!$C$14,$A72,$C$5+G$17),"") ->  | H73: =IFERROR(OFFSET('Scenario History'!$C$14,$A72,$C$5+H$17),"") ->  | I73: =IFERROR(OFFSET('Scenario History'!$C$14,$A72,$C$5+I$17),"") ->  | J73: =IFERROR(OFFSET('Scenario History'!$C$14,$A72,$C$5+J$17),"") ->  | K73: =IFERROR(OFFSET('Scenario History'!$C$14,$A72,$C$5+K$17),"") ->  | L73: =IFERROR(OFFSET('Scenario History'!$C$14,$A72,$C$5+L$17),"") ->  | M73: =IFERROR(OFFSET('Scenario History'!$C$14,$A72,$C$5+M$17),"") ->  | N73: =IF($M$37="Yes",N58*(1-N59),N71) -> 
A74: 57
A75: 58 | B75: Total Utilities to Data Centre/Server Room
A76: 59 | B76: Is all non ICT power use or total power seperately metered? | C76: =IFERROR(OFFSET('Scenario History'!$C$14,$A75,$C$5+C$17),"") ->  | F76: =IFERROR(OFFSET('Scenario History'!$C$14,$A75,$C$5+F$17),"") ->  | I76: =IFERROR(OFFSET('Scenario History'!$C$14,$A75,$C$5+I$17),"") ->  | L76: =IFERROR(OFFSET('Scenario History'!$C$14,$A75,$C$5+L$17),"") -> 
A77: 60 | B77: is generator electricity included in this metered power? | C77: =IFERROR(OFFSET('Scenario History'!$C$14,$A76,$C$5+C$17),"") ->  | F77: =IFERROR(OFFSET('Scenario History'!$C$14,$A76,$C$5+F$17),"") ->  | I77: =IFERROR(OFFSET('Scenario History'!$C$14,$A76,$C$5+I$17),"") ->  | L77: =IFERROR(OFFSET('Scenario History'!$C$14,$A76,$C$5+L$17),"") -> 
A78: 61
A79: 62 | C79: =IFERROR(OFFSET('Scenario History'!$C$14,$A78,$C$5+C$17),"") ->  | D79: =IFERROR(OFFSET('Scenario History'!$C$14,$A78,$C$5+D$17),"") ->  | E79: =IFERROR(OFFSET('Scenario History'!$C$14,$A78,$C$5+E$17),"") ->  | F79: =IFERROR(OFFSET('Scenario History'!$C$14,$A78,$C$5+F$17),"") ->  | G79: =IFERROR(OFFSET('Scenario History'!$C$14,$A78,$C$5+G$17),"") ->  | H79: =IFERROR(OFFSET('Scenario History'!$C$14,$A78,$C$5+H$17),"") ->  | I79: =IFERROR(OFFSET('Scenario History'!$C$14,$A78,$C$5+I$17),"") ->  | J79: =IFERROR(OFFSET('Scenario History'!$C$14,$A78,$C$5+J$17),"") ->  | K79: =IFERROR(OFFSET('Scenario History'!$C$14,$A78,$C$5+K$17),"") ->  | L79: =IFERROR(OFFSET('Scenario History'!$C$14,$A78,$C$5+L$17),"") ->  | M79: =IFERROR(OFFSET('Scenario History'!$C$14,$A78,$C$5+M$17),"") ->  | N79: 5 Yr Forecast
A80: 63 | B80: Total kWh/year measured excluding ICT Load | C80: =IFERROR(OFFSET('Scenario History'!$C$14,$A79,$C$5+C$17),"") ->  | D80: =IFERROR(OFFSET('Scenario History'!$C$14,$A79,$C$5+D$17),"") ->  | E80: =IFERROR(OFFSET('Scenario History'!$C$14,$A79,$C$5+E$17),"") ->  | F80: =IFERROR(OFFSET('Scenario History'!$C$14,$A79,$C$5+F$17),"") ->  | G80: =IFERROR(OFFSET('Scenario History'!$C$14,$A79,$C$5+G$17),"") ->  | H80: =IFERROR(OFFSET('Scenario History'!$C$14,$A79,$C$5+H$17),"") ->  | I80: =IFERROR(OFFSET('Scenario History'!$C$14,$A79,$C$5+I$17),"") ->  | J80: =IFERROR(OFFSET('Scenario History'!$C$14,$A79,$C$5+J$17),"") ->  | K80: =IFERROR(OFFSET('Scenario History'!$C$14,$A79,$C$5+K$17),"") ->  | L80: =IFERROR(OFFSET('Scenario History'!$C$14,$A79,$C$5+L$17),"") ->  | M80: =IFERROR(OFFSET('Scenario History'!$C$14,$A79,$C$5+M$17),"") ->  | N80: =IFERROR(OFFSET('Scenario History'!$C$14,$A79,$C$5+N$17),"") -> 
A81: 64
A82: 65 | B82: Is some of the power seperately measured? | C82: =IFERROR(OFFSET('Scenario History'!$C$14,$A81,$C$5+C$17),"") ->  | F82: =IFERROR(OFFSET('Scenario History'!$C$14,$A81,$C$5+F$17),"") ->  | I82: =IFERROR(OFFSET('Scenario History'!$C$14,$A81,$C$5+I$17),"") ->  | L82: =IFERROR(OFFSET('Scenario History'!$C$14,$A81,$C$5+L$17),"") -> 
A83: 66 | B83: Measured Consumption (leave blank if unknown)
A84: 67 | B84: Lighting | C84: =IFERROR(OFFSET('Scenario History'!$C$14,$A83,$C$5+C$17),"") ->  | F84: =IFERROR(OFFSET('Scenario History'!$C$14,$A83,$C$5+F$17),"") ->  | I84: =IFERROR(OFFSET('Scenario History'!$C$14,$A83,$C$5+I$17),"") ->  | L84: =IFERROR(OFFSET('Scenario History'!$C$14,$A83,$C$5+L$17),"") -> 
A85: 68 | B85: UPS Losses | C85: =IFERROR(OFFSET('Scenario History'!$C$14,$A84,$C$5+C$17),"") ->  | F85: =IFERROR(OFFSET('Scenario History'!$C$14,$A84,$C$5+F$17),"") ->  | I85: =IFERROR(OFFSET('Scenario History'!$C$14,$A84,$C$5+I$17),"") ->  | L85: =IFERROR(OFFSET('Scenario History'!$C$14,$A84,$C$5+L$17),"") -> 
A86: 69 | B86: HVAC | C86: =IFERROR(OFFSET('Scenario History'!$C$14,$A85,$C$5+C$17),"") ->  | F86: =IFERROR(OFFSET('Scenario History'!$C$14,$A85,$C$5+F$17),"") ->  | I86: =IFERROR(OFFSET('Scenario History'!$C$14,$A85,$C$5+I$17),"") ->  | L86: =IFERROR(OFFSET('Scenario History'!$C$14,$A85,$C$5+L$17),"") -> 
A87: 70 | B87: PDU Losses | C87: =IFERROR(OFFSET('Scenario History'!$C$14,$A86,$C$5+C$17),"") ->  | F87: =IFERROR(OFFSET('Scenario History'!$C$14,$A86,$C$5+F$17),"") ->  | I87: =IFERROR(OFFSET('Scenario History'!$C$14,$A86,$C$5+I$17),"") ->  | L87: =IFERROR(OFFSET('Scenario History'!$C$14,$A86,$C$5+L$17),"") -> 
A88: 71 | B88: Other | C88: =IFERROR(OFFSET('Scenario History'!$C$14,$A87,$C$5+C$17),"") ->  | F88: =IFERROR(OFFSET('Scenario History'!$C$14,$A87,$C$5+F$17),"") ->  | I88: =IFERROR(OFFSET('Scenario History'!$C$14,$A87,$C$5+I$17),"") ->  | L88: =IFERROR(OFFSET('Scenario History'!$C$14,$A87,$C$5+L$17),"") -> 
A89: 72
A90: 73 | B90: Other Utilty Usage
A91: 74 | B91: Natural Gas | C91: =IFERROR(OFFSET('Scenario History'!$C$14,$A90,$C$5+C$17),"") ->  | D91: =IFERROR(OFFSET('Scenario History'!$C$14,$A90,$C$5+D$17),"") ->  | E91: =IFERROR(OFFSET('Scenario History'!$C$14,$A90,$C$5+E$17),"") ->  | F91: =IFERROR(OFFSET('Scenario History'!$C$14,$A90,$C$5+F$17),"") ->  | G91: =IFERROR(OFFSET('Scenario History'!$C$14,$A90,$C$5+G$17),"") ->  | H91: =IFERROR(OFFSET('Scenario History'!$C$14,$A90,$C$5+H$17),"") ->  | I91: =IFERROR(OFFSET('Scenario History'!$C$14,$A90,$C$5+I$17),"") ->  | J91: =IFERROR(OFFSET('Scenario History'!$C$14,$A90,$C$5+J$17),"") ->  | K91: =IFERROR(OFFSET('Scenario History'!$C$14,$A90,$C$5+K$17),"") ->  | L91: =IFERROR(OFFSET('Scenario History'!$C$14,$A90,$C$5+L$17),"") ->  | M91: =IFERROR(OFFSET('Scenario History'!$C$14,$A90,$C$5+M$17),"") ->  | N91: =IFERROR(OFFSET('Scenario History'!$C$14,$A90,$C$5+N$17),"") -> 
A92: 75 | B92: Water | C92: =IFERROR(OFFSET('Scenario History'!$C$14,$A91,$C$5+C$17),"") ->  | D92: =IFERROR(OFFSET('Scenario History'!$C$14,$A91,$C$5+D$17),"") ->  | E92: =IFERROR(OFFSET('Scenario History'!$C$14,$A91,$C$5+E$17),"") ->  | F92: =IFERROR(OFFSET('Scenario History'!$C$14,$A91,$C$5+F$17),"") ->  | G92: =IFERROR(OFFSET('Scenario History'!$C$14,$A91,$C$5+G$17),"") ->  | H92: =IFERROR(OFFSET('Scenario History'!$C$14,$A91,$C$5+H$17),"") ->  | I92: =IFERROR(OFFSET('Scenario History'!$C$14,$A91,$C$5+I$17),"") ->  | J92: =IFERROR(OFFSET('Scenario History'!$C$14,$A91,$C$5+J$17),"") ->  | K92: =IFERROR(OFFSET('Scenario History'!$C$14,$A91,$C$5+K$17),"") ->  | L92: =IFERROR(OFFSET('Scenario History'!$C$14,$A91,$C$5+L$17),"") ->  | M92: =IFERROR(OFFSET('Scenario History'!$C$14,$A91,$C$5+M$17),"") ->  | N92: =IFERROR(OFFSET('Scenario History'!$C$14,$A91,$C$5+N$17),"") -> 
A93: 76
A94: 77 | B94: Equipment Types for Estimation of Power
A95: 78 | B95: Lighting | C95: =IFERROR(OFFSET('Scenario History'!$C$14,$A94,$C$5+C$17),"") ->  | D95: =IFERROR(OFFSET('Scenario History'!$C$14,$A94,$C$5+D$17),"") ->  | E95: =IFERROR(OFFSET('Scenario History'!$C$14,$A94,$C$5+E$17),"") ->  | F95: =IFERROR(OFFSET('Scenario History'!$C$14,$A94,$C$5+F$17),"") ->  | G95: =IFERROR(OFFSET('Scenario History'!$C$14,$A94,$C$5+G$17),"") ->  | H95: =IFERROR(OFFSET('Scenario History'!$C$14,$A94,$C$5+H$17),"") ->  | I95: =IFERROR(OFFSET('Scenario History'!$C$14,$A94,$C$5+I$17),"") ->  | J95: =IFERROR(OFFSET('Scenario History'!$C$14,$A94,$C$5+J$17),"") ->  | K95: =IFERROR(OFFSET('Scenario History'!$C$14,$A94,$C$5+K$17),"") ->  | L95: =IFERROR(OFFSET('Scenario History'!$C$14,$A94,$C$5+L$17),"") ->  | M95: =IFERROR(OFFSET('Scenario History'!$C$14,$A94,$C$5+M$17),"") ->  | N95: =IFERROR(OFFSET('Scenario History'!$C$14,$A94,$C$5+N$17),"") -> 
A96: 79 | B96: Lighting Type | C96: =IFERROR(OFFSET('Scenario History'!$C$14,$A95,$C$5+C$17),"") ->  | D96: =IFERROR(OFFSET('Scenario History'!$C$14,$A95,$C$5+D$17),"") ->  | E96: =IFERROR(OFFSET('Scenario History'!$C$14,$A95,$C$5+E$17),"") ->  | F96: =IFERROR(OFFSET('Scenario History'!$C$14,$A95,$C$5+F$17),"") ->  | G96: =IFERROR(OFFSET('Scenario History'!$C$14,$A95,$C$5+G$17),"") ->  | H96: =IFERROR(OFFSET('Scenario History'!$C$14,$A95,$C$5+H$17),"") ->  | I96: =IFERROR(OFFSET('Scenario History'!$C$14,$A95,$C$5+I$17),"") ->  | J96: =IFERROR(OFFSET('Scenario History'!$C$14,$A95,$C$5+J$17),"") ->  | K96: =IFERROR(OFFSET('Scenario History'!$C$14,$A95,$C$5+K$17),"") ->  | L96: =IFERROR(OFFSET('Scenario History'!$C$14,$A95,$C$5+L$17),"") ->  | M96: =IFERROR(OFFSET('Scenario History'!$C$14,$A95,$C$5+M$17),"") ->  | N96: =IFERROR(OFFSET('Scenario History'!$C$14,$A95,$C$5+N$17),"") -> 
A97: 80 | B97: Lighting Controls | C97: =IFERROR(OFFSET('Scenario History'!$C$14,$A96,$C$5+C$17),"") ->  | D97: =IFERROR(OFFSET('Scenario History'!$C$14,$A96,$C$5+D$17),"") ->  | E97: =IFERROR(OFFSET('Scenario History'!$C$14,$A96,$C$5+E$17),"") ->  | F97: =IFERROR(OFFSET('Scenario History'!$C$14,$A96,$C$5+F$17),"") ->  | G97: =IFERROR(OFFSET('Scenario History'!$C$14,$A96,$C$5+G$17),"") ->  | H97: =IFERROR(OFFSET('Scenario History'!$C$14,$A96,$C$5+H$17),"") ->  | I97: =IFERROR(OFFSET('Scenario History'!$C$14,$A96,$C$5+I$17),"") ->  | J97: =IFERROR(OFFSET('Scenario History'!$C$14,$A96,$C$5+J$17),"") ->  | K97: =IFERROR(OFFSET('Scenario History'!$C$14,$A96,$C$5+K$17),"") ->  | L97: =IFERROR(OFFSET('Scenario History'!$C$14,$A96,$C$5+L$17),"") ->  | M97: =IFERROR(OFFSET('Scenario History'!$C$14,$A96,$C$5+M$17),"") ->  | N97: =IFERROR(OFFSET('Scenario History'!$C$14,$A96,$C$5+N$17),"") -> 
A98: 81 | B98: Estimated kWh Electricity based on defaults | C98: =IFERROR(OFFSET('Scenario History'!$C$14,$A97,$C$5+C$17),"") ->  | D98: =IFERROR(OFFSET('Scenario History'!$C$14,$A97,$C$5+D$17),"") ->  | E98: =IFERROR(OFFSET('Scenario History'!$C$14,$A97,$C$5+E$17),"") ->  | F98: =IFERROR(OFFSET('Scenario History'!$C$14,$A97,$C$5+F$17),"") ->  | G98: =IFERROR(OFFSET('Scenario History'!$C$14,$A97,$C$5+G$17),"") ->  | H98: =IFERROR(OFFSET('Scenario History'!$C$14,$A97,$C$5+H$17),"") ->  | I98: =IFERROR(OFFSET('Scenario History'!$C$14,$A97,$C$5+I$17),"") ->  | J98: =IFERROR(OFFSET('Scenario History'!$C$14,$A97,$C$5+J$17),"") ->  | K98: =IFERROR(OFFSET('Scenario History'!$C$14,$A97,$C$5+K$17),"") ->  | L98: =IFERROR(OFFSET('Scenario History'!$C$14,$A97,$C$5+L$17),"") ->  | M98: =IFERROR(OFFSET('Scenario History'!$C$14,$A97,$C$5+M$17),"") ->  | N98: =IFERROR(OFFSET('Scenario History'!$C$14,$A97,$C$5+N$17),"") -> 
A99: 82 | B99: Measured Consumption | C99: =IFERROR(OFFSET('Scenario History'!$C$14,$A98,$C$5+C$17),"") ->  | D99: =IFERROR(OFFSET('Scenario History'!$C$14,$A98,$C$5+D$17),"") ->  | E99: =IFERROR(OFFSET('Scenario History'!$C$14,$A98,$C$5+E$17),"") ->  | F99: =IFERROR(OFFSET('Scenario History'!$C$14,$A98,$C$5+F$17),"") ->  | G99: =IFERROR(OFFSET('Scenario History'!$C$14,$A98,$C$5+G$17),"") ->  | H99: =IFERROR(OFFSET('Scenario History'!$C$14,$A98,$C$5+H$17),"") ->  | I99: =IFERROR(OFFSET('Scenario History'!$C$14,$A98,$C$5+I$17),"") ->  | J99: =IFERROR(OFFSET('Scenario History'!$C$14,$A98,$C$5+J$17),"") ->  | K99: =IFERROR(OFFSET('Scenario History'!$C$14,$A98,$C$5+K$17),"") ->  | L99: =IFERROR(OFFSET('Scenario History'!$C$14,$A98,$C$5+L$17),"") ->  | M99: =IFERROR(OFFSET('Scenario History'!$C$14,$A98,$C$5+M$17),"") ->  | N99: =IFERROR(OFFSET('Scenario History'!$C$14,$A98,$C$5+N$17),"") -> 
A100: 83 | B100: Or enter your own estimate | C100: =IFERROR(OFFSET('Scenario History'!$C$14,$A99,$C$5+C$17),"") ->  | D100: =IFERROR(OFFSET('Scenario History'!$C$14,$A99,$C$5+D$17),"") ->  | E100: =IFERROR(OFFSET('Scenario History'!$C$14,$A99,$C$5+E$17),"") ->  | F100: =IFERROR(OFFSET('Scenario History'!$C$14,$A99,$C$5+F$17),"") ->  | G100: =IFERROR(OFFSET('Scenario History'!$C$14,$A99,$C$5+G$17),"") ->  | H100: =IFERROR(OFFSET('Scenario History'!$C$14,$A99,$C$5+H$17),"") ->  | I100: =IFERROR(OFFSET('Scenario History'!$C$14,$A99,$C$5+I$17),"") ->  | J100: =IFERROR(OFFSET('Scenario History'!$C$14,$A99,$C$5+J$17),"") ->  | K100: =IFERROR(OFFSET('Scenario History'!$C$14,$A99,$C$5+K$17),"") ->  | L100: =IFERROR(OFFSET('Scenario History'!$C$14,$A99,$C$5+L$17),"") ->  | M100: =IFERROR(OFFSET('Scenario History'!$C$14,$A99,$C$5+M$17),"") ->  | N100: =IFERROR(OFFSET('Scenario History'!$C$14,$A99,$C$5+N$17),"") -> 
A101: 84 | B101: Used | C101: =IFERROR(OFFSET('Scenario History'!$C$14,$A100,$C$5+C$17),"") ->  | D101: =IFERROR(OFFSET('Scenario History'!$C$14,$A100,$C$5+D$17),"") ->  | E101: =IFERROR(OFFSET('Scenario History'!$C$14,$A100,$C$5+E$17),"") ->  | F101: =IFERROR(OFFSET('Scenario History'!$C$14,$A100,$C$5+F$17),"") ->  | G101: =IFERROR(OFFSET('Scenario History'!$C$14,$A100,$C$5+G$17),"") ->  | H101: =IFERROR(OFFSET('Scenario History'!$C$14,$A100,$C$5+H$17),"") ->  | I101: =IFERROR(OFFSET('Scenario History'!$C$14,$A100,$C$5+I$17),"") ->  | J101: =IFERROR(OFFSET('Scenario History'!$C$14,$A100,$C$5+J$17),"") ->  | K101: =IFERROR(OFFSET('Scenario History'!$C$14,$A100,$C$5+K$17),"") ->  | L101: =IFERROR(OFFSET('Scenario History'!$C$14,$A100,$C$5+L$17),"") ->  | M101: =IFERROR(OFFSET('Scenario History'!$C$14,$A100,$C$5+M$17),"") ->  | N101: =IFERROR(OFFSET('Scenario History'!$C$14,$A100,$C$5+N$17),"") -> 
A102: 85 | B102: UPS
A103: 86 | B103: UPS Type | C103: =IFERROR(OFFSET('Scenario History'!$C$14,$A102,$C$5+C$17),"") ->  | D103: =IFERROR(OFFSET('Scenario History'!$C$14,$A102,$C$5+D$17),"") ->  | E103: =IFERROR(OFFSET('Scenario History'!$C$14,$A102,$C$5+E$17),"") ->  | F103: =IFERROR(OFFSET('Scenario History'!$C$14,$A102,$C$5+F$17),"") ->  | G103: =IFERROR(OFFSET('Scenario History'!$C$14,$A102,$C$5+G$17),"") ->  | H103: =IFERROR(OFFSET('Scenario History'!$C$14,$A102,$C$5+H$17),"") ->  | I103: =IFERROR(OFFSET('Scenario History'!$C$14,$A102,$C$5+I$17),"") ->  | J103: =IFERROR(OFFSET('Scenario History'!$C$14,$A102,$C$5+J$17),"") ->  | K103: =IFERROR(OFFSET('Scenario History'!$C$14,$A102,$C$5+K$17),"") ->  | L103: =IFERROR(OFFSET('Scenario History'!$C$14,$A102,$C$5+L$17),"") ->  | M103: =IFERROR(OFFSET('Scenario History'!$C$14,$A102,$C$5+M$17),"") ->  | N103: =IFERROR(OFFSET('Scenario History'!$C$14,$A102,$C$5+N$17),"") -> 
A104: 87 | B104: Estimated kWh Electricity based on defaults | C104: =IFERROR(OFFSET('Scenario History'!$C$14,$A103,$C$5+C$17),"") ->  | D104: =IFERROR(OFFSET('Scenario History'!$C$14,$A103,$C$5+D$17),"") ->  | E104: =IFERROR(OFFSET('Scenario History'!$C$14,$A103,$C$5+E$17),"") ->  | F104: =IFERROR(OFFSET('Scenario History'!$C$14,$A103,$C$5+F$17),"") ->  | G104: =IFERROR(OFFSET('Scenario History'!$C$14,$A103,$C$5+G$17),"") ->  | H104: =IFERROR(OFFSET('Scenario History'!$C$14,$A103,$C$5+H$17),"") ->  | I104: =IFERROR(OFFSET('Scenario History'!$C$14,$A103,$C$5+I$17),"") ->  | J104: =IFERROR(OFFSET('Scenario History'!$C$14,$A103,$C$5+J$17),"") ->  | K104: =IFERROR(OFFSET('Scenario History'!$C$14,$A103,$C$5+K$17),"") ->  | L104: =IFERROR(OFFSET('Scenario History'!$C$14,$A103,$C$5+L$17),"") ->  | M104: =IFERROR(OFFSET('Scenario History'!$C$14,$A103,$C$5+M$17),"") ->  | N104: =IFERROR(OFFSET('Scenario History'!$C$14,$A103,$C$5+N$17),"") -> 
A105: 88 | B105: Measured Consumption | C105: =IFERROR(OFFSET('Scenario History'!$C$14,$A104,$C$5+C$17),"") ->  | D105: =IFERROR(OFFSET('Scenario History'!$C$14,$A104,$C$5+D$17),"") ->  | E105: =IFERROR(OFFSET('Scenario History'!$C$14,$A104,$C$5+E$17),"") ->  | F105: =IFERROR(OFFSET('Scenario History'!$C$14,$A104,$C$5+F$17),"") ->  | G105: =IFERROR(OFFSET('Scenario History'!$C$14,$A104,$C$5+G$17),"") ->  | H105: =IFERROR(OFFSET('Scenario History'!$C$14,$A104,$C$5+H$17),"") ->  | I105: =IFERROR(OFFSET('Scenario History'!$C$14,$A104,$C$5+I$17),"") ->  | J105: =IFERROR(OFFSET('Scenario History'!$C$14,$A104,$C$5+J$17),"") ->  | K105: =IFERROR(OFFSET('Scenario History'!$C$14,$A104,$C$5+K$17),"") ->  | L105: =IFERROR(OFFSET('Scenario History'!$C$14,$A104,$C$5+L$17),"") ->  | M105: =IFERROR(OFFSET('Scenario History'!$C$14,$A104,$C$5+M$17),"") ->  | N105: =IFERROR(OFFSET('Scenario History'!$C$14,$A104,$C$5+N$17),"") -> 
A106: 89 | B106: Or enter your own estimate | C106: =IFERROR(OFFSET('Scenario History'!$C$14,$A105,$C$5+C$17),"") ->  | D106: =IFERROR(OFFSET('Scenario History'!$C$14,$A105,$C$5+D$17),"") ->  | E106: =IFERROR(OFFSET('Scenario History'!$C$14,$A105,$C$5+E$17),"") ->  | F106: =IFERROR(OFFSET('Scenario History'!$C$14,$A105,$C$5+F$17),"") ->  | G106: =IFERROR(OFFSET('Scenario History'!$C$14,$A105,$C$5+G$17),"") ->  | H106: =IFERROR(OFFSET('Scenario History'!$C$14,$A105,$C$5+H$17),"") ->  | I106: =IFERROR(OFFSET('Scenario History'!$C$14,$A105,$C$5+I$17),"") ->  | J106: =IFERROR(OFFSET('Scenario History'!$C$14,$A105,$C$5+J$17),"") ->  | K106: =IFERROR(OFFSET('Scenario History'!$C$14,$A105,$C$5+K$17),"") ->  | L106: =IFERROR(OFFSET('Scenario History'!$C$14,$A105,$C$5+L$17),"") ->  | M106: =IFERROR(OFFSET('Scenario History'!$C$14,$A105,$C$5+M$17),"") ->  | N106: =IFERROR(OFFSET('Scenario History'!$C$14,$A105,$C$5+N$17),"") -> 
A107: 90 | B107: Used | C107: =IFERROR(OFFSET('Scenario History'!$C$14,$A106,$C$5+C$17),"") ->  | D107: =IFERROR(OFFSET('Scenario History'!$C$14,$A106,$C$5+D$17),"") ->  | E107: =IFERROR(OFFSET('Scenario History'!$C$14,$A106,$C$5+E$17),"") ->  | F107: =IFERROR(OFFSET('Scenario History'!$C$14,$A106,$C$5+F$17),"") ->  | G107: =IFERROR(OFFSET('Scenario History'!$C$14,$A106,$C$5+G$17),"") ->  | H107: =IFERROR(OFFSET('Scenario History'!$C$14,$A106,$C$5+H$17),"") ->  | I107: =IFERROR(OFFSET('Scenario History'!$C$14,$A106,$C$5+I$17),"") ->  | J107: =IFERROR(OFFSET('Scenario History'!$C$14,$A106,$C$5+J$17),"") ->  | K107: =IFERROR(OFFSET('Scenario History'!$C$14,$A106,$C$5+K$17),"") ->  | L107: =IFERROR(OFFSET('Scenario History'!$C$14,$A106,$C$5+L$17),"") ->  | M107: =IFERROR(OFFSET('Scenario History'!$C$14,$A106,$C$5+M$17),"") ->  | N107: =IFERROR(OFFSET('Scenario History'!$C$14,$A106,$C$5+N$17),"") -> 
A108: 91 | B108: HVAC
A109: 92 | B109: HVAC Type | C109: =IFERROR(OFFSET('Scenario History'!$C$14,$A108,$C$5+C$17),"") ->  | D109: =IFERROR(OFFSET('Scenario History'!$C$14,$A108,$C$5+D$17),"") ->  | E109: =IFERROR(OFFSET('Scenario History'!$C$14,$A108,$C$5+E$17),"") ->  | F109: =IFERROR(OFFSET('Scenario History'!$C$14,$A108,$C$5+F$17),"") ->  | G109: =IFERROR(OFFSET('Scenario History'!$C$14,$A108,$C$5+G$17),"") ->  | H109: =IFERROR(OFFSET('Scenario History'!$C$14,$A108,$C$5+H$17),"") ->  | I109: =IFERROR(OFFSET('Scenario History'!$C$14,$A108,$C$5+I$17),"") ->  | J109: =IFERROR(OFFSET('Scenario History'!$C$14,$A108,$C$5+J$17),"") ->  | K109: =IFERROR(OFFSET('Scenario History'!$C$14,$A108,$C$5+K$17),"") ->  | L109: =IFERROR(OFFSET('Scenario History'!$C$14,$A108,$C$5+L$17),"") ->  | M109: =IFERROR(OFFSET('Scenario History'!$C$14,$A108,$C$5+M$17),"") ->  | N109: =IFERROR(OFFSET('Scenario History'!$C$14,$A108,$C$5+N$17),"") -> 
A110: 93 | B110: Capacity Utilisation | C110: =IFERROR(OFFSET('Scenario History'!$C$14,$A109,$C$5+C$17),"") ->  | D110: =IFERROR(OFFSET('Scenario History'!$C$14,$A109,$C$5+D$17),"") ->  | E110: =IFERROR(OFFSET('Scenario History'!$C$14,$A109,$C$5+E$17),"") ->  | F110: =IFERROR(OFFSET('Scenario History'!$C$14,$A109,$C$5+F$17),"") ->  | G110: =IFERROR(OFFSET('Scenario History'!$C$14,$A109,$C$5+G$17),"") ->  | H110: =IFERROR(OFFSET('Scenario History'!$C$14,$A109,$C$5+H$17),"") ->  | I110: =IFERROR(OFFSET('Scenario History'!$C$14,$A109,$C$5+I$17),"") ->  | J110: =IFERROR(OFFSET('Scenario History'!$C$14,$A109,$C$5+J$17),"") ->  | K110: =IFERROR(OFFSET('Scenario History'!$C$14,$A109,$C$5+K$17),"") ->  | L110: =IFERROR(OFFSET('Scenario History'!$C$14,$A109,$C$5+L$17),"") ->  | M110: =IFERROR(OFFSET('Scenario History'!$C$14,$A109,$C$5+M$17),"") ->  | N110: =IFERROR(OFFSET('Scenario History'!$C$14,$A109,$C$5+N$17),"") -> 
A111: 94 | B111: Perimeter or Close Coupled | C111: =IFERROR(OFFSET('Scenario History'!$C$14,$A110,$C$5+C$17),"") ->  | D111: =IFERROR(OFFSET('Scenario History'!$C$14,$A110,$C$5+D$17),"") ->  | E111: =IFERROR(OFFSET('Scenario History'!$C$14,$A110,$C$5+E$17),"") ->  | F111: =IFERROR(OFFSET('Scenario History'!$C$14,$A110,$C$5+F$17),"") ->  | G111: =IFERROR(OFFSET('Scenario History'!$C$14,$A110,$C$5+G$17),"") ->  | H111: =IFERROR(OFFSET('Scenario History'!$C$14,$A110,$C$5+H$17),"") ->  | I111: =IFERROR(OFFSET('Scenario History'!$C$14,$A110,$C$5+I$17),"") ->  | J111: =IFERROR(OFFSET('Scenario History'!$C$14,$A110,$C$5+J$17),"") ->  | K111: =IFERROR(OFFSET('Scenario History'!$C$14,$A110,$C$5+K$17),"") ->  | L111: =IFERROR(OFFSET('Scenario History'!$C$14,$A110,$C$5+L$17),"") ->  | M111: =IFERROR(OFFSET('Scenario History'!$C$14,$A110,$C$5+M$17),"") ->  | N111: =IFERROR(OFFSET('Scenario History'!$C$14,$A110,$C$5+N$17),"") -> 
A112: 95 | B112: Airside Economiser | C112: =IFERROR(OFFSET('Scenario History'!$C$14,$A111,$C$5+C$17),"") ->  | D112: =IFERROR(OFFSET('Scenario History'!$C$14,$A111,$C$5+D$17),"") ->  | E112: =IFERROR(OFFSET('Scenario History'!$C$14,$A111,$C$5+E$17),"") ->  | F112: =IFERROR(OFFSET('Scenario History'!$C$14,$A111,$C$5+F$17),"") ->  | G112: =IFERROR(OFFSET('Scenario History'!$C$14,$A111,$C$5+G$17),"") ->  | H112: =IFERROR(OFFSET('Scenario History'!$C$14,$A111,$C$5+H$17),"") ->  | I112: =IFERROR(OFFSET('Scenario History'!$C$14,$A111,$C$5+I$17),"") ->  | J112: =IFERROR(OFFSET('Scenario History'!$C$14,$A111,$C$5+J$17),"") ->  | K112: =IFERROR(OFFSET('Scenario History'!$C$14,$A111,$C$5+K$17),"") ->  | L112: =IFERROR(OFFSET('Scenario History'!$C$14,$A111,$C$5+L$17),"") ->  | M112: =IFERROR(OFFSET('Scenario History'!$C$14,$A111,$C$5+M$17),"") ->  | N112: =IFERROR(OFFSET('Scenario History'!$C$14,$A111,$C$5+N$17),"") -> 
A113: 96 | B113: Estimated kWh Electricity based on defaults | C113: =IFERROR(OFFSET('Scenario History'!$C$14,$A112,$C$5+C$17),"") ->  | D113: =IFERROR(OFFSET('Scenario History'!$C$14,$A112,$C$5+D$17),"") ->  | E113: =IFERROR(OFFSET('Scenario History'!$C$14,$A112,$C$5+E$17),"") ->  | F113: =IFERROR(OFFSET('Scenario History'!$C$14,$A112,$C$5+F$17),"") ->  | G113: =IFERROR(OFFSET('Scenario History'!$C$14,$A112,$C$5+G$17),"") ->  | H113: =IFERROR(OFFSET('Scenario History'!$C$14,$A112,$C$5+H$17),"") ->  | I113: =IFERROR(OFFSET('Scenario History'!$C$14,$A112,$C$5+I$17),"") ->  | J113: =IFERROR(OFFSET('Scenario History'!$C$14,$A112,$C$5+J$17),"") ->  | K113: =IFERROR(OFFSET('Scenario History'!$C$14,$A112,$C$5+K$17),"") ->  | L113: =IFERROR(OFFSET('Scenario History'!$C$14,$A112,$C$5+L$17),"") ->  | M113: =IFERROR(OFFSET('Scenario History'!$C$14,$A112,$C$5+M$17),"") ->  | N113: =IFERROR(OFFSET('Scenario History'!$C$14,$A112,$C$5+N$17),"") -> 
A114: 97 | B114: Measured Consumption | C114: =IFERROR(OFFSET('Scenario History'!$C$14,$A113,$C$5+C$17),"") ->  | D114: =IFERROR(OFFSET('Scenario History'!$C$14,$A113,$C$5+D$17),"") ->  | E114: =IFERROR(OFFSET('Scenario History'!$C$14,$A113,$C$5+E$17),"") ->  | F114: =IFERROR(OFFSET('Scenario History'!$C$14,$A113,$C$5+F$17),"") ->  | G114: =IFERROR(OFFSET('Scenario History'!$C$14,$A113,$C$5+G$17),"") ->  | H114: =IFERROR(OFFSET('Scenario History'!$C$14,$A113,$C$5+H$17),"") ->  | I114: =IFERROR(OFFSET('Scenario History'!$C$14,$A113,$C$5+I$17),"") ->  | J114: =IFERROR(OFFSET('Scenario History'!$C$14,$A113,$C$5+J$17),"") ->  | K114: =IFERROR(OFFSET('Scenario History'!$C$14,$A113,$C$5+K$17),"") ->  | L114: =IFERROR(OFFSET('Scenario History'!$C$14,$A113,$C$5+L$17),"") ->  | M114: =IFERROR(OFFSET('Scenario History'!$C$14,$A113,$C$5+M$17),"") ->  | N114: =IFERROR(OFFSET('Scenario History'!$C$14,$A113,$C$5+N$17),"") -> 
A115: 98 | B115: Or enter your own estimate | C115: =IFERROR(OFFSET('Scenario History'!$C$14,$A114,$C$5+C$17),"") ->  | D115: =IFERROR(OFFSET('Scenario History'!$C$14,$A114,$C$5+D$17),"") ->  | E115: =IFERROR(OFFSET('Scenario History'!$C$14,$A114,$C$5+E$17),"") ->  | F115: =IFERROR(OFFSET('Scenario History'!$C$14,$A114,$C$5+F$17),"") ->  | G115: =IFERROR(OFFSET('Scenario History'!$C$14,$A114,$C$5+G$17),"") ->  | H115: =IFERROR(OFFSET('Scenario History'!$C$14,$A114,$C$5+H$17),"") ->  | I115: =IFERROR(OFFSET('Scenario History'!$C$14,$A114,$C$5+I$17),"") ->  | J115: =IFERROR(OFFSET('Scenario History'!$C$14,$A114,$C$5+J$17),"") ->  | K115: =IFERROR(OFFSET('Scenario History'!$C$14,$A114,$C$5+K$17),"") ->  | L115: =IFERROR(OFFSET('Scenario History'!$C$14,$A114,$C$5+L$17),"") ->  | M115: =IFERROR(OFFSET('Scenario History'!$C$14,$A114,$C$5+M$17),"") ->  | N115: =IFERROR(OFFSET('Scenario History'!$C$14,$A114,$C$5+N$17),"") -> 
A116: 99 | B116: Used | C116: =IFERROR(OFFSET('Scenario History'!$C$14,$A115,$C$5+C$17),"") ->  | D116: =IFERROR(OFFSET('Scenario History'!$C$14,$A115,$C$5+D$17),"") ->  | E116: =IFERROR(OFFSET('Scenario History'!$C$14,$A115,$C$5+E$17),"") ->  | F116: =IFERROR(OFFSET('Scenario History'!$C$14,$A115,$C$5+F$17),"") ->  | G116: =IFERROR(OFFSET('Scenario History'!$C$14,$A115,$C$5+G$17),"") ->  | H116: =IFERROR(OFFSET('Scenario History'!$C$14,$A115,$C$5+H$17),"") ->  | I116: =IFERROR(OFFSET('Scenario History'!$C$14,$A115,$C$5+I$17),"") ->  | J116: =IFERROR(OFFSET('Scenario History'!$C$14,$A115,$C$5+J$17),"") ->  | K116: =IFERROR(OFFSET('Scenario History'!$C$14,$A115,$C$5+K$17),"") ->  | L116: =IFERROR(OFFSET('Scenario History'!$C$14,$A115,$C$5+L$17),"") ->  | M116: =IFERROR(OFFSET('Scenario History'!$C$14,$A115,$C$5+M$17),"") ->  | N116: =IFERROR(OFFSET('Scenario History'!$C$14,$A115,$C$5+N$17),"") -> 
A117: 100 | B117: PDU
A118: 101 | B118: PDU estimated losses | C118: =IFERROR(OFFSET('Scenario History'!$C$14,$A117,$C$5+C$17),"") ->  | D118: =IFERROR(OFFSET('Scenario History'!$C$14,$A117,$C$5+D$17),"") ->  | E118: =IFERROR(OFFSET('Scenario History'!$C$14,$A117,$C$5+E$17),"") ->  | F118: =IFERROR(OFFSET('Scenario History'!$C$14,$A117,$C$5+F$17),"") ->  | G118: =IFERROR(OFFSET('Scenario History'!$C$14,$A117,$C$5+G$17),"") ->  | H118: =IFERROR(OFFSET('Scenario History'!$C$14,$A117,$C$5+H$17),"") ->  | I118: =IFERROR(OFFSET('Scenario History'!$C$14,$A117,$C$5+I$17),"") ->  | J118: =IFERROR(OFFSET('Scenario History'!$C$14,$A117,$C$5+J$17),"") ->  | K118: =IFERROR(OFFSET('Scenario History'!$C$14,$A117,$C$5+K$17),"") ->  | L118: =IFERROR(OFFSET('Scenario History'!$C$14,$A117,$C$5+L$17),"") ->  | M118: =IFERROR(OFFSET('Scenario History'!$C$14,$A117,$C$5+M$17),"") ->  | N118: =IFERROR(OFFSET('Scenario History'!$C$14,$A117,$C$5+N$17),"") -> 
A119: 102 | B119: Or enter your own estimate | C119: =IFERROR(OFFSET('Scenario History'!$C$14,$A118,$C$5+C$17),"") ->  | D119: =IFERROR(OFFSET('Scenario History'!$C$14,$A118,$C$5+D$17),"") ->  | E119: =IFERROR(OFFSET('Scenario History'!$C$14,$A118,$C$5+E$17),"") ->  | F119: =IFERROR(OFFSET('Scenario History'!$C$14,$A118,$C$5+F$17),"") ->  | G119: =IFERROR(OFFSET('Scenario History'!$C$14,$A118,$C$5+G$17),"") ->  | H119: =IFERROR(OFFSET('Scenario History'!$C$14,$A118,$C$5+H$17),"") ->  | I119: =IFERROR(OFFSET('Scenario History'!$C$14,$A118,$C$5+I$17),"") ->  | J119: =IFERROR(OFFSET('Scenario History'!$C$14,$A118,$C$5+J$17),"") ->  | K119: =IFERROR(OFFSET('Scenario History'!$C$14,$A118,$C$5+K$17),"") ->  | L119: =IFERROR(OFFSET('Scenario History'!$C$14,$A118,$C$5+L$17),"") ->  | M119: =IFERROR(OFFSET('Scenario History'!$C$14,$A118,$C$5+M$17),"") ->  | N119: =IFERROR(OFFSET('Scenario History'!$C$14,$A118,$C$5+N$17),"") -> 
A120: 103 | B120: Measured Consumption | C120: =IFERROR(OFFSET('Scenario History'!$C$14,$A119,$C$5+C$17),"") ->  | D120: =IFERROR(OFFSET('Scenario History'!$C$14,$A119,$C$5+D$17),"") ->  | E120: =IFERROR(OFFSET('Scenario History'!$C$14,$A119,$C$5+E$17),"") ->  | F120: =IFERROR(OFFSET('Scenario History'!$C$14,$A119,$C$5+F$17),"") ->  | G120: =IFERROR(OFFSET('Scenario History'!$C$14,$A119,$C$5+G$17),"") ->  | H120: =IFERROR(OFFSET('Scenario History'!$C$14,$A119,$C$5+H$17),"") ->  | I120: =IFERROR(OFFSET('Scenario History'!$C$14,$A119,$C$5+I$17),"") ->  | J120: =IFERROR(OFFSET('Scenario History'!$C$14,$A119,$C$5+J$17),"") ->  | K120: =IFERROR(OFFSET('Scenario History'!$C$14,$A119,$C$5+K$17),"") ->  | L120: =IFERROR(OFFSET('Scenario History'!$C$14,$A119,$C$5+L$17),"") ->  | M120: =IFERROR(OFFSET('Scenario History'!$C$14,$A119,$C$5+M$17),"") ->  | N120: =IFERROR(OFFSET('Scenario History'!$C$14,$A119,$C$5+N$17),"") -> 
A121: 104 | B121: Used | C121: =IFERROR(OFFSET('Scenario History'!$C$14,$A120,$C$5+C$17),"") ->  | D121: =IFERROR(OFFSET('Scenario History'!$C$14,$A120,$C$5+D$17),"") ->  | E121: =IFERROR(OFFSET('Scenario History'!$C$14,$A120,$C$5+E$17),"") ->  | F121: =IFERROR(OFFSET('Scenario History'!$C$14,$A120,$C$5+F$17),"") ->  | G121: =IFERROR(OFFSET('Scenario History'!$C$14,$A120,$C$5+G$17),"") ->  | H121: =IFERROR(OFFSET('Scenario History'!$C$14,$A120,$C$5+H$17),"") ->  | I121: =IFERROR(OFFSET('Scenario History'!$C$14,$A120,$C$5+I$17),"") ->  | J121: =IFERROR(OFFSET('Scenario History'!$C$14,$A120,$C$5+J$17),"") ->  | K121: =IFERROR(OFFSET('Scenario History'!$C$14,$A120,$C$5+K$17),"") ->  | L121: =IFERROR(OFFSET('Scenario History'!$C$14,$A120,$C$5+L$17),"") ->  | M121: =IFERROR(OFFSET('Scenario History'!$C$14,$A120,$C$5+M$17),"") ->  | N121: =IFERROR(OFFSET('Scenario History'!$C$14,$A120,$C$5+N$17),"") -> 
A122: 105 | B122: Generator
A123: 106 | B123: Generator capacity | C123: =IFERROR(OFFSET('Scenario History'!$C$14,$A122,$C$5+C$17),"") ->  | D123: =IFERROR(OFFSET('Scenario History'!$C$14,$A122,$C$5+D$17),"") ->  | E123: =IFERROR(OFFSET('Scenario History'!$C$14,$A122,$C$5+E$17),"") ->  | F123: =IFERROR(OFFSET('Scenario History'!$C$14,$A122,$C$5+F$17),"") ->  | G123: =IFERROR(OFFSET('Scenario History'!$C$14,$A122,$C$5+G$17),"") ->  | H123: =IFERROR(OFFSET('Scenario History'!$C$14,$A122,$C$5+H$17),"") ->  | I123: =IFERROR(OFFSET('Scenario History'!$C$14,$A122,$C$5+I$17),"") ->  | J123: =IFERROR(OFFSET('Scenario History'!$C$14,$A122,$C$5+J$17),"") ->  | K123: =IFERROR(OFFSET('Scenario History'!$C$14,$A122,$C$5+K$17),"") ->  | L123: =IFERROR(OFFSET('Scenario History'!$C$14,$A122,$C$5+L$17),"") ->  | M123: =IFERROR(OFFSET('Scenario History'!$C$14,$A122,$C$5+M$17),"") ->  | N123: =IFERROR(OFFSET('Scenario History'!$C$14,$A122,$C$5+N$17),"") -> 
A124: 107 | B124: Generator annual hours at full load | C124: =IFERROR(OFFSET('Scenario History'!$C$14,$A123,$C$5+C$17),"") ->  | D124: =IFERROR(OFFSET('Scenario History'!$C$14,$A123,$C$5+D$17),"") ->  | E124: =IFERROR(OFFSET('Scenario History'!$C$14,$A123,$C$5+E$17),"") ->  | F124: =IFERROR(OFFSET('Scenario History'!$C$14,$A123,$C$5+F$17),"") ->  | G124: =IFERROR(OFFSET('Scenario History'!$C$14,$A123,$C$5+G$17),"") ->  | H124: =IFERROR(OFFSET('Scenario History'!$C$14,$A123,$C$5+H$17),"") ->  | I124: =IFERROR(OFFSET('Scenario History'!$C$14,$A123,$C$5+I$17),"") ->  | J124: =IFERROR(OFFSET('Scenario History'!$C$14,$A123,$C$5+J$17),"") ->  | K124: =IFERROR(OFFSET('Scenario History'!$C$14,$A123,$C$5+K$17),"") ->  | L124: =IFERROR(OFFSET('Scenario History'!$C$14,$A123,$C$5+L$17),"") ->  | M124: =IFERROR(OFFSET('Scenario History'!$C$14,$A123,$C$5+M$17),"") ->  | N124: =IFERROR(OFFSET('Scenario History'!$C$14,$A123,$C$5+N$17),"") -> 
A125: 108 | B125: Generator Efficiency | C125: =IFERROR(OFFSET('Scenario History'!$C$14,$A124,$C$5+C$17),"") ->  | D125: =IFERROR(OFFSET('Scenario History'!$C$14,$A124,$C$5+D$17),"") ->  | E125: =IFERROR(OFFSET('Scenario History'!$C$14,$A124,$C$5+E$17),"") ->  | F125: =IFERROR(OFFSET('Scenario History'!$C$14,$A124,$C$5+F$17),"") ->  | G125: =IFERROR(OFFSET('Scenario History'!$C$14,$A124,$C$5+G$17),"") ->  | H125: =IFERROR(OFFSET('Scenario History'!$C$14,$A124,$C$5+H$17),"") ->  | I125: =IFERROR(OFFSET('Scenario History'!$C$14,$A124,$C$5+I$17),"") ->  | J125: =IFERROR(OFFSET('Scenario History'!$C$14,$A124,$C$5+J$17),"") ->  | K125: =IFERROR(OFFSET('Scenario History'!$C$14,$A124,$C$5+K$17),"") ->  | L125: =IFERROR(OFFSET('Scenario History'!$C$14,$A124,$C$5+L$17),"") ->  | M125: =IFERROR(OFFSET('Scenario History'!$C$14,$A124,$C$5+M$17),"") ->  | N125: =IFERROR(OFFSET('Scenario History'!$C$14,$A124,$C$5+N$17),"") -> 
A126: 109 | B126: Electricity Generated | C126: =IFERROR(OFFSET('Scenario History'!$C$14,$A125,$C$5+C$17),"") ->  | D126: =IFERROR(OFFSET('Scenario History'!$C$14,$A125,$C$5+D$17),"") ->  | E126: =IFERROR(OFFSET('Scenario History'!$C$14,$A125,$C$5+E$17),"") ->  | F126: =IFERROR(OFFSET('Scenario History'!$C$14,$A125,$C$5+F$17),"") ->  | G126: =IFERROR(OFFSET('Scenario History'!$C$14,$A125,$C$5+G$17),"") ->  | H126: =IFERROR(OFFSET('Scenario History'!$C$14,$A125,$C$5+H$17),"") ->  | I126: =IFERROR(OFFSET('Scenario History'!$C$14,$A125,$C$5+I$17),"") ->  | J126: =IFERROR(OFFSET('Scenario History'!$C$14,$A125,$C$5+J$17),"") ->  | K126: =IFERROR(OFFSET('Scenario History'!$C$14,$A125,$C$5+K$17),"") ->  | L126: =IFERROR(OFFSET('Scenario History'!$C$14,$A125,$C$5+L$17),"") ->  | M126: =IFERROR(OFFSET('Scenario History'!$C$14,$A125,$C$5+M$17),"") ->  | N126: =IFERROR(OFFSET('Scenario History'!$C$14,$A125,$C$5+N$17),"") -> 
A127: 110 | B127: Estimated kWh Generator Fuel | C127: =IFERROR(OFFSET('Scenario History'!$C$14,$A126,$C$5+C$17),"") ->  | D127: =IFERROR(OFFSET('Scenario History'!$C$14,$A126,$C$5+D$17),"") ->  | E127: =IFERROR(OFFSET('Scenario History'!$C$14,$A126,$C$5+E$17),"") ->  | F127: =IFERROR(OFFSET('Scenario History'!$C$14,$A126,$C$5+F$17),"") ->  | G127: =IFERROR(OFFSET('Scenario History'!$C$14,$A126,$C$5+G$17),"") ->  | H127: =IFERROR(OFFSET('Scenario History'!$C$14,$A126,$C$5+H$17),"") ->  | I127: =IFERROR(OFFSET('Scenario History'!$C$14,$A126,$C$5+I$17),"") ->  | J127: =IFERROR(OFFSET('Scenario History'!$C$14,$A126,$C$5+J$17),"") ->  | K127: =IFERROR(OFFSET('Scenario History'!$C$14,$A126,$C$5+K$17),"") ->  | L127: =IFERROR(OFFSET('Scenario History'!$C$14,$A126,$C$5+L$17),"") ->  | M127: =IFERROR(OFFSET('Scenario History'!$C$14,$A126,$C$5+M$17),"") ->  | N127: =IFERROR(OFFSET('Scenario History'!$C$14,$A126,$C$5+N$17),"") -> 
A128: 111 | B128: Measured Consumption | C128: =IFERROR(OFFSET('Scenario History'!$C$14,$A127,$C$5+C$17),"") ->  | F128: =IFERROR(OFFSET('Scenario History'!$C$14,$A127,$C$5+F$17),"") ->  | I128: =IFERROR(OFFSET('Scenario History'!$C$14,$A127,$C$5+I$17),"") ->  | L128: =IFERROR(OFFSET('Scenario History'!$C$14,$A127,$C$5+L$17),"") -> 
A129: 112 | B129: Or enter your own estimate | C129: =IFERROR(OFFSET('Scenario History'!$C$14,$A128,$C$5+C$17),"") ->  | D129: =IFERROR(OFFSET('Scenario History'!$C$14,$A128,$C$5+D$17),"") ->  | E129: =IFERROR(OFFSET('Scenario History'!$C$14,$A128,$C$5+E$17),"") ->  | F129: =IFERROR(OFFSET('Scenario History'!$C$14,$A128,$C$5+F$17),"") ->  | G129: =IFERROR(OFFSET('Scenario History'!$C$14,$A128,$C$5+G$17),"") ->  | H129: =IFERROR(OFFSET('Scenario History'!$C$14,$A128,$C$5+H$17),"") ->  | I129: =IFERROR(OFFSET('Scenario History'!$C$14,$A128,$C$5+I$17),"") ->  | J129: =IFERROR(OFFSET('Scenario History'!$C$14,$A128,$C$5+J$17),"") ->  | K129: =IFERROR(OFFSET('Scenario History'!$C$14,$A128,$C$5+K$17),"") ->  | L129: =IFERROR(OFFSET('Scenario History'!$C$14,$A128,$C$5+L$17),"") ->  | M129: =IFERROR(OFFSET('Scenario History'!$C$14,$A128,$C$5+M$17),"") ->  | N129: =IFERROR(OFFSET('Scenario History'!$C$14,$A128,$C$5+N$17),"") -> 
A130: 113 | B130: Used | C130: =IFERROR(OFFSET('Scenario History'!$C$14,$A129,$C$5+C$17),"") ->  | D130: =IFERROR(OFFSET('Scenario History'!$C$14,$A129,$C$5+D$17),"") ->  | E130: =IFERROR(OFFSET('Scenario History'!$C$14,$A129,$C$5+E$17),"") ->  | F130: =IFERROR(OFFSET('Scenario History'!$C$14,$A129,$C$5+F$17),"") ->  | G130: =IFERROR(OFFSET('Scenario History'!$C$14,$A129,$C$5+G$17),"") ->  | H130: =IFERROR(OFFSET('Scenario History'!$C$14,$A129,$C$5+H$17),"") ->  | I130: =IFERROR(OFFSET('Scenario History'!$C$14,$A129,$C$5+I$17),"") ->  | J130: =IFERROR(OFFSET('Scenario History'!$C$14,$A129,$C$5+J$17),"") ->  | K130: =IFERROR(OFFSET('Scenario History'!$C$14,$A129,$C$5+K$17),"") ->  | L130: =IFERROR(OFFSET('Scenario History'!$C$14,$A129,$C$5+L$17),"") ->  | M130: =IFERROR(OFFSET('Scenario History'!$C$14,$A129,$C$5+M$17),"") ->  | N130: =IFERROR(OFFSET('Scenario History'!$C$14,$A129,$C$5+N$17),"") -> 
A131: 114 | B131: Other
A132: 115 | B132: Estimated kWh Electricity (2.5% of non ICT energy) | C132: =IFERROR(OFFSET('Scenario History'!$C$14,$A131,$C$5+C$17),"") ->  | D132: =IFERROR(OFFSET('Scenario History'!$C$14,$A131,$C$5+D$17),"") ->  | E132: =IFERROR(OFFSET('Scenario History'!$C$14,$A131,$C$5+E$17),"") ->  | F132: =IFERROR(OFFSET('Scenario History'!$C$14,$A131,$C$5+F$17),"") ->  | G132: =IFERROR(OFFSET('Scenario History'!$C$14,$A131,$C$5+G$17),"") ->  | H132: =IFERROR(OFFSET('Scenario History'!$C$14,$A131,$C$5+H$17),"") ->  | I132: =IFERROR(OFFSET('Scenario History'!$C$14,$A131,$C$5+I$17),"") ->  | J132: =IFERROR(OFFSET('Scenario History'!$C$14,$A131,$C$5+J$17),"") ->  | K132: =IFERROR(OFFSET('Scenario History'!$C$14,$A131,$C$5+K$17),"") ->  | L132: =IFERROR(OFFSET('Scenario History'!$C$14,$A131,$C$5+L$17),"") ->  | M132: =IFERROR(OFFSET('Scenario History'!$C$14,$A131,$C$5+M$17),"") ->  | N132: =IFERROR(OFFSET('Scenario History'!$C$14,$A131,$C$5+N$17),"") -> 
A133: 116 | B133: Measured Consumption | C133: =IFERROR(OFFSET('Scenario History'!$C$14,$A132,$C$5+C$17),"") ->  | D133: =IFERROR(OFFSET('Scenario History'!$C$14,$A132,$C$5+D$17),"") ->  | E133: =IFERROR(OFFSET('Scenario History'!$C$14,$A132,$C$5+E$17),"") ->  | F133: =IFERROR(OFFSET('Scenario History'!$C$14,$A132,$C$5+F$17),"") ->  | G133: =IFERROR(OFFSET('Scenario History'!$C$14,$A132,$C$5+G$17),"") ->  | H133: =IFERROR(OFFSET('Scenario History'!$C$14,$A132,$C$5+H$17),"") ->  | I133: =IFERROR(OFFSET('Scenario History'!$C$14,$A132,$C$5+I$17),"") ->  | J133: =IFERROR(OFFSET('Scenario History'!$C$14,$A132,$C$5+J$17),"") ->  | K133: =IFERROR(OFFSET('Scenario History'!$C$14,$A132,$C$5+K$17),"") ->  | L133: =IFERROR(OFFSET('Scenario History'!$C$14,$A132,$C$5+L$17),"") ->  | M133: =IFERROR(OFFSET('Scenario History'!$C$14,$A132,$C$5+M$17),"") ->  | N133: =IFERROR(OFFSET('Scenario History'!$C$14,$A132,$C$5+N$17),"") -> 
A134: 117 | B134: Or enter your own estimate | C134: =IFERROR(OFFSET('Scenario History'!$C$14,$A133,$C$5+C$17),"") ->  | D134: =IFERROR(OFFSET('Scenario History'!$C$14,$A133,$C$5+D$17),"") ->  | E134: =IFERROR(OFFSET('Scenario History'!$C$14,$A133,$C$5+E$17),"") ->  | F134: =IFERROR(OFFSET('Scenario History'!$C$14,$A133,$C$5+F$17),"") ->  | G134: =IFERROR(OFFSET('Scenario History'!$C$14,$A133,$C$5+G$17),"") ->  | H134: =IFERROR(OFFSET('Scenario History'!$C$14,$A133,$C$5+H$17),"") ->  | I134: =IFERROR(OFFSET('Scenario History'!$C$14,$A133,$C$5+I$17),"") ->  | J134: =IFERROR(OFFSET('Scenario History'!$C$14,$A133,$C$5+J$17),"") ->  | K134: =IFERROR(OFFSET('Scenario History'!$C$14,$A133,$C$5+K$17),"") ->  | L134: =IFERROR(OFFSET('Scenario History'!$C$14,$A133,$C$5+L$17),"") ->  | M134: =IFERROR(OFFSET('Scenario History'!$C$14,$A133,$C$5+M$17),"") ->  | N134: =IFERROR(OFFSET('Scenario History'!$C$14,$A133,$C$5+N$17),"") -> 
A135: 118 | B135: Used | C135: =IFERROR(OFFSET('Scenario History'!$C$14,$A134,$C$5+C$17),"") ->  | D135: =IFERROR(OFFSET('Scenario History'!$C$14,$A134,$C$5+D$17),"") ->  | E135: =IFERROR(OFFSET('Scenario History'!$C$14,$A134,$C$5+E$17),"") ->  | F135: =IFERROR(OFFSET('Scenario History'!$C$14,$A134,$C$5+F$17),"") ->  | G135: =IFERROR(OFFSET('Scenario History'!$C$14,$A134,$C$5+G$17),"") ->  | H135: =IFERROR(OFFSET('Scenario History'!$C$14,$A134,$C$5+H$17),"") ->  | I135: =IFERROR(OFFSET('Scenario History'!$C$14,$A134,$C$5+I$17),"") ->  | J135: =IFERROR(OFFSET('Scenario History'!$C$14,$A134,$C$5+J$17),"") ->  | K135: =IFERROR(OFFSET('Scenario History'!$C$14,$A134,$C$5+K$17),"") ->  | L135: =IFERROR(OFFSET('Scenario History'!$C$14,$A134,$C$5+L$17),"") ->  | M135: =IFERROR(OFFSET('Scenario History'!$C$14,$A134,$C$5+M$17),"") ->  | N135: =IFERROR(OFFSET('Scenario History'!$C$14,$A134,$C$5+N$17),"") -> 
A136: 119 | C136: =IFERROR(OFFSET('Scenario History'!$C$14,$A135,$C$5+C$17),"") ->  | D136: =IFERROR(OFFSET('Scenario History'!$C$14,$A135,$C$5+D$17),"") ->  | E136: =IFERROR(OFFSET('Scenario History'!$C$14,$A135,$C$5+E$17),"") ->  | F136: =IFERROR(OFFSET('Scenario History'!$C$14,$A135,$C$5+F$17),"") ->  | G136: =IFERROR(OFFSET('Scenario History'!$C$14,$A135,$C$5+G$17),"") ->  | H136: =IFERROR(OFFSET('Scenario History'!$C$14,$A135,$C$5+H$17),"") ->  | I136: =IFERROR(OFFSET('Scenario History'!$C$14,$A135,$C$5+I$17),"") ->  | J136: =IFERROR(OFFSET('Scenario History'!$C$14,$A135,$C$5+J$17),"") ->  | K136: =IFERROR(OFFSET('Scenario History'!$C$14,$A135,$C$5+K$17),"") ->  | L136: =IFERROR(OFFSET('Scenario History'!$C$14,$A135,$C$5+L$17),"") ->  | M136: =IFERROR(OFFSET('Scenario History'!$C$14,$A135,$C$5+M$17),"") ->  | N136: =IFERROR(OFFSET('Scenario History'!$C$14,$A135,$C$5+N$17),"") -> 
A137: 120 | B137: Total Non ICT Energy (ex Generator) | C137: =IFERROR(OFFSET('Scenario History'!$C$14,$A136,$C$5+C$17),"") ->  | D137: =IFERROR(OFFSET('Scenario History'!$C$14,$A136,$C$5+D$17),"") ->  | E137: =IFERROR(OFFSET('Scenario History'!$C$14,$A136,$C$5+E$17),"") ->  | F137: =IFERROR(OFFSET('Scenario History'!$C$14,$A136,$C$5+F$17),"") ->  | G137: =IFERROR(OFFSET('Scenario History'!$C$14,$A136,$C$5+G$17),"") ->  | H137: =IFERROR(OFFSET('Scenario History'!$C$14,$A136,$C$5+H$17),"") ->  | I137: =IFERROR(OFFSET('Scenario History'!$C$14,$A136,$C$5+I$17),"") ->  | J137: =IFERROR(OFFSET('Scenario History'!$C$14,$A136,$C$5+J$17),"") ->  | K137: =IFERROR(OFFSET('Scenario History'!$C$14,$A136,$C$5+K$17),"") ->  | L137: =IFERROR(OFFSET('Scenario History'!$C$14,$A136,$C$5+L$17),"") ->  | M137: =IFERROR(OFFSET('Scenario History'!$C$14,$A136,$C$5+M$17),"") ->  | N137: =IFERROR(OFFSET('Scenario History'!$C$14,$A136,$C$5+N$17),"") -> 
A138: 121
A139: 122 | B139: Utility Use Breakdown
A140: 123 | B140: Electricity | C140: =IFERROR(OFFSET('Scenario History'!$C$14,$A139,$C$5+C$17),"") ->  | D140: =IFERROR(OFFSET('Scenario History'!$C$14,$A139,$C$5+D$17),"") ->  | E140: =IFERROR(OFFSET('Scenario History'!$C$14,$A139,$C$5+E$17),"") ->  | F140: =IFERROR(OFFSET('Scenario History'!$C$14,$A139,$C$5+F$17),"") ->  | G140: =IFERROR(OFFSET('Scenario History'!$C$14,$A139,$C$5+G$17),"") ->  | H140: =IFERROR(OFFSET('Scenario History'!$C$14,$A139,$C$5+H$17),"") ->  | I140: =IFERROR(OFFSET('Scenario History'!$C$14,$A139,$C$5+I$17),"") ->  | J140: =IFERROR(OFFSET('Scenario History'!$C$14,$A139,$C$5+J$17),"") ->  | K140: =IFERROR(OFFSET('Scenario History'!$C$14,$A139,$C$5+K$17),"") ->  | L140: =IFERROR(OFFSET('Scenario History'!$C$14,$A139,$C$5+L$17),"") ->  | M140: =IFERROR(OFFSET('Scenario History'!$C$14,$A139,$C$5+M$17),"") ->  | N140: =IFERROR(OFFSET('Scenario History'!$C$14,$A139,$C$5+N$17),"") -> 
A141: 124 | B141: Natural Gas | C141: =IFERROR(OFFSET('Scenario History'!$C$14,$A140,$C$5+C$17),"") ->  | D141: =IFERROR(OFFSET('Scenario History'!$C$14,$A140,$C$5+D$17),"") ->  | E141: =IFERROR(OFFSET('Scenario History'!$C$14,$A140,$C$5+E$17),"") ->  | F141: =IFERROR(OFFSET('Scenario History'!$C$14,$A140,$C$5+F$17),"") ->  | G141: =IFERROR(OFFSET('Scenario History'!$C$14,$A140,$C$5+G$17),"") ->  | H141: =IFERROR(OFFSET('Scenario History'!$C$14,$A140,$C$5+H$17),"") ->  | I141: =IFERROR(OFFSET('Scenario History'!$C$14,$A140,$C$5+I$17),"") ->  | J141: =IFERROR(OFFSET('Scenario History'!$C$14,$A140,$C$5+J$17),"") ->  | K141: =IFERROR(OFFSET('Scenario History'!$C$14,$A140,$C$5+K$17),"") ->  | L141: =IFERROR(OFFSET('Scenario History'!$C$14,$A140,$C$5+L$17),"") ->  | M141: =IFERROR(OFFSET('Scenario History'!$C$14,$A140,$C$5+M$17),"") ->  | N141: =IFERROR(OFFSET('Scenario History'!$C$14,$A140,$C$5+N$17),"") -> 
A142: 125 | B142: Generator Fuel | C142: =IFERROR(OFFSET('Scenario History'!$C$14,$A141,$C$5+C$17),"") ->  | D142: =IFERROR(OFFSET('Scenario History'!$C$14,$A141,$C$5+D$17),"") ->  | E142: =IFERROR(OFFSET('Scenario History'!$C$14,$A141,$C$5+E$17),"") ->  | F142: =IFERROR(OFFSET('Scenario History'!$C$14,$A141,$C$5+F$17),"") ->  | G142: =IFERROR(OFFSET('Scenario History'!$C$14,$A141,$C$5+G$17),"") ->  | H142: =IFERROR(OFFSET('Scenario History'!$C$14,$A141,$C$5+H$17),"") ->  | I142: =IFERROR(OFFSET('Scenario History'!$C$14,$A141,$C$5+I$17),"") ->  | J142: =IFERROR(OFFSET('Scenario History'!$C$14,$A141,$C$5+J$17),"") ->  | K142: =IFERROR(OFFSET('Scenario History'!$C$14,$A141,$C$5+K$17),"") ->  | L142: =IFERROR(OFFSET('Scenario History'!$C$14,$A141,$C$5+L$17),"") ->  | M142: =IFERROR(OFFSET('Scenario History'!$C$14,$A141,$C$5+M$17),"") ->  | N142: =IFERROR(OFFSET('Scenario History'!$C$14,$A141,$C$5+N$17),"") -> 
A143: 126
A144: 127 | B144: Total Facility Energy | C144: =IFERROR(OFFSET('Scenario History'!$C$14,$A143,$C$5+C$17),"") ->  | D144: =IFERROR(OFFSET('Scenario History'!$C$14,$A143,$C$5+D$17),"") ->  | E144: =IFERROR(OFFSET('Scenario History'!$C$14,$A143,$C$5+E$17),"") ->  | F144: =IFERROR(OFFSET('Scenario History'!$C$14,$A143,$C$5+F$17),"") ->  | G144: =IFERROR(OFFSET('Scenario History'!$C$14,$A143,$C$5+G$17),"") ->  | H144: =IFERROR(OFFSET('Scenario History'!$C$14,$A143,$C$5+H$17),"") ->  | I144: =IFERROR(OFFSET('Scenario History'!$C$14,$A143,$C$5+I$17),"") ->  | J144: =IFERROR(OFFSET('Scenario History'!$C$14,$A143,$C$5+J$17),"") ->  | K144: =IFERROR(OFFSET('Scenario History'!$C$14,$A143,$C$5+K$17),"") ->  | L144: =IFERROR(OFFSET('Scenario History'!$C$14,$A143,$C$5+L$17),"") ->  | M144: =IFERROR(OFFSET('Scenario History'!$C$14,$A143,$C$5+M$17),"") ->  | N144: =IFERROR(OFFSET('Scenario History'!$C$14,$A143,$C$5+N$17),"") -> 
A145: 128 | B145: PUE | C145: =IFERROR(OFFSET('Scenario History'!$C$14,$A144,$C$5+C$17),"") ->  | D145: =IFERROR(OFFSET('Scenario History'!$C$14,$A144,$C$5+D$17),"") ->  | E145: =IFERROR(OFFSET('Scenario History'!$C$14,$A144,$C$5+E$17),"") ->  | F145: =IFERROR(OFFSET('Scenario History'!$C$14,$A144,$C$5+F$17),"") ->  | G145: =IFERROR(OFFSET('Scenario History'!$C$14,$A144,$C$5+G$17),"") ->  | H145: =IFERROR(OFFSET('Scenario History'!$C$14,$A144,$C$5+H$17),"") ->  | I145: =IFERROR(OFFSET('Scenario History'!$C$14,$A144,$C$5+I$17),"") ->  | J145: =IFERROR(OFFSET('Scenario History'!$C$14,$A144,$C$5+J$17),"") ->  | K145: =IFERROR(OFFSET('Scenario History'!$C$14,$A144,$C$5+K$17),"") ->  | L145: =IFERROR(OFFSET('Scenario History'!$C$14,$A144,$C$5+L$17),"") ->  | M145: =IFERROR(OFFSET('Scenario History'!$C$14,$A144,$C$5+M$17),"") ->  | N145: =IFERROR(OFFSET('Scenario History'!$C$14,$A144,$C$5+N$17),"") -> 
A146: 129
A147: 130 | B147: Operating Costs
A148: 131
A149: 132 | B149: Energy | C149: =IFERROR(OFFSET('Scenario History'!$C$14,$A148,$C$5+C$17),"") ->  | D149: =IFERROR(OFFSET('Scenario History'!$C$14,$A148,$C$5+D$17),"") ->  | E149: =IFERROR(OFFSET('Scenario History'!$C$14,$A148,$C$5+E$17),"") ->  | F149: =IFERROR(OFFSET('Scenario History'!$C$14,$A148,$C$5+F$17),"") ->  | G149: =IFERROR(OFFSET('Scenario History'!$C$14,$A148,$C$5+G$17),"") ->  | H149: =IFERROR(OFFSET('Scenario History'!$C$14,$A148,$C$5+H$17),"") ->  | I149: =IFERROR(OFFSET('Scenario History'!$C$14,$A148,$C$5+I$17),"") ->  | J149: =IFERROR(OFFSET('Scenario History'!$C$14,$A148,$C$5+J$17),"") ->  | K149: =IFERROR(OFFSET('Scenario History'!$C$14,$A148,$C$5+K$17),"") ->  | L149: =IFERROR(OFFSET('Scenario History'!$C$14,$A148,$C$5+L$17),"") ->  | M149: =IFERROR(OFFSET('Scenario History'!$C$14,$A148,$C$5+M$17),"") ->  | N149: =IFERROR(OFFSET('Scenario History'!$C$14,$A148,$C$5+N$17),"") -> 
A150: 133 | B150: Electricity | C150: =IFERROR(OFFSET('Scenario History'!$C$14,$A149,$C$5+C$17),"") ->  | D150: =IFERROR(OFFSET('Scenario History'!$C$14,$A149,$C$5+D$17),"") ->  | E150: =IFERROR(OFFSET('Scenario History'!$C$14,$A149,$C$5+E$17),"") ->  | F150: =IFERROR(OFFSET('Scenario History'!$C$14,$A149,$C$5+F$17),"") ->  | G150: =IFERROR(OFFSET('Scenario History'!$C$14,$A149,$C$5+G$17),"") ->  | H150: =IFERROR(OFFSET('Scenario History'!$C$14,$A149,$C$5+H$17),"") ->  | I150: =IFERROR(OFFSET('Scenario History'!$C$14,$A149,$C$5+I$17),"") ->  | J150: =IFERROR(OFFSET('Scenario History'!$C$14,$A149,$C$5+J$17),"") ->  | K150: =IFERROR(OFFSET('Scenario History'!$C$14,$A149,$C$5+K$17),"") ->  | L150: =IFERROR(OFFSET('Scenario History'!$C$14,$A149,$C$5+L$17),"") ->  | M150: =IFERROR(OFFSET('Scenario History'!$C$14,$A149,$C$5+M$17),"") ->  | N150: =IFERROR(OFFSET('Scenario History'!$C$14,$A149,$C$5+N$17),"") -> 
A151: 134 | B151: Natural Gas | C151: =IFERROR(OFFSET('Scenario History'!$C$14,$A150,$C$5+C$17),"") ->  | D151: =IFERROR(OFFSET('Scenario History'!$C$14,$A150,$C$5+D$17),"") ->  | E151: =IFERROR(OFFSET('Scenario History'!$C$14,$A150,$C$5+E$17),"") ->  | F151: =IFERROR(OFFSET('Scenario History'!$C$14,$A150,$C$5+F$17),"") ->  | G151: =IFERROR(OFFSET('Scenario History'!$C$14,$A150,$C$5+G$17),"") ->  | H151: =IFERROR(OFFSET('Scenario History'!$C$14,$A150,$C$5+H$17),"") ->  | I151: =IFERROR(OFFSET('Scenario History'!$C$14,$A150,$C$5+I$17),"") ->  | J151: =IFERROR(OFFSET('Scenario History'!$C$14,$A150,$C$5+J$17),"") ->  | K151: =IFERROR(OFFSET('Scenario History'!$C$14,$A150,$C$5+K$17),"") ->  | L151: =IFERROR(OFFSET('Scenario History'!$C$14,$A150,$C$5+L$17),"") ->  | M151: =IFERROR(OFFSET('Scenario History'!$C$14,$A150,$C$5+M$17),"") ->  | N151: =IFERROR(OFFSET('Scenario History'!$C$14,$A150,$C$5+N$17),"") -> 
A152: 135 | B152: Generator Fuel | C152: =IFERROR(OFFSET('Scenario History'!$C$14,$A151,$C$5+C$17),"") ->  | D152: =IFERROR(OFFSET('Scenario History'!$C$14,$A151,$C$5+D$17),"") ->  | E152: =IFERROR(OFFSET('Scenario History'!$C$14,$A151,$C$5+E$17),"") ->  | F152: =IFERROR(OFFSET('Scenario History'!$C$14,$A151,$C$5+F$17),"") ->  | G152: =IFERROR(OFFSET('Scenario History'!$C$14,$A151,$C$5+G$17),"") ->  | H152: =IFERROR(OFFSET('Scenario History'!$C$14,$A151,$C$5+H$17),"") ->  | I152: =IFERROR(OFFSET('Scenario History'!$C$14,$A151,$C$5+I$17),"") ->  | J152: =IFERROR(OFFSET('Scenario History'!$C$14,$A151,$C$5+J$17),"") ->  | K152: =IFERROR(OFFSET('Scenario History'!$C$14,$A151,$C$5+K$17),"") ->  | L152: =IFERROR(OFFSET('Scenario History'!$C$14,$A151,$C$5+L$17),"") ->  | M152: =IFERROR(OFFSET('Scenario History'!$C$14,$A151,$C$5+M$17),"") ->  | N152: =IFERROR(OFFSET('Scenario History'!$C$14,$A151,$C$5+N$17),"") -> 
A153: 136 | B153: Water | C153: =IFERROR(OFFSET('Scenario History'!$C$14,$A152,$C$5+C$17),"") ->  | D153: =IFERROR(OFFSET('Scenario History'!$C$14,$A152,$C$5+D$17),"") ->  | E153: =IFERROR(OFFSET('Scenario History'!$C$14,$A152,$C$5+E$17),"") ->  | F153: =IFERROR(OFFSET('Scenario History'!$C$14,$A152,$C$5+F$17),"") ->  | G153: =IFERROR(OFFSET('Scenario History'!$C$14,$A152,$C$5+G$17),"") ->  | H153: =IFERROR(OFFSET('Scenario History'!$C$14,$A152,$C$5+H$17),"") ->  | I153: =IFERROR(OFFSET('Scenario History'!$C$14,$A152,$C$5+I$17),"") ->  | J153: =IFERROR(OFFSET('Scenario History'!$C$14,$A152,$C$5+J$17),"") ->  | K153: =IFERROR(OFFSET('Scenario History'!$C$14,$A152,$C$5+K$17),"") ->  | L153: =IFERROR(OFFSET('Scenario History'!$C$14,$A152,$C$5+L$17),"") ->  | M153: =IFERROR(OFFSET('Scenario History'!$C$14,$A152,$C$5+M$17),"") ->  | N153: =IFERROR(OFFSET('Scenario History'!$C$14,$A152,$C$5+N$17),"") -> 
A154: 137 | B154: Total | C154: =IFERROR(OFFSET('Scenario History'!$C$14,$A153,$C$5+C$17),"") ->  | D154: =IFERROR(OFFSET('Scenario History'!$C$14,$A153,$C$5+D$17),"") ->  | E154: =IFERROR(OFFSET('Scenario History'!$C$14,$A153,$C$5+E$17),"") ->  | F154: =IFERROR(OFFSET('Scenario History'!$C$14,$A153,$C$5+F$17),"") ->  | G154: =IFERROR(OFFSET('Scenario History'!$C$14,$A153,$C$5+G$17),"") ->  | H154: =IFERROR(OFFSET('Scenario History'!$C$14,$A153,$C$5+H$17),"") ->  | I154: =IFERROR(OFFSET('Scenario History'!$C$14,$A153,$C$5+I$17),"") ->  | J154: =IFERROR(OFFSET('Scenario History'!$C$14,$A153,$C$5+J$17),"") ->  | K154: =IFERROR(OFFSET('Scenario History'!$C$14,$A153,$C$5+K$17),"") ->  | L154: =IFERROR(OFFSET('Scenario History'!$C$14,$A153,$C$5+L$17),"") ->  | M154: =IFERROR(OFFSET('Scenario History'!$C$14,$A153,$C$5+M$17),"") ->  | N154: =IFERROR(OFFSET('Scenario History'!$C$14,$A153,$C$5+N$17),"") -> 
A155: 138
A156: 139 | B156: Staff Costs
A157: 140 | B157: If known, enter annual staff costs | C157: =IFERROR(OFFSET('Scenario History'!$C$14,$A156,$C$5+C$17),"") ->  | D157: =IFERROR(OFFSET('Scenario History'!$C$14,$A156,$C$5+D$17),"") ->  | E157: =IFERROR(OFFSET('Scenario History'!$C$14,$A156,$C$5+E$17),"") ->  | F157: =IFERROR(OFFSET('Scenario History'!$C$14,$A156,$C$5+F$17),"") ->  | G157: =IFERROR(OFFSET('Scenario History'!$C$14,$A156,$C$5+G$17),"") ->  | H157: =IFERROR(OFFSET('Scenario History'!$C$14,$A156,$C$5+H$17),"") ->  | I157: =IFERROR(OFFSET('Scenario History'!$C$14,$A156,$C$5+I$17),"") ->  | J157: =IFERROR(OFFSET('Scenario History'!$C$14,$A156,$C$5+J$17),"") ->  | K157: =IFERROR(OFFSET('Scenario History'!$C$14,$A156,$C$5+K$17),"") ->  | L157: =IFERROR(OFFSET('Scenario History'!$C$14,$A156,$C$5+L$17),"") ->  | M157: =IFERROR(OFFSET('Scenario History'!$C$14,$A156,$C$5+M$17),"") ->  | N157: =IFERROR(OFFSET('Scenario History'!$C$14,$A156,$C$5+N$17),"") -> 
A158: 141 | B158: Or
A159: 142 | B159: Enter number of staff | C159: =IFERROR(OFFSET('Scenario History'!$C$14,$A158,$C$5+C$17),"") ->  | D159: =IFERROR(OFFSET('Scenario History'!$C$14,$A158,$C$5+D$17),"") ->  | E159: =IFERROR(OFFSET('Scenario History'!$C$14,$A158,$C$5+E$17),"") ->  | F159: =IFERROR(OFFSET('Scenario History'!$C$14,$A158,$C$5+F$17),"") ->  | G159: =IFERROR(OFFSET('Scenario History'!$C$14,$A158,$C$5+G$17),"") ->  | H159: =IFERROR(OFFSET('Scenario History'!$C$14,$A158,$C$5+H$17),"") ->  | I159: =IFERROR(OFFSET('Scenario History'!$C$14,$A158,$C$5+I$17),"") ->  | J159: =IFERROR(OFFSET('Scenario History'!$C$14,$A158,$C$5+J$17),"") ->  | K159: =IFERROR(OFFSET('Scenario History'!$C$14,$A158,$C$5+K$17),"") ->  | L159: =IFERROR(OFFSET('Scenario History'!$C$14,$A158,$C$5+L$17),"") ->  | M159: =IFERROR(OFFSET('Scenario History'!$C$14,$A158,$C$5+M$17),"") ->  | N159: =IFERROR(OFFSET('Scenario History'!$C$14,$A158,$C$5+N$17),"") -> 
A160: 143 | B160: Use the default annual cost | C160: =IFERROR(OFFSET('Scenario History'!$C$14,$A159,$C$5+C$17),"") ->  | D160: =IFERROR(OFFSET('Scenario History'!$C$14,$A159,$C$5+D$17),"") ->  | E160: =IFERROR(OFFSET('Scenario History'!$C$14,$A159,$C$5+E$17),"") ->  | F160: =IFERROR(OFFSET('Scenario History'!$C$14,$A159,$C$5+F$17),"") ->  | G160: =IFERROR(OFFSET('Scenario History'!$C$14,$A159,$C$5+G$17),"") ->  | H160: =IFERROR(OFFSET('Scenario History'!$C$14,$A159,$C$5+H$17),"") ->  | I160: =IFERROR(OFFSET('Scenario History'!$C$14,$A159,$C$5+I$17),"") ->  | J160: =IFERROR(OFFSET('Scenario History'!$C$14,$A159,$C$5+J$17),"") ->  | K160: =IFERROR(OFFSET('Scenario History'!$C$14,$A159,$C$5+K$17),"") ->  | L160: =IFERROR(OFFSET('Scenario History'!$C$14,$A159,$C$5+L$17),"") ->  | M160: =IFERROR(OFFSET('Scenario History'!$C$14,$A159,$C$5+M$17),"") ->  | N160: =IFERROR(OFFSET('Scenario History'!$C$14,$A159,$C$5+N$17),"") -> 
A161: 144 | B161: Or enter your own average cost | C161: =IFERROR(OFFSET('Scenario History'!$C$14,$A160,$C$5+C$17),"") ->  | D161: =IFERROR(OFFSET('Scenario History'!$C$14,$A160,$C$5+D$17),"") ->  | E161: =IFERROR(OFFSET('Scenario History'!$C$14,$A160,$C$5+E$17),"") ->  | F161: =IFERROR(OFFSET('Scenario History'!$C$14,$A160,$C$5+F$17),"") ->  | G161: =IFERROR(OFFSET('Scenario History'!$C$14,$A160,$C$5+G$17),"") ->  | H161: =IFERROR(OFFSET('Scenario History'!$C$14,$A160,$C$5+H$17),"") ->  | I161: =IFERROR(OFFSET('Scenario History'!$C$14,$A160,$C$5+I$17),"") ->  | J161: =IFERROR(OFFSET('Scenario History'!$C$14,$A160,$C$5+J$17),"") ->  | K161: =IFERROR(OFFSET('Scenario History'!$C$14,$A160,$C$5+K$17),"") ->  | L161: =IFERROR(OFFSET('Scenario History'!$C$14,$A160,$C$5+L$17),"") ->  | M161: =IFERROR(OFFSET('Scenario History'!$C$14,$A160,$C$5+M$17),"") ->  | N161: =IFERROR(OFFSET('Scenario History'!$C$14,$A160,$C$5+N$17),"") -> 
A162: 145 | B162: Used | C162: =IFERROR(OFFSET('Scenario History'!$C$14,$A161,$C$5+C$17),"") ->  | D162: =IFERROR(OFFSET('Scenario History'!$C$14,$A161,$C$5+D$17),"") ->  | E162: =IFERROR(OFFSET('Scenario History'!$C$14,$A161,$C$5+E$17),"") ->  | F162: =IFERROR(OFFSET('Scenario History'!$C$14,$A161,$C$5+F$17),"") ->  | G162: =IFERROR(OFFSET('Scenario History'!$C$14,$A161,$C$5+G$17),"") ->  | H162: =IFERROR(OFFSET('Scenario History'!$C$14,$A161,$C$5+H$17),"") ->  | I162: =IFERROR(OFFSET('Scenario History'!$C$14,$A161,$C$5+I$17),"") ->  | J162: =IFERROR(OFFSET('Scenario History'!$C$14,$A161,$C$5+J$17),"") ->  | K162: =IFERROR(OFFSET('Scenario History'!$C$14,$A161,$C$5+K$17),"") ->  | L162: =IFERROR(OFFSET('Scenario History'!$C$14,$A161,$C$5+L$17),"") ->  | M162: =IFERROR(OFFSET('Scenario History'!$C$14,$A161,$C$5+M$17),"") ->  | N162: =IFERROR(OFFSET('Scenario History'!$C$14,$A161,$C$5+N$17),"") -> 
A163: 146
A164: 147 | B164: Network Costs
A165: 148 | B165: Estimated costs based on defaults | C165: =IFERROR(OFFSET('Scenario History'!$C$14,$A164,$C$5+C$17),"") ->  | D165: =IFERROR(OFFSET('Scenario History'!$C$14,$A164,$C$5+D$17),"") ->  | E165: =IFERROR(OFFSET('Scenario History'!$C$14,$A164,$C$5+E$17),"") ->  | F165: =IFERROR(OFFSET('Scenario History'!$C$14,$A164,$C$5+F$17),"") ->  | G165: =IFERROR(OFFSET('Scenario History'!$C$14,$A164,$C$5+G$17),"") ->  | H165: =IFERROR(OFFSET('Scenario History'!$C$14,$A164,$C$5+H$17),"") ->  | I165: =IFERROR(OFFSET('Scenario History'!$C$14,$A164,$C$5+I$17),"") ->  | J165: =IFERROR(OFFSET('Scenario History'!$C$14,$A164,$C$5+J$17),"") ->  | K165: =IFERROR(OFFSET('Scenario History'!$C$14,$A164,$C$5+K$17),"") ->  | L165: =IFERROR(OFFSET('Scenario History'!$C$14,$A164,$C$5+L$17),"") ->  | M165: =IFERROR(OFFSET('Scenario History'!$C$14,$A164,$C$5+M$17),"") ->  | N165: =IFERROR(OFFSET('Scenario History'!$C$14,$A164,$C$5+N$17),"") -> 
A166: 149 | B166: Enter actual if available | C166: =IFERROR(OFFSET('Scenario History'!$C$14,$A165,$C$5+C$17),"") ->  | D166: =IFERROR(OFFSET('Scenario History'!$C$14,$A165,$C$5+D$17),"") ->  | E166: =IFERROR(OFFSET('Scenario History'!$C$14,$A165,$C$5+E$17),"") ->  | F166: =IFERROR(OFFSET('Scenario History'!$C$14,$A165,$C$5+F$17),"") ->  | G166: =IFERROR(OFFSET('Scenario History'!$C$14,$A165,$C$5+G$17),"") ->  | H166: =IFERROR(OFFSET('Scenario History'!$C$14,$A165,$C$5+H$17),"") ->  | I166: =IFERROR(OFFSET('Scenario History'!$C$14,$A165,$C$5+I$17),"") ->  | J166: =IFERROR(OFFSET('Scenario History'!$C$14,$A165,$C$5+J$17),"") ->  | K166: =IFERROR(OFFSET('Scenario History'!$C$14,$A165,$C$5+K$17),"") ->  | L166: =IFERROR(OFFSET('Scenario History'!$C$14,$A165,$C$5+L$17),"") ->  | M166: =IFERROR(OFFSET('Scenario History'!$C$14,$A165,$C$5+M$17),"") ->  | N166: =IFERROR(OFFSET('Scenario History'!$C$14,$A165,$C$5+N$17),"") -> 
A167: 150 | B167: Used | C167: =IFERROR(OFFSET('Scenario History'!$C$14,$A166,$C$5+C$17),"") ->  | D167: =IFERROR(OFFSET('Scenario History'!$C$14,$A166,$C$5+D$17),"") ->  | E167: =IFERROR(OFFSET('Scenario History'!$C$14,$A166,$C$5+E$17),"") ->  | F167: =IFERROR(OFFSET('Scenario History'!$C$14,$A166,$C$5+F$17),"") ->  | G167: =IFERROR(OFFSET('Scenario History'!$C$14,$A166,$C$5+G$17),"") ->  | H167: =IFERROR(OFFSET('Scenario History'!$C$14,$A166,$C$5+H$17),"") ->  | I167: =IFERROR(OFFSET('Scenario History'!$C$14,$A166,$C$5+I$17),"") ->  | J167: =IFERROR(OFFSET('Scenario History'!$C$14,$A166,$C$5+J$17),"") ->  | K167: =IFERROR(OFFSET('Scenario History'!$C$14,$A166,$C$5+K$17),"") ->  | L167: =IFERROR(OFFSET('Scenario History'!$C$14,$A166,$C$5+L$17),"") ->  | M167: =IFERROR(OFFSET('Scenario History'!$C$14,$A166,$C$5+M$17),"") ->  | N167: =IFERROR(OFFSET('Scenario History'!$C$14,$A166,$C$5+N$17),"") -> 
A168: 151
A169: 152 | B169: Building Costs
A170: 153 | B170: Rates
A171: 154 | B171: Estimated costs based on defaults | C171: =IFERROR(OFFSET('Scenario History'!$C$14,$A170,$C$5+C$17),"") ->  | D171: =IFERROR(OFFSET('Scenario History'!$C$14,$A170,$C$5+D$17),"") ->  | E171: =IFERROR(OFFSET('Scenario History'!$C$14,$A170,$C$5+E$17),"") ->  | F171: =IFERROR(OFFSET('Scenario History'!$C$14,$A170,$C$5+F$17),"") ->  | G171: =IFERROR(OFFSET('Scenario History'!$C$14,$A170,$C$5+G$17),"") ->  | H171: =IFERROR(OFFSET('Scenario History'!$C$14,$A170,$C$5+H$17),"") ->  | I171: =IFERROR(OFFSET('Scenario History'!$C$14,$A170,$C$5+I$17),"") ->  | J171: =IFERROR(OFFSET('Scenario History'!$C$14,$A170,$C$5+J$17),"") ->  | K171: =IFERROR(OFFSET('Scenario History'!$C$14,$A170,$C$5+K$17),"") ->  | L171: =IFERROR(OFFSET('Scenario History'!$C$14,$A170,$C$5+L$17),"") ->  | M171: =IFERROR(OFFSET('Scenario History'!$C$14,$A170,$C$5+M$17),"") ->  | N171: =IFERROR(OFFSET('Scenario History'!$C$14,$A170,$C$5+N$17),"") -> 
A172: 155 | B172: Enter actual if available | C172: =IFERROR(OFFSET('Scenario History'!$C$14,$A171,$C$5+C$17),"") ->  | D172: =IFERROR(OFFSET('Scenario History'!$C$14,$A171,$C$5+D$17),"") ->  | E172: =IFERROR(OFFSET('Scenario History'!$C$14,$A171,$C$5+E$17),"") ->  | F172: =IFERROR(OFFSET('Scenario History'!$C$14,$A171,$C$5+F$17),"") ->  | G172: =IFERROR(OFFSET('Scenario History'!$C$14,$A171,$C$5+G$17),"") ->  | H172: =IFERROR(OFFSET('Scenario History'!$C$14,$A171,$C$5+H$17),"") ->  | I172: =IFERROR(OFFSET('Scenario History'!$C$14,$A171,$C$5+I$17),"") ->  | J172: =IFERROR(OFFSET('Scenario History'!$C$14,$A171,$C$5+J$17),"") ->  | K172: =IFERROR(OFFSET('Scenario History'!$C$14,$A171,$C$5+K$17),"") ->  | L172: =IFERROR(OFFSET('Scenario History'!$C$14,$A171,$C$5+L$17),"") ->  | M172: =IFERROR(OFFSET('Scenario History'!$C$14,$A171,$C$5+M$17),"") ->  | N172: =IFERROR(OFFSET('Scenario History'!$C$14,$A171,$C$5+N$17),"") -> 
A173: 156 | B173: Used | C173: =IFERROR(OFFSET('Scenario History'!$C$14,$A172,$C$5+C$17),"") ->  | D173: =IFERROR(OFFSET('Scenario History'!$C$14,$A172,$C$5+D$17),"") ->  | E173: =IFERROR(OFFSET('Scenario History'!$C$14,$A172,$C$5+E$17),"") ->  | F173: =IFERROR(OFFSET('Scenario History'!$C$14,$A172,$C$5+F$17),"") ->  | G173: =IFERROR(OFFSET('Scenario History'!$C$14,$A172,$C$5+G$17),"") ->  | H173: =IFERROR(OFFSET('Scenario History'!$C$14,$A172,$C$5+H$17),"") ->  | I173: =IFERROR(OFFSET('Scenario History'!$C$14,$A172,$C$5+I$17),"") ->  | J173: =IFERROR(OFFSET('Scenario History'!$C$14,$A172,$C$5+J$17),"") ->  | K173: =IFERROR(OFFSET('Scenario History'!$C$14,$A172,$C$5+K$17),"") ->  | L173: =IFERROR(OFFSET('Scenario History'!$C$14,$A172,$C$5+L$17),"") ->  | M173: =IFERROR(OFFSET('Scenario History'!$C$14,$A172,$C$5+M$17),"") ->  | N173: =IFERROR(OFFSET('Scenario History'!$C$14,$A172,$C$5+N$17),"") -> 
A174: 157
A175: 158 | B175: Insurance
A176: 159 | B176: Estimated costs based on defaults | C176: =IFERROR(OFFSET('Scenario History'!$C$14,$A175,$C$5+C$17),"") ->  | D176: =IFERROR(OFFSET('Scenario History'!$C$14,$A175,$C$5+D$17),"") ->  | E176: =IFERROR(OFFSET('Scenario History'!$C$14,$A175,$C$5+E$17),"") ->  | F176: =IFERROR(OFFSET('Scenario History'!$C$14,$A175,$C$5+F$17),"") ->  | G176: =IFERROR(OFFSET('Scenario History'!$C$14,$A175,$C$5+G$17),"") ->  | H176: =IFERROR(OFFSET('Scenario History'!$C$14,$A175,$C$5+H$17),"") ->  | I176: =IFERROR(OFFSET('Scenario History'!$C$14,$A175,$C$5+I$17),"") ->  | J176: =IFERROR(OFFSET('Scenario History'!$C$14,$A175,$C$5+J$17),"") ->  | K176: =IFERROR(OFFSET('Scenario History'!$C$14,$A175,$C$5+K$17),"") ->  | L176: =IFERROR(OFFSET('Scenario History'!$C$14,$A175,$C$5+L$17),"") ->  | M176: =IFERROR(OFFSET('Scenario History'!$C$14,$A175,$C$5+M$17),"") ->  | N176: =IFERROR(OFFSET('Scenario History'!$C$14,$A175,$C$5+N$17),"") -> 
A177: 160 | B177: Enter actual if available | C177: =IFERROR(OFFSET('Scenario History'!$C$14,$A176,$C$5+C$17),"") ->  | D177: =IFERROR(OFFSET('Scenario History'!$C$14,$A176,$C$5+D$17),"") ->  | E177: =IFERROR(OFFSET('Scenario History'!$C$14,$A176,$C$5+E$17),"") ->  | F177: =IFERROR(OFFSET('Scenario History'!$C$14,$A176,$C$5+F$17),"") ->  | G177: =IFERROR(OFFSET('Scenario History'!$C$14,$A176,$C$5+G$17),"") ->  | H177: =IFERROR(OFFSET('Scenario History'!$C$14,$A176,$C$5+H$17),"") ->  | I177: =IFERROR(OFFSET('Scenario History'!$C$14,$A176,$C$5+I$17),"") ->  | J177: =IFERROR(OFFSET('Scenario History'!$C$14,$A176,$C$5+J$17),"") ->  | K177: =IFERROR(OFFSET('Scenario History'!$C$14,$A176,$C$5+K$17),"") ->  | L177: =IFERROR(OFFSET('Scenario History'!$C$14,$A176,$C$5+L$17),"") ->  | M177: =IFERROR(OFFSET('Scenario History'!$C$14,$A176,$C$5+M$17),"") ->  | N177: =IFERROR(OFFSET('Scenario History'!$C$14,$A176,$C$5+N$17),"") -> 
A178: 161 | B178: Used | C178: =IFERROR(OFFSET('Scenario History'!$C$14,$A177,$C$5+C$17),"") ->  | D178: =IFERROR(OFFSET('Scenario History'!$C$14,$A177,$C$5+D$17),"") ->  | E178: =IFERROR(OFFSET('Scenario History'!$C$14,$A177,$C$5+E$17),"") ->  | F178: =IFERROR(OFFSET('Scenario History'!$C$14,$A177,$C$5+F$17),"") ->  | G178: =IFERROR(OFFSET('Scenario History'!$C$14,$A177,$C$5+G$17),"") ->  | H178: =IFERROR(OFFSET('Scenario History'!$C$14,$A177,$C$5+H$17),"") ->  | I178: =IFERROR(OFFSET('Scenario History'!$C$14,$A177,$C$5+I$17),"") ->  | J178: =IFERROR(OFFSET('Scenario History'!$C$14,$A177,$C$5+J$17),"") ->  | K178: =IFERROR(OFFSET('Scenario History'!$C$14,$A177,$C$5+K$17),"") ->  | L178: =IFERROR(OFFSET('Scenario History'!$C$14,$A177,$C$5+L$17),"") ->  | M178: =IFERROR(OFFSET('Scenario History'!$C$14,$A177,$C$5+M$17),"") ->  | N178: =IFERROR(OFFSET('Scenario History'!$C$14,$A177,$C$5+N$17),"") -> 
A179: 162
A180: 163 | B180: Maintenance
A181: 164 | B181: Estimated costs based on defaults | C181: =IFERROR(OFFSET('Scenario History'!$C$14,$A180,$C$5+C$17),"") ->  | D181: =IFERROR(OFFSET('Scenario History'!$C$14,$A180,$C$5+D$17),"") ->  | E181: =IFERROR(OFFSET('Scenario History'!$C$14,$A180,$C$5+E$17),"") ->  | F181: =IFERROR(OFFSET('Scenario History'!$C$14,$A180,$C$5+F$17),"") ->  | G181: =IFERROR(OFFSET('Scenario History'!$C$14,$A180,$C$5+G$17),"") ->  | H181: =IFERROR(OFFSET('Scenario History'!$C$14,$A180,$C$5+H$17),"") ->  | I181: =IFERROR(OFFSET('Scenario History'!$C$14,$A180,$C$5+I$17),"") ->  | J181: =IFERROR(OFFSET('Scenario History'!$C$14,$A180,$C$5+J$17),"") ->  | K181: =IFERROR(OFFSET('Scenario History'!$C$14,$A180,$C$5+K$17),"") ->  | L181: =IFERROR(OFFSET('Scenario History'!$C$14,$A180,$C$5+L$17),"") ->  | M181: =IFERROR(OFFSET('Scenario History'!$C$14,$A180,$C$5+M$17),"") ->  | N181: =IFERROR(OFFSET('Scenario History'!$C$14,$A180,$C$5+N$17),"") -> 
A182: 165 | B182: Enter actual if available | C182: =IFERROR(OFFSET('Scenario History'!$C$14,$A181,$C$5+C$17),"") ->  | D182: =IFERROR(OFFSET('Scenario History'!$C$14,$A181,$C$5+D$17),"") ->  | E182: =IFERROR(OFFSET('Scenario History'!$C$14,$A181,$C$5+E$17),"") ->  | F182: =IFERROR(OFFSET('Scenario History'!$C$14,$A181,$C$5+F$17),"") ->  | G182: =IFERROR(OFFSET('Scenario History'!$C$14,$A181,$C$5+G$17),"") ->  | H182: =IFERROR(OFFSET('Scenario History'!$C$14,$A181,$C$5+H$17),"") ->  | I182: =IFERROR(OFFSET('Scenario History'!$C$14,$A181,$C$5+I$17),"") ->  | J182: =IFERROR(OFFSET('Scenario History'!$C$14,$A181,$C$5+J$17),"") ->  | K182: =IFERROR(OFFSET('Scenario History'!$C$14,$A181,$C$5+K$17),"") ->  | L182: =IFERROR(OFFSET('Scenario History'!$C$14,$A181,$C$5+L$17),"") ->  | M182: =IFERROR(OFFSET('Scenario History'!$C$14,$A181,$C$5+M$17),"") ->  | N182: =IFERROR(OFFSET('Scenario History'!$C$14,$A181,$C$5+N$17),"") -> 
A183: 166 | B183: Used | C183: =IFERROR(OFFSET('Scenario History'!$C$14,$A182,$C$5+C$17),"") ->  | D183: =IFERROR(OFFSET('Scenario History'!$C$14,$A182,$C$5+D$17),"") ->  | E183: =IFERROR(OFFSET('Scenario History'!$C$14,$A182,$C$5+E$17),"") ->  | F183: =IFERROR(OFFSET('Scenario History'!$C$14,$A182,$C$5+F$17),"") ->  | G183: =IFERROR(OFFSET('Scenario History'!$C$14,$A182,$C$5+G$17),"") ->  | H183: =IFERROR(OFFSET('Scenario History'!$C$14,$A182,$C$5+H$17),"") ->  | I183: =IFERROR(OFFSET('Scenario History'!$C$14,$A182,$C$5+I$17),"") ->  | J183: =IFERROR(OFFSET('Scenario History'!$C$14,$A182,$C$5+J$17),"") ->  | K183: =IFERROR(OFFSET('Scenario History'!$C$14,$A182,$C$5+K$17),"") ->  | L183: =IFERROR(OFFSET('Scenario History'!$C$14,$A182,$C$5+L$17),"") ->  | M183: =IFERROR(OFFSET('Scenario History'!$C$14,$A182,$C$5+M$17),"") ->  | N183: =IFERROR(OFFSET('Scenario History'!$C$14,$A182,$C$5+N$17),"") -> 
A184: 167
A185: 168 | B185: Rent
A186: 169 | B186: Enter actual rent if applicable | C186: =IFERROR(OFFSET('Scenario History'!$C$14,$A185,$C$5+C$17),"") ->  | D186: =IFERROR(OFFSET('Scenario History'!$C$14,$A185,$C$5+D$17),"") ->  | E186: =IFERROR(OFFSET('Scenario History'!$C$14,$A185,$C$5+E$17),"") ->  | F186: =IFERROR(OFFSET('Scenario History'!$C$14,$A185,$C$5+F$17),"") ->  | G186: =IFERROR(OFFSET('Scenario History'!$C$14,$A185,$C$5+G$17),"") ->  | H186: =IFERROR(OFFSET('Scenario History'!$C$14,$A185,$C$5+H$17),"") ->  | I186: =IFERROR(OFFSET('Scenario History'!$C$14,$A185,$C$5+I$17),"") ->  | J186: =IFERROR(OFFSET('Scenario History'!$C$14,$A185,$C$5+J$17),"") ->  | K186: =IFERROR(OFFSET('Scenario History'!$C$14,$A185,$C$5+K$17),"") ->  | L186: =IFERROR(OFFSET('Scenario History'!$C$14,$A185,$C$5+L$17),"") ->  | M186: =IFERROR(OFFSET('Scenario History'!$C$14,$A185,$C$5+M$17),"") ->  | N186: =IFERROR(OFFSET('Scenario History'!$C$14,$A185,$C$5+N$17),"") -> 
A187: 170
A188: 171 | B188: Other
A189: 172 | B189: Enter any other costs related to the building | C189: =IFERROR(OFFSET('Scenario History'!$C$14,$A188,$C$5+C$17),"") ->  | D189: =IFERROR(OFFSET('Scenario History'!$C$14,$A188,$C$5+D$17),"") ->  | E189: =IFERROR(OFFSET('Scenario History'!$C$14,$A188,$C$5+E$17),"") ->  | F189: =IFERROR(OFFSET('Scenario History'!$C$14,$A188,$C$5+F$17),"") ->  | G189: =IFERROR(OFFSET('Scenario History'!$C$14,$A188,$C$5+G$17),"") ->  | H189: =IFERROR(OFFSET('Scenario History'!$C$14,$A188,$C$5+H$17),"") ->  | I189: =IFERROR(OFFSET('Scenario History'!$C$14,$A188,$C$5+I$17),"") ->  | J189: =IFERROR(OFFSET('Scenario History'!$C$14,$A188,$C$5+J$17),"") ->  | K189: =IFERROR(OFFSET('Scenario History'!$C$14,$A188,$C$5+K$17),"") ->  | L189: =IFERROR(OFFSET('Scenario History'!$C$14,$A188,$C$5+L$17),"") ->  | M189: =IFERROR(OFFSET('Scenario History'!$C$14,$A188,$C$5+M$17),"") ->  | N189: =IFERROR(OFFSET('Scenario History'!$C$14,$A188,$C$5+N$17),"") -> 
A190: 173
A191: 174 | B191: Total | C191: =IFERROR(OFFSET('Scenario History'!$C$14,$A190,$C$5+C$17),"") ->  | D191: =IFERROR(OFFSET('Scenario History'!$C$14,$A190,$C$5+D$17),"") ->  | E191: =IFERROR(OFFSET('Scenario History'!$C$14,$A190,$C$5+E$17),"") ->  | F191: =IFERROR(OFFSET('Scenario History'!$C$14,$A190,$C$5+F$17),"") ->  | G191: =IFERROR(OFFSET('Scenario History'!$C$14,$A190,$C$5+G$17),"") ->  | H191: =IFERROR(OFFSET('Scenario History'!$C$14,$A190,$C$5+H$17),"") ->  | I191: =IFERROR(OFFSET('Scenario History'!$C$14,$A190,$C$5+I$17),"") ->  | J191: =IFERROR(OFFSET('Scenario History'!$C$14,$A190,$C$5+J$17),"") ->  | K191: =IFERROR(OFFSET('Scenario History'!$C$14,$A190,$C$5+K$17),"") ->  | L191: =IFERROR(OFFSET('Scenario History'!$C$14,$A190,$C$5+L$17),"") ->  | M191: =IFERROR(OFFSET('Scenario History'!$C$14,$A190,$C$5+M$17),"") ->  | N191: =IFERROR(OFFSET('Scenario History'!$C$14,$A190,$C$5+N$17),"") -> 
A192: 175
A193: 176 | B193: License and Maintenance
A194: 177 | B194: Hardware/Cabling Maintenance
A195: 178 | B195: Estimated costs based on defaults | C195: =IFERROR(OFFSET('Scenario History'!$C$14,$A194,$C$5+C$17),"") ->  | D195: =IFERROR(OFFSET('Scenario History'!$C$14,$A194,$C$5+D$17),"") ->  | E195: =IFERROR(OFFSET('Scenario History'!$C$14,$A194,$C$5+E$17),"") ->  | F195: =IFERROR(OFFSET('Scenario History'!$C$14,$A194,$C$5+F$17),"") ->  | G195: =IFERROR(OFFSET('Scenario History'!$C$14,$A194,$C$5+G$17),"") ->  | H195: =IFERROR(OFFSET('Scenario History'!$C$14,$A194,$C$5+H$17),"") ->  | I195: =IFERROR(OFFSET('Scenario History'!$C$14,$A194,$C$5+I$17),"") ->  | J195: =IFERROR(OFFSET('Scenario History'!$C$14,$A194,$C$5+J$17),"") ->  | K195: =IFERROR(OFFSET('Scenario History'!$C$14,$A194,$C$5+K$17),"") ->  | L195: =IFERROR(OFFSET('Scenario History'!$C$14,$A194,$C$5+L$17),"") ->  | M195: =IFERROR(OFFSET('Scenario History'!$C$14,$A194,$C$5+M$17),"") ->  | N195: =IFERROR(OFFSET('Scenario History'!$C$14,$A194,$C$5+N$17),"") -> 
A196: 179 | B196: Enter actual if available | C196: =IFERROR(OFFSET('Scenario History'!$C$14,$A195,$C$5+C$17),"") ->  | D196: =IFERROR(OFFSET('Scenario History'!$C$14,$A195,$C$5+D$17),"") ->  | E196: =IFERROR(OFFSET('Scenario History'!$C$14,$A195,$C$5+E$17),"") ->  | F196: =IFERROR(OFFSET('Scenario History'!$C$14,$A195,$C$5+F$17),"") ->  | G196: =IFERROR(OFFSET('Scenario History'!$C$14,$A195,$C$5+G$17),"") ->  | H196: =IFERROR(OFFSET('Scenario History'!$C$14,$A195,$C$5+H$17),"") ->  | I196: =IFERROR(OFFSET('Scenario History'!$C$14,$A195,$C$5+I$17),"") ->  | J196: =IFERROR(OFFSET('Scenario History'!$C$14,$A195,$C$5+J$17),"") ->  | K196: =IFERROR(OFFSET('Scenario History'!$C$14,$A195,$C$5+K$17),"") ->  | L196: =IFERROR(OFFSET('Scenario History'!$C$14,$A195,$C$5+L$17),"") ->  | M196: =IFERROR(OFFSET('Scenario History'!$C$14,$A195,$C$5+M$17),"") ->  | N196: =IFERROR(OFFSET('Scenario History'!$C$14,$A195,$C$5+N$17),"") -> 
A197: 180 | B197: Used | C197: =IFERROR(OFFSET('Scenario History'!$C$14,$A196,$C$5+C$17),"") ->  | D197: =IFERROR(OFFSET('Scenario History'!$C$14,$A196,$C$5+D$17),"") ->  | E197: =IFERROR(OFFSET('Scenario History'!$C$14,$A196,$C$5+E$17),"") ->  | F197: =IFERROR(OFFSET('Scenario History'!$C$14,$A196,$C$5+F$17),"") ->  | G197: =IFERROR(OFFSET('Scenario History'!$C$14,$A196,$C$5+G$17),"") ->  | H197: =IFERROR(OFFSET('Scenario History'!$C$14,$A196,$C$5+H$17),"") ->  | I197: =IFERROR(OFFSET('Scenario History'!$C$14,$A196,$C$5+I$17),"") ->  | J197: =IFERROR(OFFSET('Scenario History'!$C$14,$A196,$C$5+J$17),"") ->  | K197: =IFERROR(OFFSET('Scenario History'!$C$14,$A196,$C$5+K$17),"") ->  | L197: =IFERROR(OFFSET('Scenario History'!$C$14,$A196,$C$5+L$17),"") ->  | M197: =IFERROR(OFFSET('Scenario History'!$C$14,$A196,$C$5+M$17),"") ->  | N197: =IFERROR(OFFSET('Scenario History'!$C$14,$A196,$C$5+N$17),"") -> 
A198: 181
A199: 182 | B199: Licenses
A200: 183 | B200: Estimated costs based on defaults | C200: =IFERROR(OFFSET('Scenario History'!$C$14,$A199,$C$5+C$17),"") ->  | D200: =IFERROR(OFFSET('Scenario History'!$C$14,$A199,$C$5+D$17),"") ->  | E200: =IFERROR(OFFSET('Scenario History'!$C$14,$A199,$C$5+E$17),"") ->  | F200: =IFERROR(OFFSET('Scenario History'!$C$14,$A199,$C$5+F$17),"") ->  | G200: =IFERROR(OFFSET('Scenario History'!$C$14,$A199,$C$5+G$17),"") ->  | H200: =IFERROR(OFFSET('Scenario History'!$C$14,$A199,$C$5+H$17),"") ->  | I200: =IFERROR(OFFSET('Scenario History'!$C$14,$A199,$C$5+I$17),"") ->  | J200: =IFERROR(OFFSET('Scenario History'!$C$14,$A199,$C$5+J$17),"") ->  | K200: =IFERROR(OFFSET('Scenario History'!$C$14,$A199,$C$5+K$17),"") ->  | L200: =IFERROR(OFFSET('Scenario History'!$C$14,$A199,$C$5+L$17),"") ->  | M200: =IFERROR(OFFSET('Scenario History'!$C$14,$A199,$C$5+M$17),"") ->  | N200: =IFERROR(OFFSET('Scenario History'!$C$14,$A199,$C$5+N$17),"") -> 
A201: 184 | B201: Enter actual if available | C201: =IFERROR(OFFSET('Scenario History'!$C$14,$A200,$C$5+C$17),"") ->  | D201: =IFERROR(OFFSET('Scenario History'!$C$14,$A200,$C$5+D$17),"") ->  | E201: =IFERROR(OFFSET('Scenario History'!$C$14,$A200,$C$5+E$17),"") ->  | F201: =IFERROR(OFFSET('Scenario History'!$C$14,$A200,$C$5+F$17),"") ->  | G201: =IFERROR(OFFSET('Scenario History'!$C$14,$A200,$C$5+G$17),"") ->  | H201: =IFERROR(OFFSET('Scenario History'!$C$14,$A200,$C$5+H$17),"") ->  | I201: =IFERROR(OFFSET('Scenario History'!$C$14,$A200,$C$5+I$17),"") ->  | J201: =IFERROR(OFFSET('Scenario History'!$C$14,$A200,$C$5+J$17),"") ->  | K201: =IFERROR(OFFSET('Scenario History'!$C$14,$A200,$C$5+K$17),"") ->  | L201: =IFERROR(OFFSET('Scenario History'!$C$14,$A200,$C$5+L$17),"") ->  | M201: =IFERROR(OFFSET('Scenario History'!$C$14,$A200,$C$5+M$17),"") ->  | N201: =IFERROR(OFFSET('Scenario History'!$C$14,$A200,$C$5+N$17),"") -> 
A202: 185 | B202: Used | C202: =IFERROR(OFFSET('Scenario History'!$C$14,$A201,$C$5+C$17),"") ->  | D202: =IFERROR(OFFSET('Scenario History'!$C$14,$A201,$C$5+D$17),"") ->  | E202: =IFERROR(OFFSET('Scenario History'!$C$14,$A201,$C$5+E$17),"") ->  | F202: =IFERROR(OFFSET('Scenario History'!$C$14,$A201,$C$5+F$17),"") ->  | G202: =IFERROR(OFFSET('Scenario History'!$C$14,$A201,$C$5+G$17),"") ->  | H202: =IFERROR(OFFSET('Scenario History'!$C$14,$A201,$C$5+H$17),"") ->  | I202: =IFERROR(OFFSET('Scenario History'!$C$14,$A201,$C$5+I$17),"") ->  | J202: =IFERROR(OFFSET('Scenario History'!$C$14,$A201,$C$5+J$17),"") ->  | K202: =IFERROR(OFFSET('Scenario History'!$C$14,$A201,$C$5+K$17),"") ->  | L202: =IFERROR(OFFSET('Scenario History'!$C$14,$A201,$C$5+L$17),"") ->  | M202: =IFERROR(OFFSET('Scenario History'!$C$14,$A201,$C$5+M$17),"") ->  | N202: =IFERROR(OFFSET('Scenario History'!$C$14,$A201,$C$5+N$17),"") -> 
A203: 186
A204: 187 | B204: Total | C204: =IFERROR(OFFSET('Scenario History'!$C$14,$A203,$C$5+C$17),"") ->  | D204: =IFERROR(OFFSET('Scenario History'!$C$14,$A203,$C$5+D$17),"") ->  | E204: =IFERROR(OFFSET('Scenario History'!$C$14,$A203,$C$5+E$17),"") ->  | F204: =IFERROR(OFFSET('Scenario History'!$C$14,$A203,$C$5+F$17),"") ->  | G204: =IFERROR(OFFSET('Scenario History'!$C$14,$A203,$C$5+G$17),"") ->  | H204: =IFERROR(OFFSET('Scenario History'!$C$14,$A203,$C$5+H$17),"") ->  | I204: =IFERROR(OFFSET('Scenario History'!$C$14,$A203,$C$5+I$17),"") ->  | J204: =IFERROR(OFFSET('Scenario History'!$C$14,$A203,$C$5+J$17),"") ->  | K204: =IFERROR(OFFSET('Scenario History'!$C$14,$A203,$C$5+K$17),"") ->  | L204: =IFERROR(OFFSET('Scenario History'!$C$14,$A203,$C$5+L$17),"") ->  | M204: =IFERROR(OFFSET('Scenario History'!$C$14,$A203,$C$5+M$17),"") ->  | N204: =IFERROR(OFFSET('Scenario History'!$C$14,$A203,$C$5+N$17),"") -> 
... 85 more rows

Sheet Scenario Report
A1: =Introduction!E5 -> 0
A2: Scenario Report
A4: Data Centre Costs and Power Utilisation Effectiveness
A6: Scenario | C6: Description | E6: Review Date | F6: TCO and PUE | N6: ICT Delivery Cost
F7: 1 | H7: 2 | J7: 3 | L7: 4
F8: TCO | G8: PUE | H8: TCO | I8: PUE | J8: TCO | K8: PUE | L8: TCO | M8: PUE
A9: Current | C9: ="Current: "&Introduction!E11 -> Current: | E9: ='Scenario History'!C10 -> 00:00:00 | F9: ='Data Centre Detail'!D220 -> 0 | G9: ='Data Centre Detail'!D133 -> 0 | H9: ='Data Centre Detail'!G220 -> 0 | I9: ='Data Centre Detail'!G133 -> 0 | J9: ='Data Centre Detail'!J220 -> 0 | K9: ='Data Centre Detail'!J133 -> 0 | L9: ='Data Centre Detail'!M220 -> 0 | M9: ='Data Centre Detail'!M133 -> 0 | N9: ='Options Report'!G6 -> 0
A10: 1 | B10: 12 | C10: =OFFSET('Scenario History'!$C$2,0,$B10) -> 0 | E10: =OFFSET('Scenario History'!$C$10,0,$B10) -> 00:00:00 | F10: =OFFSET('Scenario History'!$C$224,0,$B10) -> 0 | G10: =OFFSET('Scenario History'!$C$141,0,$B10) -> 0 | H10: =OFFSET('Scenario History'!$C$224,0,$B10+3) -> 0 | I10: =OFFSET('Scenario History'!$C$141,0,$B10+3) -> 0 | J10: =OFFSET('Scenario History'!$C$224,0,$B10+6) -> 0 | K10: =OFFSET('Scenario History'!$C$141,0,$B10+6) -> 0 | L10: =OFFSET('Scenario History'!$C$224,0,$B10+9) -> 0 | M10: =OFFSET('Scenario History'!$C$141,0,$B10+9) -> 0 | N10: =OFFSET('Scenario History'!$C$292,0,$B10+10) -> 0
A11: 2 | B11: 24 | C11: =OFFSET('Scenario History'!$C$2,0,$B11) -> 0 | E11: =OFFSET('Scenario History'!$C$10,0,$B11) -> 00:00:00 | F11: =OFFSET('Scenario History'!$C$224,0,$B11) -> 0 | G11: =OFFSET('Scenario History'!$C$141,0,$B11) -> 0 | H11: =OFFSET('Scenario History'!$C$224,0,$B11+3) -> 0 | I11: =OFFSET('Scenario History'!$C$141,0,$B11+3) -> 0 | J11: =OFFSET('Scenario History'!$C$224,0,$B11+6) -> 0 | K11: =OFFSET('Scenario History'!$C$141,0,$B11+6) -> 0 | L11: =OFFSET('Scenario History'!$C$224,0,$B11+9) -> 0 | M11: =OFFSET('Scenario History'!$C$141,0,$B11+9) -> 0 | N11: =OFFSET('Scenario History'!$C$292,0,$B11+10) -> 0
A12: 3 | B12: 36 | C12: =OFFSET('Scenario History'!$C$2,0,$B12) -> 0 | E12: =OFFSET('Scenario History'!$C$10,0,$B12) -> 00:00:00 | F12: =OFFSET('Scenario History'!$C$224,0,$B12) -> 0 | G12: =OFFSET('Scenario History'!$C$141,0,$B12) -> 0 | H12: =OFFSET('Scenario History'!$C$224,0,$B12+3) -> 0 | I12: =OFFSET('Scenario History'!$C$141,0,$B12+3) -> 0 | J12: =OFFSET('Scenario History'!$C$224,0,$B12+6) -> 0 | K12: =OFFSET('Scenario History'!$C$141,0,$B12+6) -> 0 | L12: =OFFSET('Scenario History'!$C$224,0,$B12+9) -> 0 | M12: =OFFSET('Scenario History'!$C$141,0,$B12+9) -> 0 | N12: =OFFSET('Scenario History'!$C$292,0,$B12+10) -> 0
A13: 4 | B13: 48 | C13: =OFFSET('Scenario History'!$C$2,0,$B13) -> 0 | E13: =OFFSET('Scenario History'!$C$10,0,$B13) -> 00:00:00 | F13: =OFFSET('Scenario History'!$C$224,0,$B13) -> 0 | G13: =OFFSET('Scenario History'!$C$141,0,$B13) -> 0 | H13: =OFFSET('Scenario History'!$C$224,0,$B13+3) -> 0 | I13: =OFFSET('Scenario History'!$C$141,0,$B13+3) -> 0 | J13: =OFFSET('Scenario History'!$C$224,0,$B13+6) -> 0 | K13: =OFFSET('Scenario History'!$C$141,0,$B13+6) -> 0 | L13: =OFFSET('Scenario History'!$C$224,0,$B13+9) -> 0 | M13: =OFFSET('Scenario History'!$C$141,0,$B13+9) -> 0 | N13: =OFFSET('Scenario History'!$C$292,0,$B13+10) -> 0
A14: 5 | B14: 60 | C14: =OFFSET('Scenario History'!$C$2,0,$B14) -> 0 | E14: =OFFSET('Scenario History'!$C$10,0,$B14) -> 00:00:00 | F14: =OFFSET('Scenario History'!$C$224,0,$B14) -> 0 | G14: =OFFSET('Scenario History'!$C$141,0,$B14) -> 0 | H14: =OFFSET('Scenario History'!$C$224,0,$B14+3) -> 0 | I14: =OFFSET('Scenario History'!$C$141,0,$B14+3) -> 0 | J14: =OFFSET('Scenario History'!$C$224,0,$B14+6) -> 0 | K14: =OFFSET('Scenario History'!$C$141,0,$B14+6) -> 0 | L14: =OFFSET('Scenario History'!$C$224,0,$B14+9) -> 0 | M14: =OFFSET('Scenario History'!$C$141,0,$B14+9) -> 0 | N14: =OFFSET('Scenario History'!$C$292,0,$B14+10) -> 0
A15: 6 | B15: 72 | C15: =OFFSET('Scenario History'!$C$2,0,$B15) -> 0 | E15: =OFFSET('Scenario History'!$C$10,0,$B15) -> 00:00:00 | F15: =OFFSET('Scenario History'!$C$224,0,$B15) -> 0 | G15: =OFFSET('Scenario History'!$C$141,0,$B15) -> 0 | H15: =OFFSET('Scenario History'!$C$224,0,$B15+3) -> 0 | I15: =OFFSET('Scenario History'!$C$141,0,$B15+3) -> 0 | J15: =OFFSET('Scenario History'!$C$224,0,$B15+6) -> 0 | K15: =OFFSET('Scenario History'!$C$141,0,$B15+6) -> 0 | L15: =OFFSET('Scenario History'!$C$224,0,$B15+9) -> 0 | M15: =OFFSET('Scenario History'!$C$141,0,$B15+9) -> 0 | N15: =OFFSET('Scenario History'!$C$292,0,$B15+10) -> 0
A17: ICT Service Delivery Savings Available
A19: Scenario | C19: Description | E19: Service
E20: 1 | F20: 2 | G20: 3 | H20: 4 | I20: 5 | J20: 6 | K20: 7 | L20: 8 | M20: 9 | N20: 10
A21: Current | C21: ="Current: "&Introduction!E11 -> Current: | E21: =OFFSET('Scenario History'!$C$299,0,$B21-1+E$20) ->  | F21: =OFFSET('Scenario History'!$C$299,0,$B21-1+F$20) ->  | G21: =OFFSET('Scenario History'!$C$299,0,$B21-1+G$20) ->  | H21: =OFFSET('Scenario History'!$C$299,0,$B21-1+H$20) ->  | I21: =OFFSET('Scenario History'!$C$299,0,$B21-1+I$20) ->  | J21: =OFFSET('Scenario History'!$C$299,0,$B21-1+J$20) ->  | K21: =OFFSET('Scenario History'!$C$299,0,$B21-1+K$20) ->  | L21: =OFFSET('Scenario History'!$C$299,0,$B21-1+L$20) ->  | M21: =OFFSET('Scenario History'!$C$299,0,$B21-1+M$20) ->  | N21: =OFFSET('Scenario History'!$C$299,0,$B21-1+N$20) -> 
A22: 1 | B22: 12 | C22: =OFFSET('Scenario History'!$C$2,0,$B22) -> 0 | E22: =OFFSET('Scenario History'!$C$299,0,$B22-1+E$20) ->  | F22: =OFFSET('Scenario History'!$C$299,0,$B22-1+F$20) ->  | G22: =OFFSET('Scenario History'!$C$299,0,$B22-1+G$20) ->  | H22: =OFFSET('Scenario History'!$C$299,0,$B22-1+H$20) ->  | I22: =OFFSET('Scenario History'!$C$299,0,$B22-1+I$20) ->  | J22: =OFFSET('Scenario History'!$C$299,0,$B22-1+J$20) ->  | K22: =OFFSET('Scenario History'!$C$299,0,$B22-1+K$20) ->  | L22: =OFFSET('Scenario History'!$C$299,0,$B22-1+L$20) ->  | M22: =OFFSET('Scenario History'!$C$299,0,$B22-1+M$20) ->  | N22: =OFFSET('Scenario History'!$C$299,0,$B22-1+N$20) -> 
A23: 2 | B23: 24 | C23: =OFFSET('Scenario History'!$C$2,0,$B23) -> 0 | E23: =OFFSET('Scenario History'!$C$299,0,$B23-1+E$20) ->  | F23: =OFFSET('Scenario History'!$C$299,0,$B23-1+F$20) ->  | G23: =OFFSET('Scenario History'!$C$299,0,$B23-1+G$20) ->  | H23: =OFFSET('Scenario History'!$C$299,0,$B23-1+H$20) ->  | I23: =OFFSET('Scenario History'!$C$299,0,$B23-1+I$20) ->  | J23: =OFFSET('Scenario History'!$C$299,0,$B23-1+J$20) ->  | K23: =OFFSET('Scenario History'!$C$299,0,$B23-1+K$20) ->  | L23: =OFFSET('Scenario History'!$C$299,0,$B23-1+L$20) ->  | M23: =OFFSET('Scenario History'!$C$299,0,$B23-1+M$20) ->  | N23: =OFFSET('Scenario History'!$C$299,0,$B23-1+N$20) -> 
A24: 3 | B24: 36 | C24: =OFFSET('Scenario History'!$C$2,0,$B24) -> 0 | E24: =OFFSET('Scenario History'!$C$299,0,$B24-1+E$20) ->  | F24: =OFFSET('Scenario History'!$C$299,0,$B24-1+F$20) ->  | G24: =OFFSET('Scenario History'!$C$299,0,$B24-1+G$20) ->  | H24: =OFFSET('Scenario History'!$C$299,0,$B24-1+H$20) ->  | I24: =OFFSET('Scenario History'!$C$299,0,$B24-1+I$20) ->  | J24: =OFFSET('Scenario History'!$C$299,0,$B24-1+J$20) ->  | K24: =OFFSET('Scenario History'!$C$299,0,$B24-1+K$20) ->  | L24: =OFFSET('Scenario History'!$C$299,0,$B24-1+L$20) ->  | M24: =OFFSET('Scenario History'!$C$299,0,$B24-1+M$20) ->  | N24: =OFFSET('Scenario History'!$C$299,0,$B24-1+N$20) -> 
A25: 4 | B25: 48 | C25: =OFFSET('Scenario History'!$C$2,0,$B25) -> 0 | E25: =OFFSET('Scenario History'!$C$299,0,$B25-1+E$20) ->  | F25: =OFFSET('Scenario History'!$C$299,0,$B25-1+F$20) ->  | G25: =OFFSET('Scenario History'!$C$299,0,$B25-1+G$20) ->  | H25: =OFFSET('Scenario History'!$C$299,0,$B25-1+H$20) ->  | I25: =OFFSET('Scenario History'!$C$299,0,$B25-1+I$20) ->  | J25: =OFFSET('Scenario History'!$C$299,0,$B25-1+J$20) ->  | K25: =OFFSET('Scenario History'!$C$299,0,$B25-1+K$20) ->  | L25: =OFFSET('Scenario History'!$C$299,0,$B25-1+L$20) ->  | M25: =OFFSET('Scenario History'!$C$299,0,$B25-1+M$20) ->  | N25: =OFFSET('Scenario History'!$C$299,0,$B25-1+N$20) -> 
A26: 5 | B26: 60 | C26: =OFFSET('Scenario History'!$C$2,0,$B26) -> 0 | E26: =OFFSET('Scenario History'!$C$299,0,$B26-1+E$20) ->  | F26: =OFFSET('Scenario History'!$C$299,0,$B26-1+F$20) ->  | G26: =OFFSET('Scenario History'!$C$299,0,$B26-1+G$20) ->  | H26: =OFFSET('Scenario History'!$C$299,0,$B26-1+H$20) ->  | I26: =OFFSET('Scenario History'!$C$299,0,$B26-1+I$20) ->  | J26: =OFFSET('Scenario History'!$C$299,0,$B26-1+J$20) ->  | K26: =OFFSET('Scenario History'!$C$299,0,$B26-1+K$20) ->  | L26: =OFFSET('Scenario History'!$C$299,0,$B26-1+L$20) ->  | M26: =OFFSET('Scenario History'!$C$299,0,$B26-1+M$20) ->  | N26: =OFFSET('Scenario History'!$C$299,0,$B26-1+N$20) -> 
A27: 6 | B27: 72 | C27: =OFFSET('Scenario History'!$C$2,0,$B27) -> 0 | E27: =OFFSET('Scenario History'!$C$299,0,$B27-1+E$20) ->  | F27: =OFFSET('Scenario History'!$C$299,0,$B27-1+F$20) ->  | G27: =OFFSET('Scenario History'!$C$299,0,$B27-1+G$20) ->  | H27: =OFFSET('Scenario History'!$C$299,0,$B27-1+H$20) ->  | I27: =OFFSET('Scenario History'!$C$299,0,$B27-1+I$20) ->  | J27: =OFFSET('Scenario History'!$C$299,0,$B27-1+J$20) ->  | K27: =OFFSET('Scenario History'!$C$299,0,$B27-1+K$20) ->  | L27: =OFFSET('Scenario History'!$C$299,0,$B27-1+L$20) ->  | M27: =OFFSET('Scenario History'!$C$299,0,$B27-1+M$20) ->  | N27: =OFFSET('Scenario History'!$C$299,0,$B27-1+N$20) -> 

Sheet Decision (hidden)
A3: Own Data Centre
A4: Name | B4: ='ICT Requirements'!C22 -> 0 | C4: ='ICT Requirements'!D22 -> 0 | D4: ='ICT Requirements'!E22 -> 0 | E4: ='ICT Requirements'!F22 -> 0 | F4: ='ICT Requirements'!G22 -> 0 | G4: ='ICT Requirements'!H22 -> 0 | H4: ='ICT Requirements'!I22 -> 0 | I4: ='ICT Requirements'!J22 -> 0 | J4: ='ICT Requirements'!K22 -> 0 | K4: ='ICT Requirements'!L22 -> 0
A5: Location | B5: =IF(B4='Data Centre Detail'!$D$6,'Data Centre Detail'!$D$7,IF(B4='Data Centre Detail'!$G$6,'Data Centre Detail'!$G$7,IF(B4='Data Centre Detail'!$J$6,'Data Centre Detail'!$J$7,IF(B4='Data Centre Detail'!$M$6,'Data Centre Detail'!$M$7,"")))) -> 0 | C5: =IF(C4='Data Centre Detail'!$D$6,'Data Centre Detail'!$D$7,IF(C4='Data Centre Detail'!$G$6,'Data Centre Detail'!$G$7,IF(C4='Data Centre Detail'!$J$6,'Data Centre Detail'!$J$7,IF(C4='Data Centre Detail'!$M$6,'Data Centre Detail'!$M$7,"")))) -> 0 | D5: =IF(D4='Data Centre Detail'!$D$6,'Data Centre Detail'!$D$7,IF(D4='Data Centre Detail'!$G$6,'Data Centre Detail'!$G$7,IF(D4='Data Centre Detail'!$J$6,'Data Centre Detail'!$J$7,IF(D4='Data Centre Detail'!$M$6,'Data Centre Detail'!$M$7,"")))) -> 0 | E5: =IF(E4='Data Centre Detail'!$D$6,'Data Centre Detail'!$D$7,IF(E4='Data Centre Detail'!$G$6,'Data Centre Detail'!$G$7,IF(E4='Data Centre Detail'!$J$6,'Data Centre Detail'!$J$7,IF(E4='Data Centre Detail'!$M$6,'Data Centre Detail'!$M$7,"")))) -> 0 | F5: =IF(F4='Data Centre Detail'!$D$6,'Data Centre Detail'!$D$7,IF(F4='Data Centre Detail'!$G$6,'Data Centre Detail'!$G$7,IF(F4='Data Centre Detail'!$J$6,'Data Centre Detail'!$J$7,IF(F4='Data Centre Detail'!$M$6,'Data Centre Detail'!$M$7,"")))) -> 0 | G5: =IF(G4='Data Centre Detail'!$D$6,'Data Centre Detail'!$D$7,IF(G4='Data Centre Detail'!$G$6,'Data Centre Detail'!$G$7,IF(G4='Data Centre Detail'!$J$6,'Data Centre Detail'!$J$7,IF(G4='Data Centre Detail'!$M$6,'Data Centre Detail'!$M$7,"")))) -> 0 | H5: =IF(H4='Data Centre Detail'!$D$6,'Data Centre Detail'!$D$7,IF(H4='Data Centre Detail'!$G$6,'Data Centre Detail'!$G$7,IF(H4='Data Centre Detail'!$J$6,'Data Centre Detail'!$J$7,IF(H4='Data Centre Detail'!$M$6,'Data Centre Detail'!$M$7,"")))) -> 0 | I5: =IF(I4='Data Centre Detail'!$D$6,'Data Centre Detail'!$D$7,IF(I4='Data Centre Detail'!$G$6,'Data Centre Detail'!$G$7,IF(I4='Data Centre Detail'!$J$6,'Data Centre Detail'!$J$7,IF(I4='Data Centre Detail'!$M$6,'Data Centre Detail'!$M$7,"")))) -> 0 | J5: =IF(J4='Data Centre Detail'!$D$6,'Data Centre Detail'!$D$7,IF(J4='Data Centre Detail'!$G$6,'Data Centre Detail'!$G$7,IF(J4='Data Centre Detail'!$J$6,'Data Centre Detail'!$J$7,IF(J4='Data Centre Detail'!$M$6,'Data Centre Detail'!$M$7,"")))) -> 0 | K5: =IF(K4='Data Centre Detail'!$D$6,'Data Centre Detail'!$D$7,IF(K4='Data Centre Detail'!$G$6,'Data Centre Detail'!$G$7,IF(K4='Data Centre Detail'!$J$6,'Data Centre Detail'!$J$7,IF(K4='Data Centre Detail'!$M$6,'Data Centre Detail'!$M$7,"")))) -> 0
A6: Total Data Centre Costs | B6: =IF(B$4='Data Centre Detail'!$D$6,'Data Centre Detail'!$D$220,IF(B$4='Data Centre Detail'!$G$6,'Data Centre Detail'!$G$220,IF(B$4='Data Centre Detail'!$J$6,'Data Centre Detail'!$J$220,IF(B$4='Data Centre Detail'!$M$6,'Data Centre Detail'!$M$220,0)))) -> 0 | C6: =IF(C$4='Data Centre Detail'!$D$6,'Data Centre Detail'!$D$220,IF(C$4='Data Centre Detail'!$G$6,'Data Centre Detail'!$G$220,IF(C$4='Data Centre Detail'!$J$6,'Data Centre Detail'!$J$220,IF(C$4='Data Centre Detail'!$M$6,'Data Centre Detail'!$M$220,0)))) -> 0 | D6: =IF(D$4='Data Centre Detail'!$D$6,'Data Centre Detail'!$D$220,IF(D$4='Data Centre Detail'!$G$6,'Data Centre Detail'!$G$220,IF(D$4='Data Centre Detail'!$J$6,'Data Centre Detail'!$J$220,IF(D$4='Data Centre Detail'!$M$6,'Data Centre Detail'!$M$220,0)))) -> 0 | E6: =IF(E$4='Data Centre Detail'!$D$6,'Data Centre Detail'!$D$220,IF(E$4='Data Centre Detail'!$G$6,'Data Centre Detail'!$G$220,IF(E$4='Data Centre Detail'!$J$6,'Data Centre Detail'!$J$220,IF(E$4='Data Centre Detail'!$M$6,'Data Centre Detail'!$M$220,0)))) -> 0 | F6: =IF(F$4='Data Centre Detail'!$D$6,'Data Centre Detail'!$D$220,IF(F$4='Data Centre Detail'!$G$6,'Data Centre Detail'!$G$220,IF(F$4='Data Centre Detail'!$J$6,'Data Centre Detail'!$J$220,IF(F$4='Data Centre Detail'!$M$6,'Data Centre Detail'!$M$220,0)))) -> 0 | G6: =IF(G$4='Data Centre Detail'!$D$6,'Data Centre Detail'!$D$220,IF(G$4='Data Centre Detail'!$G$6,'Data Centre Detail'!$G$220,IF(G$4='Data Centre Detail'!$J$6,'Data Centre Detail'!$J$220,IF(G$4='Data Centre Detail'!$M$6,'Data Centre Detail'!$M$220,0)))) -> 0 | H6: =IF(H$4='Data Centre Detail'!$D$6,'Data Centre Detail'!$D$220,IF(H$4='Data Centre Detail'!$G$6,'Data Centre Detail'!$G$220,IF(H$4='Data Centre Detail'!$J$6,'Data Centre Detail'!$J$220,IF(H$4='Data Centre Detail'!$M$6,'Data Centre Detail'!$M$220,0)))) -> 0 | I6: =IF(I$4='Data Centre Detail'!$D$6,'Data Centre Detail'!$D$220,IF(I$4='Data Centre Detail'!$G$6,'Data Centre Detail'!$G$220,IF(I$4='Data Centre Detail'!$J$6,'Data Centre Detail'!$J$220,IF(I$4='Data Centre Detail'!$M$6,'Data Centre Detail'!$M$220,0)))) -> 0 | J6: =IF(J$4='Data Centre Detail'!$D$6,'Data Centre Detail'!$D$220,IF(J$4='Data Centre Detail'!$G$6,'Data Centre Detail'!$G$220,IF(J$4='Data Centre Detail'!$J$6,'Data Centre Detail'!$J$220,IF(J$4='Data Centre Detail'!$M$6,'Data Centre Detail'!$M$220,0)))) -> 0 | K6: =IF(K$4='Data Centre Detail'!$D$6,'Data Centre Detail'!$D$220,IF(K$4='Data Centre Detail'!$G$6,'Data Centre Detail'!$G$220,IF(K$4='Data Centre Detail'!$J$6,'Data Centre Detail'!$J$220,IF(K$4='Data Centre Detail'!$M$6,'Data Centre Detail'!$M$220,0)))) -> 0
A7: No of Racks | B7: =IF(B$4='Data Centre Detail'!$D$6,'Data Centre Detail'!$D$26,IF(B$4='Data Centre Detail'!$G$6,'Data Centre Detail'!$G$26,IF(B$4='Data Centre Detail'!$J$6,'Data Centre Detail'!$J$26,IF(B$4='Data Centre Detail'!$M$6,'Data Centre Detail'!$M$26,0)))) -> 0 | C7: =IF(C$4='Data Centre Detail'!$D$6,'Data Centre Detail'!$D$26,IF(C$4='Data Centre Detail'!$G$6,'Data Centre Detail'!$G$26,IF(C$4='Data Centre Detail'!$J$6,'Data Centre Detail'!$J$26,IF(C$4='Data Centre Detail'!$M$6,'Data Centre Detail'!$M$26,0)))) -> 0 | D7: =IF(D$4='Data Centre Detail'!$D$6,'Data Centre Detail'!$D$26,IF(D$4='Data Centre Detail'!$G$6,'Data Centre Detail'!$G$26,IF(D$4='Data Centre Detail'!$J$6,'Data Centre Detail'!$J$26,IF(D$4='Data Centre Detail'!$M$6,'Data Centre Detail'!$M$26,0)))) -> 0 | E7: =IF(E$4='Data Centre Detail'!$D$6,'Data Centre Detail'!$D$26,IF(E$4='Data Centre Detail'!$G$6,'Data Centre Detail'!$G$26,IF(E$4='Data Centre Detail'!$J$6,'Data Centre Detail'!$J$26,IF(E$4='Data Centre Detail'!$M$6,'Data Centre Detail'!$M$26,0)))) -> 0 | F7: =IF(F$4='Data Centre Detail'!$D$6,'Data Centre Detail'!$D$26,IF(F$4='Data Centre Detail'!$G$6,'Data Centre Detail'!$G$26,IF(F$4='Data Centre Detail'!$J$6,'Data Centre Detail'!$J$26,IF(F$4='Data Centre Detail'!$M$6,'Data Centre Detail'!$M$26,0)))) -> 0 | G7: =IF(G$4='Data Centre Detail'!$D$6,'Data Centre Detail'!$D$26,IF(G$4='Data Centre Detail'!$G$6,'Data Centre Detail'!$G$26,IF(G$4='Data Centre Detail'!$J$6,'Data Centre Detail'!$J$26,IF(G$4='Data Centre Detail'!$M$6,'Data Centre Detail'!$M$26,0)))) -> 0 | H7: =IF(H$4='Data Centre Detail'!$D$6,'Data Centre Detail'!$D$26,IF(H$4='Data Centre Detail'!$G$6,'Data Centre Detail'!$G$26,IF(H$4='Data Centre Detail'!$J$6,'Data Centre Detail'!$J$26,IF(H$4='Data Centre Detail'!$M$6,'Data Centre Detail'!$M$26,0)))) -> 0 | I7: =IF(I$4='Data Centre Detail'!$D$6,'Data Centre Detail'!$D$26,IF(I$4='Data Centre Detail'!$G$6,'Data Centre Detail'!$G$26,IF(I$4='Data Centre Detail'!$J$6,'Data Centre Detail'!$J$26,IF(I$4='Data Centre Detail'!$M$6,'Data Centre Detail'!$M$26,0)))) -> 0 | J7: =IF(J$4='Data Centre Detail'!$D$6,'Data Centre Detail'!$D$26,IF(J$4='Data Centre Detail'!$G$6,'Data Centre Detail'!$G$26,IF(J$4='Data Centre Detail'!$J$6,'Data Centre Detail'!$J$26,IF(J$4='Data Centre Detail'!$M$6,'Data Centre Detail'!$M$26,0)))) -> 0 | K7: =IF(K$4='Data Centre Detail'!$D$6,'Data Centre Detail'!$D$26,IF(K$4='Data Centre Detail'!$G$6,'Data Centre Detail'!$G$26,IF(K$4='Data Centre Detail'!$J$6,'Data Centre Detail'!$J$26,IF(K$4='Data Centre Detail'!$M$6,'Data Centre Detail'!$M$26,0)))) -> 0
A8: No of Servers | B8: =IF(B$4='Data Centre Detail'!$D$6,'Data Centre Detail'!$D$29,IF(B$4='Data Centre Detail'!$G$6,'Data Centre Detail'!$G$29,IF(B$4='Data Centre Detail'!$J$6,'Data Centre Detail'!$J$29,IF(B$4='Data Centre Detail'!$M$6,'Data Centre Detail'!$M$29,0)))) -> 0 | C8: =IF(C$4='Data Centre Detail'!$D$6,'Data Centre Detail'!$D$29,IF(C$4='Data Centre Detail'!$G$6,'Data Centre Detail'!$G$29,IF(C$4='Data Centre Detail'!$J$6,'Data Centre Detail'!$J$29,IF(C$4='Data Centre Detail'!$M$6,'Data Centre Detail'!$M$29,0)))) -> 0 | D8: =IF(D$4='Data Centre Detail'!$D$6,'Data Centre Detail'!$D$29,IF(D$4='Data Centre Detail'!$G$6,'Data Centre Detail'!$G$29,IF(D$4='Data Centre Detail'!$J$6,'Data Centre Detail'!$J$29,IF(D$4='Data Centre Detail'!$M$6,'Data Centre Detail'!$M$29,0)))) -> 0 | E8: =IF(E$4='Data Centre Detail'!$D$6,'Data Centre Detail'!$D$29,IF(E$4='Data Centre Detail'!$G$6,'Data Centre Detail'!$G$29,IF(E$4='Data Centre Detail'!$J$6,'Data Centre Detail'!$J$29,IF(E$4='Data Centre Detail'!$M$6,'Data Centre Detail'!$M$29,0)))) -> 0 | F8: =IF(F$4='Data Centre Detail'!$D$6,'Data Centre Detail'!$D$29,IF(F$4='Data Centre Detail'!$G$6,'Data Centre Detail'!$G$29,IF(F$4='Data Centre Detail'!$J$6,'Data Centre Detail'!$J$29,IF(F$4='Data Centre Detail'!$M$6,'Data Centre Detail'!$M$29,0)))) -> 0 | G8: =IF(G$4='Data Centre Detail'!$D$6,'Data Centre Detail'!$D$29,IF(G$4='Data Centre Detail'!$G$6,'Data Centre Detail'!$G$29,IF(G$4='Data Centre Detail'!$J$6,'Data Centre Detail'!$J$29,IF(G$4='Data Centre Detail'!$M$6,'Data Centre Detail'!$M$29,0)))) -> 0 | H8: =IF(H$4='Data Centre Detail'!$D$6,'Data Centre Detail'!$D$29,IF(H$4='Data Centre Detail'!$G$6,'Data Centre Detail'!$G$29,IF(H$4='Data Centre Detail'!$J$6,'Data Centre Detail'!$J$29,IF(H$4='Data Centre Detail'!$M$6,'Data Centre Detail'!$M$29,0)))) -> 0 | I8: =IF(I$4='Data Centre Detail'!$D$6,'Data Centre Detail'!$D$29,IF(I$4='Data Centre Detail'!$G$6,'Data Centre Detail'!$G$29,IF(I$4='Data Centre Detail'!$J$6,'Data Centre Detail'!$J$29,IF(I$4='Data Centre Detail'!$M$6,'Data Centre Detail'!$M$29,0)))) -> 0 | J8: =IF(J$4='Data Centre Detail'!$D$6,'Data Centre Detail'!$D$29,IF(J$4='Data Centre Detail'!$G$6,'Data Centre Detail'!$G$29,IF(J$4='Data Centre Detail'!$J$6,'Data Centre Detail'!$J$29,IF(J$4='Data Centre Detail'!$M$6,'Data Centre Detail'!$M$29,0)))) -> 0 | K8: =IF(K$4='Data Centre Detail'!$D$6,'Data Centre Detail'!$D$29,IF(K$4='Data Centre Detail'!$G$6,'Data Centre Detail'!$G$29,IF(K$4='Data Centre Detail'!$J$6,'Data Centre Detail'!$J$29,IF(K$4='Data Centre Detail'!$M$6,'Data Centre Detail'!$M$29,0)))) -> 0
A10: Cost per rack | B10: =IF(B7>0,B6/B7,0) -> 0 | C10: =IF(C7>0,C6/C7,0) -> 0 | D10: 0 | E10: 0 | F10: 0 | G10: 0 | H10: 0 | I10: 0 | J10: 0 | K10: 0
A11: Cost per server | B11: =IF(B8>0,B6/B8,0) -> 0 | C11: =IF(C8>0,C6/C8,0) -> 0 | D11: 0 | E11: 0 | F11: 0 | G11: 0 | H11: 0 | I11: 0 | J11: 0 | K11: 0
A12: Staff cost per server | B12: =IFERROR('ICT Requirements'!$C$11/SUM('ICT Requirements'!$C$24:$L$24),0) -> 0 | C12: =IFERROR('ICT Requirements'!$C$11/SUM('ICT Requirements'!$C$24:$L$24),0) -> 0 | D12: =IFERROR('ICT Requirements'!$C$11/SUM('ICT Requirements'!$C$24:$L$24),0) -> 0 | E12: =IFERROR('ICT Requirements'!$C$11/SUM('ICT Requirements'!$C$24:$L$24),0) -> 0 | F12: =IFERROR('ICT Requirements'!$C$11/SUM('ICT Requirements'!$C$24:$L$24),0) -> 0 | G12: =IFERROR('ICT Requirements'!$C$11/SUM('ICT Requirements'!$C$24:$L$24),0) -> 0 | H12: =IFERROR('ICT Requirements'!$C$11/SUM('ICT Requirements'!$C$24:$L$24),0) -> 0 | I12: =IFERROR('ICT Requirements'!$C$11/SUM('ICT Requirements'!$C$24:$L$24),0) -> 0 | J12: =IFERROR('ICT Requirements'!$C$11/SUM('ICT Requirements'!$C$24:$L$24),0) -> 0 | K12: =IFERROR('ICT Requirements'!$C$11/SUM('ICT Requirements'!$C$24:$L$24),0) -> 0
A13: Total staff costs | B13: =B12*B22 -> 0 | C13: =C12*C22 -> 0 | D13: 0 | E13: 0 | F13: 0 | G13: 0 | H13: 0 | I13: 0 | J13: 0 | K13: 0
A14: Other Network Costs per server | B14: =IFERROR('ICT Requirements'!$C$14/SUM('ICT Requirements'!C24:L24),0) -> 0 | C14: =IFERROR('ICT Requirements'!$C$14/SUM('ICT Requirements'!D24:M24),0) -> 0 | D14: =IFERROR('ICT Requirements'!$C$14/SUM('ICT Requirements'!E24:N24),0) -> 0 | E14: =IFERROR('ICT Requirements'!$C$14/SUM('ICT Requirements'!F24:O24),0) -> 0 | F14: =IFERROR('ICT Requirements'!$C$14/SUM('ICT Requirements'!G24:P24),0) -> 0 | G14: =IFERROR('ICT Requirements'!$C$14/SUM('ICT Requirements'!H24:Q24),0) -> 0 | H14: =IFERROR('ICT Requirements'!$C$14/SUM('ICT Requirements'!I24:R24),0) -> 0 | I14: =IFERROR('ICT Requirements'!$C$14/SUM('ICT Requirements'!J24:S24),0) -> 0 | J14: =IFERROR('ICT Requirements'!$C$14/SUM('ICT Requirements'!K24:T24),0) -> 0 | K14: =IFERROR('ICT Requirements'!$C$14/SUM('ICT Requirements'!L24:U24),0) -> 0
A15: Current cloud backup costs | B15: ='ICT Requirements'!C46 -> 0 | C15: ='ICT Requirements'!D46 -> 0 | D15: ='ICT Requirements'!E46 -> 0 | E15: ='ICT Requirements'!F46 -> 0 | F15: ='ICT Requirements'!G46 -> 0 | G15: ='ICT Requirements'!H46 -> 0 | H15: ='ICT Requirements'!I46 -> 0 | I15: ='ICT Requirements'!J46 -> 0 | J15: ='ICT Requirements'!K46 -> 0 | K15: ='ICT Requirements'!L46 -> 0
A17: Service Requirements
A18: Service | B18: ='ICT Requirements'!C18 -> 0 | C18: ='ICT Requirements'!D18 -> 0 | D18: ='ICT Requirements'!E18 -> 0 | E18: ='ICT Requirements'!F18 -> 0 | F18: ='ICT Requirements'!G18 -> 0 | G18: ='ICT Requirements'!H18 -> 0 | H18: ='ICT Requirements'!I18 -> 0 | I18: ='ICT Requirements'!J18 -> 0 | J18: ='ICT Requirements'!K18 -> 0 | K18: ='ICT Requirements'!L18 -> 0
B19: ='ICT Requirements'!C19 -> 0 | C19: ='ICT Requirements'!D19 -> 0 | D19: ='ICT Requirements'!E19 -> 0 | E19: ='ICT Requirements'!F19 -> 0 | F19: ='ICT Requirements'!G19 -> 0 | G19: ='ICT Requirements'!H19 -> 0 | H19: ='ICT Requirements'!I19 -> 0 | I19: ='ICT Requirements'!J19 -> 0 | J19: ='ICT Requirements'!K19 -> 0 | K19: ='ICT Requirements'!L19 -> 0
A20: Colocated? | B20: =IF(OR(B19="Colocated server",B19="Virtualised colocated server"),1,0) -> 0 | C20: =IF(OR(C19="Colocated server",C19="Virtualised colocated server"),1,0) -> 0 | D20: 0 | E20: 0 | F20: 0 | G20: 0 | H20: 0 | I20: 0 | J20: 0 | K20: 0
A21: Racks | B21: ='ICT Requirements'!C23 -> 0 | C21: ='ICT Requirements'!D23 -> 0 | D21: ='ICT Requirements'!E23 -> 0 | E21: ='ICT Requirements'!F23 -> 0 | F21: ='ICT Requirements'!G23 -> 0 | G21: ='ICT Requirements'!H23 -> 0 | H21: ='ICT Requirements'!I23 -> 0 | I21: ='ICT Requirements'!J23 -> 0 | J21: ='ICT Requirements'!K23 -> 0 | K21: ='ICT Requirements'!L23 -> 0
A22: Servers | B22: ='ICT Requirements'!C24 -> 0 | C22: ='ICT Requirements'!D24 -> 0 | D22: ='ICT Requirements'!E24 -> 0 | E22: ='ICT Requirements'!F24 -> 0 | F22: ='ICT Requirements'!G24 -> 0 | G22: ='ICT Requirements'!H24 -> 0 | H22: ='ICT Requirements'!I24 -> 0 | I22: ='ICT Requirements'!J24 -> 0 | J22: ='ICT Requirements'!K24 -> 0 | K22: ='ICT Requirements'!L24 -> 0
A23: Performance Storage GB | B23: ='ICT Requirements'!C31 -> 0 | C23: ='ICT Requirements'!D31 -> 0 | D23: ='ICT Requirements'!E31 -> 0 | E23: ='ICT Requirements'!F31 -> 0 | F23: ='ICT Requirements'!G31 -> 0 | G23: ='ICT Requirements'!H31 -> 0 | H23: ='ICT Requirements'!I31 -> 0 | I23: ='ICT Requirements'!J31 -> 0 | J23: ='ICT Requirements'!K31 -> 0 | K23: ='ICT Requirements'!L31 -> 0
A24: Standard Storage GB | B24: ='ICT Requirements'!C32 -> 0 | C24: ='ICT Requirements'!D32 -> 0 | D24: ='ICT Requirements'!E32 -> 0 | E24: ='ICT Requirements'!F32 -> 0 | F24: ='ICT Requirements'!G32 -> 0 | G24: ='ICT Requirements'!H32 -> 0 | H24: ='ICT Requirements'!I32 -> 0 | I24: ='ICT Requirements'!J32 -> 0 | J24: ='ICT Requirements'!K32 -> 0 | K24: ='ICT Requirements'!L32 -> 0
A25: Archive Storage GB | B25: ='ICT Requirements'!C33 -> 0 | C25: ='ICT Requirements'!D33 -> 0 | D25: ='ICT Requirements'!E33 -> 0 | E25: ='ICT Requirements'!F33 -> 0 | F25: ='ICT Requirements'!G33 -> 0 | G25: ='ICT Requirements'!H33 -> 0 | H25: ='ICT Requirements'!I33 -> 0 | I25: ='ICT Requirements'!J33 -> 0 | J25: ='ICT Requirements'!K33 -> 0 | K25: ='ICT Requirements'!L33 -> 0
A26: Bandwidth | B26: ='ICT Requirements'!C35 -> 0 | C26: ='ICT Requirements'!D35 -> 0 | D26: ='ICT Requirements'!E35 -> 0 | E26: ='ICT Requirements'!F35 -> 0 | F26: ='ICT Requirements'!G35 -> 0 | G26: ='ICT Requirements'!H35 -> 0 | H26: ='ICT Requirements'!I35 -> 0 | I26: ='ICT Requirements'!J35 -> 0 | J26: ='ICT Requirements'!K35 -> 0 | K26: ='ICT Requirements'!L35 -> 0
A27: Tapes | B27: ='ICT Requirements'!C43 -> 0 | C27: ='ICT Requirements'!D43 -> 0 | D27: ='ICT Requirements'!E43 -> 0 | E27: ='ICT Requirements'!F43 -> 0 | F27: ='ICT Requirements'!G43 -> 0 | G27: ='ICT Requirements'!H43 -> 0 | H27: ='ICT Requirements'!I43 -> 0 | I27: ='ICT Requirements'!J43 -> 0 | J27: ='ICT Requirements'!K43 -> 0 | K27: ='ICT Requirements'!L43 -> 0
A29: Attributed Costs | B29: =B11*B22+B12*B8 -> 0 | C29: =C11*C22+C12*C8 -> 0 | D29: 0 | E29: 0 | F29: 0 | G29: 0 | H29: 0 | I29: 0 | J29: 0 | K29: 0
A31: Colocation Costs
A32: Rack Space | B32: =B21*Defaults!D21 -> 0 | C32: =C21*Defaults!E21 -> 0 | D32: =D21*Defaults!F21 -> 0 | E32: =E21*Defaults!G21 -> 0 | F32: =F21*Defaults!H21 -> 0 | G32: =G21*Defaults!I21 -> 0 | H32: =H21*Defaults!J21 -> 0 | I32: =I21*Defaults!K21 -> 0 | J32: =J21*Defaults!L21 -> 0 | K32: =K21*Defaults!M21 -> 0
A33: Server Hardware Costs | B33: =('ICT Requirements'!C26*Defaults!$B$30+'ICT Requirements'!C27*Defaults!$B$31+'ICT Requirements'!C28*Defaults!$B$32+'ICT Requirements'!C29*Defaults!$B$33)/Defaults!$B$4 -> 0 | C33: =('ICT Requirements'!D26*Defaults!$B$30+'ICT Requirements'!D27*Defaults!$B$31+'ICT Requirements'!D28*Defaults!$B$32+'ICT Requirements'!D29*Defaults!$B$33)/Defaults!$B$4 -> 0 | D33: =('ICT Requirements'!E26*Defaults!$B$30+'ICT Requirements'!E27*Defaults!$B$31+'ICT Requirements'!E28*Defaults!$B$32+'ICT Requirements'!E29*Defaults!$B$33)/Defaults!$B$4 -> 0 | E33: =('ICT Requirements'!F26*Defaults!$B$30+'ICT Requirements'!F27*Defaults!$B$31+'ICT Requirements'!F28*Defaults!$B$32+'ICT Requirements'!F29*Defaults!$B$33)/Defaults!$B$4 -> 0 | F33: =('ICT Requirements'!G26*Defaults!$B$30+'ICT Requirements'!G27*Defaults!$B$31+'ICT Requirements'!G28*Defaults!$B$32+'ICT Requirements'!G29*Defaults!$B$33)/Defaults!$B$4 -> 0 | G33: =('ICT Requirements'!H26*Defaults!$B$30+'ICT Requirements'!H27*Defaults!$B$31+'ICT Requirements'!H28*Defaults!$B$32+'ICT Requirements'!H29*Defaults!$B$33)/Defaults!$B$4 -> 0 | H33: =('ICT Requirements'!I26*Defaults!$B$30+'ICT Requirements'!I27*Defaults!$B$31+'ICT Requirements'!I28*Defaults!$B$32+'ICT Requirements'!I29*Defaults!$B$33)/Defaults!$B$4 -> 0 | I33: =('ICT Requirements'!J26*Defaults!$B$30+'ICT Requirements'!J27*Defaults!$B$31+'ICT Requirements'!J28*Defaults!$B$32+'ICT Requirements'!J29*Defaults!$B$33)/Defaults!$B$4 -> 0 | J33: =('ICT Requirements'!K26*Defaults!$B$30+'ICT Requirements'!K27*Defaults!$B$31+'ICT Requirements'!K28*Defaults!$B$32+'ICT Requirements'!K29*Defaults!$B$33)/Defaults!$B$4 -> 0 | K33: =('ICT Requirements'!L26*Defaults!$B$30+'ICT Requirements'!L27*Defaults!$B$31+'ICT Requirements'!L28*Defaults!$B$32+'ICT Requirements'!L29*Defaults!$B$33)/Defaults!$B$4 -> 0
A34: Server Hardware Maintenance Costs | B34: ='ICT Requirements'!C26*Defaults!$E$30+'ICT Requirements'!C27*Defaults!$E$31+'ICT Requirements'!C28*Defaults!$E$32+'ICT Requirements'!C29*Defaults!$E$33 -> 0 | C34: ='ICT Requirements'!D26*Defaults!$E$30+'ICT Requirements'!D27*Defaults!$E$31+'ICT Requirements'!D28*Defaults!$E$32+'ICT Requirements'!D29*Defaults!$E$33 -> 0 | D34: ='ICT Requirements'!E26*Defaults!$E$30+'ICT Requirements'!E27*Defaults!$E$31+'ICT Requirements'!E28*Defaults!$E$32+'ICT Requirements'!E29*Defaults!$E$33 -> 0 | E34: ='ICT Requirements'!F26*Defaults!$E$30+'ICT Requirements'!F27*Defaults!$E$31+'ICT Requirements'!F28*Defaults!$E$32+'ICT Requirements'!F29*Defaults!$E$33 -> 0 | F34: ='ICT Requirements'!G26*Defaults!$E$30+'ICT Requirements'!G27*Defaults!$E$31+'ICT Requirements'!G28*Defaults!$E$32+'ICT Requirements'!G29*Defaults!$E$33 -> 0 | G34: ='ICT Requirements'!H26*Defaults!$E$30+'ICT Requirements'!H27*Defaults!$E$31+'ICT Requirements'!H28*Defaults!$E$32+'ICT Requirements'!H29*Defaults!$E$33 -> 0 | H34: ='ICT Requirements'!I26*Defaults!$E$30+'ICT Requirements'!I27*Defaults!$E$31+'ICT Requirements'!I28*Defaults!$E$32+'ICT Requirements'!I29*Defaults!$E$33 -> 0 | I34: ='ICT Requirements'!J26*Defaults!$E$30+'ICT Requirements'!J27*Defaults!$E$31+'ICT Requirements'!J28*Defaults!$E$32+'ICT Requirements'!J29*Defaults!$E$33 -> 0 | J34: ='ICT Requirements'!K26*Defaults!$E$30+'ICT Requirements'!K27*Defaults!$E$31+'ICT Requirements'!K28*Defaults!$E$32+'ICT Requirements'!K29*Defaults!$E$33 -> 0 | K34: ='ICT Requirements'!L26*Defaults!$E$30+'ICT Requirements'!L27*Defaults!$E$31+'ICT Requirements'!L28*Defaults!$E$32+'ICT Requirements'!L29*Defaults!$E$33 -> 0
A35: Annual Tape Cost | B35: =B27*Defaults!G21 -> 0 | C35: =C27*Defaults!H21 -> 0 | D35: =D27*Defaults!I21 -> 0 | E35: =E27*Defaults!J21 -> 0 | F35: =F27*Defaults!K21 -> 0 | G35: =G27*Defaults!L21 -> 0 | H35: =H27*Defaults!M21 -> 0 | I35: =I27*Defaults!N21 -> 0 | J35: =J27*Defaults!O21 -> 0 | K35: =K27*Defaults!P21 -> 0
A36: Backup Costs | B36: ='ICT Requirements'!C$44*Defaults!$Z$21 -> 0 | C36: ='ICT Requirements'!D$44*Defaults!$Z$21 -> 0 | D36: ='ICT Requirements'!E$44*Defaults!$Z$21 -> 0 | E36: ='ICT Requirements'!F$44*Defaults!$Z$21 -> 0 | F36: ='ICT Requirements'!G$44*Defaults!$Z$21 -> 0 | G36: ='ICT Requirements'!H$44*Defaults!$Z$21 -> 0 | H36: ='ICT Requirements'!I$44*Defaults!$Z$21 -> 0 | I36: ='ICT Requirements'!J$44*Defaults!$Z$21 -> 0 | J36: ='ICT Requirements'!K$44*Defaults!$Z$21 -> 0 | K36: ='ICT Requirements'!L$44*Defaults!$Z$21 -> 0
A37: Network Costs | B37: =B$14*B$8 -> 0 | C37: =C$14*C$8 -> 0 | D37: 0 | E37: 0 | F37: 0 | G37: 0 | H37: 0 | I37: 0 | J37: 0 | K37: 0
A38: Bandwidth | B38: =IF(B26<>0,IF(B26=2,Defaults!$H$21,IF(Decision!B26=10,Defaults!$I$21,IF(Decision!B26=50,Defaults!$J$21,B26/100*Defaults!$K$21))),0) -> 0 | C38: =IF(C26<>0,IF(C26=2,Defaults!$H$21,IF(Decision!C26=10,Defaults!$I$21,IF(Decision!C26=50,Defaults!$J$21,C26/100*Defaults!$K$21))),0) -> 0 | D38: =IF(D26<>0,IF(D26=2,Defaults!$H$21,IF(Decision!D26=10,Defaults!$I$21,IF(Decision!D26=50,Defaults!$J$21,D26/100*Defaults!$K$21))),0) -> 0 | E38: =IF(E26<>0,IF(E26=2,Defaults!$H$21,IF(Decision!E26=10,Defaults!$I$21,IF(Decision!E26=50,Defaults!$J$21,E26/100*Defaults!$K$21))),0) -> 0 | F38: =IF(F26<>0,IF(F26=2,Defaults!$H$21,IF(Decision!F26=10,Defaults!$I$21,IF(Decision!F26=50,Defaults!$J$21,F26/100*Defaults!$K$21))),0) -> 0 | G38: =IF(G26<>0,IF(G26=2,Defaults!$H$21,IF(Decision!G26=10,Defaults!$I$21,IF(Decision!G26=50,Defaults!$J$21,G26/100*Defaults!$K$21))),0) -> 0 | H38: =IF(H26<>0,IF(H26=2,Defaults!$H$21,IF(Decision!H26=10,Defaults!$I$21,IF(Decision!H26=50,Defaults!$J$21,H26/100*Defaults!$K$21))),0) -> 0 | I38: =IF(I26<>0,IF(I26=2,Defaults!$H$21,IF(Decision!I26=10,Defaults!$I$21,IF(Decision!I26=50,Defaults!$J$21,I26/100*Defaults!$K$21))),0) -> 0 | J38: =IF(J26<>0,IF(J26=2,Defaults!$H$21,IF(Decision!J26=10,Defaults!$I$21,IF(Decision!J26=50,Defaults!$J$21,J26/100*Defaults!$K$21))),0) -> 0 | K38: =IF(K26<>0,IF(K26=2,Defaults!$H$21,IF(Decision!K26=10,Defaults!$I$21,IF(Decision!K26=50,Defaults!$J$21,K26/100*Defaults!$K$21))),0) -> 0
A39: Digital Certificate Costs | B39: =IF('ICT Requirements'!C37="DV",Defaults!$AA$21,IF('ICT Requirements'!C37="OV",Defaults!$AB$21,IF('ICT Requirements'!C37="EV",Defaults!$AC$21,0))) -> 0 | C39: =IF('ICT Requirements'!D37="DV",Defaults!$AA$21,IF('ICT Requirements'!D37="OV",Defaults!$AB$21,IF('ICT Requirements'!D37="EV",Defaults!$AC$21,0))) -> 0 | D39: =IF('ICT Requirements'!E37="DV",Defaults!$AA$21,IF('ICT Requirements'!E37="OV",Defaults!$AB$21,IF('ICT Requirements'!E37="EV",Defaults!$AC$21,0))) -> 0 | E39: =IF('ICT Requirements'!F37="DV",Defaults!$AA$21,IF('ICT Requirements'!F37="OV",Defaults!$AB$21,IF('ICT Requirements'!F37="EV",Defaults!$AC$21,0))) -> 0 | F39: =IF('ICT Requirements'!G37="DV",Defaults!$AA$21,IF('ICT Requirements'!G37="OV",Defaults!$AB$21,IF('ICT Requirements'!G37="EV",Defaults!$AC$21,0))) -> 0 | G39: =IF('ICT Requirements'!H37="DV",Defaults!$AA$21,IF('ICT Requirements'!H37="OV",Defaults!$AB$21,IF('ICT Requirements'!H37="EV",Defaults!$AC$21,0))) -> 0 | H39: =IF('ICT Requirements'!I37="DV",Defaults!$AA$21,IF('ICT Requirements'!I37="OV",Defaults!$AB$21,IF('ICT Requirements'!I37="EV",Defaults!$AC$21,0))) -> 0 | I39: =IF('ICT Requirements'!J37="DV",Defaults!$AA$21,IF('ICT Requirements'!J37="OV",Defaults!$AB$21,IF('ICT Requirements'!J37="EV",Defaults!$AC$21,0))) -> 0 | J39: =IF('ICT Requirements'!K37="DV",Defaults!$AA$21,IF('ICT Requirements'!K37="OV",Defaults!$AB$21,IF('ICT Requirements'!K37="EV",Defaults!$AC$21,0))) -> 0 | K39: =IF('ICT Requirements'!L37="DV",Defaults!$AA$21,IF('ICT Requirements'!L37="OV",Defaults!$AB$21,IF('ICT Requirements'!L37="EV",Defaults!$AC$21,0))) -> 0
A40: License Costs | B40: ='ICT Requirements'!C49 -> 0 | C40: ='ICT Requirements'!D49 -> 0 | D40: ='ICT Requirements'!E49 -> 0 | E40: ='ICT Requirements'!F49 -> 0 | F40: ='ICT Requirements'!G49 -> 0 | G40: ='ICT Requirements'!H49 -> 0 | H40: ='ICT Requirements'!I49 -> 0 | I40: ='ICT Requirements'!J49 -> 0 | J40: ='ICT Requirements'!K49 -> 0 | K40: ='ICT Requirements'!L49 -> 0
A41: Staff Costs | B41: ='ICT Requirements'!C61+B13 -> 0 | C41: ='ICT Requirements'!D61+C13 -> 0 | D41: ='ICT Requirements'!E61+D13 -> 0 | E41: ='ICT Requirements'!F61+E13 -> 0 | F41: ='ICT Requirements'!G61+F13 -> 0 | G41: ='ICT Requirements'!H61+G13 -> 0 | H41: ='ICT Requirements'!I61+H13 -> 0 | I41: ='ICT Requirements'!J61+I13 -> 0 | J41: ='ICT Requirements'!K61+J13 -> 0 | K41: ='ICT Requirements'!L61+K13 -> 0
A42: Transfer Cost | B42: =IF('ICT Requirements'!C59<>"",'ICT Requirements'!C59,B22*Defaults!$B$43) -> 0 | C42: =IF('ICT Requirements'!D59<>"",'ICT Requirements'!D59,C22*Defaults!$B$43) -> 0 | D42: =IF('ICT Requirements'!E59<>"",'ICT Requirements'!E59,D22*Defaults!$B$43) -> 0 | E42: =IF('ICT Requirements'!F59<>"",'ICT Requirements'!F59,E22*Defaults!$B$43) -> 0 | F42: =IF('ICT Requirements'!G59<>"",'ICT Requirements'!G59,F22*Defaults!$B$43) -> 0 | G42: =IF('ICT Requirements'!H59<>"",'ICT Requirements'!H59,G22*Defaults!$B$43) -> 0 | H42: =IF('ICT Requirements'!I59<>"",'ICT Requirements'!I59,H22*Defaults!$B$43) -> 0 | I42: =IF('ICT Requirements'!J59<>"",'ICT Requirements'!J59,I22*Defaults!$B$43) -> 0 | J42: =IF('ICT Requirements'!K59<>"",'ICT Requirements'!K59,J22*Defaults!$B$43) -> 0 | K42: =IF('ICT Requirements'!L59<>"",'ICT Requirements'!L59,K22*Defaults!$B$43) -> 0
A43: Total | B43: =SUM(B32:B42) -> 0 | C43: =SUM(C32:C42) -> 0 | D43: 0 | E43: 0 | F43: 0 | G43: 0 | H43: 0 | I43: 0 | J43: 0 | K43: 0
A45: Public Cloud
A46: Server Costs | B46: =('ICT Requirements'!C26*Defaults!$M$25+'ICT Requirements'!C27*Defaults!$N$25+'ICT Requirements'!C28*Defaults!$O$25+'ICT Requirements'!C29*Defaults!$P$25) -> 0 | C46: =('ICT Requirements'!D26*Defaults!$M$25+'ICT Requirements'!D27*Defaults!$N$25+'ICT Requirements'!D28*Defaults!$O$25+'ICT Requirements'!D29*Defaults!$P$25) -> 0 | D46: =('ICT Requirements'!E26*Defaults!$M$25+'ICT Requirements'!E27*Defaults!$N$25+'ICT Requirements'!E28*Defaults!$O$25+'ICT Requirements'!E29*Defaults!$P$25) -> 0 | E46: =('ICT Requirements'!F26*Defaults!$M$25+'ICT Requirements'!F27*Defaults!$N$25+'ICT Requirements'!F28*Defaults!$O$25+'ICT Requirements'!F29*Defaults!$P$25) -> 0 | F46: =('ICT Requirements'!G26*Defaults!$M$25+'ICT Requirements'!G27*Defaults!$N$25+'ICT Requirements'!G28*Defaults!$O$25+'ICT Requirements'!G29*Defaults!$P$25) -> 0 | G46: =('ICT Requirements'!H26*Defaults!$M$25+'ICT Requirements'!H27*Defaults!$N$25+'ICT Requirements'!H28*Defaults!$O$25+'ICT Requirements'!H29*Defaults!$P$25) -> 0 | H46: =('ICT Requirements'!I26*Defaults!$M$25+'ICT Requirements'!I27*Defaults!$N$25+'ICT Requirements'!I28*Defaults!$O$25+'ICT Requirements'!I29*Defaults!$P$25) -> 0 | I46: =('ICT Requirements'!J26*Defaults!$M$25+'ICT Requirements'!J27*Defaults!$N$25+'ICT Requirements'!J28*Defaults!$O$25+'ICT Requirements'!J29*Defaults!$P$25) -> 0 | J46: =('ICT Requirements'!K26*Defaults!$M$25+'ICT Requirements'!K27*Defaults!$N$25+'ICT Requirements'!K28*Defaults!$O$25+'ICT Requirements'!K29*Defaults!$P$25) -> 0 | K46: =('ICT Requirements'!L26*Defaults!$M$25+'ICT Requirements'!L27*Defaults!$N$25+'ICT Requirements'!L28*Defaults!$O$25+'ICT Requirements'!L29*Defaults!$P$25) -> 0
A47: Performance Storage GB | B47: =B23*Defaults!V25 -> 0 | C47: =C23*Defaults!W25 -> 0 | D47: =D23*Defaults!X25 -> 0 | E47: =E23*Defaults!Y25 -> 0 | F47: =F23*Defaults!Z25 -> 0 | G47: =G23*Defaults!AA25 -> 0 | H47: =H23*Defaults!AB25 -> 0 | I47: =I23*Defaults!AC25 -> 0 | J47: =J23*Defaults!AD25 -> 0 | K47: =K23*Defaults!AE25 -> 0
A48: Standard Storage GB | B48: =B24*Defaults!W25 -> 0 | C48: =C24*Defaults!X25 -> 0 | D48: =D24*Defaults!Y25 -> 0 | E48: =E24*Defaults!Z25 -> 0 | F48: =F24*Defaults!AA25 -> 0 | G48: =G24*Defaults!AB25 -> 0 | H48: =H24*Defaults!AC25 -> 0 | I48: =I24*Defaults!AD25 -> 0 | J48: =J24*Defaults!AE25 -> 0 | K48: =K24*Defaults!AF25 -> 0
A49: Archive Storage GB | B49: =B25*Defaults!X25 -> 0 | C49: =C25*Defaults!Y25 -> 0 | D49: =D25*Defaults!Z25 -> 0 | E49: =E25*Defaults!AA25 -> 0 | F49: =F25*Defaults!AB25 -> 0 | G49: =G25*Defaults!AC25 -> 0 | H49: =H25*Defaults!AD25 -> 0 | I49: =I25*Defaults!AE25 -> 0 | J49: =J25*Defaults!AF25 -> 0 | K49: =K25*Defaults!AG25 -> 0
A50: Backup Costs | B50: ='ICT Requirements'!C$45*Defaults!$Z$24 -> 0 | C50: ='ICT Requirements'!D$45*Defaults!$Z$24 -> 0 | D50: ='ICT Requirements'!E$45*Defaults!$Z$24 -> 0 | E50: ='ICT Requirements'!F$45*Defaults!$Z$24 -> 0 | F50: ='ICT Requirements'!G$45*Defaults!$Z$24 -> 0 | G50: ='ICT Requirements'!H$45*Defaults!$Z$24 -> 0 | H50: ='ICT Requirements'!I$45*Defaults!$Z$24 -> 0 | I50: ='ICT Requirements'!J$45*Defaults!$Z$24 -> 0 | J50: ='ICT Requirements'!K$45*Defaults!$Z$24 -> 0 | K50: ='ICT Requirements'!L$45*Defaults!$Z$24 -> 0
A51: Network Costs | B51: =B$14*B$8 -> 0 | C51: =C$14*C$8 -> 0 | D51: 0 | E51: 0 | F51: 0 | G51: 0 | H51: 0 | I51: 0 | J51: 0 | K51: 0
A52: Bandwidth | B52: =IF(B26<>0,IF(B26=2,Defaults!$H$25,IF(Decision!B26=10,Defaults!$I$25,IF(Decision!B26=50,Defaults!$J$25,Defaults!$K$25))),0) -> 0 | C52: =IF(C26<>0,IF(C26=2,Defaults!$H$25,IF(Decision!C26=10,Defaults!$I$25,IF(Decision!C26=50,Defaults!$J$25,Defaults!$K$25))),0) -> 0 | D52: =IF(D26<>0,IF(D26=2,Defaults!$H$25,IF(Decision!D26=10,Defaults!$I$25,IF(Decision!D26=50,Defaults!$J$25,Defaults!$K$25))),0) -> 0 | E52: =IF(E26<>0,IF(E26=2,Defaults!$H$25,IF(Decision!E26=10,Defaults!$I$25,IF(Decision!E26=50,Defaults!$J$25,Defaults!$K$25))),0) -> 0 | F52: =IF(F26<>0,IF(F26=2,Defaults!$H$25,IF(Decision!F26=10,Defaults!$I$25,IF(Decision!F26=50,Defaults!$J$25,Defaults!$K$25))),0) -> 0 | G52: =IF(G26<>0,IF(G26=2,Defaults!$H$25,IF(Decision!G26=10,Defaults!$I$25,IF(Decision!G26=50,Defaults!$J$25,Defaults!$K$25))),0) -> 0 | H52: =IF(H26<>0,IF(H26=2,Defaults!$H$25,IF(Decision!H26=10,Defaults!$I$25,IF(Decision!H26=50,Defaults!$J$25,Defaults!$K$25))),0) -> 0 | I52: =IF(I26<>0,IF(I26=2,Defaults!$H$25,IF(Decision!I26=10,Defaults!$I$25,IF(Decision!I26=50,Defaults!$J$25,Defaults!$K$25))),0) -> 0 | J52: =IF(J26<>0,IF(J26=2,Defaults!$H$25,IF(Decision!J26=10,Defaults!$I$25,IF(Decision!J26=50,Defaults!$J$25,Defaults!$K$25))),0) -> 0 | K52: =IF(K26<>0,IF(K26=2,Defaults!$H$25,IF(Decision!K26=10,Defaults!$I$25,IF(Decision!K26=50,Defaults!$J$25,Defaults!$K$25))),0) -> 0
A53: Digital Certificate Costs | B53: =IF('ICT Requirements'!C37="DV",Defaults!$AA$25,IF('ICT Requirements'!C37="OV",Defaults!$AB$25,IF('ICT Requirements'!C37="EV",Defaults!$AC$25,0))) -> 0 | C53: =IF('ICT Requirements'!D37="DV",Defaults!$AA$25,IF('ICT Requirements'!D37="OV",Defaults!$AB$25,IF('ICT Requirements'!D37="EV",Defaults!$AC$25,0))) -> 0 | D53: =IF('ICT Requirements'!E37="DV",Defaults!$AA$25,IF('ICT Requirements'!E37="OV",Defaults!$AB$25,IF('ICT Requirements'!E37="EV",Defaults!$AC$25,0))) -> 0 | E53: =IF('ICT Requirements'!F37="DV",Defaults!$AA$25,IF('ICT Requirements'!F37="OV",Defaults!$AB$25,IF('ICT Requirements'!F37="EV",Defaults!$AC$25,0))) -> 0 | F53: =IF('ICT Requirements'!G37="DV",Defaults!$AA$25,IF('ICT Requirements'!G37="OV",Defaults!$AB$25,IF('ICT Requirements'!G37="EV",Defaults!$AC$25,0))) -> 0 | G53: =IF('ICT Requirements'!H37="DV",Defaults!$AA$25,IF('ICT Requirements'!H37="OV",Defaults!$AB$25,IF('ICT Requirements'!H37="EV",Defaults!$AC$25,0))) -> 0 | H53: =IF('ICT Requirements'!I37="DV",Defaults!$AA$25,IF('ICT Requirements'!I37="OV",Defaults!$AB$25,IF('ICT Requirements'!I37="EV",Defaults!$AC$25,0))) -> 0 | I53: =IF('ICT Requirements'!J37="DV",Defaults!$AA$25,IF('ICT Requirements'!J37="OV",Defaults!$AB$25,IF('ICT Requirements'!J37="EV",Defaults!$AC$25,0))) -> 0 | J53: =IF('ICT Requirements'!K37="DV",Defaults!$AA$25,IF('ICT Requirements'!K37="OV",Defaults!$AB$25,IF('ICT Requirements'!K37="EV",Defaults!$AC$25,0))) -> 0 | K53: =IF('ICT Requirements'!L37="DV",Defaults!$AA$25,IF('ICT Requirements'!L37="OV",Defaults!$AB$25,IF('ICT Requirements'!L37="EV",Defaults!$AC$25,0))) -> 0
A54: License Costs | B54: =B40 -> 0 | C54: 0 | D54: 0 | E54: 0 | F54: 0 | G54: 0 | H54: 0 | I54: 0 | J54: 0 | K54: 0
A55: Staff Costs | B55: ='ICT Requirements'!C62+B13 -> 0 | C55: ='ICT Requirements'!D62+C13 -> 0 | D55: ='ICT Requirements'!E62+D13 -> 0 | E55: ='ICT Requirements'!F62+E13 -> 0 | F55: ='ICT Requirements'!G62+F13 -> 0 | G55: ='ICT Requirements'!H62+G13 -> 0 | H55: ='ICT Requirements'!I62+H13 -> 0 | I55: ='ICT Requirements'!J62+I13 -> 0 | J55: ='ICT Requirements'!K62+J13 -> 0 | K55: ='ICT Requirements'!L62+K13 -> 0
A56: Transfer Cost | B56: =IF('ICT Requirements'!C60<>"",'ICT Requirements'!C60,B22*Defaults!$B$44) -> 0 | C56: =IF('ICT Requirements'!D60<>"",'ICT Requirements'!D60,C22*Defaults!$B$44) -> 0 | D56: =IF('ICT Requirements'!E60<>"",'ICT Requirements'!E60,D22*Defaults!$B$44) -> 0 | E56: =IF('ICT Requirements'!F60<>"",'ICT Requirements'!F60,E22*Defaults!$B$44) -> 0 | F56: =IF('ICT Requirements'!G60<>"",'ICT Requirements'!G60,F22*Defaults!$B$44) -> 0 | G56: =IF('ICT Requirements'!H60<>"",'ICT Requirements'!H60,G22*Defaults!$B$44) -> 0 | H56: =IF('ICT Requirements'!I60<>"",'ICT Requirements'!I60,H22*Defaults!$B$44) -> 0 | I56: =IF('ICT Requirements'!J60<>"",'ICT Requirements'!J60,I22*Defaults!$B$44) -> 0 | J56: =IF('ICT Requirements'!K60<>"",'ICT Requirements'!K60,J22*Defaults!$B$44) -> 0 | K56: =IF('ICT Requirements'!L60<>"",'ICT Requirements'!L60,K22*Defaults!$B$44) -> 0
A57: Total | B57: =SUM(B46:B56) -> 0 | C57: 0 | D57: 0 | E57: 0 | F57: 0 | G57: 0 | H57: 0 | I57: 0 | J57: 0 | K57: 0
A59: Private Cloud
A60: Server Costs | B60: =('ICT Requirements'!C26*Defaults!$M$24+'ICT Requirements'!C27*Defaults!$N$24+'ICT Requirements'!C28*Defaults!$O$24+'ICT Requirements'!C29*Defaults!$P$24) -> 0 | C60: =('ICT Requirements'!D26*Defaults!$M$24+'ICT Requirements'!D27*Defaults!$N$24+'ICT Requirements'!D28*Defaults!$O$24+'ICT Requirements'!D29*Defaults!$P$24) -> 0 | D60: =('ICT Requirements'!E26*Defaults!$M$24+'ICT Requirements'!E27*Defaults!$N$24+'ICT Requirements'!E28*Defaults!$O$24+'ICT Requirements'!E29*Defaults!$P$24) -> 0 | E60: =('ICT Requirements'!F26*Defaults!$M$24+'ICT Requirements'!F27*Defaults!$N$24+'ICT Requirements'!F28*Defaults!$O$24+'ICT Requirements'!F29*Defaults!$P$24) -> 0 | F60: =('ICT Requirements'!G26*Defaults!$M$24+'ICT Requirements'!G27*Defaults!$N$24+'ICT Requirements'!G28*Defaults!$O$24+'ICT Requirements'!G29*Defaults!$P$24) -> 0 | G60: =('ICT Requirements'!H26*Defaults!$M$24+'ICT Requirements'!H27*Defaults!$N$24+'ICT Requirements'!H28*Defaults!$O$24+'ICT Requirements'!H29*Defaults!$P$24) -> 0 | H60: =('ICT Requirements'!I26*Defaults!$M$24+'ICT Requirements'!I27*Defaults!$N$24+'ICT Requirements'!I28*Defaults!$O$24+'ICT Requirements'!I29*Defaults!$P$24) -> 0 | I60: =('ICT Requirements'!J26*Defaults!$M$24+'ICT Requirements'!J27*Defaults!$N$24+'ICT Requirements'!J28*Defaults!$O$24+'ICT Requirements'!J29*Defaults!$P$24) -> 0 | J60: =('ICT Requirements'!K26*Defaults!$M$24+'ICT Requirements'!K27*Defaults!$N$24+'ICT Requirements'!K28*Defaults!$O$24+'ICT Requirements'!K29*Defaults!$P$24) -> 0 | K60: =('ICT Requirements'!L26*Defaults!$M$24+'ICT Requirements'!L27*Defaults!$N$24+'ICT Requirements'!L28*Defaults!$O$24+'ICT Requirements'!L29*Defaults!$P$24) -> 0
A61: Performance Storage GB | B61: =B23*Defaults!V24 -> 0 | C61: =C23*Defaults!W24 -> 0 | D61: =D23*Defaults!X24 -> 0 | E61: =E23*Defaults!Y24 -> 0 | F61: =F23*Defaults!Z24 -> 0 | G61: =G23*Defaults!AA24 -> 0 | H61: =H23*Defaults!AB24 -> 0 | I61: =I23*Defaults!AC24 -> 0 | J61: =J23*Defaults!AD24 -> 0 | K61: =K23*Defaults!AE24 -> 0
A62: Standard Storage GB | B62: =B24*Defaults!W24 -> 0 | C62: =C24*Defaults!X24 -> 0 | D62: =D24*Defaults!Y24 -> 0 | E62: =E24*Defaults!Z24 -> 0 | F62: =F24*Defaults!AA24 -> 0 | G62: =G24*Defaults!AB24 -> 0 | H62: =H24*Defaults!AC24 -> 0 | I62: =I24*Defaults!AD24 -> 0 | J62: =J24*Defaults!AE24 -> 0 | K62: =K24*Defaults!AF24 -> 0
A63: Archive Storage GB | B63: =B25*Defaults!X24 -> 0 | C63: =C25*Defaults!Y24 -> 0 | D63: =D25*Defaults!Z24 -> 0 | E63: =E25*Defaults!AA24 -> 0 | F63: =F25*Defaults!AB24 -> 0 | G63: =G25*Defaults!AC24 -> 0 | H63: =H25*Defaults!AD24 -> 0 | I63: =I25*Defaults!AE24 -> 0 | J63: =J25*Defaults!AF24 -> 0 | K63: =K25*Defaults!AG24 -> 0
A64: Backup Costs | B64: ='ICT Requirements'!C$45*Defaults!$Z$24 -> 0 | C64: ='ICT Requirements'!D$45*Defaults!$Z$24 -> 0 | D64: ='ICT Requirements'!E$45*Defaults!$Z$24 -> 0 | E64: ='ICT Requirements'!F$45*Defaults!$Z$24 -> 0 | F64: ='ICT Requirements'!G$45*Defaults!$Z$24 -> 0 | G64: ='ICT Requirements'!H$45*Defaults!$Z$24 -> 0 | H64: ='ICT Requirements'!I$45*Defaults!$Z$24 -> 0 | I64: ='ICT Requirements'!J$45*Defaults!$Z$24 -> 0 | J64: ='ICT Requirements'!K$45*Defaults!$Z$24 -> 0 | K64: ='ICT Requirements'!L$45*Defaults!$Z$24 -> 0
A65: Network Costs | B65: =B$14*B$8 -> 0 | C65: =C$14*C$8 -> 0 | D65: 0 | E65: 0 | F65: 0 | G65: 0 | H65: 0 | I65: 0 | J65: 0 | K65: 0
A66: Bandwidth | B66: =IF(B26<>0,IF(B26=2,Defaults!$H$24,IF(Decision!B26=10,Defaults!$I$24,IF(Decision!B26=50,Defaults!$J$24,Defaults!$K$24))),0) -> 0 | C66: =IF(C26<>0,IF(C26=2,Defaults!$H$24,IF(Decision!C26=10,Defaults!$I$24,IF(Decision!C26=50,Defaults!$J$24,Defaults!$K$24))),0) -> 0 | D66: =IF(D26<>0,IF(D26=2,Defaults!$H$24,IF(Decision!D26=10,Defaults!$I$24,IF(Decision!D26=50,Defaults!$J$24,Defaults!$K$24))),0) -> 0 | E66: =IF(E26<>0,IF(E26=2,Defaults!$H$24,IF(Decision!E26=10,Defaults!$I$24,IF(Decision!E26=50,Defaults!$J$24,Defaults!$K$24))),0) -> 0 | F66: =IF(F26<>0,IF(F26=2,Defaults!$H$24,IF(Decision!F26=10,Defaults!$I$24,IF(Decision!F26=50,Defaults!$J$24,Defaults!$K$24))),0) -> 0 | G66: =IF(G26<>0,IF(G26=2,Defaults!$H$24,IF(Decision!G26=10,Defaults!$I$24,IF(Decision!G26=50,Defaults!$J$24,Defaults!$K$24))),0) -> 0 | H66: =IF(H26<>0,IF(H26=2,Defaults!$H$24,IF(Decision!H26=10,Defaults!$I$24,IF(Decision!H26=50,Defaults!$J$24,Defaults!$K$24))),0) -> 0 | I66: =IF(I26<>0,IF(I26=2,Defaults!$H$24,IF(Decision!I26=10,Defaults!$I$24,IF(Decision!I26=50,Defaults!$J$24,Defaults!$K$24))),0) -> 0 | J66: =IF(J26<>0,IF(J26=2,Defaults!$H$24,IF(Decision!J26=10,Defaults!$I$24,IF(Decision!J26=50,Defaults!$J$24,Defaults!$K$24))),0) -> 0 | K66: =IF(K26<>0,IF(K26=2,Defaults!$H$24,IF(Decision!K26=10,Defaults!$I$24,IF(Decision!K26=50,Defaults!$J$24,Defaults!$K$24))),0) -> 0
A67: Digital Certificate Costs | B67: =IF('ICT Requirements'!C37="DV",Defaults!$AA$24,IF('ICT Requirements'!C37="OV",Defaults!$AB$24,IF('ICT Requirements'!C37="EV",Defaults!$AC$24,0))) -> 0 | C67: =IF('ICT Requirements'!D37="DV",Defaults!$AA$24,IF('ICT Requirements'!D37="OV",Defaults!$AB$24,IF('ICT Requirements'!D37="EV",Defaults!$AC$24,0))) -> 0 | D67: =IF('ICT Requirements'!E37="DV",Defaults!$AA$24,IF('ICT Requirements'!E37="OV",Defaults!$AB$24,IF('ICT Requirements'!E37="EV",Defaults!$AC$24,0))) -> 0 | E67: =IF('ICT Requirements'!F37="DV",Defaults!$AA$24,IF('ICT Requirements'!F37="OV",Defaults!$AB$24,IF('ICT Requirements'!F37="EV",Defaults!$AC$24,0))) -> 0 | F67: =IF('ICT Requirements'!G37="DV",Defaults!$AA$24,IF('ICT Requirements'!G37="OV",Defaults!$AB$24,IF('ICT Requirements'!G37="EV",Defaults!$AC$24,0))) -> 0 | G67: =IF('ICT Requirements'!H37="DV",Defaults!$AA$24,IF('ICT Requirements'!H37="OV",Defaults!$AB$24,IF('ICT Requirements'!H37="EV",Defaults!$AC$24,0))) -> 0 | H67: =IF('ICT Requirements'!I37="DV",Defaults!$AA$24,IF('ICT Requirements'!I37="OV",Defaults!$AB$24,IF('ICT Requirements'!I37="EV",Defaults!$AC$24,0))) -> 0 | I67: =IF('ICT Requirements'!J37="DV",Defaults!$AA$24,IF('ICT Requirements'!J37="OV",Defaults!$AB$24,IF('ICT Requirements'!J37="EV",Defaults!$AC$24,0))) -> 0 | J67: =IF('ICT Requirements'!K37="DV",Defaults!$AA$24,IF('ICT Requirements'!K37="OV",Defaults!$AB$24,IF('ICT Requirements'!K37="EV",Defaults!$AC$24,0))) -> 0 | K67: =IF('ICT Requirements'!L37="DV",Defaults!$AA$24,IF('ICT Requirements'!L37="OV",Defaults!$AB$24,IF('ICT Requirements'!L37="EV",Defaults!$AC$24,0))) -> 0
A68: License Costs | B68: =B54 -> 0 | C68: =C54 -> 0 | D68: 0 | E68: 0 | F68: 0 | G68: 0 | H68: 0 | I68: 0 | J68: 0 | K68: 0
A69: Staff Costs | B69: ='ICT Requirements'!C62+B13 -> 0 | C69: ='ICT Requirements'!D62+C13 -> 0 | D69: ='ICT Requirements'!E62+D13 -> 0 | E69: ='ICT Requirements'!F62+E13 -> 0 | F69: ='ICT Requirements'!G62+F13 -> 0 | G69: ='ICT Requirements'!H62+G13 -> 0 | H69: ='ICT Requirements'!I62+H13 -> 0 | I69: ='ICT Requirements'!J62+I13 -> 0 | J69: ='ICT Requirements'!K62+J13 -> 0 | K69: ='ICT Requirements'!L62+K13 -> 0
A70: Transfer Cost | B70: =IF('ICT Requirements'!C60<>"",'ICT Requirements'!C60,B22*Defaults!$B$44) -> 0 | C70: =IF('ICT Requirements'!D60<>"",'ICT Requirements'!D60,C22*Defaults!$B$44) -> 0 | D70: =IF('ICT Requirements'!E60<>"",'ICT Requirements'!E60,D22*Defaults!$B$44) -> 0 | E70: =IF('ICT Requirements'!F60<>"",'ICT Requirements'!F60,E22*Defaults!$B$44) -> 0 | F70: =IF('ICT Requirements'!G60<>"",'ICT Requirements'!G60,F22*Defaults!$B$44) -> 0 | G70: =IF('ICT Requirements'!H60<>"",'ICT Requirements'!H60,G22*Defaults!$B$44) -> 0 | H70: =IF('ICT Requirements'!I60<>"",'ICT Requirements'!I60,H22*Defaults!$B$44) -> 0 | I70: =IF('ICT Requirements'!J60<>"",'ICT Requirements'!J60,I22*Defaults!$B$44) -> 0 | J70: =IF('ICT Requirements'!K60<>"",'ICT Requirements'!K60,J22*Defaults!$B$44) -> 0 | K70: =IF('ICT Requirements'!L60<>"",'ICT Requirements'!L60,K22*Defaults!$B$44) -> 0
A71: Total | B71: =SUM(B60:B70) -> 0 | C71: =SUM(C60:C70) -> 0 | D71: 0 | E71: 0 | F71: 0 | G71: 0 | H71: 0 | I71: 0 | J71: 0 | K71: 0
A74: Location
A75: Physical Access Required | B75: ='ICT Requirements'!C55 -> 0 | C75: ='ICT Requirements'!D55 -> 0 | D75: ='ICT Requirements'!E55 -> 0 | E75: ='ICT Requirements'!F55 -> 0 | F75: ='ICT Requirements'!G55 -> 0 | G75: ='ICT Requirements'!H55 -> 0 | H75: ='ICT Requirements'!I55 -> 0 | I75: ='ICT Requirements'!J55 -> 0 | J75: ='ICT Requirements'!K55 -> 0 | K75: ='ICT Requirements'!L55 -> 0
A76: Location Available? | B76: =IF('ICT Requirements'!C56="Yes","No",VLOOKUP(B5,'Look Up Tables'!$E$58:$G$88,3,1)) ->  | C76: =IF('ICT Requirements'!D56="Yes","No",VLOOKUP(C5,'Look Up Tables'!$E$58:$G$88,3,1)) ->  | D76: =IF('ICT Requirements'!E56="Yes","No",VLOOKUP(D5,'Look Up Tables'!$E$58:$G$88,3,1)) ->  | E76: =IF('ICT Requirements'!F56="Yes","No",VLOOKUP(E5,'Look Up Tables'!$E$58:$G$88,3,1)) ->  | F76: =IF('ICT Requirements'!G56="Yes","No",VLOOKUP(F5,'Look Up Tables'!$E$58:$G$88,3,1)) ->  | G76: =IF('ICT Requirements'!H56="Yes","No",VLOOKUP(G5,'Look Up Tables'!$E$58:$G$88,3,1)) ->  | H76: =IF('ICT Requirements'!I56="Yes","No",VLOOKUP(H5,'Look Up Tables'!$E$58:$G$88,3,1)) ->  | I76: =IF('ICT Requirements'!J56="Yes","No",VLOOKUP(I5,'Look Up Tables'!$E$58:$G$88,3,1)) ->  | J76: =IF('ICT Requirements'!K56="Yes","No",VLOOKUP(J5,'Look Up Tables'!$E$58:$G$88,3,1)) ->  | K76: =IF('ICT Requirements'!L56="Yes","No",VLOOKUP(K5,'Look Up Tables'!$E$58:$G$88,3,1)) -> 
A77: Colocation | B77: =IF(B75<>0,IF(B75="Yes",IF(B76="Yes",2,1),3),4) -> 4 | C77: =IF(C75<>0,IF(C75="Yes",IF(C76="Yes",2,1),3),4) -> 4 | D77: 4 | E77: 4 | F77: 4 | G77: 4 | H77: 4 | I77: 4 | J77: 4 | K77: 4
A78: Public Cloud | B78: =IF(B75="Yes",1,IF(B75<>0,IF('ICT Requirements'!C56="Yes",1,3),4)) -> 4 | C78: =IF(C75="Yes",1,IF(C75<>0,IF('ICT Requirements'!D56="Yes",1,3),4)) -> 4 | D78: =IF(D75="Yes",1,IF(D75<>0,IF('ICT Requirements'!E56="Yes",1,3),4)) -> 4 | E78: =IF(E75="Yes",1,IF(E75<>0,IF('ICT Requirements'!F56="Yes",1,3),4)) -> 4 | F78: =IF(F75="Yes",1,IF(F75<>0,IF('ICT Requirements'!G56="Yes",1,3),4)) -> 4 | G78: =IF(G75="Yes",1,IF(G75<>0,IF('ICT Requirements'!H56="Yes",1,3),4)) -> 4 | H78: =IF(H75="Yes",1,IF(H75<>0,IF('ICT Requirements'!I56="Yes",1,3),4)) -> 4 | I78: =IF(I75="Yes",1,IF(I75<>0,IF('ICT Requirements'!J56="Yes",1,3),4)) -> 4 | J78: =IF(J75="Yes",1,IF(J75<>0,IF('ICT Requirements'!K56="Yes",1,3),4)) -> 4 | K78: =IF(K75="Yes",1,IF(K75<>0,IF('ICT Requirements'!L56="Yes",1,3),4)) -> 4
A79: Private Cloud | B79: =IF(B75="Yes",1,IF(B75<>0,IF('ICT Requirements'!C56="Yes",1,3),4)) -> 4 | C79: =IF(C75="Yes",1,IF(C75<>0,IF('ICT Requirements'!D56="Yes",1,3),4)) -> 4 | D79: =IF(D75="Yes",1,IF(D75<>0,IF('ICT Requirements'!E56="Yes",1,3),4)) -> 4 | E79: =IF(E75="Yes",1,IF(E75<>0,IF('ICT Requirements'!F56="Yes",1,3),4)) -> 4 | F79: =IF(F75="Yes",1,IF(F75<>0,IF('ICT Requirements'!G56="Yes",1,3),4)) -> 4 | G79: =IF(G75="Yes",1,IF(G75<>0,IF('ICT Requirements'!H56="Yes",1,3),4)) -> 4 | H79: =IF(H75="Yes",1,IF(H75<>0,IF('ICT Requirements'!I56="Yes",1,3),4)) -> 4 | I79: =IF(I75="Yes",1,IF(I75<>0,IF('ICT Requirements'!J56="Yes",1,3),4)) -> 4 | J79: =IF(J75="Yes",1,IF(J75<>0,IF('ICT Requirements'!K56="Yes",1,3),4)) -> 4 | K79: =IF(K75="Yes",1,IF(K75<>0,IF('ICT Requirements'!L56="Yes",1,3),4)) -> 4
A81: Security
A82: Adequate | B82: =IF('ICT Requirements'!C58="Yes","No","Yes") -> Yes | C82: =IF('ICT Requirements'!D58="Yes","No","Yes") -> Yes | D82: =IF('ICT Requirements'!E58="Yes","No","Yes") -> Yes | E82: =IF('ICT Requirements'!F58="Yes","No","Yes") -> Yes | F82: =IF('ICT Requirements'!G58="Yes","No","Yes") -> Yes | G82: =IF('ICT Requirements'!H58="Yes","No","Yes") -> Yes | H82: =IF('ICT Requirements'!I58="Yes","No","Yes") -> Yes | I82: =IF('ICT Requirements'!J58="Yes","No","Yes") -> Yes | J82: =IF('ICT Requirements'!K58="Yes","No","Yes") -> Yes | K82: =IF('ICT Requirements'!L58="Yes","No","Yes") -> Yes
A83: Colocation | B83: 3 | C83: 3 | D83: 3 | E83: 3 | F83: 3 | G83: 3 | H83: 3 | I83: 3 | J83: 3 | K83: 3
A84: Public Cloud | B84: =IF(B82="Yes",3,IF(B82<>0,1,4)) -> 3 | C84: =IF(C82="Yes",3,IF(C82<>0,1,4)) -> 3 | D84: 3 | E84: 3 | F84: 3 | G84: 3 | H84: 3 | I84: 3 | J84: 3 | K84: 3
A85: Private Cloud | B85: =IF(B82="Yes",3,IF(B82<>0,1,4)) -> 3 | C85: =IF(C82="Yes",3,IF(C82<>0,1,4)) -> 3 | D85: 3 | E85: 3 | F85: 3 | G85: 3 | H85: 3 | I85: 3 | J85: 3 | K85: 3
A87: Viable?
A88: Colocation | B88: =IF(IF(B77=1,FALSE,IF(B83=1,FALSE,TRUE))=TRUE,'Options Report'!B14,1000000000000) ->  | C88: =IF(IF(C77=1,FALSE,IF(C83=1,FALSE,TRUE))=TRUE,'Options Report'!C14,1000000000000) ->  | D88: =IF(IF(D77=1,FALSE,IF(D83=1,FALSE,TRUE))=TRUE,'Options Report'!D14,1000000000000) ->  | E88: =IF(IF(E77=1,FALSE,IF(E83=1,FALSE,TRUE))=TRUE,'Options Report'!E14,1000000000000) ->  | F88: =IF(IF(F77=1,FALSE,IF(F83=1,FALSE,TRUE))=TRUE,'Options Report'!F14,1000000000000) ->  | G88: =IF(IF(G77=1,FALSE,IF(G83=1,FALSE,TRUE))=TRUE,'Options Report'!G14,1000000000000) ->  | H88: =IF(IF(H77=1,FALSE,IF(H83=1,FALSE,TRUE))=TRUE,'Options Report'!H14,1000000000000) ->  | I88: =IF(IF(I77=1,FALSE,IF(I83=1,FALSE,TRUE))=TRUE,'Options Report'!I14,1000000000000) ->  | J88: =IF(IF(J77=1,FALSE,IF(J83=1,FALSE,TRUE))=TRUE,'Options Report'!J14,1000000000000) ->  | K88: =IF(IF(K77=1,FALSE,IF(K83=1,FALSE,TRUE))=TRUE,'Options Report'!K14,1000000000000) -> 
A89: Public Cloud | B89: =IF(IF(B78=1,FALSE,IF(B84=1,FALSE,TRUE))=TRUE,'Options Report'!B15,1000000000000) ->  | C89: =IF(IF(C78=1,FALSE,IF(C84=1,FALSE,TRUE))=TRUE,'Options Report'!C15,1000000000000) ->  | D89: =IF(IF(D78=1,FALSE,IF(D84=1,FALSE,TRUE))=TRUE,'Options Report'!D15,1000000000000) ->  | E89: =IF(IF(E78=1,FALSE,IF(E84=1,FALSE,TRUE))=TRUE,'Options Report'!E15,1000000000000) ->  | F89: =IF(IF(F78=1,FALSE,IF(F84=1,FALSE,TRUE))=TRUE,'Options Report'!F15,1000000000000) ->  | G89: =IF(IF(G78=1,FALSE,IF(G84=1,FALSE,TRUE))=TRUE,'Options Report'!G15,1000000000000) ->  | H89: =IF(IF(H78=1,FALSE,IF(H84=1,FALSE,TRUE))=TRUE,'Options Report'!H15,1000000000000) ->  | I89: =IF(IF(I78=1,FALSE,IF(I84=1,FALSE,TRUE))=TRUE,'Options Report'!I15,1000000000000) ->  | J89: =IF(IF(J78=1,FALSE,IF(J84=1,FALSE,TRUE))=TRUE,'Options Report'!J15,1000000000000) ->  | K89: =IF(IF(K78=1,FALSE,IF(K84=1,FALSE,TRUE))=TRUE,'Options Report'!K15,1000000000000) -> 
A90: Private Cloud | B90: =IF(IF(B79=1,FALSE,IF(B85=1,FALSE,TRUE))=TRUE,'Options Report'!B16,1000000000000) ->  | C90: =IF(IF(C79=1,FALSE,IF(C85=1,FALSE,TRUE))=TRUE,'Options Report'!C16,1000000000000) ->  | D90: =IF(IF(D79=1,FALSE,IF(D85=1,FALSE,TRUE))=TRUE,'Options Report'!D16,1000000000000) ->  | E90: =IF(IF(E79=1,FALSE,IF(E85=1,FALSE,TRUE))=TRUE,'Options Report'!E16,1000000000000) ->  | F90: =IF(IF(F79=1,FALSE,IF(F85=1,FALSE,TRUE))=TRUE,'Options Report'!F16,1000000000000) ->  | G90: =IF(IF(G79=1,FALSE,IF(G85=1,FALSE,TRUE))=TRUE,'Options Report'!G16,1000000000000) ->  | H90: =IF(IF(H79=1,FALSE,IF(H85=1,FALSE,TRUE))=TRUE,'Options Report'!H16,1000000000000) ->  | I90: =IF(IF(I79=1,FALSE,IF(I85=1,FALSE,TRUE))=TRUE,'Options Report'!I16,1000000000000) ->  | J90: =IF(IF(J79=1,FALSE,IF(J85=1,FALSE,TRUE))=TRUE,'Options Report'!J16,1000000000000) ->  | K90: =IF(IF(K79=1,FALSE,IF(K85=1,FALSE,TRUE))=TRUE,'Options Report'!K16,1000000000000) -> 
A91: Custom Solution | B91: =IF('ICT Requirements'!C63>0,'ICT Requirements'!C63,"") ->  | C91: =IF('ICT Requirements'!D63>0,'ICT Requirements'!D63,"") ->  | D91: =IF('ICT Requirements'!E63>0,'ICT Requirements'!E63,"") ->  | E91: =IF('ICT Requirements'!F63>0,'ICT Requirements'!F63,"") ->  | F91: =IF('ICT Requirements'!G63>0,'ICT Requirements'!G63,"") ->  | G91: =IF('ICT Requirements'!H63>0,'ICT Requirements'!H63,"") ->  | H91: =IF('ICT Requirements'!I63>0,'ICT Requirements'!I63,"") ->  | I91: =IF('ICT Requirements'!J63>0,'ICT Requirements'!J63,"") ->  | J91: =IF('ICT Requirements'!K63>0,'ICT Requirements'!K63,"") ->  | K91: =IF('ICT Requirements'!L63>0,'ICT Requirements'!L63,"") -> 
A92: Current Cost | B92: ='Options Report'!B13 ->  | C92: ='Options Report'!C13 ->  | D92: ='Options Report'!D13 ->  | E92: ='Options Report'!E13 ->  | F92: ='Options Report'!F13 ->  | G92: ='Options Report'!G13 ->  | H92: ='Options Report'!H13 ->  | I92: ='Options Report'!I13 ->  | J92: ='Options Report'!J13 ->  | K92: ='Options Report'!K13 -> 
B93: =MIN(B88:B92) -> 0 | C93: =MIN(C88:C92) -> 0 | D93: 0 | E93: 0 | F93: 0 | G93: 0 | H93: 0 | I93: 0 | J93: 0 | K93: 0
B94: =IF(B75=0,"",IF(B93=B88,$A$88,IF(B93=B89,$A$89,IF(B93=B90,$A$90,IF(B93=B91,$A$91,"Existing Arrangement"))))) ->  | C94: =IF(C75=0,"",IF(C93=C88,$A$88,IF(C93=C89,$A$89,IF(C93=C90,$A$90,IF(C93=C91,$A$91,"Existing Arrangement"))))) -> 

Sheet ICT Provision Report (hidden)
E1: =Introduction!E5 -> 0 | K1: =NOW() -> 2016-10-31T11:08:05.270
E2: ICT Status Report
A4: Summary of Provision | E4: No of Services | F4: No of Physical Servers | G4: No of Virtualised Servers | H4: Storage Capacity TB | I4: Bandwidth Requirements Mbps | J4: Legacy Servers | K4: Annual Colocation Costs | L4: Annual Managed Service Costs
A5: Server in own datacentre | E5: =COUNTIF('ICT Requirements'!$C$19:$L$19,'ICT Provision Report'!A5) -> 0 | F5: =SUMIF('ICT Requirements'!$C$19:$L$19,'ICT Provision Report'!A5,'ICT Requirements'!$C$24:$L$24) -> 0 | I5: =SUMIF('ICT Requirements'!$C$19:$L$19,'ICT Provision Report'!A5,'ICT Requirements'!$C$35:$L$35)*1000 -> 0 | J5: =SUMIFS('ICT Requirements'!$C$24:$L$24,'ICT Requirements'!$C$19:$L$19,'ICT Provision Report'!A5,'ICT Requirements'!$C$48:$L$48,"Yes") -> 0
A6: Colocated server | E6: =COUNTIF('ICT Requirements'!$C$19:$L$19,'ICT Provision Report'!A6) -> 0 | F6: =SUMIF('ICT Requirements'!$C$19:$L$19,'ICT Provision Report'!A6,'ICT Requirements'!$C$24:$L$24) -> 0 | I6: =SUMIF('ICT Requirements'!$C$19:$L$19,'ICT Provision Report'!A6,'ICT Requirements'!$C$35:$L$35)*1000 -> 0 | J6: =SUMIFS('ICT Requirements'!$C$24:$L$24,'ICT Requirements'!$C$19:$L$19,'ICT Provision Report'!A6,'ICT Requirements'!$C$48:$L$48,"Yes") -> 0
A7: Virtualised server in own datacentre | E7: =COUNTIF('ICT Requirements'!$C$19:$L$19,'ICT Provision Report'!A7) -> 0 | F7: =SUMIF('ICT Requirements'!$C$19:$L$19,'ICT Provision Report'!A7,'ICT Requirements'!$C$24:$L$24) -> 0 | I7: =SUMIF('ICT Requirements'!$C$19:$L$19,'ICT Provision Report'!A7,'ICT Requirements'!$C$35:$L$35)*1000 -> 0 | J7: =SUMIFS('ICT Requirements'!$C$24:$L$24,'ICT Requirements'!$C$19:$L$19,'ICT Provision Report'!A7,'ICT Requirements'!$C$48:$L$48,"Yes") -> 0
A8: Virtualised colocated server | E8: =COUNTIF('ICT Requirements'!$C$19:$L$19,'ICT Provision Report'!A8) -> 0 | F8: =SUMIF('ICT Requirements'!$C$19:$L$19,'ICT Provision Report'!A8,'ICT Requirements'!$C$24:$L$24) -> 0 | I8: =SUMIF('ICT Requirements'!$C$19:$L$19,'ICT Provision Report'!A8,'ICT Requirements'!$C$35:$L$35)*1000 -> 0 | J8: =SUMIFS('ICT Requirements'!$C$24:$L$24,'ICT Requirements'!$C$19:$L$19,'ICT Provision Report'!A8,'ICT Requirements'!$C$48:$L$48,"Yes") -> 0
A9: Managed service | E9: =COUNTIF('ICT Requirements'!$C$19:$L$19,'ICT Provision Report'!A9) -> 0 | F9: =SUMIF('ICT Requirements'!$C$19:$L$19,'ICT Provision Report'!A9,'ICT Requirements'!$C$24:$L$24) -> 0 | I9: =SUMIF('ICT Requirements'!$C$19:$L$19,'ICT Provision Report'!A9,'ICT Requirements'!$C$35:$L$35)*1000 -> 0 | J9: =SUMIFS('ICT Requirements'!$C$24:$L$24,'ICT Requirements'!$C$19:$L$19,'ICT Provision Report'!A9,'ICT Requirements'!$C$48:$L$48,"Yes") -> 0
A10: Private Cloud | E10: =COUNTIF('ICT Requirements'!$C$19:$L$19,'ICT Provision Report'!A10) -> 0 | F10: =SUMIF('ICT Requirements'!$C$19:$L$19,'ICT Provision Report'!A10,'ICT Requirements'!$C$24:$L$24) -> 0 | I10: =SUMIF('ICT Requirements'!$C$19:$L$19,'ICT Provision Report'!A10,'ICT Requirements'!$C$35:$L$35)*1000 -> 0 | J10: =SUMIFS('ICT Requirements'!$C$24:$L$24,'ICT Requirements'!$C$19:$L$19,'ICT Provision Report'!A10,'ICT Requirements'!$C$48:$L$48,"Yes") -> 0
A11: Public Cloud | E11: =COUNTIF('ICT Requirements'!$C$19:$L$19,'ICT Provision Report'!A11) -> 0 | F11: =SUMIF('ICT Requirements'!$C$19:$L$19,'ICT Provision Report'!A11,'ICT Requirements'!$C$24:$L$24) -> 0 | I11: =SUMIF('ICT Requirements'!$C$19:$L$19,'ICT Provision Report'!A11,'ICT Requirements'!$C$35:$L$35)*1000 -> 0 | J11: =SUMIFS('ICT Requirements'!$C$24:$L$24,'ICT Requirements'!$C$19:$L$19,'ICT Provision Report'!A11,'ICT Requirements'!$C$48:$L$48,"Yes") -> 0
A12: Software as a service | E12: =COUNTIF('ICT Requirements'!$C$19:$L$19,'ICT Provision Report'!A12) -> 0 | F12: =SUMIF('ICT Requirements'!$C$19:$L$19,'ICT Provision Report'!A12,'ICT Requirements'!$C$24:$L$24) -> 0 | I12: =SUMIF('ICT Requirements'!$C$19:$L$19,'ICT Provision Report'!A12,'ICT Requirements'!$C$35:$L$35)*1000 -> 0 | J12: =SUMIFS('ICT Requirements'!$C$24:$L$24,'ICT Requirements'!$C$19:$L$19,'ICT Provision Report'!A12,'ICT Requirements'!$C$48:$L$48,"Yes") -> 0
A13: Platform as a service | E13: =COUNTIF('ICT Requirements'!$C$19:$L$19,'ICT Provision Report'!A13) -> 0 | F13: =SUMIF('ICT Requirements'!$C$19:$L$19,'ICT Provision Report'!A13,'ICT Requirements'!$C$24:$L$24) -> 0 | I13: =SUMIF('ICT Requirements'!$C$19:$L$19,'ICT Provision Report'!A13,'ICT Requirements'!$C$35:$L$35)*1000 -> 0 | J13: =SUMIFS('ICT Requirements'!$C$24:$L$24,'ICT Requirements'!$C$19:$L$19,'ICT Provision Report'!A13,'ICT Requirements'!$C$48:$L$48,"Yes") -> 0
A14: Infrastructure as a service | E14: =COUNTIF('ICT Requirements'!$C$19:$L$19,'ICT Provision Report'!A14) -> 0 | F14: =SUMIF('ICT Requirements'!$C$19:$L$19,'ICT Provision Report'!A14,'ICT Requirements'!$C$24:$L$24) -> 0 | I14: =SUMIF('ICT Requirements'!$C$19:$L$19,'ICT Provision Report'!A14,'ICT Requirements'!$C$35:$L$35)*1000 -> 0 | J14: =SUMIFS('ICT Requirements'!$C$24:$L$24,'ICT Requirements'!$C$19:$L$19,'ICT Provision Report'!A14,'ICT Requirements'!$C$48:$L$48,"Yes") -> 0
A15: Total | E15: =SUM(E5:E14) -> 0 | F15: =SUM(F5:F14) -> 0 | G15: 0 | H15: 0 | I15: 0 | J15: 0 | K15: 0 | L15: 0
A17: Service Detail | E17: Location Restrictions | H17: Security constraints | I17: Gov Network Requirement | K17: Recovery Requirement
E18: Location constraints for data | F18: Location constraints for Application | G18: Regular physical access to server required? | J18: Minimum Availability | K18: Time | L18: Type
A19: ='ICT Requirements'!C18 -> 0 | E19: =HLOOKUP($A19,'ICT Requirements'!$C$18:$L$58,21,0) ->  | F19: =HLOOKUP($A19,'ICT Requirements'!$C$18:$L$58,22,0) ->  | G19: =HLOOKUP($A19,'ICT Requirements'!$C$18:$L$58,23,0) ->  | H19: =HLOOKUP($A19,'ICT Requirements'!$C$18:$L$58,24,0) ->  | I19: 0 | J19: 0 | K19: =HLOOKUP($A19,'ICT Requirements'!$C$18:$L$58,27,0) ->  | L19: =HLOOKUP($A19,'ICT Requirements'!$C$18:$L$58,28,0) -> 
A20: ='ICT Requirements'!D18 -> 0 | E20: =HLOOKUP($A20,'ICT Requirements'!$C$18:$L$58,21,0) ->  | F20: =HLOOKUP($A20,'ICT Requirements'!$C$18:$L$58,22,0) ->  | G20: =HLOOKUP($A20,'ICT Requirements'!$C$18:$L$58,23,0) ->  | H20: =HLOOKUP($A20,'ICT Requirements'!$C$18:$L$58,24,0) ->  | I20: 0 | J20: 0 | K20: =HLOOKUP($A20,'ICT Requirements'!$C$18:$L$58,27,0) ->  | L20: =HLOOKUP($A20,'ICT Requirements'!$C$18:$L$58,28,0) -> 
A21: ='ICT Requirements'!E18 -> 0 | E21: =HLOOKUP($A21,'ICT Requirements'!$C$18:$L$58,21,0) ->  | F21: =HLOOKUP($A21,'ICT Requirements'!$C$18:$L$58,22,0) ->  | G21: =HLOOKUP($A21,'ICT Requirements'!$C$18:$L$58,23,0) ->  | H21: =HLOOKUP($A21,'ICT Requirements'!$C$18:$L$58,24,0) ->  | I21: 0 | J21: 0 | K21: =HLOOKUP($A21,'ICT Requirements'!$C$18:$L$58,27,0) ->  | L21: =HLOOKUP($A21,'ICT Requirements'!$C$18:$L$58,28,0) -> 
A22: ='ICT Requirements'!F18 -> 0 | E22: =HLOOKUP($A22,'ICT Requirements'!$C$18:$L$58,21,0) ->  | F22: =HLOOKUP($A22,'ICT Requirements'!$C$18:$L$58,22,0) ->  | G22: =HLOOKUP($A22,'ICT Requirements'!$C$18:$L$58,23,0) ->  | H22: =HLOOKUP($A22,'ICT Requirements'!$C$18:$L$58,24,0) ->  | I22: 0 | J22: 0 | K22: =HLOOKUP($A22,'ICT Requirements'!$C$18:$L$58,27,0) ->  | L22: =HLOOKUP($A22,'ICT Requirements'!$C$18:$L$58,28,0) -> 
A23: ='ICT Requirements'!G18 -> 0 | E23: =HLOOKUP($A23,'ICT Requirements'!$C$18:$L$58,21,0) ->  | F23: =HLOOKUP($A23,'ICT Requirements'!$C$18:$L$58,22,0) ->  | G23: =HLOOKUP($A23,'ICT Requirements'!$C$18:$L$58,23,0) ->  | H23: =HLOOKUP($A23,'ICT Requirements'!$C$18:$L$58,24,0) ->  | I23: 0 | J23: 0 | K23: =HLOOKUP($A23,'ICT Requirements'!$C$18:$L$58,27,0) ->  | L23: =HLOOKUP($A23,'ICT Requirements'!$C$18:$L$58,28,0) -> 
A24: ='ICT Requirements'!H18 -> 0 | E24: =HLOOKUP($A24,'ICT Requirements'!$C$18:$L$58,21,0) ->  | F24: =HLOOKUP($A24,'ICT Requirements'!$C$18:$L$58,22,0) ->  | G24: =HLOOKUP($A24,'ICT Requirements'!$C$18:$L$58,23,0) ->  | H24: =HLOOKUP($A24,'ICT Requirements'!$C$18:$L$58,24,0) ->  | I24: 0 | J24: 0 | K24: =HLOOKUP($A24,'ICT Requirements'!$C$18:$L$58,27,0) ->  | L24: =HLOOKUP($A24,'ICT Requirements'!$C$18:$L$58,28,0) -> 
A25: ='ICT Requirements'!I18 -> 0 | E25: =HLOOKUP($A25,'ICT Requirements'!$C$18:$L$58,21,0) ->  | F25: =HLOOKUP($A25,'ICT Requirements'!$C$18:$L$58,22,0) ->  | G25: =HLOOKUP($A25,'ICT Requirements'!$C$18:$L$58,23,0) ->  | H25: =HLOOKUP($A25,'ICT Requirements'!$C$18:$L$58,24,0) ->  | I25: 0 | J25: 0 | K25: =HLOOKUP($A25,'ICT Requirements'!$C$18:$L$58,27,0) ->  | L25: =HLOOKUP($A25,'ICT Requirements'!$C$18:$L$58,28,0) -> 
A26: ='ICT Requirements'!J18 -> 0 | E26: =HLOOKUP($A26,'ICT Requirements'!$C$18:$L$58,21,0) ->  | F26: =HLOOKUP($A26,'ICT Requirements'!$C$18:$L$58,22,0) ->  | G26: =HLOOKUP($A26,'ICT Requirements'!$C$18:$L$58,23,0) ->  | H26: =HLOOKUP($A26,'ICT Requirements'!$C$18:$L$58,24,0) ->  | I26: 0 | J26: 0 | K26: =HLOOKUP($A26,'ICT Requirements'!$C$18:$L$58,27,0) ->  | L26: =HLOOKUP($A26,'ICT Requirements'!$C$18:$L$58,28,0) -> 
A27: ='ICT Requirements'!K18 -> 0 | E27: =HLOOKUP($A27,'ICT Requirements'!$C$18:$L$58,21,0) ->  | F27: =HLOOKUP($A27,'ICT Requirements'!$C$18:$L$58,22,0) ->  | G27: =HLOOKUP($A27,'ICT Requirements'!$C$18:$L$58,23,0) ->  | H27: =HLOOKUP($A27,'ICT Requirements'!$C$18:$L$58,24,0) ->  | I27: 0 | J27: 0 | K27: =HLOOKUP($A27,'ICT Requirements'!$C$18:$L$58,27,0) ->  | L27: =HLOOKUP($A27,'ICT Requirements'!$C$18:$L$58,28,0) -> 
A28: ='ICT Requirements'!L18 -> 0 | E28: =HLOOKUP($A28,'ICT Requirements'!$C$18:$L$58,21,0) ->  | F28: =HLOOKUP($A28,'ICT Requirements'!$C$18:$L$58,22,0) ->  | G28: =HLOOKUP($A28,'ICT Requirements'!$C$18:$L$58,23,0) ->  | H28: =HLOOKUP($A28,'ICT Requirements'!$C$18:$L$58,24,0) ->  | I28: 0 | J28: 0 | K28: =HLOOKUP($A28,'ICT Requirements'!$C$18:$L$58,27,0) ->  | L28: =HLOOKUP($A28,'ICT Requirements'!$C$18:$L$58,28,0) -> 
A29: ='ICT Requirements'!#REF! ->  | E29: =HLOOKUP($A29,'ICT Requirements'!$C$18:$L$58,21,0) ->  | F29: =HLOOKUP($A29,'ICT Requirements'!$C$18:$L$58,22,0) ->  | G29: =HLOOKUP($A29,'ICT Requirements'!$C$18:$L$58,23,0) ->  | H29: =HLOOKUP($A29,'ICT Requirements'!$C$18:$L$58,24,0) ->  | I29: 0 | J29: 0 | K29: =HLOOKUP($A29,'ICT Requirements'!$C$18:$L$58,27,0) ->  | L29: =HLOOKUP($A29,'ICT Requirements'!$C$18:$L$58,28,0) -> 
A30: ='ICT Requirements'!#REF! ->  | E30: =HLOOKUP($A30,'ICT Requirements'!$C$18:$L$58,21,0) ->  | F30: =HLOOKUP($A30,'ICT Requirements'!$C$18:$L$58,22,0) ->  | G30: =HLOOKUP($A30,'ICT Requirements'!$C$18:$L$58,23,0) ->  | H30: =HLOOKUP($A30,'ICT Requirements'!$C$18:$L$58,24,0) ->  | I30: 0 | J30: 0 | K30: =HLOOKUP($A30,'ICT Requirements'!$C$18:$L$58,27,0) ->  | L30: =HLOOKUP($A30,'ICT Requirements'!$C$18:$L$58,28,0) -> 
A31: ='ICT Requirements'!#REF! ->  | E31: =HLOOKUP($A31,'ICT Requirements'!$C$18:$L$58,21,0) ->  | F31: =HLOOKUP($A31,'ICT Requirements'!$C$18:$L$58,22,0) ->  | G31: =HLOOKUP($A31,'ICT Requirements'!$C$18:$L$58,23,0) ->  | H31: =HLOOKUP($A31,'ICT Requirements'!$C$18:$L$58,24,0) ->  | I31: 0 | J31: 0 | K31: =HLOOKUP($A31,'ICT Requirements'!$C$18:$L$58,27,0) ->  | L31: =HLOOKUP($A31,'ICT Requirements'!$C$18:$L$58,28,0) -> 
A32: ='ICT Requirements'!#REF! ->  | E32: =HLOOKUP($A32,'ICT Requirements'!$C$18:$L$58,21,0) ->  | F32: =HLOOKUP($A32,'ICT Requirements'!$C$18:$L$58,22,0) ->  | G32: =HLOOKUP($A32,'ICT Requirements'!$C$18:$L$58,23,0) ->  | H32: =HLOOKUP($A32,'ICT Requirements'!$C$18:$L$58,24,0) ->  | I32: 0 | J32: 0 | K32: =HLOOKUP($A32,'ICT Requirements'!$C$18:$L$58,27,0) ->  | L32: =HLOOKUP($A32,'ICT Requirements'!$C$18:$L$58,28,0) -> 
A33: ='ICT Requirements'!#REF! ->  | E33: =HLOOKUP($A33,'ICT Requirements'!$C$18:$L$58,21,0) ->  | F33: =HLOOKUP($A33,'ICT Requirements'!$C$18:$L$58,22,0) ->  | G33: =HLOOKUP($A33,'ICT Requirements'!$C$18:$L$58,23,0) ->  | H33: =HLOOKUP($A33,'ICT Requirements'!$C$18:$L$58,24,0) ->  | I33: 0 | J33: 0 | K33: =HLOOKUP($A33,'ICT Requirements'!$C$18:$L$58,27,0) ->  | L33: =HLOOKUP($A33,'ICT Requirements'!$C$18:$L$58,28,0) -> 

Sheet Defaults (hidden)
A1: Cost Default Data Entry
A3: Depreciation
A4: ICT Equipment Life | B4: 5 | C4: Years
A7: General Costs
A8: Insurance | B8: 2.5 | C8: per m2 per annum
A9: Maintenance | B9: 5 | C9: per m2 per annum
A10: Data room floor area | B10: 95 | C10: per m2 per annum
A11: Office floor area | B11: 130 | C11: per m2 per annum
A12: Ancilliary floor area | B12: 65 | C12: per m2 per annum
A14: Staff Costs
A15: Average annual salary | B15: 35000
A17: Framework Costs
A19: Server Types | B19: Cost per 1/4 Rack | C19: Cost per 1/2 Rack | D19: Cost per Rack | E19: Set up Costs | F19: Additional kW Power | G19: Tape Cost | H19: Bandwidth 2Mbps | I19: Bandwidth 10Mbps | J19: Bandwidth 50Mbps | K19: Bandwidth 100Mbps | L19: Additional Bandwidth 1 Mbps | M19: Virtual Server (Small) | N19: Virtual Server (Medium) | O19: Virtual Server (Large) | P19: Virtual Server (Extra Large) | Q19: Virtual Server (Small) | R19: Virtual Server (Medium) | S19: Virtual Server (Large) | T19: Virtual Server (Extra Large) | U19: Additional vCPU | V19: Additional Performance Storage | W19: Additional Standard Storage | X19: Additional Archive Storage | Y19: Additional vFirewall | Z19: Backup Service per GB | AA19: DV Certificates | AB19: OV Certificates | AC19: EV Certificates | AD19: 8 Port Switch | AE19: 24 Port Switch | AF19: 48 Port Switch | AG19: Technical Consultant | AH19: Business/Systems Analyst | AI19: Solutions Architect | AJ19: Support Engineer | AK19: Security Consultant
A20: Server in own datacentre
A21: Colocated server | B21: 4750 | C21: 6400 | D21: 11000 | E21: 1000 | F21: 2300 | G21: 1500 | H21: 1000 | I21: 1500 | J21: 5500 | K21: 8000 | M21: 850 | N21: 1800 | O21: 3500 | P21: 6700 | Q21: 850 | R21: 1800 | S21: 3500 | T21: 6700 | V21: 1 | W21: 1.5 | X21: 0.4 | Z21: 1 | AA21: 35 | AB21: 65 | AC21: 200
A22: Virtualised server in own datacentre
A23: Virtualised colocated server
A24: Private Cloud | H24: 1000 | I24: 1500 | J24: 5500 | K24: 8000 | M24: 2000 | N24: 4000 | O24: 8000 | P24: 12000 | Q24: 2000 | R24: 4000 | S24: 8000 | T24: 12000 | V24: 1 | W24: 1.5 | X24: 0.4 | Z24: 1 | AA24: 35 | AB24: 65 | AC24: 200
A25: Public Cloud | H25: 1000 | I25: 1500 | J25: 5500 | K25: 8000 | M25: 850 | N25: 1800 | O25: 3500 | P25: 6700 | Q25: 850 | R25: 1800 | S25: 3500 | T25: 6700 | V25: 1 | W25: 1.5 | X25: 0.4 | Z25: 1 | AA25: 35 | AB25: 65 | AC25: 200
A27: Hardware Costs
B28: Replacement | E28: Maintenance
A29: Servers
A30: Small | B30: 900 | E30: =B30*0.15 -> 135 | F30: per server
A31: Medium | B31: 2000 | E31: =B31*0.15 -> 300 | F31: per server
A32: Large | B32: 10000 | E32: 1500 | F32: per server
A33: V Large | B33: 40000 | E33: =B33*0.1 -> 4000 | F33: per server
A34: Storage | B34: 2500 | C34: per TB | E34: 375 | F34: per TB
A35: Network devices | B35: 2500 | C35: per device | E35: 375 | F35: per device
A36: Ancilliary devices | B36: 5000 | C36: per device | E36: 750 | F36: per device
A38: License Costs
A40: Cost per server | B40: 3000 | C40: per server
A42: Transition Costs
A43: Colocation cost per server | B43: 500 | C43: per server
A44: Cloud transfer cost per server | B44: 1000 | C44: per server

Sheet Look Up Tables (hidden)
A1: PUE Calculation Data
A4: Lighting
A6: Type | B6: W/m2
A7: LED | B7: 4
A8: T12 Fluorescent | B8: 30
A9: T8 Fluorescent | B9: 13
A10: T5 Fluorescent | B10: 7
A11: Compact Fluorescent | B11: 8
A12: Other | B12: 15
A14: Controls
A16: Type | B16: %
A17: Manual | B17: 0.5
A18: 24x7 | B18: 1
A19: Motion controlled dimming | B19: 0.1
A20: Motion controlled switch off | B20: 0.1
A22: UPS
A24: Type | B24: %
A25: None | B25: 1
A26: Low Efficiency (85%) | B26: 0.85
A27: Typical (90%) | B27: 0.9
A28: High Efficiency (95%) | B28: 0.95
A30: HVAC
A32: Type | B32: 50% capacity | F32: 75% capacity | J32: 100% capacity
B33: No Economiser | D33: Air side economiser 35% reduction | F33: No Economiser | H33: Air side economiser 35% reduction | J33: No Economiser | L33: Air side economiser 35% reduction
B34: Perimeter Cooling | C34: Close Coupled Cooling | D34: Perimeter Cooling | E34: Close Coupled Cooling | F34: Perimeter Cooling | G34: Close Coupled Cooling | H34: Perimeter Cooling | I34: Close Coupled Cooling | J34: Perimeter Cooling | K34: Close Coupled Cooling | L34: Perimeter Cooling | M34: Close Coupled Cooling
A35: Air cooled single unit | B35: =9578/8760+1 -> 2.093378995 | C35: =6009/8760+1 -> 1.685958904 | D35: =9578/8760+1 -> 2.093378995 | E35: =6009/8760+1 -> 1.685958904 | F35: =(J35+B35)/2 -> 1.877739726 | G35: 1.564155251 | H35: =(L35+D35)/2 -> 1.877739726 | I35: =(M35+E35)/2 -> 1.564155251 | J35: =11600/(8760*2)+1 -> 1.662100457 | K35: =7750/(8760*2)+1 -> 1.442351598 | L35: =11600/(8760*2)+1 -> 1.662100457 | M35: =7750/(8760*2)+1 -> 1.442351598
A36: Split unit/DX-glycol unit | B36: =12730/8760+1 -> 2.453196347 | C36: =5882/8760+1 -> 1.671461187 | D36: =12730/8760+1 -> 2.453196347 | E36: =5882/8760+1 -> 1.671461187 | F36: 2.140410959 | G36: 1.546347032 | H36: 2.140410959 | I36: 1.546347032 | J36: =14500/(8760*2)+1 -> 1.827625571 | K36: =7380/(8760*2)+1 -> 1.421232877 | L36: =14500/(8760*2)+1 -> 1.827625571 | M36: =7380/(8760*2)+1 -> 1.421232877
A37: Chilled water cooling tower | B37: =7556/8760+1 -> 1.862557078 | C37: =4107/8760+1 -> 1.468835616 | D37: =(B37-1)*(1-0.35)+1 -> 1.5606621 | E37: 1.304743151 | F37: =(J37+B37)/2 -> 1.691552511 | G37: =(K37+C37)/2 -> 1.409646119 | H37: =(F37-1)*(1-0.35)+1 -> 1.449509132 | I37: =(G37-1)*(1-0.35)+1 -> 1.266269977 | J37: =9120/(8760*2)+1 -> 1.520547945 | K37: =6140/(8760*2)+1 -> 1.350456621 | L37: =(J37-1)*(1-0.35)+1 -> 1.338356164 | M37: =(K37-1)*(1-0.35)+1 -> 1.227796804
A38: Chilled water cooling tower with VSD | B38: =6247/8760+1 -> 1.713127854 | C38: =2899/8760+1 -> 1.330936073 | D38: 1.463533105 | E38: 1.215108447 | F38: =(J38+B38)/2 -> 1.587442922 | G38: =(K38+C38)/2 -> 1.313869863 | H38: =(F38-1)*(1-0.35)+1 -> 1.3818379 | I38: =(G38-1)*(1-0.35)+1 -> 1.204015411 | J38: =8090/(8760*2)+1 -> 1.461757991 | K38: =5200/(8760*2)+1 -> 1.296803653 | L38: =(J38-1)*(1-0.35)+1 -> 1.300142694 | M38: =(K38-1)*(1-0.35)+1 -> 1.192922374
A39: Chilled water with dry cooler | B39: =8076/8760+1 -> 1.921917808 | C39: =4567/8760+1 -> 1.521347032 | D39: 1.599246575 | E39: 1.338875571 | F39: 1.744349315 | G39: 1.458447489 | H39: 1.483827055 | I39: 1.297990868 | J39: =9930/(8760*2)+1 -> 1.566780822 | K39: =6930/(8760*2)+1 -> 1.395547945 | L39: 1.368407534 | M39: 1.257106164
A40: Chilled water with dry cooler with VSD | B40: =6636/8760+1 -> 1.757534247 | C40: =3258/8760+1 -> 1.371917808 | D40: 1.49239726 | E40: 1.241746575 | F40: 1.624771689 | G40: 1.349771689 | H40: 1.406101598 | I40: 1.227351598 | J40: =8620/(8760*2)+1 -> 1.492009132 | K40: =5740/(8760*2)+1 -> 1.327625571 | L40: 1.319805936 | M40: 1.212956621
A41: Chilled water with packaged chiller | B41: =7804/8760+1 -> 1.89086758 | C41: =4270/8760+1 -> 1.487442922 | D41: =(B41-1)*(1-0.35)+1 -> 1.579063927 | E41: =(C41-1)*(1-0.35)+1 -> 1.3168379 | F41: =(J41+B41)/2 -> 1.721689498 | G41: =(K41+C41)/2 -> 1.397545662 | H41: =(F41-1)*(1-0.35)+1 -> 1.469098174 | I41: =(G41-1)*(1-0.35)+1 -> 1.25840468 | J41: =9680/(8760*2)+1 -> 1.552511416 | K41: =5390/(8760*2)+1 -> 1.307648402 | L41: =(J41-1)*(1-0.35)+1 -> 1.35913242 | M41: 1.199971461
A44: Server Types
A46: Server Types | B46: Server in own datacentre | C46: Colocated server | D46: Virtualised server in own datacentre | E46: Virtualised colocated server | F46: Private Cloud | G46: Public Cloud
A47: Server in own datacentre | B47: 0 | C47: 1 | D47: 1 | E47: 1 | F47: 1 | G47: 1
A48: Colocated server | B48: 0 | D48: 1 | E48: 1 | F48: 1 | G48: 1
A49: Virtualised server in own datacentre | B49: 0 | E49: 1 | F49: 1 | G49: 1
A50: Virtualised colocated server | B50: 0 | F50: 1 | G50: 1
A51: Private Cloud | B51: 0 | F51: 1 | G51: 1
A52: Public Cloud | B52: 0 | F52: 1 | G52: 1
A53: Other
A55: Locations
A57: Locations | B57: Names | E57: City | F57: Region | G57: CoLo Available
A58: ='Data Centre Detail'!D7 -> 0 | B58: ='Data Centre Detail'!D6 -> 0 | E58: Aberdeen | F58: North East | G58: Yes
A59: ='Data Centre Detail'!G7 -> 0 | B59: ='Data Centre Detail'!G6 -> 0 | E59: Alloa | F59: South East | G59: Yes
A60: ='Data Centre Detail'!J7 -> 0 | B60: ='Data Centre Detail'!J6 -> 0 | E60: Ayr | F60: South West | G60: Yes
A61: ='Data Centre Detail'!M7 -> 0 | B61: ='Data Centre Detail'!M6 -> 0 | E61: Dalkeith | F61: South East | G61: Yes
A62: Other | E62: Dumfries | F62: South West | G62: Yes
E63: Dumbarton | F63: Central | G63: Yes
E64: Dundee | F64: North East | G64: Yes
E65: Edinburgh | F65: East Central | G65: Yes
E66: Elgin | F66: Highlands | G66: No
E67: Falkirk | F67: Central | G67: Yes
E68: Forfar | F68: North East | G68: Yes
E69: Giffnock | F69: Central | G69: Yes
E70: Glasgow | F70: Central | G70: Yes
E71: Glenrothes | F71: Central | G71: Yes
E72: Greenock | F72: Central | G72: Yes
E73: Haddington | F73: South East | G73: Yes
E74: Hamilton | F74: Central | G74: Yes
E75: Inverness | F75: Highlands | G75: No
E76: Irvine | F76: Central | G76: Yes
E77: Kilmarnock | F77: Central | G77: Yes
E78: Kirkintilloch | F78: Central | G78: Yes
E79: Kirkwall | F79: Islands | G79: No
E80: Lerwick | F80: Islands | G80: No
E81: Livingston | F81: Central | G81: Yes
E82: Lochgilphead | F82: Highlands | G82: No
E83: Melrose | F83: South East | G83: Yes
E84: Motherwell | F84: Central | G84: Yes
E85: Paisley | F85: Central | G85: Yes
E86: Perth | F86: Central | G86: Yes
E87: Stirling | F87: Central | G87: Yes
E88: Stornaway | F88: Islands | G88: No
E89: *
A92: Server Types
A94: Server Sizes
A95: Small | B95: 1 core, 4GB RAM, 100GB Storage
A96: Medium | B96: 2 core, 8GB RAM, 200GB Storage
A97: Large | B97: 3 core, 12GB RAM, 400GB Storage
A98: Extra Large | B98: 4 core, 16GB RAM, 800GB Storage
A101: Backup Types
A103: Backup Types
A104: In house NAS
A105: Owned data centre
A106: Colocated data centre
A107: Private Cloud
A108: Public Cloud
A109: Tape
A110: None
A112: Certificate Types
A114: Certificate Types
A115: DV
A116: OV
A117: EV
A119: Scenarios
A120: =ScenarioStart -> 0 | B120: 0
A121: ='Scenario History'!O2 -> 0 | B121: 1
A122: ='Scenario History'!AA2 -> 0 | B122: 2
A123: ='Scenario History'!AM2 -> 0 | B123: 3
A124: ='Scenario History'!AY2 -> 0 | B124: 4
A125: ='Scenario History'!BK2 -> 0 | B125: 5
A126: ='Scenario History'!BW2 -> 0 | B126: 6

Sheet Graphs (hidden)
A1: Graphs and Graphics
A3: Report Graphs | B3: Data Centre 1 | E3: Data Centre 2 | H3: Data Centre 3 | K3: Data Centre 4
B4: 0 | C4: 9 | E4: 0 | F4: 9 | H4: 0 | I4: 9 | K4: 0 | L4: 9
B5: ='Data Centre Detail'!D133*45 -> 0 | C5: 9 | E5: ='Data Centre Detail'!G133*45 -> 0 | F5: 9 | H5: ='Data Centre Detail'!J133*45 -> 0 | I5: 9 | K5: ='Data Centre Detail'!M133*45 -> 0 | L5: 9
B6: 3 | C6: 9 | D6: ='Data Centre Detail'!D133 -> 0 | E6: 3 | F6: 9 | G6: ='Data Centre Detail'!G133 -> 0 | H6: 3 | I6: 9 | J6: ='Data Centre Detail'!J133 -> 0 | K6: 3 | L6: 9 | M6: ='Data Centre Detail'!M133 -> 0
B7: =360-SUM(B4:B6) -> 357 | C7: 9 | E7: =360-SUM(E4:E6) -> 357 | F7: 9 | H7: =360-SUM(H4:H6) -> 357 | I7: 9 | K7: =360-SUM(K4:K6) -> 357 | L7: 9
C8: 9 | F8: 9 | I8: 9 | L8: 9
C9: 9 | F9: 9 | I9: 9 | L9: 9
C10: 9 | F10: 9 | I10: 9 | L10: 9
C11: 9 | F11: 9 | I11: 9 | L11: 9
C12: 9 | F12: 9 | I12: 9 | L12: 9
C13: 9 | F13: 9 | I13: 9 | L13: 9
C14: 9 | F14: 9 | I14: 9 | L14: 9
C15: 9 | F15: 9 | I15: 9 | L15: 9
C16: 9 | F16: 9 | I16: 9 | L16: 9
C17: 9 | F17: 9 | I17: 9 | L17: 9
C18: 9 | F18: 9 | I18: 9 | L18: 9
C19: 9 | F19: 9 | I19: 9 | L19: 9
C20: 9 | F20: 9 | I20: 9 | L20: 9
C21: 9 | F21: 9 | I21: 9 | L21: 9
C22: 9 | F22: 9 | I22: 9 | L22: 9
C23: 9 | F23: 9 | I23: 9 | L23: 9
C24: 180 | F24: 180 | I24: 180 | L24: 180
C26: =4/180*9 -> 0.2 | D26: =C26*8 -> 1.6 | E26: =C26*12 -> 2.4
A28: Devices | D28: TCO
A29: Max | B29: =MAX('Data Centre Detail'!D29:D37,'Data Centre Detail'!G29:G37,'Data Centre Detail'!J29:J37,'Data Centre Detail'!M29:M37)+1 -> 1 | D29: Max | E29: =MAX('Data Centre Detail'!D220:O220)*1.02 -> 0
A32: Metering | B32: 1 | C32: 2 | D32: 3 | E32: 4
A33: ICT | B33: =IF('Data Centre Detail'!D42="Yes",1,3) -> 3 | C33: =IF('Data Centre Detail'!G42="Yes",1,3) -> 3 | D33: =IF('Data Centre Detail'!J42="Yes",1,3) -> 3 | E33: =IF('Data Centre Detail'!M42="Yes",1,3) -> 3
A34: Total Facility | B34: =IF('Data Centre Detail'!D64="Yes",1,IF('Data Centre Detail'!D70="Yes",2,3)) -> 3 | C34: =IF('Data Centre Detail'!G64="Yes",1,IF('Data Centre Detail'!G70="Yes",2,3)) -> 3 | D34: =IF('Data Centre Detail'!J64="Yes",1,IF('Data Centre Detail'!J70="Yes",2,3)) -> 3 | E34: =IF('Data Centre Detail'!M64="Yes",1,IF('Data Centre Detail'!M70="Yes",2,3)) -> 3
A37: Red Light
A38: Amber Light
A39: Green Light
A40: No Light
A42: Data Centre | B42: 1 | C42: 2 | D42: 3 | E42: 4
A43: Rack Rental | B43: =IF('Data Centre Detail'!D6="",1,IF('Data Centre Detail'!D10="Racks Leased",2,0)) -> 1 | C43: =IF(OR('Data Centre Detail'!G10="Racks Leased",'Data Centre Detail'!G6=""),1,0) -> 1 | D43: =IF(OR('Data Centre Detail'!J10="Racks Leased",'Data Centre Detail'!J6=""),1,0) -> 1 | E43: =IF(OR('Data Centre Detail'!M10="Racks Leased",'Data Centre Detail'!M6=""),1,0) -> 1
A44: ICT Measurement Quality | B44: =IF('Data Centre Detail'!$D$42="Yes",3,1) -> 1 | C44: =IF('Data Centre Detail'!$G$42="Yes",3,1) -> 1 | D44: =IF('Data Centre Detail'!$J$42="Yes",3,1) -> 1 | E44: =IF('Data Centre Detail'!$M$42="Yes",3,1) -> 1
A45: TF Measurement Quality | B45: =IF('Data Centre Detail'!$D$64="Yes",3,IF('Data Centre Detail'!$D$70="Yes",2,1)) -> 1 | C45: =IF('Data Centre Detail'!$G$64="Yes",3,IF('Data Centre Detail'!$G$70="Yes",2,1)) -> 1 | D45: =IF('Data Centre Detail'!$J$64="Yes",3,IF('Data Centre Detail'!$J$70="Yes",2,1)) -> 1 | E45: =IF('Data Centre Detail'!$M$64="Yes",3,IF('Data Centre Detail'!$M$70="Yes",2,1)) -> 1
A46: Assessment | B46: =IF(B43=1,"",IF(B43=2,"Published PUE",IF(AND(B44=3,B45=3),"Good level of accuracy",IF(AND(B44=3,B45<>3),"Total energy measurement inadequate",IF(AND(B44<>3,B45=3),"ICT energy measurement Inadequate","All energy measurement inadequate"))))) ->  | C46: =IF(C43=1,"",IF(C43=2,"Published PUE",IF(AND(C44=3,C45=3),"Good level of accuracy",IF(AND(C44=3,C45<>3),"Total energy measurement inadequate",IF(AND(C44<>3,C45=3),"ICT energy measurement Inadequate","All energy measurement inadequate"))))) -> 
A49: Summary
C50: TCO | D50: PUE
A51: =IF('Data Centre Detail'!D$6<>0,'Data Centre Detail'!D$6,"") ->  | C51: =IF('Data Centre Detail'!D220<>0,'Data Centre Detail'!D220,"") ->  | D51: =IF('Data Centre Detail'!D$133<>0,'Data Centre Detail'!D$133,"") -> 
A52: =IF('Data Centre Detail'!G$6<>0,'Data Centre Detail'!G$6,"") ->  | C52: =IF('Data Centre Detail'!G220<>0,'Data Centre Detail'!G220,"") ->  | D52: =IF('Data Centre Detail'!G$133<>0,'Data Centre Detail'!G$133,"") -> 
A53: =IF('Data Centre Detail'!J$6<>0,'Data Centre Detail'!J$6,"") ->  | C53: =IF('Data Centre Detail'!J220<>0,'Data Centre Detail'!J220,"") ->  | D53: =IF('Data Centre Detail'!J$133<>0,'Data Centre Detail'!J$133,"") -> 
A54: =IF('Data Centre Detail'!M$6<>0,'Data Centre Detail'!M$6,"") ->  | C54: =IF('Data Centre Detail'!M220<>0,'Data Centre Detail'!M220,"") ->  | D54: =IF('Data Centre Detail'!M$133<>0,'Data Centre Detail'!M$133,"") -> 

Sheet Scenario History (hidden)
C1: 1 | D1: 0 | E1: . | F1: . | G1: . | H1: . | I1: . | J1: . | K1: . | L1: . | M1: . | N1: . | O1: 1 | P1: =O1 -> 1 | AA1: =C1+1 -> 2 | AB1: =AA1 -> 2 | AC1: . | AD1: . | AE1: . | AF1: . | AG1: . | AH1: . | AI1: . | AJ1: . | AK1: . | AL1: . | AM1: =AA1+1 -> 3 | AN1: =AM1 -> 3 | AO1: . | AP1: . | AQ1: . | AR1: . | AS1: . | AT1: . | AU1: . | AV1: . | AW1: . | AX1: . | AY1: =AM1+1 -> 4 | AZ1: =AY1 -> 4 | BA1: . | BB1: . | BC1: . | BD1: . | BE1: . | BF1: . | BG1: . | BH1: . | BI1: . | BJ1: . | BK1: =AY1+1 -> 5 | BL1: =BK1 -> 5 | BM1: . | BN1: . | BO1: . | BP1: . | BQ1: . | BR1: . | BS1: . | BT1: . | BU1: . | BV1: . | BW1: =BK1+1 -> 6 | BX1: =BW1 -> 6 | BY1: . | BZ1: . | CA1: . | CB1: . | CC1: . | CD1: . | CE1: . | CF1: . | CG1: . | CH1: .
B2: Scenario Name: | C2: =Introduction!E11 -> 0 | O2: 0 | AA2: 0 | AM2: 0 | AY2: 0 | BK2: 0 | BW2: 0
C3: =D1 -> 0 | O3: 0 | AA3: 0 | AM3: 0 | AY3: 0 | BK3: 0 | BW3: 0
B4: Organisation name | C4: =Introduction!E5 -> 0 | O4: 0 | AA4: 0 | AM4: 0 | AY4: 0 | BK4: 0 | BW4: 0
B5: User name | C5: =Introduction!E6 -> 0 | D5: Utility costs | E5: Tariff | G5: Real Escalation | O5: 0 | P5: Utility costs | Q5: Tariff | S5: Real Escalation | AA5: 0 | AB5: Utility costs | AC5: Tariff | AE5: Real Escalation | AM5: 0 | AN5: Utility costs | AO5: Tariff | AQ5: Real Escalation | AY5: 0 | AZ5: Utility costs | BA5: Tariff | BC5: Real Escalation | BK5: 0 | BL5: Utility costs | BM5: Tariff | BO5: Real Escalation | BW5: 0 | BX5: Utility costs | BY5: Tariff | CA5: Real Escalation
B6: User email | C6: =Introduction!E7 -> 0 | D6: Electricity | E6: =Introduction!M6 -> 0 | F6: p/kWh | G6: =Introduction!O6 -> 0.04 | O6: 0 | P6: Electricity | Q6: 0 | R6: p/kWh | S6: 0.04 | AA6: 0 | AB6: Electricity | AC6: 0 | AD6: p/kWh | AE6: 0.04 | AM6: 0 | AN6: Electricity | AO6: 0 | AP6: p/kWh | AQ6: 0.04 | AY6: 0 | AZ6: Electricity | BA6: 0 | BB6: p/kWh | BC6: 0.04 | BK6: 0 | BL6: Electricity | BM6: 0 | BN6: p/kWh | BO6: 0.03 | BW6: 0 | BX6: Electricity | BY6: 0 | BZ6: p/kWh | CA6: 0.03
B7: No of ICT users | C7: =Introduction!E8 -> 0 | D7: Natural Gas | E7: =Introduction!M7 -> 0 | F7: p/kWh | G7: =Introduction!O7 -> 0.04 | O7: 0 | P7: Natural Gas | Q7: 0 | R7: p/kWh | S7: 0.04 | AA7: 0 | AB7: Natural Gas | AC7: 0 | AD7: p/kWh | AE7: 0.04 | AM7: 0 | AN7: Natural Gas | AO7: 0 | AP7: p/kWh | AQ7: 0.04 | AY7: 0 | AZ7: Natural Gas | BA7: 0 | BB7: p/kWh | BC7: 0.04 | BK7: 0 | BL7: Natural Gas | BM7: 0 | BN7: p/kWh | BO7: 0.02 | BW7: 0 | BX7: Natural Gas | BY7: 0 | BZ7: p/kWh | CA7: 0.02
B8: No of data centres | C8: =Introduction!E9 -> 1 | D8: Generator Fuel | E8: =Introduction!M8 -> 0 | F8: p/kWh | G8: =Introduction!O8 -> 0.04 | O8: 0 | P8: Generator Fuel | Q8: 0 | R8: p/kWh | S8: 0.04 | AA8: 0 | AB8: Generator Fuel | AC8: 0 | AD8: p/kWh | AE8: 0.04 | AM8: 0 | AN8: Generator Fuel | AO8: 0 | AP8: p/kWh | AQ8: 0.04 | AY8: 0 | AZ8: Generator Fuel | BA8: 0 | BB8: p/kWh | BC8: 0.04 | BK8: 0 | BL8: Generator Fuel | BM8: 0 | BN8: p/kWh | BO8: 0.02 | BW8: 0 | BX8: Generator Fuel | BY8: 0 | BZ8: p/kWh | CA8: 0.02
B9: Scenario Description | C9: =Introduction!E11 -> 0 | D9: Water | E9: =Introduction!M9 -> 0 | F9: £/m3 | G9: =Introduction!O9 -> 0.02 | O9: 0 | P9: Water | Q9: 0 | R9: £/m3 | S9: 0.02 | AA9: 0 | AB9: Water | AC9: 0 | AD9: £/m3 | AE9: 0.02 | AM9: 0 | AN9: Water | AO9: 0 | AP9: £/m3 | AQ9: 0.02 | AY9: 0 | AZ9: Water | BA9: 0 | BB9: £/m3 | BC9: 0.02 | BK9: 0 | BL9: Water | BM9: 0 | BN9: £/m3 | BO9: 0.02 | BW9: 0 | BX9: Water | BY9: 0 | BZ9: £/m3 | CA9: 0.02
B10: Review Date | C10: =Introduction!E12 -> 00:00:00 | O10: 0 | AA10: 0 | AM10: 0 | AY10: 0 | BK10: 0 | BW10: 0
B13: Data Centre
B14: Name | C14: ='Data Centre Detail'!D6 -> 0 | D14: ='Data Centre Detail'!E6 -> 0 | E14: ='Data Centre Detail'!F6 -> 0 | F14: ='Data Centre Detail'!G6 -> 0 | G14: ='Data Centre Detail'!H6 -> 0 | H14: ='Data Centre Detail'!I6 -> 0 | I14: ='Data Centre Detail'!J6 -> 0 | J14: ='Data Centre Detail'!K6 -> 0 | K14: ='Data Centre Detail'!L6 -> 0 | L14: ='Data Centre Detail'!M6 -> 0 | M14: ='Data Centre Detail'!N6 -> 0 | N14: ='Data Centre Detail'!O6 -> 0 | O14: 0 | P14: 0 | Q14: 0 | R14: 0 | S14: 0 | T14: 0 | U14: 0 | V14: 0 | W14: 0 | X14: 0 | Y14: 0 | Z14: 0 | AA14: 0 | AB14: 0 | AC14: 0 | AD14: 0 | AE14: 0 | AF14: 0 | AG14: 0 | AH14: 0 | AI14: 0 | AJ14: 0 | AK14: 0 | AL14: 0 | AM14: 0 | AN14: 0 | AO14: 0 | AP14: 0 | AQ14: 0 | AR14: 0 | AS14: 0 | AT14: 0 | AU14: 0 | AV14: 0 | AW14: 0 | AX14: 0 | AY14: 0 | AZ14: 0 | BA14: 0 | BB14: 0 | BC14: 0 | BD14: 0 | BE14: 0 | BF14: 0 | BG14: 0 | BH14: 0 | BI14: 0 | BJ14: 0 | BK14: 0 | BL14: 0 | BM14: 0 | BN14: 0 | BO14: 0 | BP14: 0 | BQ14: 0 | BR14: 0 | BS14: 0 | BT14: 0 | BU14: 0 | BV14: 0 | BW14: 0 | BX14: 0 | BY14: 0 | BZ14: 0 | CA14: 0 | CB14: 0 | CC14: 0 | CD14: 0 | CE14: 0 | CF14: 0 | CG14: 0 | CH14: 0
B15: Location | C15: ='Data Centre Detail'!D7 -> 0 | D15: ='Data Centre Detail'!E7 -> 0 | E15: ='Data Centre Detail'!F7 -> 0 | F15: ='Data Centre Detail'!G7 -> 0 | G15: ='Data Centre Detail'!H7 -> 0 | H15: ='Data Centre Detail'!I7 -> 0 | I15: ='Data Centre Detail'!J7 -> 0 | J15: ='Data Centre Detail'!K7 -> 0 | K15: ='Data Centre Detail'!L7 -> 0 | L15: ='Data Centre Detail'!M7 -> 0 | M15: ='Data Centre Detail'!N7 -> 0 | N15: ='Data Centre Detail'!O7 -> 0 | O15: 0 | P15: 0 | Q15: 0 | R15: 0 | S15: 0 | T15: 0 | U15: 0 | V15: 0 | W15: 0 | X15: 0 | Y15: 0 | Z15: 0 | AA15: 0 | AB15: 0 | AC15: 0 | AD15: 0 | AE15: 0 | AF15: 0 | AG15: 0 | AH15: 0 | AI15: 0 | AJ15: 0 | AK15: 0 | AL15: 0 | AM15: 0 | AN15: 0 | AO15: 0 | AP15: 0 | AQ15: 0 | AR15: 0 | AS15: 0 | AT15: 0 | AU15: 0 | AV15: 0 | AW15: 0 | AX15: 0 | AY15: 0 | AZ15: 0 | BA15: 0 | BB15: 0 | BC15: 0 | BD15: 0 | BE15: 0 | BF15: 0 | BG15: 0 | BH15: 0 | BI15: 0 | BJ15: 0 | BK15: 0 | BL15: 0 | BM15: 0 | BN15: 0 | BO15: 0 | BP15: 0 | BQ15: 0 | BR15: 0 | BS15: 0 | BT15: 0 | BU15: 0 | BV15: 0 | BW15: 0 | BX15: 0 | BY15: 0 | BZ15: 0 | CA15: 0 | CB15: 0 | CC15: 0 | CD15: 0 | CE15: 0 | CF15: 0 | CG15: 0 | CH15: 0
B16: Standalone or integrated | C16: ='Data Centre Detail'!D9 -> 0 | D16: ='Data Centre Detail'!E9 -> 0 | E16: ='Data Centre Detail'!F9 -> 0 | F16: ='Data Centre Detail'!G9 -> 0 | G16: ='Data Centre Detail'!H9 -> 0 | H16: ='Data Centre Detail'!I9 -> 0 | I16: ='Data Centre Detail'!J9 -> 0 | J16: ='Data Centre Detail'!K9 -> 0 | K16: ='Data Centre Detail'!L9 -> 0 | L16: ='Data Centre Detail'!M9 -> 0 | M16: ='Data Centre Detail'!N9 -> 0 | N16: ='Data Centre Detail'!O9 -> 0 | O16: 0 | P16: 0 | Q16: 0 | R16: 0 | S16: 0 | T16: 0 | U16: 0 | V16: 0 | W16: 0 | X16: 0 | Y16: 0 | Z16: 0 | AA16: 0 | AB16: 0 | AC16: 0 | AD16: 0 | AE16: 0 | AF16: 0 | AG16: 0 | AH16: 0 | AI16: 0 | AJ16: 0 | AK16: 0 | AL16: 0 | AM16: 0 | AN16: 0 | AO16: 0 | AP16: 0 | AQ16: 0 | AR16: 0 | AS16: 0 | AT16: 0 | AU16: 0 | AV16: 0 | AW16: 0 | AX16: 0 | AY16: 0 | AZ16: 0 | BA16: 0 | BB16: 0 | BC16: 0 | BD16: 0 | BE16: 0 | BF16: 0 | BG16: 0 | BH16: 0 | BI16: 0 | BJ16: 0 | BK16: 0 | BL16: 0 | BM16: 0 | BN16: 0 | BO16: 0 | BP16: 0 | BQ16: 0 | BR16: 0 | BS16: 0 | BT16: 0 | BU16: 0 | BV16: 0 | BW16: 0 | BX16: 0 | BY16: 0 | BZ16: 0 | CA16: 0 | CB16: 0 | CC16: 0 | CD16: 0 | CE16: 0 | CF16: 0 | CG16: 0 | CH16: 0
B17: Ownership | C17: ='Data Centre Detail'!D10 -> 0 | D17: ='Data Centre Detail'!E10 -> 0 | E17: ='Data Centre Detail'!F10 -> 0 | F17: ='Data Centre Detail'!G10 -> 0 | G17: ='Data Centre Detail'!H10 -> 0 | H17: ='Data Centre Detail'!I10 -> 0 | I17: ='Data Centre Detail'!J10 -> 0 | J17: ='Data Centre Detail'!K10 -> 0 | K17: ='Data Centre Detail'!L10 -> 0 | L17: ='Data Centre Detail'!M10 -> 0 | M17: ='Data Centre Detail'!N10 -> 0 | N17: ='Data Centre Detail'!O10 -> 0 | O17: 0 | P17: 0 | Q17: 0 | R17: 0 | S17: 0 | T17: 0 | U17: 0 | V17: 0 | W17: 0 | X17: 0 | Y17: 0 | Z17: 0 | AA17: 0 | AB17: 0 | AC17: 0 | AD17: 0 | AE17: 0 | AF17: 0 | AG17: 0 | AH17: 0 | AI17: 0 | AJ17: 0 | AK17: 0 | AL17: 0 | AM17: 0 | AN17: 0 | AO17: 0 | AP17: 0 | AQ17: 0 | AR17: 0 | AS17: 0 | AT17: 0 | AU17: 0 | AV17: 0 | AW17: 0 | AX17: 0 | AY17: 0 | AZ17: 0 | BA17: 0 | BB17: 0 | BC17: 0 | BD17: 0 | BE17: 0 | BF17: 0 | BG17: 0 | BH17: 0 | BI17: 0 | BJ17: 0 | BK17: 0 | BL17: 0 | BM17: 0 | BN17: 0 | BO17: 0 | BP17: 0 | BQ17: 0 | BR17: 0 | BS17: 0 | BT17: 0 | BU17: 0 | BV17: 0 | BW17: 0 | BX17: 0 | BY17: 0 | BZ17: 0 | CA17: 0 | CB17: 0 | CC17: 0 | CD17: 0 | CE17: 0 | CF17: 0 | CG17: 0 | CH17: 0
B18: Data room floor area | C18: ='Data Centre Detail'!D11 -> 0 | D18: ='Data Centre Detail'!E11 -> 0 | E18: ='Data Centre Detail'!F11 -> 0 | F18: ='Data Centre Detail'!G11 -> 0 | G18: ='Data Centre Detail'!H11 -> 0 | H18: ='Data Centre Detail'!I11 -> 0 | I18: ='Data Centre Detail'!J11 -> 0 | J18: ='Data Centre Detail'!K11 -> 0 | K18: ='Data Centre Detail'!L11 -> 0 | L18: ='Data Centre Detail'!M11 -> 0 | M18: ='Data Centre Detail'!N11 -> 0 | N18: ='Data Centre Detail'!O11 -> 0 | O18: 0 | P18: 0 | Q18: 0 | R18: 0 | S18: 0 | T18: 0 | U18: 0 | V18: 0 | W18: 0 | X18: 0 | Y18: 0 | Z18: 0 | AA18: 0 | AB18: 0 | AC18: 0 | AD18: 0 | AE18: 0 | AF18: 0 | AG18: 0 | AH18: 0 | AI18: 0 | AJ18: 0 | AK18: 0 | AL18: 0 | AM18: 0 | AN18: 0 | AO18: 0 | AP18: 0 | AQ18: 0 | AR18: 0 | AS18: 0 | AT18: 0 | AU18: 0 | AV18: 0 | AW18: 0 | AX18: 0 | AY18: 0 | AZ18: 0 | BA18: 0 | BB18: 0 | BC18: 0 | BD18: 0 | BE18: 0 | BF18: 0 | BG18: 0 | BH18: 0 | BI18: 0 | BJ18: 0 | BK18: 0 | BL18: 0 | BM18: 0 | BN18: 0 | BO18: 0 | BP18: 0 | BQ18: 0 | BR18: 0 | BS18: 0 | BT18: 0 | BU18: 0 | BV18: 0 | BW18: 0 | BX18: 0 | BY18: 0 | BZ18: 0 | CA18: 0 | CB18: 0 | CC18: 0 | CD18: 0 | CE18: 0 | CF18: 0 | CG18: 0 | CH18: 0
B19: Office floor area | C19: ='Data Centre Detail'!D12 -> 0 | D19: ='Data Centre Detail'!E12 -> 0 | E19: ='Data Centre Detail'!F12 -> 0 | F19: ='Data Centre Detail'!G12 -> 0 | G19: ='Data Centre Detail'!H12 -> 0 | H19: ='Data Centre Detail'!I12 -> 0 | I19: ='Data Centre Detail'!J12 -> 0 | J19: ='Data Centre Detail'!K12 -> 0 | K19: ='Data Centre Detail'!L12 -> 0 | L19: ='Data Centre Detail'!M12 -> 0 | M19: ='Data Centre Detail'!N12 -> 0 | N19: ='Data Centre Detail'!O12 -> 0 | O19: 0 | P19: 0 | Q19: 0 | R19: 0 | S19: 0 | T19: 0 | U19: 0 | V19: 0 | W19: 0 | X19: 0 | Y19: 0 | Z19: 0 | AA19: 0 | AB19: 0 | AC19: 0 | AD19: 0 | AE19: 0 | AF19: 0 | AG19: 0 | AH19: 0 | AI19: 0 | AJ19: 0 | AK19: 0 | AL19: 0 | AM19: 0 | AN19: 0 | AO19: 0 | AP19: 0 | AQ19: 0 | AR19: 0 | AS19: 0 | AT19: 0 | AU19: 0 | AV19: 0 | AW19: 0 | AX19: 0 | AY19: 0 | AZ19: 0 | BA19: 0 | BB19: 0 | BC19: 0 | BD19: 0 | BE19: 0 | BF19: 0 | BG19: 0 | BH19: 0 | BI19: 0 | BJ19: 0 | BK19: 0 | BL19: 0 | BM19: 0 | BN19: 0 | BO19: 0 | BP19: 0 | BQ19: 0 | BR19: 0 | BS19: 0 | BT19: 0 | BU19: 0 | BV19: 0 | BW19: 0 | BX19: 0 | BY19: 0 | BZ19: 0 | CA19: 0 | CB19: 0 | CC19: 0 | CD19: 0 | CE19: 0 | CF19: 0 | CG19: 0 | CH19: 0
B20: Ancilliary floor area | C20: ='Data Centre Detail'!D13 -> 0 | D20: ='Data Centre Detail'!E13 -> 0 | E20: ='Data Centre Detail'!F13 -> 0 | F20: ='Data Centre Detail'!G13 -> 0 | G20: ='Data Centre Detail'!H13 -> 0 | H20: ='Data Centre Detail'!I13 -> 0 | I20: ='Data Centre Detail'!J13 -> 0 | J20: ='Data Centre Detail'!K13 -> 0 | K20: ='Data Centre Detail'!L13 -> 0 | L20: ='Data Centre Detail'!M13 -> 0 | M20: ='Data Centre Detail'!N13 -> 0 | N20: ='Data Centre Detail'!O13 -> 0 | O20: 0 | P20: 0 | Q20: 0 | R20: 0 | S20: 0 | T20: 0 | U20: 0 | V20: 0 | W20: 0 | X20: 0 | Y20: 0 | Z20: 0 | AA20: 0 | AB20: 0 | AC20: 0 | AD20: 0 | AE20: 0 | AF20: 0 | AG20: 0 | AH20: 0 | AI20: 0 | AJ20: 0 | AK20: 0 | AL20: 0 | AM20: 0 | AN20: 0 | AO20: 0 | AP20: 0 | AQ20: 0 | AR20: 0 | AS20: 0 | AT20: 0 | AU20: 0 | AV20: 0 | AW20: 0 | AX20: 0 | AY20: 0 | AZ20: 0 | BA20: 0 | BB20: 0 | BC20: 0 | BD20: 0 | BE20: 0 | BF20: 0 | BG20: 0 | BH20: 0 | BI20: 0 | BJ20: 0 | BK20: 0 | BL20: 0 | BM20: 0 | BN20: 0 | BO20: 0 | BP20: 0 | BQ20: 0 | BR20: 0 | BS20: 0 | BT20: 0 | BU20: 0 | BV20: 0 | BW20: 0 | BX20: 0 | BY20: 0 | BZ20: 0 | CA20: 0 | CB20: 0 | CC20: 0 | CD20: 0 | CE20: 0 | CF20: 0 | CG20: 0 | CH20: 0
B21: Total floor area | C21: ='Data Centre Detail'!D14 -> 0 | D21: ='Data Centre Detail'!E14 -> 0 | E21: ='Data Centre Detail'!F14 -> 0 | F21: ='Data Centre Detail'!G14 -> 0 | G21: ='Data Centre Detail'!H14 -> 0 | H21: ='Data Centre Detail'!I14 -> 0 | I21: ='Data Centre Detail'!J14 -> 0 | J21: ='Data Centre Detail'!K14 -> 0 | K21: ='Data Centre Detail'!L14 -> 0 | L21: ='Data Centre Detail'!M14 -> 0 | M21: ='Data Centre Detail'!N14 -> 0 | N21: ='Data Centre Detail'!O14 -> 0 | O21: 0 | P21: 0 | Q21: 0 | R21: 0 | S21: 0 | T21: 0 | U21: 0 | V21: 0 | W21: 0 | X21: 0 | Y21: 0 | Z21: 0 | AA21: 0 | AB21: 0 | AC21: 0 | AD21: 0 | AE21: 0 | AF21: 0 | AG21: 0 | AH21: 0 | AI21: 0 | AJ21: 0 | AK21: 0 | AL21: 0 | AM21: 0 | AN21: 0 | AO21: 0 | AP21: 0 | AQ21: 0 | AR21: 0 | AS21: 0 | AT21: 0 | AU21: 0 | AV21: 0 | AW21: 0 | AX21: 0 | AY21: 0 | AZ21: 0 | BA21: 0 | BB21: 0 | BC21: 0 | BD21: 0 | BE21: 0 | BF21: 0 | BG21: 0 | BH21: 0 | BI21: 0 | BJ21: 0 | BK21: 0 | BL21: 0 | BM21: 0 | BN21: 0 | BO21: 0 | BP21: 0 | BQ21: 0 | BR21: 0 | BS21: 0 | BT21: 0 | BU21: 0 | BV21: 0 | BW21: 0 | BX21: 0 | BY21: 0 | BZ21: 0 | CA21: 0 | CB21: 0 | CC21: 0 | CD21: 0 | CE21: 0 | CF21: 0 | CG21: 0 | CH21: 0
B23: Rating and Recovery | C23: ='Data Centre Detail'!D16 -> 0 | D23: ='Data Centre Detail'!E16 -> 0 | E23: ='Data Centre Detail'!F16 -> 0 | F23: ='Data Centre Detail'!G16 -> 0 | G23: ='Data Centre Detail'!H16 -> 0 | H23: ='Data Centre Detail'!I16 -> 0 | I23: ='Data Centre Detail'!J16 -> 0 | J23: ='Data Centre Detail'!K16 -> 0 | K23: ='Data Centre Detail'!L16 -> 0 | L23: ='Data Centre Detail'!M16 -> 0 | M23: ='Data Centre Detail'!N16 -> 0 | N23: ='Data Centre Detail'!O16 -> 0 | O23: 0 | P23: 0 | Q23: 0 | R23: 0 | S23: 0 | T23: 0 | U23: 0 | V23: 0 | W23: 0 | X23: 0 | Y23: 0 | Z23: 0 | AA23: 0 | AB23: 0 | AC23: 0 | AD23: 0 | AE23: 0 | AF23: 0 | AG23: 0 | AH23: 0 | AI23: 0 | AJ23: 0 | AK23: 0 | AL23: 0 | AM23: 0 | AN23: 0 | AO23: 0 | AP23: 0 | AQ23: 0 | AR23: 0 | AS23: 0 | AT23: 0 | AU23: 0 | AV23: 0 | AW23: 0 | AX23: 0 | AY23: 0 | AZ23: 0 | BA23: 0 | BB23: 0 | BC23: 0 | BD23: 0 | BE23: 0 | BF23: 0 | BG23: 0 | BH23: 0 | BI23: 0 | BJ23: 0 | BK23: 0 | BL23: 0 | BM23: 0 | BN23: 0 | BO23: 0 | BP23: 0 | BQ23: 0 | BR23: 0 | BS23: 0 | BT23: 0 | BU23: 0 | BV23: 0 | BW23: 0 | BX23: 0 | BY23: 0 | BZ23: 0 | CA23: 0 | CB23: 0 | CC23: 0 | CD23: 0 | CE23: 0 | CF23: 0 | CG23: 0 | CH23: 0
B24: Tier Rating | C24: ='Data Centre Detail'!D17 -> 0 | D24: ='Data Centre Detail'!E17 -> 0 | E24: ='Data Centre Detail'!F17 -> 0 | F24: ='Data Centre Detail'!G17 -> 0 | G24: ='Data Centre Detail'!H17 -> 0 | H24: ='Data Centre Detail'!I17 -> 0 | I24: ='Data Centre Detail'!J17 -> 0 | J24: ='Data Centre Detail'!K17 -> 0 | K24: ='Data Centre Detail'!L17 -> 0 | L24: ='Data Centre Detail'!M17 -> 0 | M24: ='Data Centre Detail'!N17 -> 0 | N24: ='Data Centre Detail'!O17 -> 0 | O24: 0 | P24: 0 | Q24: 0 | R24: 0 | S24: 0 | T24: 0 | U24: 0 | V24: 0 | W24: 0 | X24: 0 | Y24: 0 | Z24: 0 | AA24: 0 | AB24: 0 | AC24: 0 | AD24: 0 | AE24: 0 | AF24: 0 | AG24: 0 | AH24: 0 | AI24: 0 | AJ24: 0 | AK24: 0 | AL24: 0 | AM24: 0 | AN24: 0 | AO24: 0 | AP24: 0 | AQ24: 0 | AR24: 0 | AS24: 0 | AT24: 0 | AU24: 0 | AV24: 0 | AW24: 0 | AX24: 0 | AY24: 0 | AZ24: 0 | BA24: 0 | BB24: 0 | BC24: 0 | BD24: 0 | BE24: 0 | BF24: 0 | BG24: 0 | BH24: 0 | BI24: 0 | BJ24: 0 | BK24: 0 | BL24: 0 | BM24: 0 | BN24: 0 | BO24: 0 | BP24: 0 | BQ24: 0 | BR24: 0 | BS24: 0 | BT24: 0 | BU24: 0 | BV24: 0 | BW24: 0 | BX24: 0 | BY24: 0 | BZ24: 0 | CA24: 0 | CB24: 0 | CC24: 0 | CD24: 0 | CE24: 0 | CF24: 0 | CG24: 0 | CH24: 0
B25: Actual Availability | C25: ='Data Centre Detail'!D18 -> 0 | D25: ='Data Centre Detail'!E18 -> 0 | E25: ='Data Centre Detail'!F18 -> 0 | F25: ='Data Centre Detail'!G18 -> 0 | G25: ='Data Centre Detail'!H18 -> 0 | H25: ='Data Centre Detail'!I18 -> 0 | I25: ='Data Centre Detail'!J18 -> 0 | J25: ='Data Centre Detail'!K18 -> 0 | K25: ='Data Centre Detail'!L18 -> 0 | L25: ='Data Centre Detail'!M18 -> 0 | M25: ='Data Centre Detail'!N18 -> 0 | N25: ='Data Centre Detail'!O18 -> 0 | O25: 0 | P25: 0 | Q25: 0 | R25: 0 | S25: 0 | T25: 0 | U25: 0 | V25: 0 | W25: 0 | X25: 0 | Y25: 0 | Z25: 0 | AA25: 0 | AB25: 0 | AC25: 0 | AD25: 0 | AE25: 0 | AF25: 0 | AG25: 0 | AH25: 0 | AI25: 0 | AJ25: 0 | AK25: 0 | AL25: 0 | AM25: 0 | AN25: 0 | AO25: 0 | AP25: 0 | AQ25: 0 | AR25: 0 | AS25: 0 | AT25: 0 | AU25: 0 | AV25: 0 | AW25: 0 | AX25: 0 | AY25: 0 | AZ25: 0 | BA25: 0 | BB25: 0 | BC25: 0 | BD25: 0 | BE25: 0 | BF25: 0 | BG25: 0 | BH25: 0 | BI25: 0 | BJ25: 0 | BK25: 0 | BL25: 0 | BM25: 0 | BN25: 0 | BO25: 0 | BP25: 0 | BQ25: 0 | BR25: 0 | BS25: 0 | BT25: 0 | BU25: 0 | BV25: 0 | BW25: 0 | BX25: 0 | BY25: 0 | BZ25: 0 | CA25: 0 | CB25: 0 | CC25: 0 | CD25: 0 | CE25: 0 | CF25: 0 | CG25: 0 | CH25: 0
B26: Stated PUE | C26: ='Data Centre Detail'!D19 -> 0 | D26: ='Data Centre Detail'!E19 -> 0 | E26: ='Data Centre Detail'!F19 -> 0 | F26: ='Data Centre Detail'!G19 -> 0 | G26: ='Data Centre Detail'!H19 -> 0 | H26: ='Data Centre Detail'!I19 -> 0 | I26: ='Data Centre Detail'!J19 -> 0 | J26: ='Data Centre Detail'!K19 -> 0 | K26: ='Data Centre Detail'!L19 -> 0 | L26: ='Data Centre Detail'!M19 -> 0 | M26: ='Data Centre Detail'!N19 -> 0 | N26: ='Data Centre Detail'!O19 -> 0 | O26: 0 | P26: 0 | Q26: 0 | R26: 0 | S26: 0 | T26: 0 | U26: 0 | V26: 0 | W26: 0 | X26: 0 | Y26: 0 | Z26: 0 | AA26: 0 | AB26: 0 | AC26: 0 | AD26: 0 | AE26: 0 | AF26: 0 | AG26: 0 | AH26: 0 | AI26: 0 | AJ26: 0 | AK26: 0 | AL26: 0 | AM26: 0 | AN26: 0 | AO26: 0 | AP26: 0 | AQ26: 0 | AR26: 0 | AS26: 0 | AT26: 0 | AU26: 0 | AV26: 0 | AW26: 0 | AX26: 0 | AY26: 0 | AZ26: 0 | BA26: 0 | BB26: 0 | BC26: 0 | BD26: 0 | BE26: 0 | BF26: 0 | BG26: 0 | BH26: 0 | BI26: 0 | BJ26: 0 | BK26: 0 | BL26: 0 | BM26: 0 | BN26: 0 | BO26: 0 | BP26: 0 | BQ26: 0 | BR26: 0 | BS26: 0 | BT26: 0 | BU26: 0 | BV26: 0 | BW26: 0 | BX26: 0 | BY26: 0 | BZ26: 0 | CA26: 0 | CB26: 0 | CC26: 0 | CD26: 0 | CE26: 0 | CF26: 0 | CG26: 0 | CH26: 0
B27: Data Centre Disaster Recovery | C27: ='Data Centre Detail'!D20 -> 0 | D27: ='Data Centre Detail'!E20 -> 0 | E27: ='Data Centre Detail'!F20 -> 0 | F27: ='Data Centre Detail'!G20 -> 0 | G27: ='Data Centre Detail'!H20 -> 0 | H27: ='Data Centre Detail'!I20 -> 0 | I27: ='Data Centre Detail'!J20 -> 0 | J27: ='Data Centre Detail'!K20 -> 0 | K27: ='Data Centre Detail'!L20 -> 0 | L27: ='Data Centre Detail'!M20 -> 0 | M27: ='Data Centre Detail'!N20 -> 0 | N27: ='Data Centre Detail'!O20 -> 0 | O27: 0 | P27: 0 | Q27: 0 | R27: 0 | S27: 0 | T27: 0 | U27: 0 | V27: 0 | W27: 0 | X27: 0 | Y27: 0 | Z27: 0 | AA27: 0 | AB27: 0 | AC27: 0 | AD27: 0 | AE27: 0 | AF27: 0 | AG27: 0 | AH27: 0 | AI27: 0 | AJ27: 0 | AK27: 0 | AL27: 0 | AM27: 0 | AN27: 0 | AO27: 0 | AP27: 0 | AQ27: 0 | AR27: 0 | AS27: 0 | AT27: 0 | AU27: 0 | AV27: 0 | AW27: 0 | AX27: 0 | AY27: 0 | AZ27: 0 | BA27: 0 | BB27: 0 | BC27: 0 | BD27: 0 | BE27: 0 | BF27: 0 | BG27: 0 | BH27: 0 | BI27: 0 | BJ27: 0 | BK27: 0 | BL27: 0 | BM27: 0 | BN27: 0 | BO27: 0 | BP27: 0 | BQ27: 0 | BR27: 0 | BS27: 0 | BT27: 0 | BU27: 0 | BV27: 0 | BW27: 0 | BX27: 0 | BY27: 0 | BZ27: 0 | CA27: 0 | CB27: 0 | CC27: 0 | CD27: 0 | CE27: 0 | CF27: 0 | CG27: 0 | CH27: 0
B28: Type | C28: ='Data Centre Detail'!D21 -> 0 | D28: ='Data Centre Detail'!E21 -> 0 | E28: ='Data Centre Detail'!F21 -> 0 | F28: ='Data Centre Detail'!G21 -> 0 | G28: ='Data Centre Detail'!H21 -> 0 | H28: ='Data Centre Detail'!I21 -> 0 | I28: ='Data Centre Detail'!J21 -> 0 | J28: ='Data Centre Detail'!K21 -> 0 | K28: ='Data Centre Detail'!L21 -> 0 | L28: ='Data Centre Detail'!M21 -> 0 | M28: ='Data Centre Detail'!N21 -> 0 | N28: ='Data Centre Detail'!O21 -> 0 | O28: 0 | P28: 0 | Q28: 0 | R28: 0 | S28: 0 | T28: 0 | U28: 0 | V28: 0 | W28: 0 | X28: 0 | Y28: 0 | Z28: 0 | AA28: 0 | AB28: 0 | AC28: 0 | AD28: 0 | AE28: 0 | AF28: 0 | AG28: 0 | AH28: 0 | AI28: 0 | AJ28: 0 | AK28: 0 | AL28: 0 | AM28: 0 | AN28: 0 | AO28: 0 | AP28: 0 | AQ28: 0 | AR28: 0 | AS28: 0 | AT28: 0 | AU28: 0 | AV28: 0 | AW28: 0 | AX28: 0 | AY28: 0 | AZ28: 0 | BA28: 0 | BB28: 0 | BC28: 0 | BD28: 0 | BE28: 0 | BF28: 0 | BG28: 0 | BH28: 0 | BI28: 0 | BJ28: 0 | BK28: 0 | BL28: 0 | BM28: 0 | BN28: 0 | BO28: 0 | BP28: 0 | BQ28: 0 | BR28: 0 | BS28: 0 | BT28: 0 | BU28: 0 | BV28: 0 | BW28: 0 | BX28: 0 | BY28: 0 | BZ28: 0 | CA28: 0 | CB28: 0 | CC28: 0 | CD28: 0 | CE28: 0 | CF28: 0 | CG28: 0 | CH28: 0
B29: Time to bring back service | C29: ='Data Centre Detail'!D22 -> 0 | D29: ='Data Centre Detail'!E22 -> 0 | E29: ='Data Centre Detail'!F22 -> 0 | F29: ='Data Centre Detail'!G22 -> 0 | G29: ='Data Centre Detail'!H22 -> 0 | H29: ='Data Centre Detail'!I22 -> 0 | I29: ='Data Centre Detail'!J22 -> 0 | J29: ='Data Centre Detail'!K22 -> 0 | K29: ='Data Centre Detail'!L22 -> 0 | L29: ='Data Centre Detail'!M22 -> 0 | M29: ='Data Centre Detail'!N22 -> 0 | N29: ='Data Centre Detail'!O22 -> 0 | O29: 0 | P29: 0 | Q29: 0 | R29: 0 | S29: 0 | T29: 0 | U29: 0 | V29: 0 | W29: 0 | X29: 0 | Y29: 0 | Z29: 0 | AA29: 0 | AB29: 0 | AC29: 0 | AD29: 0 | AE29: 0 | AF29: 0 | AG29: 0 | AH29: 0 | AI29: 0 | AJ29: 0 | AK29: 0 | AL29: 0 | AM29: 0 | AN29: 0 | AO29: 0 | AP29: 0 | AQ29: 0 | AR29: 0 | AS29: 0 | AT29: 0 | AU29: 0 | AV29: 0 | AW29: 0 | AX29: 0 | AY29: 0 | AZ29: 0 | BA29: 0 | BB29: 0 | BC29: 0 | BD29: 0 | BE29: 0 | BF29: 0 | BG29: 0 | BH29: 0 | BI29: 0 | BJ29: 0 | BK29: 0 | BL29: 0 | BM29: 0 | BN29: 0 | BO29: 0 | BP29: 0 | BQ29: 0 | BR29: 0 | BS29: 0 | BT29: 0 | BU29: 0 | BV29: 0 | BW29: 0 | BX29: 0 | BY29: 0 | BZ29: 0 | CA29: 0 | CB29: 0 | CC29: 0 | CD29: 0 | CE29: 0 | CF29: 0 | CG29: 0 | CH29: 0
B30: Full or partial recovery | C30: ='Data Centre Detail'!D23 -> 0 | D30: ='Data Centre Detail'!E23 -> 0 | E30: ='Data Centre Detail'!F23 -> 0 | F30: ='Data Centre Detail'!G23 -> 0 | G30: ='Data Centre Detail'!H23 -> 0 | H30: ='Data Centre Detail'!I23 -> 0 | I30: ='Data Centre Detail'!J23 -> 0 | J30: ='Data Centre Detail'!K23 -> 0 | K30: ='Data Centre Detail'!L23 -> 0 | L30: ='Data Centre Detail'!M23 -> 0 | M30: ='Data Centre Detail'!N23 -> 0 | N30: ='Data Centre Detail'!O23 -> 0 | O30: 0 | P30: 0 | Q30: 0 | R30: 0 | S30: 0 | T30: 0 | U30: 0 | V30: 0 | W30: 0 | X30: 0 | Y30: 0 | Z30: 0 | AA30: 0 | AB30: 0 | AC30: 0 | AD30: 0 | AE30: 0 | AF30: 0 | AG30: 0 | AH30: 0 | AI30: 0 | AJ30: 0 | AK30: 0 | AL30: 0 | AM30: 0 | AN30: 0 | AO30: 0 | AP30: 0 | AQ30: 0 | AR30: 0 | AS30: 0 | AT30: 0 | AU30: 0 | AV30: 0 | AW30: 0 | AX30: 0 | AY30: 0 | AZ30: 0 | BA30: 0 | BB30: 0 | BC30: 0 | BD30: 0 | BE30: 0 | BF30: 0 | BG30: 0 | BH30: 0 | BI30: 0 | BJ30: 0 | BK30: 0 | BL30: 0 | BM30: 0 | BN30: 0 | BO30: 0 | BP30: 0 | BQ30: 0 | BR30: 0 | BS30: 0 | BT30: 0 | BU30: 0 | BV30: 0 | BW30: 0 | BX30: 0 | BY30: 0 | BZ30: 0 | CA30: 0 | CB30: 0 | CC30: 0 | CD30: 0 | CE30: 0 | CF30: 0 | CG30: 0 | CH30: 0
C31: ='Data Centre Detail'!D24 -> 0 | D31: ='Data Centre Detail'!E24 -> 0 | E31: ='Data Centre Detail'!F24 -> 0 | F31: ='Data Centre Detail'!G24 -> 0 | G31: ='Data Centre Detail'!H24 -> 0 | H31: ='Data Centre Detail'!I24 -> 0 | I31: ='Data Centre Detail'!J24 -> 0 | J31: ='Data Centre Detail'!K24 -> 0 | K31: ='Data Centre Detail'!L24 -> 0 | L31: ='Data Centre Detail'!M24 -> 0 | M31: ='Data Centre Detail'!N24 -> 0 | N31: ='Data Centre Detail'!O24 -> 0 | O31: 0 | P31: 0 | Q31: 0 | R31: 0 | S31: 0 | T31: 0 | U31: 0 | V31: 0 | W31: 0 | X31: 0 | Y31: 0 | Z31: 0 | AA31: 0 | AB31: 0 | AC31: 0 | AD31: 0 | AE31: 0 | AF31: 0 | AG31: 0 | AH31: 0 | AI31: 0 | AJ31: 0 | AK31: 0 | AL31: 0 | AM31: 0 | AN31: 0 | AO31: 0 | AP31: 0 | AQ31: 0 | AR31: 0 | AS31: 0 | AT31: 0 | AU31: 0 | AV31: 0 | AW31: 0 | AX31: 0 | AY31: 0 | AZ31: 0 | BA31: 0 | BB31: 0 | BC31: 0 | BD31: 0 | BE31: 0 | BF31: 0 | BG31: 0 | BH31: 0 | BI31: 0 | BJ31: 0 | BK31: 0 | BL31: 0 | BM31: 0 | BN31: 0 | BO31: 0 | BP31: 0 | BQ31: 0 | BR31: 0 | BS31: 0 | BT31: 0 | BU31: 0 | BV31: 0 | BW31: 0 | BX31: 0 | BY31: 0 | BZ31: 0 | CA31: 0 | CB31: 0 | CC31: 0 | CD31: 0 | CE31: 0 | CF31: 0 | CG31: 0 | CH31: 0
B32: Racks and Servers | C32: ='Data Centre Detail'!D25 -> Current | D32: ='Data Centre Detail'!E25 -> 3 Yr Forecast | E32: ='Data Centre Detail'!F25 -> 5 Yr Forecast | F32: ='Data Centre Detail'!G25 -> Current | G32: ='Data Centre Detail'!H25 -> 3 Yr Forecast | H32: ='Data Centre Detail'!I25 -> 5 Yr Forecast | I32: ='Data Centre Detail'!J25 -> Current | J32: ='Data Centre Detail'!K25 -> 3 Yr Forecast | K32: ='Data Centre Detail'!L25 -> 5 Yr Forecast | L32: ='Data Centre Detail'!M25 -> Current | M32: ='Data Centre Detail'!N25 -> 3 Yr Forecast | N32: ='Data Centre Detail'!O25 -> 5 Yr Forecast | O32: Current | P32: 3 Yr Forecast | Q32: 5 Yr Forecast | R32: Current | S32: 3 Yr Forecast | T32: 5 Yr Forecast | U32: Current | V32: 3 Yr Forecast | W32: 5 Yr Forecast | X32: Current | Y32: 3 Yr Forecast | Z32: 5 Yr Forecast | AA32: Current | AB32: 3 Yr Forecast | AC32: 5 Yr Forecast | AD32: Current | AE32: 3 Yr Forecast | AF32: 5 Yr Forecast | AG32: Current | AH32: 3 Yr Forecast | AI32: 5 Yr Forecast | AJ32: Current | AK32: 3 Yr Forecast | AL32: 5 Yr Forecast | AM32: Current | AN32: 3 Yr Forecast | AO32: 5 Yr Forecast | AP32: Current | AQ32: 3 Yr Forecast | AR32: 5 Yr Forecast | AS32: Current | AT32: 3 Yr Forecast | AU32: 5 Yr Forecast | AV32: Current | AW32: 3 Yr Forecast | AX32: 5 Yr Forecast | AY32: Current | AZ32: 3 Yr Forecast | BA32: 5 Yr Forecast | BB32: Current | BC32: 3 Yr Forecast | BD32: 5 Yr Forecast | BE32: Current | BF32: 3 Yr Forecast | BG32: 5 Yr Forecast | BH32: Current | BI32: 3 Yr Forecast | BJ32: 5 Yr Forecast | BK32: Current | BL32: 3 Yr Forecast | BM32: 5 Yr Forecast | BN32: Current | BO32: 3 Yr Forecast | BP32: 5 Yr Forecast | BQ32: Current | BR32: 3 Yr Forecast | BS32: 5 Yr Forecast | BT32: Current | BU32: 3 Yr Forecast | BV32: 5 Yr Forecast | BW32: Current | BX32: 3 Yr Forecast | BY32: 5 Yr Forecast | BZ32: Current | CA32: 3 Yr Forecast | CB32: 5 Yr Forecast | CC32: Current | CD32: 3 Yr Forecast | CE32: 5 Yr Forecast | CF32: Current | CG32: 3 Yr Forecast | CH32: 5 Yr Forecast
B33: No of racks (42u equivalent) | C33: ='Data Centre Detail'!D26 -> 0 | D33: ='Data Centre Detail'!E26 -> 0 | E33: ='Data Centre Detail'!F26 -> 0 | F33: ='Data Centre Detail'!G26 -> 0 | G33: ='Data Centre Detail'!H26 -> 0 | H33: ='Data Centre Detail'!I26 -> 0 | I33: ='Data Centre Detail'!J26 -> 0 | J33: ='Data Centre Detail'!K26 -> 0 | K33: ='Data Centre Detail'!L26 -> 0 | L33: ='Data Centre Detail'!M26 -> 0 | M33: ='Data Centre Detail'!N26 -> 0 | N33: ='Data Centre Detail'!O26 -> 0 | O33: 0 | P33: 0 | Q33: 0 | R33: 0 | S33: 0 | T33: 0 | U33: 0 | V33: 0 | W33: 0 | X33: 0 | Y33: 0 | Z33: 0 | AA33: 0 | AB33: 0 | AC33: 0 | AD33: 0 | AE33: 0 | AF33: 0 | AG33: 0 | AH33: 0 | AI33: 0 | AJ33: 0 | AK33: 0 | AL33: 0 | AM33: 0 | AN33: 0 | AO33: 0 | AP33: 0 | AQ33: 0 | AR33: 0 | AS33: 0 | AT33: 0 | AU33: 0 | AV33: 0 | AW33: 0 | AX33: 0 | AY33: 0 | AZ33: 0 | BA33: 0 | BB33: 0 | BC33: 0 | BD33: 0 | BE33: 0 | BF33: 0 | BG33: 0 | BH33: 0 | BI33: 0 | BJ33: 0 | BK33: 0 | BL33: 0 | BM33: 0 | BN33: 0 | BO33: 0 | BP33: 0 | BQ33: 0 | BR33: 0 | BS33: 0 | BT33: 0 | BU33: 0 | BV33: 0 | BW33: 0 | BX33: 0 | BY33: 0 | BZ33: 0 | CA33: 0 | CB33: 0 | CC33: 0 | CD33: 0 | CE33: 0 | CF33: 0 | CG33: 0 | CH33: 0
B34: Rack utilisation | C34: ='Data Centre Detail'!D27 -> 0 | D34: ='Data Centre Detail'!E27 -> 0 | E34: ='Data Centre Detail'!F27 -> 0 | F34: ='Data Centre Detail'!G27 -> 0 | G34: ='Data Centre Detail'!H27 -> 0 | H34: ='Data Centre Detail'!I27 -> 0 | I34: ='Data Centre Detail'!J27 -> 0 | J34: ='Data Centre Detail'!K27 -> 0 | K34: ='Data Centre Detail'!L27 -> 0 | L34: ='Data Centre Detail'!M27 -> 0 | M34: ='Data Centre Detail'!N27 -> 0 | N34: ='Data Centre Detail'!O27 -> 0 | O34: 0 | P34: 0 | Q34: 0 | R34: 0 | S34: 0 | T34: 0 | U34: 0 | V34: 0 | W34: 0 | X34: 0 | Y34: 0 | Z34: 0 | AA34: 0 | AB34: 0 | AC34: 0 | AD34: 0 | AE34: 0 | AF34: 0 | AG34: 0 | AH34: 0 | AI34: 0 | AJ34: 0 | AK34: 0 | AL34: 0 | AM34: 0 | AN34: 0 | AO34: 0 | AP34: 0 | AQ34: 0 | AR34: 0 | AS34: 0 | AT34: 0 | AU34: 0 | AV34: 0 | AW34: 0 | AX34: 0 | AY34: 0 | AZ34: 0 | BA34: 0 | BB34: 0 | BC34: 0 | BD34: 0 | BE34: 0 | BF34: 0 | BG34: 0 | BH34: 0 | BI34: 0 | BJ34: 0 | BK34: 0 | BL34: 0 | BM34: 0 | BN34: 0 | BO34: 0 | BP34: 0 | BQ34: 0 | BR34: 0 | BS34: 0 | BT34: 0 | BU34: 0 | BV34: 0 | BW34: 0 | BX34: 0 | BY34: 0 | BZ34: 0 | CA34: 0 | CB34: 0 | CC34: 0 | CD34: 0 | CE34: 0 | CF34: 0 | CG34: 0 | CH34: 0
B35: No of devices | C35: ='Data Centre Detail'!D28 -> 0 | D35: ='Data Centre Detail'!E28 -> 0 | E35: ='Data Centre Detail'!F28 -> 0 | F35: ='Data Centre Detail'!G28 -> 0 | G35: ='Data Centre Detail'!H28 -> 0 | H35: ='Data Centre Detail'!I28 -> 0 | I35: ='Data Centre Detail'!J28 -> 0 | J35: ='Data Centre Detail'!K28 -> 0 | K35: ='Data Centre Detail'!L28 -> 0 | L35: ='Data Centre Detail'!M28 -> 0 | M35: ='Data Centre Detail'!N28 -> 0 | N35: ='Data Centre Detail'!O28 -> 0 | O35: 0 | P35: 0 | Q35: 0 | R35: 0 | S35: 0 | T35: 0 | U35: 0 | V35: 0 | W35: 0 | X35: 0 | Y35: 0 | Z35: 0 | AA35: 0 | AB35: 0 | AC35: 0 | AD35: 0 | AE35: 0 | AF35: 0 | AG35: 0 | AH35: 0 | AI35: 0 | AJ35: 0 | AK35: 0 | AL35: 0 | AM35: 0 | AN35: 0 | AO35: 0 | AP35: 0 | AQ35: 0 | AR35: 0 | AS35: 0 | AT35: 0 | AU35: 0 | AV35: 0 | AW35: 0 | AX35: 0 | AY35: 0 | AZ35: 0 | BA35: 0 | BB35: 0 | BC35: 0 | BD35: 0 | BE35: 0 | BF35: 0 | BG35: 0 | BH35: 0 | BI35: 0 | BJ35: 0 | BK35: 0 | BL35: 0 | BM35: 0 | BN35: 0 | BO35: 0 | BP35: 0 | BQ35: 0 | BR35: 0 | BS35: 0 | BT35: 0 | BU35: 0 | BV35: 0 | BW35: 0 | BX35: 0 | BY35: 0 | BZ35: 0 | CA35: 0 | CB35: 0 | CC35: 0 | CD35: 0 | CE35: 0 | CF35: 0 | CG35: 0 | CH35: 0
B36: Servers | C36: ='Data Centre Detail'!D29 -> 0 | D36: ='Data Centre Detail'!E29 -> 0 | E36: ='Data Centre Detail'!F29 -> 0 | F36: ='Data Centre Detail'!G29 -> 0 | G36: ='Data Centre Detail'!H29 -> 0 | H36: ='Data Centre Detail'!I29 -> 0 | I36: ='Data Centre Detail'!J29 -> 0 | J36: ='Data Centre Detail'!K29 -> 0 | K36: ='Data Centre Detail'!L29 -> 0 | L36: ='Data Centre Detail'!M29 -> 0 | M36: ='Data Centre Detail'!N29 -> 0 | N36: ='Data Centre Detail'!O29 -> 0 | O36: 0 | P36: 0 | Q36: 0 | R36: 0 | S36: 0 | T36: 0 | U36: 0 | V36: 0 | W36: 0 | X36: 0 | Y36: 0 | Z36: 0 | AA36: 0 | AB36: 0 | AC36: 0 | AD36: 0 | AE36: 0 | AF36: 0 | AG36: 0 | AH36: 0 | AI36: 0 | AJ36: 0 | AK36: 0 | AL36: 0 | AM36: 0 | AN36: 0 | AO36: 0 | AP36: 0 | AQ36: 0 | AR36: 0 | AS36: 0 | AT36: 0 | AU36: 0 | AV36: 0 | AW36: 0 | AX36: 0 | AY36: 0 | AZ36: 0 | BA36: 0 | BB36: 0 | BC36: 0 | BD36: 0 | BE36: 0 | BF36: 0 | BG36: 0 | BH36: 0 | BI36: 0 | BJ36: 0 | BK36: 0 | BL36: 0 | BM36: 0 | BN36: 0 | BO36: 0 | BP36: 0 | BQ36: 0 | BR36: 0 | BS36: 0 | BT36: 0 | BU36: 0 | BV36: 0 | BW36: 0 | BX36: 0 | BY36: 0 | BZ36: 0 | CA36: 0 | CB36: 0 | CC36: 0 | CD36: 0 | CE36: 0 | CF36: 0 | CG36: 0 | CH36: 0
B37: Small | C37: ='Data Centre Detail'!D30 -> 0 | D37: ='Data Centre Detail'!E30 -> 0 | E37: ='Data Centre Detail'!F30 -> 0 | F37: ='Data Centre Detail'!G30 -> 0 | G37: ='Data Centre Detail'!H30 -> 0 | H37: ='Data Centre Detail'!I30 -> 0 | I37: ='Data Centre Detail'!J30 -> 0 | J37: ='Data Centre Detail'!K30 -> 0 | K37: ='Data Centre Detail'!L30 -> 0 | L37: ='Data Centre Detail'!M30 -> 0 | M37: ='Data Centre Detail'!N30 -> 0 | N37: ='Data Centre Detail'!O30 -> 0 | O37: 0 | P37: 0 | Q37: 0 | R37: 0 | S37: 0 | T37: 0 | U37: 0 | V37: 0 | W37: 0 | X37: 0 | Y37: 0 | Z37: 0 | AA37: 0 | AB37: 0 | AC37: 0 | AD37: 0 | AE37: 0 | AF37: 0 | AG37: 0 | AH37: 0 | AI37: 0 | AJ37: 0 | AK37: 0 | AL37: 0 | AM37: 0 | AN37: 0 | AO37: 0 | AP37: 0 | AQ37: 0 | AR37: 0 | AS37: 0 | AT37: 0 | AU37: 0 | AV37: 0 | AW37: 0 | AX37: 0 | AY37: 0 | AZ37: 0 | BA37: 0 | BB37: 0 | BC37: 0 | BD37: 0 | BE37: 0 | BF37: 0 | BG37: 0 | BH37: 0 | BI37: 0 | BJ37: 0 | BK37: 0 | BL37: 0 | BM37: 0 | BN37: 0 | BO37: 0 | BP37: 0 | BQ37: 0 | BR37: 0 | BS37: 0 | BT37: 0 | BU37: 0 | BV37: 0 | BW37: 0 | BX37: 0 | BY37: 0 | BZ37: 0 | CA37: 0 | CB37: 0 | CC37: 0 | CD37: 0 | CE37: 0 | CF37: 0 | CG37: 0 | CH37: 0
B38: Medium | C38: ='Data Centre Detail'!D31 -> 0 | D38: ='Data Centre Detail'!E31 -> 0 | E38: ='Data Centre Detail'!F31 -> 0 | F38: ='Data Centre Detail'!G31 -> 0 | G38: ='Data Centre Detail'!H31 -> 0 | H38: ='Data Centre Detail'!I31 -> 0 | I38: ='Data Centre Detail'!J31 -> 0 | J38: ='Data Centre Detail'!K31 -> 0 | K38: ='Data Centre Detail'!L31 -> 0 | L38: ='Data Centre Detail'!M31 -> 0 | M38: ='Data Centre Detail'!N31 -> 0 | N38: ='Data Centre Detail'!O31 -> 0 | O38: 0 | P38: 0 | Q38: 0 | R38: 0 | S38: 0 | T38: 0 | U38: 0 | V38: 0 | W38: 0 | X38: 0 | Y38: 0 | Z38: 0 | AA38: 0 | AB38: 0 | AC38: 0 | AD38: 0 | AE38: 0 | AF38: 0 | AG38: 0 | AH38: 0 | AI38: 0 | AJ38: 0 | AK38: 0 | AL38: 0 | AM38: 0 | AN38: 0 | AO38: 0 | AP38: 0 | AQ38: 0 | AR38: 0 | AS38: 0 | AT38: 0 | AU38: 0 | AV38: 0 | AW38: 0 | AX38: 0 | AY38: 0 | AZ38: 0 | BA38: 0 | BB38: 0 | BC38: 0 | BD38: 0 | BE38: 0 | BF38: 0 | BG38: 0 | BH38: 0 | BI38: 0 | BJ38: 0 | BK38: 0 | BL38: 0 | BM38: 0 | BN38: 0 | BO38: 0 | BP38: 0 | BQ38: 0 | BR38: 0 | BS38: 0 | BT38: 0 | BU38: 0 | BV38: 0 | BW38: 0 | BX38: 0 | BY38: 0 | BZ38: 0 | CA38: 0 | CB38: 0 | CC38: 0 | CD38: 0 | CE38: 0 | CF38: 0 | CG38: 0 | CH38: 0
B39: Large | C39: ='Data Centre Detail'!D32 -> 0 | D39: ='Data Centre Detail'!E32 -> 0 | E39: ='Data Centre Detail'!F32 -> 0 | F39: ='Data Centre Detail'!G32 -> 0 | G39: ='Data Centre Detail'!H32 -> 0 | H39: ='Data Centre Detail'!I32 -> 0 | I39: ='Data Centre Detail'!J32 -> 0 | J39: ='Data Centre Detail'!K32 -> 0 | K39: ='Data Centre Detail'!L32 -> 0 | L39: ='Data Centre Detail'!M32 -> 0 | M39: ='Data Centre Detail'!N32 -> 0 | N39: ='Data Centre Detail'!O32 -> 0 | O39: 0 | P39: 0 | Q39: 0 | R39: 0 | S39: 0 | T39: 0 | U39: 0 | V39: 0 | W39: 0 | X39: 0 | Y39: 0 | Z39: 0 | AA39: 0 | AB39: 0 | AC39: 0 | AD39: 0 | AE39: 0 | AF39: 0 | AG39: 0 | AH39: 0 | AI39: 0 | AJ39: 0 | AK39: 0 | AL39: 0 | AM39: 0 | AN39: 0 | AO39: 0 | AP39: 0 | AQ39: 0 | AR39: 0 | AS39: 0 | AT39: 0 | AU39: 0 | AV39: 0 | AW39: 0 | AX39: 0 | AY39: 0 | AZ39: 0 | BA39: 0 | BB39: 0 | BC39: 0 | BD39: 0 | BE39: 0 | BF39: 0 | BG39: 0 | BH39: 0 | BI39: 0 | BJ39: 0 | BK39: 0 | BL39: 0 | BM39: 0 | BN39: 0 | BO39: 0 | BP39: 0 | BQ39: 0 | BR39: 0 | BS39: 0 | BT39: 0 | BU39: 0 | BV39: 0 | BW39: 0 | BX39: 0 | BY39: 0 | BZ39: 0 | CA39: 0 | CB39: 0 | CC39: 0 | CD39: 0 | CE39: 0 | CF39: 0 | CG39: 0 | CH39: 0
B40: V Large | C40: ='Data Centre Detail'!D33 -> 0 | D40: ='Data Centre Detail'!E33 -> 0 | E40: ='Data Centre Detail'!F33 -> 0 | F40: ='Data Centre Detail'!G33 -> 0 | G40: ='Data Centre Detail'!H33 -> 0 | H40: ='Data Centre Detail'!I33 -> 0 | I40: ='Data Centre Detail'!J33 -> 0 | J40: ='Data Centre Detail'!K33 -> 0 | K40: ='Data Centre Detail'!L33 -> 0 | L40: ='Data Centre Detail'!M33 -> 0 | M40: ='Data Centre Detail'!N33 -> 0 | N40: ='Data Centre Detail'!O33 -> 0 | O40: 0 | P40: 0 | Q40: 0 | R40: 0 | S40: 0 | T40: 0 | U40: 0 | V40: 0 | W40: 0 | X40: 0 | Y40: 0 | Z40: 0 | AA40: 0 | AB40: 0 | AC40: 0 | AD40: 0 | AE40: 0 | AF40: 0 | AG40: 0 | AH40: 0 | AI40: 0 | AJ40: 0 | AK40: 0 | AL40: 0 | AM40: 0 | AN40: 0 | AO40: 0 | AP40: 0 | AQ40: 0 | AR40: 0 | AS40: 0 | AT40: 0 | AU40: 0 | AV40: 0 | AW40: 0 | AX40: 0 | AY40: 0 | AZ40: 0 | BA40: 0 | BB40: 0 | BC40: 0 | BD40: 0 | BE40: 0 | BF40: 0 | BG40: 0 | BH40: 0 | BI40: 0 | BJ40: 0 | BK40: 0 | BL40: 0 | BM40: 0 | BN40: 0 | BO40: 0 | BP40: 0 | BQ40: 0 | BR40: 0 | BS40: 0 | BT40: 0 | BU40: 0 | BV40: 0 | BW40: 0 | BX40: 0 | BY40: 0 | BZ40: 0 | CA40: 0 | CB40: 0 | CC40: 0 | CD40: 0 | CE40: 0 | CF40: 0 | CG40: 0 | CH40: 0
B41: Storage | C41: ='Data Centre Detail'!D34 -> 0 | D41: ='Data Centre Detail'!E34 -> 0 | E41: ='Data Centre Detail'!F34 -> 0 | F41: ='Data Centre Detail'!G34 -> 0 | G41: ='Data Centre Detail'!H34 -> 0 | H41: ='Data Centre Detail'!I34 -> 0 | I41: ='Data Centre Detail'!J34 -> 0 | J41: ='Data Centre Detail'!K34 -> 0 | K41: ='Data Centre Detail'!L34 -> 0 | L41: ='Data Centre Detail'!M34 -> 0 | M41: ='Data Centre Detail'!N34 -> 0 | N41: ='Data Centre Detail'!O34 -> 0 | O41: 0 | P41: 0 | Q41: 0 | R41: 0 | S41: 0 | T41: 0 | U41: 0 | V41: 0 | W41: 0 | X41: 0 | Y41: 0 | Z41: 0 | AA41: 0 | AB41: 0 | AC41: 0 | AD41: 0 | AE41: 0 | AF41: 0 | AG41: 0 | AH41: 0 | AI41: 0 | AJ41: 0 | AK41: 0 | AL41: 0 | AM41: 0 | AN41: 0 | AO41: 0 | AP41: 0 | AQ41: 0 | AR41: 0 | AS41: 0 | AT41: 0 | AU41: 0 | AV41: 0 | AW41: 0 | AX41: 0 | AY41: 0 | AZ41: 0 | BA41: 0 | BB41: 0 | BC41: 0 | BD41: 0 | BE41: 0 | BF41: 0 | BG41: 0 | BH41: 0 | BI41: 0 | BJ41: 0 | BK41: 0 | BL41: 0 | BM41: 0 | BN41: 0 | BO41: 0 | BP41: 0 | BQ41: 0 | BR41: 0 | BS41: 0 | BT41: 0 | BU41: 0 | BV41: 0 | BW41: 0 | BX41: 0 | BY41: 0 | BZ41: 0 | CA41: 0 | CB41: 0 | CC41: 0 | CD41: 0 | CE41: 0 | CF41: 0 | CG41: 0 | CH41: 0
B42: Network devices | C42: ='Data Centre Detail'!D35 -> 0 | D42: ='Data Centre Detail'!E35 -> 0 | E42: ='Data Centre Detail'!F35 -> 0 | F42: ='Data Centre Detail'!G35 -> 0 | G42: ='Data Centre Detail'!H35 -> 0 | H42: ='Data Centre Detail'!I35 -> 0 | I42: ='Data Centre Detail'!J35 -> 0 | J42: ='Data Centre Detail'!K35 -> 0 | K42: ='Data Centre Detail'!L35 -> 0 | L42: ='Data Centre Detail'!M35 -> 0 | M42: ='Data Centre Detail'!N35 -> 0 | N42: ='Data Centre Detail'!O35 -> 0 | O42: 0 | P42: 0 | Q42: 0 | R42: 0 | S42: 0 | T42: 0 | U42: 0 | V42: 0 | W42: 0 | X42: 0 | Y42: 0 | Z42: 0 | AA42: 0 | AB42: 0 | AC42: 0 | AD42: 0 | AE42: 0 | AF42: 0 | AG42: 0 | AH42: 0 | AI42: 0 | AJ42: 0 | AK42: 0 | AL42: 0 | AM42: 0 | AN42: 0 | AO42: 0 | AP42: 0 | AQ42: 0 | AR42: 0 | AS42: 0 | AT42: 0 | AU42: 0 | AV42: 0 | AW42: 0 | AX42: 0 | AY42: 0 | AZ42: 0 | BA42: 0 | BB42: 0 | BC42: 0 | BD42: 0 | BE42: 0 | BF42: 0 | BG42: 0 | BH42: 0 | BI42: 0 | BJ42: 0 | BK42: 0 | BL42: 0 | BM42: 0 | BN42: 0 | BO42: 0 | BP42: 0 | BQ42: 0 | BR42: 0 | BS42: 0 | BT42: 0 | BU42: 0 | BV42: 0 | BW42: 0 | BX42: 0 | BY42: 0 | BZ42: 0 | CA42: 0 | CB42: 0 | CC42: 0 | CD42: 0 | CE42: 0 | CF42: 0 | CG42: 0 | CH42: 0
B43: Ancilliary devices | C43: ='Data Centre Detail'!D36 -> 0 | D43: ='Data Centre Detail'!E36 -> 0 | E43: ='Data Centre Detail'!F36 -> 0 | F43: ='Data Centre Detail'!G36 -> 0 | G43: ='Data Centre Detail'!H36 -> 0 | H43: ='Data Centre Detail'!I36 -> 0 | I43: ='Data Centre Detail'!J36 -> 0 | J43: ='Data Centre Detail'!K36 -> 0 | K43: ='Data Centre Detail'!L36 -> 0 | L43: ='Data Centre Detail'!M36 -> 0 | M43: ='Data Centre Detail'!N36 -> 0 | N43: ='Data Centre Detail'!O36 -> 0 | O43: 0 | P43: 0 | Q43: 0 | R43: 0 | S43: 0 | T43: 0 | U43: 0 | V43: 0 | W43: 0 | X43: 0 | Y43: 0 | Z43: 0 | AA43: 0 | AB43: 0 | AC43: 0 | AD43: 0 | AE43: 0 | AF43: 0 | AG43: 0 | AH43: 0 | AI43: 0 | AJ43: 0 | AK43: 0 | AL43: 0 | AM43: 0 | AN43: 0 | AO43: 0 | AP43: 0 | AQ43: 0 | AR43: 0 | AS43: 0 | AT43: 0 | AU43: 0 | AV43: 0 | AW43: 0 | AX43: 0 | AY43: 0 | AZ43: 0 | BA43: 0 | BB43: 0 | BC43: 0 | BD43: 0 | BE43: 0 | BF43: 0 | BG43: 0 | BH43: 0 | BI43: 0 | BJ43: 0 | BK43: 0 | BL43: 0 | BM43: 0 | BN43: 0 | BO43: 0 | BP43: 0 | BQ43: 0 | BR43: 0 | BS43: 0 | BT43: 0 | BU43: 0 | BV43: 0 | BW43: 0 | BX43: 0 | BY43: 0 | BZ43: 0 | CA43: 0 | CB43: 0 | CC43: 0 | CD43: 0 | CE43: 0 | CF43: 0 | CG43: 0 | CH43: 0
B44: Other | C44: ='Data Centre Detail'!D37 -> 0 | D44: ='Data Centre Detail'!E37 -> 0 | E44: ='Data Centre Detail'!F37 -> 0 | F44: ='Data Centre Detail'!G37 -> 0 | G44: ='Data Centre Detail'!H37 -> 0 | H44: ='Data Centre Detail'!I37 -> 0 | I44: ='Data Centre Detail'!J37 -> 0 | J44: ='Data Centre Detail'!K37 -> 0 | K44: ='Data Centre Detail'!L37 -> 0 | L44: ='Data Centre Detail'!M37 -> 0 | M44: ='Data Centre Detail'!N37 -> 0 | N44: ='Data Centre Detail'!O37 -> 0 | O44: 0 | P44: 0 | Q44: 0 | R44: 0 | S44: 0 | T44: 0 | U44: 0 | V44: 0 | W44: 0 | X44: 0 | Y44: 0 | Z44: 0 | AA44: 0 | AB44: 0 | AC44: 0 | AD44: 0 | AE44: 0 | AF44: 0 | AG44: 0 | AH44: 0 | AI44: 0 | AJ44: 0 | AK44: 0 | AL44: 0 | AM44: 0 | AN44: 0 | AO44: 0 | AP44: 0 | AQ44: 0 | AR44: 0 | AS44: 0 | AT44: 0 | AU44: 0 | AV44: 0 | AW44: 0 | AX44: 0 | AY44: 0 | AZ44: 0 | BA44: 0 | BB44: 0 | BC44: 0 | BD44: 0 | BE44: 0 | BF44: 0 | BG44: 0 | BH44: 0 | BI44: 0 | BJ44: 0 | BK44: 0 | BL44: 0 | BM44: 0 | BN44: 0 | BO44: 0 | BP44: 0 | BQ44: 0 | BR44: 0 | BS44: 0 | BT44: 0 | BU44: 0 | BV44: 0 | BW44: 0 | BX44: 0 | BY44: 0 | BZ44: 0 | CA44: 0 | CB44: 0 | CC44: 0 | CD44: 0 | CE44: 0 | CF44: 0 | CG44: 0 | CH44: 0
B45: Total storage capacity | C45: ='Data Centre Detail'!D38 -> 0 | D45: ='Data Centre Detail'!E38 -> 0 | E45: ='Data Centre Detail'!F38 -> 0 | F45: ='Data Centre Detail'!G38 -> 0 | G45: ='Data Centre Detail'!H38 -> 0 | H45: ='Data Centre Detail'!I38 -> 0 | I45: ='Data Centre Detail'!J38 -> 0 | J45: ='Data Centre Detail'!K38 -> 0 | K45: ='Data Centre Detail'!L38 -> 0 | L45: ='Data Centre Detail'!M38 -> 0 | M45: ='Data Centre Detail'!N38 -> 0 | N45: ='Data Centre Detail'!O38 -> 0 | O45: 0 | P45: 0 | Q45: 0 | R45: 0 | S45: 0 | T45: 0 | U45: 0 | V45: 0 | W45: 0 | X45: 0 | Y45: 0 | Z45: 0 | AA45: 0 | AB45: 0 | AC45: 0 | AD45: 0 | AE45: 0 | AF45: 0 | AG45: 0 | AH45: 0 | AI45: 0 | AJ45: 0 | AK45: 0 | AL45: 0 | AM45: 0 | AN45: 0 | AO45: 0 | AP45: 0 | AQ45: 0 | AR45: 0 | AS45: 0 | AT45: 0 | AU45: 0 | AV45: 0 | AW45: 0 | AX45: 0 | AY45: 0 | AZ45: 0 | BA45: 0 | BB45: 0 | BC45: 0 | BD45: 0 | BE45: 0 | BF45: 0 | BG45: 0 | BH45: 0 | BI45: 0 | BJ45: 0 | BK45: 0 | BL45: 0 | BM45: 0 | BN45: 0 | BO45: 0 | BP45: 0 | BQ45: 0 | BR45: 0 | BS45: 0 | BT45: 0 | BU45: 0 | BV45: 0 | BW45: 0 | BX45: 0 | BY45: 0 | BZ45: 0 | CA45: 0 | CB45: 0 | CC45: 0 | CD45: 0 | CE45: 0 | CF45: 0 | CG45: 0 | CH45: 0
C46: ='Data Centre Detail'!D39 -> 0 | D46: ='Data Centre Detail'!E39 -> 0 | E46: ='Data Centre Detail'!F39 -> 0 | F46: ='Data Centre Detail'!G39 -> 0 | G46: ='Data Centre Detail'!H39 -> 0 | H46: ='Data Centre Detail'!I39 -> 0 | I46: ='Data Centre Detail'!J39 -> 0 | J46: ='Data Centre Detail'!K39 -> 0 | K46: ='Data Centre Detail'!L39 -> 0 | L46: ='Data Centre Detail'!M39 -> 0 | M46: ='Data Centre Detail'!N39 -> 0 | N46: ='Data Centre Detail'!O39 -> 0 | O46: 0 | P46: 0 | Q46: 0 | R46: 0 | S46: 0 | T46: 0 | U46: 0 | V46: 0 | W46: 0 | X46: 0 | Y46: 0 | Z46: 0 | AA46: 0 | AB46: 0 | AC46: 0 | AD46: 0 | AE46: 0 | AF46: 0 | AG46: 0 | AH46: 0 | AI46: 0 | AJ46: 0 | AK46: 0 | AL46: 0 | AM46: 0 | AN46: 0 | AO46: 0 | AP46: 0 | AQ46: 0 | AR46: 0 | AS46: 0 | AT46: 0 | AU46: 0 | AV46: 0 | AW46: 0 | AX46: 0 | AY46: 0 | AZ46: 0 | BA46: 0 | BB46: 0 | BC46: 0 | BD46: 0 | BE46: 0 | BF46: 0 | BG46: 0 | BH46: 0 | BI46: 0 | BJ46: 0 | BK46: 0 | BL46: 0 | BM46: 0 | BN46: 0 | BO46: 0 | BP46: 0 | BQ46: 0 | BR46: 0 | BS46: 0 | BT46: 0 | BU46: 0 | BV46: 0 | BW46: 0 | BX46: 0 | BY46: 0 | BZ46: 0 | CA46: 0 | CB46: 0 | CC46: 0 | CD46: 0 | CE46: 0 | CF46: 0 | CG46: 0 | CH46: 0
B47: Power Consumption | C47: ='Data Centre Detail'!D40 -> 0 | D47: ='Data Centre Detail'!E40 -> 0 | E47: ='Data Centre Detail'!F40 -> 0 | F47: ='Data Centre Detail'!G40 -> 0 | G47: ='Data Centre Detail'!H40 -> 0 | H47: ='Data Centre Detail'!I40 -> 0 | I47: ='Data Centre Detail'!J40 -> 0 | J47: ='Data Centre Detail'!K40 -> 0 | K47: ='Data Centre Detail'!L40 -> 0 | L47: ='Data Centre Detail'!M40 -> 0 | M47: ='Data Centre Detail'!N40 -> 0 | N47: ='Data Centre Detail'!O40 -> 0 | O47: 0 | P47: 0 | Q47: 0 | R47: 0 | S47: 0 | T47: 0 | U47: 0 | V47: 0 | W47: 0 | X47: 0 | Y47: 0 | Z47: 0 | AA47: 0 | AB47: 0 | AC47: 0 | AD47: 0 | AE47: 0 | AF47: 0 | AG47: 0 | AH47: 0 | AI47: 0 | AJ47: 0 | AK47: 0 | AL47: 0 | AM47: 0 | AN47: 0 | AO47: 0 | AP47: 0 | AQ47: 0 | AR47: 0 | AS47: 0 | AT47: 0 | AU47: 0 | AV47: 0 | AW47: 0 | AX47: 0 | AY47: 0 | AZ47: 0 | BA47: 0 | BB47: 0 | BC47: 0 | BD47: 0 | BE47: 0 | BF47: 0 | BG47: 0 | BH47: 0 | BI47: 0 | BJ47: 0 | BK47: 0 | BL47: 0 | BM47: 0 | BN47: 0 | BO47: 0 | BP47: 0 | BQ47: 0 | BR47: 0 | BS47: 0 | BT47: 0 | BU47: 0 | BV47: 0 | BW47: 0 | BX47: 0 | BY47: 0 | BZ47: 0 | CA47: 0 | CB47: 0 | CC47: 0 | CD47: 0 | CE47: 0 | CF47: 0 | CG47: 0 | CH47: 0
B48: ICT Power | C48: ='Data Centre Detail'!D41 -> 0 | D48: ='Data Centre Detail'!E41 -> 0 | E48: ='Data Centre Detail'!F41 -> 0 | F48: ='Data Centre Detail'!G41 -> 0 | G48: ='Data Centre Detail'!H41 -> 0 | H48: ='Data Centre Detail'!I41 -> 0 | I48: ='Data Centre Detail'!J41 -> 0 | J48: ='Data Centre Detail'!K41 -> 0 | K48: ='Data Centre Detail'!L41 -> 0 | L48: ='Data Centre Detail'!M41 -> 0 | M48: ='Data Centre Detail'!N41 -> 0 | N48: ='Data Centre Detail'!O41 -> 0 | O48: 0 | P48: 0 | Q48: 0 | R48: 0 | S48: 0 | T48: 0 | U48: 0 | V48: 0 | W48: 0 | X48: 0 | Y48: 0 | Z48: 0 | AA48: 0 | AB48: 0 | AC48: 0 | AD48: 0 | AE48: 0 | AF48: 0 | AG48: 0 | AH48: 0 | AI48: 0 | AJ48: 0 | AK48: 0 | AL48: 0 | AM48: 0 | AN48: 0 | AO48: 0 | AP48: 0 | AQ48: 0 | AR48: 0 | AS48: 0 | AT48: 0 | AU48: 0 | AV48: 0 | AW48: 0 | AX48: 0 | AY48: 0 | AZ48: 0 | BA48: 0 | BB48: 0 | BC48: 0 | BD48: 0 | BE48: 0 | BF48: 0 | BG48: 0 | BH48: 0 | BI48: 0 | BJ48: 0 | BK48: 0 | BL48: 0 | BM48: 0 | BN48: 0 | BO48: 0 | BP48: 0 | BQ48: 0 | BR48: 0 | BS48: 0 | BT48: 0 | BU48: 0 | BV48: 0 | BW48: 0 | BX48: 0 | BY48: 0 | BZ48: 0 | CA48: 0 | CB48: 0 | CC48: 0 | CD48: 0 | CE48: 0 | CF48: 0 | CG48: 0 | CH48: 0
B49: Is the total ICT power seperately metered? | C49: ='Data Centre Detail'!D42 -> 0 | D49: ='Data Centre Detail'!E42 -> 0 | E49: ='Data Centre Detail'!F42 -> 0 | F49: ='Data Centre Detail'!G42 -> 0 | G49: ='Data Centre Detail'!H42 -> 0 | H49: ='Data Centre Detail'!I42 -> 0 | I49: ='Data Centre Detail'!J42 -> 0 | J49: ='Data Centre Detail'!K42 -> 0 | K49: ='Data Centre Detail'!L42 -> 0 | L49: ='Data Centre Detail'!M42 -> 0 | M49: ='Data Centre Detail'!N42 -> 0 | N49: ='Data Centre Detail'!O42 -> 0 | O49: 0 | P49: 0 | Q49: 0 | R49: 0 | S49: 0 | T49: 0 | U49: 0 | V49: 0 | W49: 0 | X49: 0 | Y49: 0 | Z49: 0 | AA49: 0 | AB49: 0 | AC49: 0 | AD49: 0 | AE49: 0 | AF49: 0 | AG49: 0 | AH49: 0 | AI49: 0 | AJ49: 0 | AK49: 0 | AL49: 0 | AM49: 0 | AN49: 0 | AO49: 0 | AP49: 0 | AQ49: 0 | AR49: 0 | AS49: 0 | AT49: 0 | AU49: 0 | AV49: 0 | AW49: 0 | AX49: 0 | AY49: 0 | AZ49: 0 | BA49: 0 | BB49: 0 | BC49: 0 | BD49: 0 | BE49: 0 | BF49: 0 | BG49: 0 | BH49: 0 | BI49: 0 | BJ49: 0 | BK49: 0 | BL49: 0 | BM49: 0 | BN49: 0 | BO49: 0 | BP49: 0 | BQ49: 0 | BR49: 0 | BS49: 0 | BT49: 0 | BU49: 0 | BV49: 0 | BW49: 0 | BX49: 0 | BY49: 0 | BZ49: 0 | CA49: 0 | CB49: 0 | CC49: 0 | CD49: 0 | CE49: 0 | CF49: 0 | CG49: 0 | CH49: 0
C50: ='Data Centre Detail'!D43 -> 0 | D50: ='Data Centre Detail'!E43 -> 0 | E50: ='Data Centre Detail'!F43 -> 0 | F50: ='Data Centre Detail'!G43 -> 0 | G50: ='Data Centre Detail'!H43 -> 0 | H50: ='Data Centre Detail'!I43 -> 0 | I50: ='Data Centre Detail'!J43 -> 0 | J50: ='Data Centre Detail'!K43 -> 0 | K50: ='Data Centre Detail'!L43 -> 0 | L50: ='Data Centre Detail'!M43 -> 0 | M50: ='Data Centre Detail'!N43 -> 0 | N50: ='Data Centre Detail'!O43 -> 0 | O50: 0 | P50: 0 | Q50: 0 | R50: 0 | S50: 0 | T50: 0 | U50: 0 | V50: 0 | W50: 0 | X50: 0 | Y50: 0 | Z50: 0 | AA50: 0 | AB50: 0 | AC50: 0 | AD50: 0 | AE50: 0 | AF50: 0 | AG50: 0 | AH50: 0 | AI50: 0 | AJ50: 0 | AK50: 0 | AL50: 0 | AM50: 0 | AN50: 0 | AO50: 0 | AP50: 0 | AQ50: 0 | AR50: 0 | AS50: 0 | AT50: 0 | AU50: 0 | AV50: 0 | AW50: 0 | AX50: 0 | AY50: 0 | AZ50: 0 | BA50: 0 | BB50: 0 | BC50: 0 | BD50: 0 | BE50: 0 | BF50: 0 | BG50: 0 | BH50: 0 | BI50: 0 | BJ50: 0 | BK50: 0 | BL50: 0 | BM50: 0 | BN50: 0 | BO50: 0 | BP50: 0 | BQ50: 0 | BR50: 0 | BS50: 0 | BT50: 0 | BU50: 0 | BV50: 0 | BW50: 0 | BX50: 0 | BY50: 0 | BZ50: 0 | CA50: 0 | CB50: 0 | CC50: 0 | CD50: 0 | CE50: 0 | CF50: 0 | CG50: 0 | CH50: 0
B51: Metering Point(s) | C51: ='Data Centre Detail'!D44 -> 0 | D51: ='Data Centre Detail'!E44 -> 0 | E51: ='Data Centre Detail'!F44 -> 0 | F51: ='Data Centre Detail'!G44 -> 0 | G51: ='Data Centre Detail'!H44 -> 0 | H51: ='Data Centre Detail'!I44 -> 0 | I51: ='Data Centre Detail'!J44 -> 0 | J51: ='Data Centre Detail'!K44 -> 0 | K51: ='Data Centre Detail'!L44 -> 0 | L51: ='Data Centre Detail'!M44 -> 0 | M51: ='Data Centre Detail'!N44 -> 0 | N51: ='Data Centre Detail'!O44 -> 0 | O51: 0 | P51: 0 | Q51: 0 | R51: 0 | S51: 0 | T51: 0 | U51: 0 | V51: 0 | W51: 0 | X51: 0 | Y51: 0 | Z51: 0 | AA51: 0 | AB51: 0 | AC51: 0 | AD51: 0 | AE51: 0 | AF51: 0 | AG51: 0 | AH51: 0 | AI51: 0 | AJ51: 0 | AK51: 0 | AL51: 0 | AM51: 0 | AN51: 0 | AO51: 0 | AP51: 0 | AQ51: 0 | AR51: 0 | AS51: 0 | AT51: 0 | AU51: 0 | AV51: 0 | AW51: 0 | AX51: 0 | AY51: 0 | AZ51: 0 | BA51: 0 | BB51: 0 | BC51: 0 | BD51: 0 | BE51: 0 | BF51: 0 | BG51: 0 | BH51: 0 | BI51: 0 | BJ51: 0 | BK51: 0 | BL51: 0 | BM51: 0 | BN51: 0 | BO51: 0 | BP51: 0 | BQ51: 0 | BR51: 0 | BS51: 0 | BT51: 0 | BU51: 0 | BV51: 0 | BW51: 0 | BX51: 0 | BY51: 0 | BZ51: 0 | CA51: 0 | CB51: 0 | CC51: 0 | CD51: 0 | CE51: 0 | CF51: 0 | CG51: 0 | CH51: 0
C52: ='Data Centre Detail'!D45 -> 0 | D52: ='Data Centre Detail'!E45 -> 0 | E52: ='Data Centre Detail'!F45 -> 0 | F52: ='Data Centre Detail'!G45 -> 0 | G52: ='Data Centre Detail'!H45 -> 0 | H52: ='Data Centre Detail'!I45 -> 0 | I52: ='Data Centre Detail'!J45 -> 0 | J52: ='Data Centre Detail'!K45 -> 0 | K52: ='Data Centre Detail'!L45 -> 0 | L52: ='Data Centre Detail'!M45 -> 0 | M52: ='Data Centre Detail'!N45 -> 0 | N52: ='Data Centre Detail'!O45 -> 0 | O52: 0 | P52: 0 | Q52: 0 | R52: 0 | S52: 0 | T52: 0 | U52: 0 | V52: 0 | W52: 0 | X52: 0 | Y52: 0 | Z52: 0 | AA52: 0 | AB52: 0 | AC52: 0 | AD52: 0 | AE52: 0 | AF52: 0 | AG52: 0 | AH52: 0 | AI52: 0 | AJ52: 0 | AK52: 0 | AL52: 0 | AM52: 0 | AN52: 0 | AO52: 0 | AP52: 0 | AQ52: 0 | AR52: 0 | AS52: 0 | AT52: 0 | AU52: 0 | AV52: 0 | AW52: 0 | AX52: 0 | AY52: 0 | AZ52: 0 | BA52: 0 | BB52: 0 | BC52: 0 | BD52: 0 | BE52: 0 | BF52: 0 | BG52: 0 | BH52: 0 | BI52: 0 | BJ52: 0 | BK52: 0 | BL52: 0 | BM52: 0 | BN52: 0 | BO52: 0 | BP52: 0 | BQ52: 0 | BR52: 0 | BS52: 0 | BT52: 0 | BU52: 0 | BV52: 0 | BW52: 0 | BX52: 0 | BY52: 0 | BZ52: 0 | CA52: 0 | CB52: 0 | CC52: 0 | CD52: 0 | CE52: 0 | CF52: 0 | CG52: 0 | CH52: 0
C53: ='Data Centre Detail'!D46 -> Current | D53: ='Data Centre Detail'!E46 -> 3 Yr Forecast | E53: ='Data Centre Detail'!F46 -> 5 Yr Forecast | F53: ='Data Centre Detail'!G46 -> Current | G53: ='Data Centre Detail'!H46 -> 3 Yr Forecast | H53: ='Data Centre Detail'!I46 -> 5 Yr Forecast | I53: ='Data Centre Detail'!J46 -> Current | J53: ='Data Centre Detail'!K46 -> 3 Yr Forecast | K53: ='Data Centre Detail'!L46 -> 5 Yr Forecast | L53: ='Data Centre Detail'!M46 -> Current | M53: ='Data Centre Detail'!N46 -> 3 Yr Forecast | N53: ='Data Centre Detail'!O46 -> 5 Yr Forecast | O53: Current | P53: 3 Yr Forecast | Q53: 5 Yr Forecast | R53: Current | S53: 3 Yr Forecast | T53: 5 Yr Forecast | U53: Current | V53: 3 Yr Forecast | W53: 5 Yr Forecast | X53: Current | Y53: 3 Yr Forecast | Z53: 5 Yr Forecast | AA53: Current | AB53: 3 Yr Forecast | AC53: 5 Yr Forecast | AD53: Current | AE53: 3 Yr Forecast | AF53: 5 Yr Forecast | AG53: Current | AH53: 3 Yr Forecast | AI53: 5 Yr Forecast | AJ53: Current | AK53: 3 Yr Forecast | AL53: 5 Yr Forecast | AM53: Current | AN53: 3 Yr Forecast | AO53: 5 Yr Forecast | AP53: Current | AQ53: 3 Yr Forecast | AR53: 5 Yr Forecast | AS53: Current | AT53: 3 Yr Forecast | AU53: 5 Yr Forecast | AV53: Current | AW53: 3 Yr Forecast | AX53: 5 Yr Forecast | AY53: Current | AZ53: 3 Yr Forecast | BA53: 5 Yr Forecast | BB53: Current | BC53: 3 Yr Forecast | BD53: 5 Yr Forecast | BE53: Current | BF53: 3 Yr Forecast | BG53: 5 Yr Forecast | BH53: Current | BI53: 3 Yr Forecast | BJ53: 5 Yr Forecast | BK53: Current | BL53: 3 Yr Forecast | BM53: 5 Yr Forecast | BN53: Current | BO53: 3 Yr Forecast | BP53: 5 Yr Forecast | BQ53: Current | BR53: 3 Yr Forecast | BS53: 5 Yr Forecast | BT53: Current | BU53: 3 Yr Forecast | BV53: 5 Yr Forecast | BW53: Current | BX53: 3 Yr Forecast | BY53: 5 Yr Forecast | BZ53: Current | CA53: 3 Yr Forecast | CB53: 5 Yr Forecast | CC53: Current | CD53: 3 Yr Forecast | CE53: 5 Yr Forecast | CF53: Current | CG53: 3 Yr Forecast | CH53: 5 Yr Forecast
B54: Total kWh/year measured | C54: ='Data Centre Detail'!D47 -> 0 | D54: ='Data Centre Detail'!E47 -> 0 | E54: ='Data Centre Detail'!F47 -> 0 | F54: ='Data Centre Detail'!G47 -> 0 | G54: ='Data Centre Detail'!H47 -> 0 | H54: ='Data Centre Detail'!I47 -> 0 | I54: ='Data Centre Detail'!J47 -> 0 | J54: ='Data Centre Detail'!K47 -> 0 | K54: ='Data Centre Detail'!L47 -> 0 | L54: ='Data Centre Detail'!M47 -> 0 | M54: ='Data Centre Detail'!N47 -> 0 | N54: ='Data Centre Detail'!O47 -> 0 | O54: 0 | P54: 0 | Q54: 0 | R54: 0 | S54: 0 | T54: 0 | U54: 0 | V54: 0 | W54: 0 | X54: 0 | Y54: 0 | Z54: 0 | AA54: 0 | AB54: 0 | AC54: 0 | AD54: 0 | AE54: 0 | AF54: 0 | AG54: 0 | AH54: 0 | AI54: 0 | AJ54: 0 | AK54: 0 | AL54: 0 | AM54: 0 | AN54: 0 | AO54: 0 | AP54: 0 | AQ54: 0 | AR54: 0 | AS54: 0 | AT54: 0 | AU54: 0 | AV54: 0 | AW54: 0 | AX54: 0 | AY54: 0 | AZ54: 0 | BA54: 0 | BB54: 0 | BC54: 0 | BD54: 0 | BE54: 0 | BF54: 0 | BG54: 0 | BH54: 0 | BI54: 0 | BJ54: 0 | BK54: 0 | BL54: 0 | BM54: 0 | BN54: 0 | BO54: 0 | BP54: 0 | BQ54: 0 | BR54: 0 | BS54: 0 | BT54: 0 | BU54: 0 | BV54: 0 | BW54: 0 | BX54: 0 | BY54: 0 | BZ54: 0 | CA54: 0 | CB54: 0 | CC54: 0 | CD54: 0 | CE54: 0 | CF54: 0 | CG54: 0 | CH54: 0
B55: Estimated PDU Losses | C55: ='Data Centre Detail'!D48 -> 0 | D55: ='Data Centre Detail'!E48 -> 0 | E55: ='Data Centre Detail'!F48 -> 0 | F55: ='Data Centre Detail'!G48 -> 0 | G55: ='Data Centre Detail'!H48 -> 0 | H55: ='Data Centre Detail'!I48 -> 0 | I55: ='Data Centre Detail'!J48 -> 0 | J55: ='Data Centre Detail'!K48 -> 0 | K55: ='Data Centre Detail'!L48 -> 0 | L55: ='Data Centre Detail'!M48 -> 0 | M55: ='Data Centre Detail'!N48 -> 0 | N55: ='Data Centre Detail'!O48 -> 0 | O55: 0 | P55: 0 | Q55: 0 | R55: 0 | S55: 0 | T55: 0 | U55: 0 | V55: 0 | W55: 0 | X55: 0 | Y55: 0 | Z55: 0 | AA55: 0 | AB55: 0 | AC55: 0 | AD55: 0 | AE55: 0 | AF55: 0 | AG55: 0 | AH55: 0 | AI55: 0 | AJ55: 0 | AK55: 0 | AL55: 0 | AM55: 0 | AN55: 0 | AO55: 0 | AP55: 0 | AQ55: 0 | AR55: 0 | AS55: 0 | AT55: 0 | AU55: 0 | AV55: 0 | AW55: 0 | AX55: 0 | AY55: 0 | AZ55: 0 | BA55: 0 | BB55: 0 | BC55: 0 | BD55: 0 | BE55: 0 | BF55: 0 | BG55: 0 | BH55: 0 | BI55: 0 | BJ55: 0 | BK55: 0 | BL55: 0 | BM55: 0 | BN55: 0 | BO55: 0 | BP55: 0 | BQ55: 0 | BR55: 0 | BS55: 0 | BT55: 0 | BU55: 0 | BV55: 0 | BW55: 0 | BX55: 0 | BY55: 0 | BZ55: 0 | CA55: 0 | CB55: 0 | CC55: 0 | CD55: 0 | CE55: 0 | CF55: 0 | CG55: 0 | CH55: 0
